Workbook

Sheet Traspaso Mazatlán
A2: Fecha | B2: Producto | C2: Sabor | D2: Cantidad
A3: =TODAY() -> 2023-09-14 | B3: IPLAY MAX | C3: Energy ICE | D3: 4
A4: 2023-09-14 | B4: IPLAY MAX | C4: Sour Apple | D4: 3
A5: 2023-09-14 | B5: IPLAY MAX | C5: Cool mint | D5: 2
A6: 2023-09-14 | B6: IPLAY MAX | C6: GrapeFruit berry | D6: 4
A7: 2023-09-14 | B7: IPLAY MAX | C7: Lush Ice | D7: 3
A8: 2023-09-14 | B8: IPLAY MAX | C8: Strawberry Lychee | D8: 1
A9: 2022-06-01 | B9: IPLAY MAX | C9: Strawberry Lychee | D9: 10
A10: 2022-06-01 | B10: IPLAY MAX | C10: Grapestraw | D10: 10
A11: 2022-06-01 | B11: IPLAY MAX | C11: Guava | D11: 10
A12: 2022-06-01 | B12: IPLAY MAX | C12: Peach Ice | D12: 10
A13: 2022-06-01 | B13: IPLAY MAX | C13: Sour Apple | D13: 10
A14: 2022-06-01 | B14: IPLAY MAX | C14: Cool mint | D14: 10
A15: 2022-06-01 | B15: IPLAY MAX | C15: GrapeFruit berry | D15: 10
A16: 2022-06-01 | B16: IPLAY MAX | C16: Bluerazz | D16: 10

Sheet Pedidos
A1: Fecha | B1: Producto | C1: Sabor | D1: Cantidad | H1: Producto | J1: Producto | K1: IPLAY BOX
A2: 2022-04-25 | B2: IPLAY CUBE | C2: Energy ICE | D2: 1 | H2: ELF BAR
A3: 2022-04-25 | B3: IPLAY CUBE | C3: Mango ICE | D3: 2 | H3: IPLAY BOX | J3: Etiquetas de fila
A4: 2022-04-25 | B4: IPLAY CUBE | C4: Cola ICE | D4: 2 | H4: IPLAY CUBE | J4: Grape Pear
A5: 2022-04-25 | B5: IPLAY CUBE | C5: Grape soda | D5: 2 | H5: IPLAY MAX | J5: Mint
A6: 2022-04-25 | B6: IPLAY CUBE | C6: Strawberry Lychee | D6: 2 | J6: Peach Mint
A7: 2022-04-25 | B7: IPLAY CUBE | C7: Lemonade | D7: 2 | J7: Srawberry Lychee
A8: 2022-04-25 | B8: IPLAY CUBE | C8: Energy ICE | D8: 5 | J8: Watermelon Ice
A9: 2022-04-25 | B9: IPLAY CUBE | C9: Mango ICE | D9: 3
A10: 2022-04-25 | B10: IPLAY CUBE | C10: Cola ICE | D10: 3
A11: 2022-04-25 | B11: IPLAY CUBE | C11: Grape soda | D11: 3
A12: 2022-04-25 | B12: IPLAY CUBE | C12: Strawberry Lychee | D12: 3
A13: 2022-04-25 | B13: IPLAY CUBE | C13: Banana Ice | D13: 2
A14: 2022-04-25 | B14: IPLAY CUBE | C14: Peach Candy | D14: 2
A15: 2022-04-25 | B15: IPLAY CUBE | C15: Watermelon | D15: 1
A16: 2022-04-25 | B16: IPLAY CUBE | C16: Double apple | D16: 1
A17: 2022-04-25 | B17: IPLAY CUBE | C17: Lemonade | D17: 2
A18: 2022-04-25 | B18: IPLAY CUBE | C18: Energy ICE | D18: 3
A19: 2022-04-25 | B19: IPLAY CUBE | C19: Mango ICE | D19: 2
A20: 2022-04-25 | B20: IPLAY CUBE | C20: Cola ICE | D20: 2
A21: 2022-04-25 | B21: IPLAY CUBE | C21: Grape soda | D21: 5
A22: 2022-04-25 | B22: IPLAY CUBE | C22: Strawberry Lychee | D22: 2
A23: 2022-04-25 | B23: IPLAY CUBE | C23: Banana Ice | D23: 2
A24: 2022-04-25 | B24: IPLAY CUBE | C24: Peach Candy | D24: 2
A25: 2022-04-25 | B25: IPLAY CUBE | C25: ICE Water | D25: 1
A26: 2022-04-25 | B26: IPLAY CUBE | C26: Double apple | D26: 4
A27: 2022-04-25 | B27: IPLAY CUBE | C27: Lemonade | D27: 2
A28: 2022-04-25 | B28: ELF BAR | C28: Banana ICE | D28: 2
A29: 2022-04-25 | B29: ELF BAR | C29: Pineaple ICE | D29: 2
A30: 2022-04-25 | B30: ELF BAR | C30: Mango ICE | D30: 2
A31: 2022-04-25 | B31: IPLAY MAX | C31: Strawberry Lychee | D31: 2
A32: 2022-04-25 | B32: IPLAY MAX | C32: Grapestraw | D32: 2
A33: 2022-04-25 | B33: IPLAY MAX | C33: Berry Watermelon | D33: 2
A34: 2022-04-25 | B34: IPLAY MAX | C34: Guava | D34: 2
A35: 2022-04-25 | B35: IPLAY MAX | C35: Cool mint | D35: 2
A36: 2022-04-25 | B36: IPLAY MAX | C36: Bluerazz | D36: 2
A37: 2022-04-25 | B37: IPLAY MAX | C37: Sour Apple | D37: 2
A38: 2022-04-25 | B38: IPLAY MAX | C38: Coconut | D38: 2
A39: 2022-04-25 | B39: IPLAY MAX | C39: Grapestraw | D39: 4
A40: 2022-04-25 | B40: IPLAY MAX | C40: Guava | D40: 4
A41: 2022-04-25 | B41: IPLAY MAX | C41: Sour Apple | D41: 1
A42: 2022-04-25 | B42: IPLAY MAX | C42: Coconut | D42: 4
A43: 2022-04-25 | B43: IPLAY MAX | C43: Cool mint | D43: 2
A44: 2022-04-25 | B44: IPLAY MAX | C44: Berry Watermelon | D44: 2
A45: 2022-04-25 | B45: IPLAY MAX | C45: Bluerazz | D45: 3
A46: 2022-04-25 | B46: IPLAY MAX | C46: Energy ICE | D46: 1
A47: 2022-04-25 | B47: IPLAY MAX | C47: Strawberry Lychee | D47: 3
A48: 2022-04-25 | B48: IPLAY MAX | C48: GrapeFruit berry | D48: 1
A49: 2022-04-25 | B49: IPLAY CUBE | C49: Mango ICE | D49: 2
A50: 2022-04-25 | B50: IPLAY CUBE | C50: Lemonade | D50: 3
A51: 2022-04-25 | B51: IPLAY CUBE | C51: Banana Ice | D51: 2
A52: 2022-04-25 | B52: IPLAY CUBE | C52: Double apple | D52: 3
A53: 2022-04-25 | B53: IPLAY CUBE | C53: Energy ICE | D53: 3
A54: 2022-04-25 | B54: IPLAY CUBE | C54: ICE Water | D54: 3
A55: 2022-04-25 | B55: IPLAY CUBE | C55: Grape soda | D55: 4
A56: 2022-04-25 | B56: IPLAY CUBE | C56: Peach Candy | D56: 2
A57: 2022-04-25 | B57: IPLAY CUBE | C57: Cola ICE | D57: 2
A58: 2022-04-25 | B58: IPLAY CUBE | C58: Strawberry Lychee | D58: 2
A59: 2022-04-25 | B59: IPLAY MAX | C59: Berry Watermelon | D59: 4
A60: 2022-04-25 | B60: IPLAY MAX | C60: Cool mint | D60: 2
A61: 2022-04-25 | B61: IPLAY MAX | C61: Guava | D61: 1
A62: 2022-04-25 | B62: IPLAY MAX | C62: Grapestraw | D62: 3
A63: 2022-04-25 | B63: IPLAY MAX | C63: Energy ICE | D63: 3
A64: 2022-04-25 | B64: IPLAY MAX | C64: Bluerazz | D64: 4
A65: 2022-04-25 | B65: IPLAY MAX | C65: GrapeFruit berry | D65: 3
A66: 2022-04-25 | B66: IPLAY MAX | C66: Strawberry Lychee | D66: 4
A67: 2022-04-25 | B67: IPLAY MAX | C67: Coconut | D67: 1
A68: 2022-04-25 | B68: IPLAY MAX | C68: Cool mint | D68: 4
A69: 2022-04-25 | B69: IPLAY MAX | C69: Berry Watermelon | D69: 4
A70: 2022-04-25 | B70: IPLAY MAX | C70: Grapestraw | D70: 5
A71: 2022-04-25 | B71: IPLAY MAX | C71: Bluerazz | D71: 4
A72: 2022-04-25 | B72: IPLAY MAX | C72: Coconut | D72: 5
A73: 2022-04-25 | B73: IPLAY MAX | C73: Guava | D73: 4
A74: 2022-04-25 | B74: IPLAY MAX | C74: Lush Ice | D74: 4
A75: 2022-04-25 | B75: IPLAY MAX | C75: Strawberry Lychee | D75: 4
A76: 2022-04-25 | B76: IPLAY MAX | C76: Energy ICE | D76: 4
A77: 2022-04-25 | B77: IPLAY MAX | C77: GrapeFruit berry | D77: 4
A78: 2022-04-25 | B78: IPLAY MAX | C78: Cocumber Lemonade | D78: 4
A79: 2022-04-25 | B79: IPLAY MAX | C79: Sour Apple | D79: 4
A80: 2022-04-25 | B80: IPLAY MAX | C80: Grapestraw | D80: 7
A81: 2022-04-25 | B81: IPLAY MAX | C81: Guava | D81: 4
A82: 2022-04-25 | B82: IPLAY MAX | C82: Cool mint | D82: 2
A83: 2022-04-25 | B83: IPLAY MAX | C83: Bluerazz | D83: 4
A84: 2022-04-25 | B84: IPLAY MAX | C84: Strawberry Lychee | D84: 2
A85: 2022-04-25 | B85: IPLAY MAX | C85: Coconut | D85: 1
A86: 2022-04-25 | B86: IPLAY MAX | C86: Lush Ice | D86: 1
A87: 2022-04-25 | B87: IPLAY MAX | C87: Berry Watermelon | D87: 2
A88: 2022-04-25 | B88: IPLAY MAX | C88: Energy ICE | D88: 8
A89: 2022-04-25 | B89: IPLAY MAX | C89: Sour Apple | D89: 7
A90: 2022-04-25 | B90: IPLAY MAX | C90: Berry Watermelon | D90: 9
A91: 2022-04-25 | B91: IPLAY MAX | C91: Cool mint | D91: 7
A92: 2022-04-25 | B92: IPLAY MAX | C92: GrapeFruit berry | D92: 9
A93: 2022-04-25 | B93: IPLAY MAX | C93: Strawberry Lychee | D93: 2
A94: 2022-04-25 | B94: IPLAY MAX | C94: Bluerazz | D94: 3
A95: 2022-04-25 | B95: IPLAY MAX | C95: Lush Ice | D95: 5
A96: 2022-04-25 | B96: IPLAY MAX | C96: Energy ICE | D96: 3
A97: 2022-04-25 | B97: IPLAY MAX | C97: Sour Apple | D97: 3
A98: 2022-04-25 | B98: IPLAY MAX | C98: Strawberry Lychee | D98: 15
A99: 2022-04-25 | B99: IPLAY MAX | C99: Berry Watermelon | D99: 15
A100: 2022-04-25 | B100: IPLAY MAX | C100: Guava | D100: 4
A101: 2022-04-25 | B101: IPLAY MAX | C101: Bluerazz | D101: 15
A102: 2022-04-25 | B102: IPLAY MAX | C102: GrapeFruit berry | D102: 15
A103: 2022-04-25 | B103: IPLAY MAX | C103: GrapeStraw | D103: 15
A104: 2022-04-25 | B104: IPLAY MAX | C104: Cool mint | D104: 5
A105: 2022-04-25 | B105: IPLAY MAX | C105: Coconut | D105: 5
A106: 2022-04-25 | B106: IPLAY MAX | C106: Lemon cookies | D106: 5
A107: 2022-04-26 | B107: IPLAY MAX | C107: Energy ICE | D107: 7
A108: 2022-04-26 | B108: IPLAY MAX | C108: Sour Apple | D108: 7
A109: 2022-04-26 | B109: IPLAY MAX | C109: Strawberry Lychee | D109: 10
A110: 2022-04-26 | B110: IPLAY MAX | C110: Berry Watermelon | D110: 10
A111: 2022-04-26 | B111: IPLAY MAX | C111: Bluerazz | D111: 10
A112: 2022-04-26 | B112: IPLAY MAX | C112: GrapeFruit berry | D112: 10
A113: 2022-04-26 | B113: IPLAY MAX | C113: Grapestraw | D113: 10
A114: 2022-04-26 | B114: IPLAY MAX | C114: Cool mint | D114: 10
A115: 2022-04-26 | B115: IPLAY MAX | C115: Coconut | D115: 7
A116: 2022-04-26 | B116: IPLAY MAX | C116: Lemon cookies | D116: 3
A117: 2022-04-26 | B117: IPLAY MAX | C117: Cocumber Lemonade | D117: 8
A118: 2022-04-26 | B118: IPLAY MAX | C118: Guava | D118: 8
A119: 2022-05-06 | B119: IPLAY MAX | C119: Berry Watermelon | D119: 20
A120: 2022-05-06 | B120: IPLAY MAX | C120: Grapestraw | D120: 20
A121: 2022-05-06 | B121: IPLAY MAX | C121: Strawberry Lychee | D121: 20
A122: 2022-05-06 | B122: IPLAY MAX | C122: GrapeFruit berry | D122: 20
A123: 2022-05-06 | B123: IPLAY MAX | C123: Bluerazz | D123: 20
A124: 2022-05-11 | B124: IPLAY MAX | C124: Berry Watermelon | D124: -3
A125: 2022-05-11 | B125: IPLAY MAX | C125: Coconut | D125: -1
A126: 2022-05-11 | B126: IPLAY MAX | C126: Energy ICE | D126: -1
A127: 2022-05-11 | B127: IPLAY MAX | C127: GrapeFruit berry | D127: -1
A128: 2022-05-11 | B128: IPLAY MAX | C128: Grapestraw | D128: -4
A129: 2022-05-11 | B129: IPLAY MAX | C129: Lemon cookies | D129: -1
A130: 2022-05-11 | B130: IPLAY MAX | C130: Sour Apple | D130: -1
A131: 2022-05-11 | B131: IPLAY MAX | C131: Strawberry Lychee | D131: -2
A132: 2022-05-23 | B132: IPLAY MAX | C132: Berry Watermelon | D132: 100
A133: 2022-05-23 | B133: IPLAY MAX | C133: Bluerazz | D133: 100
A134: 2022-05-24 | B134: IPLAY MAX | C134: Cool mint | D134: 80
A135: 2022-05-24 | B135: IPLAY MAX | C135: GrapeFruit berry | D135: 100
A136: 2022-05-24 | B136: IPLAY MAX | C136: Grapestraw | D136: 70
A137: 2022-05-24 | B137: IPLAY MAX | C137: Guava | D137: 90
A138: 2022-05-24 | B138: IPLAY MAX | C138: Sour Apple | D138: 60
A139: 2022-05-24 | B139: IPLAY MAX | C139: Strawberry Lychee | D139: 80
A140: 2022-05-24 | B140: IPLAY MAX | C140: Peach Ice | D140: 0
A141: 2022-05-24 | B141: IPLAY MAX | C141: Peach Ice | D141: 50
A142: 2022-05-25 | B142: IPLAY MAX | C142: Coconut | D142: 10
A143: 2022-07-02 | B143: IPLAY MAX | C143: Energy ICE | D143: 15
A144: 2022-07-02 | B144: IPLAY MAX | C144: Berry Watermelon | D144: 20
A145: 2022-07-02 | B145: IPLAY MAX | C145: Sour Apple | D145: 5
A146: 2022-07-02 | B146: IPLAY MAX | C146: Bluerazz | D146: 15
A147: 2022-07-02 | B147: IPLAY MAX | C147: Grapestraw | D147: 15
A148: 2022-07-02 | B148: IPLAY MAX | C148: Cool mint | D148: 30
A149: 2022-07-02 | B149: IPLAY MAX | C149: Coconut | D149: 15
A150: 2022-07-02 | B150: IPLAY MAX | C150: Cocumber Lemonade | D150: 10
A151: 2022-07-02 | B151: IPLAY MAX | C151: Grape Ice | D151: 15
A152: 2022-07-02 | B152: IPLAY MAX | C152: Peach Ice | D152: 10
A153: 2022-07-02 | B153: IPLAY MAX | C153: Banana Ice | D153: 5
A154: 2022-09-02 | B154: IPLAY MAX | C154: Energy ICE | D154: 9
A155: 2022-09-02 | B155: IPLAY MAX | C155: Bluerazz | D155: 9
A156: 2022-09-02 | B156: IPLAY MAX | C156: Strawberry Lychee | D156: 5
A157: 2022-09-02 | B157: IPLAY MAX | C157: Berry Watermelon | D157: 5
A158: 2022-09-02 | B158: IPLAY MAX | C158: Guava | D158: 5
A159: 2022-09-02 | B159: IPLAY MAX | C159: GrapeFruit berry | D159: 5
A160: 2022-09-02 | B160: IPLAY MAX | C160: Cool mint | D160: 8
A161: 2022-09-02 | B161: IPLAY MAX | C161: Coconut | D161: 8
A162: 2022-09-02 | B162: IPLAY MAX | C162: Peach Ice | D162: 4
A163: 2022-09-02 | B163: IPLAY MAX | C163: Banana Ice | D163: 4
A164: 2022-09-02 | B164: IPLAY MAX | C164: Sourraspberry | D164: 4
A165: 2022-09-02 | B165: IPLAY MAX | C165: Energy ICE | D165: 1
A166: 2022-09-02 | B166: IPLAY MAX | C166: Peach Ice | D166: 1
A167: 2022-10-05 | B167: IPLAY MAX | C167: Energy ICE | D167: 6
A168: 2022-10-05 | B168: IPLAY MAX | C168: Berry Watermelon | D168: 10
A169: 2022-10-05 | B169: IPLAY MAX | C169: Coconut | D169: 10
A170: 2022-10-05 | B170: IPLAY MAX | C170: Peach Ice | D170: 6
A171: 2022-10-05 | B171: IPLAY MAX | C171: Banana Ice | D171: 8
A172: 2022-10-05 | B172: IPLAY MAX | C172: Sourraspberry | D172: 8
A173: 2022-10-05 | B173: IPLAY MAX | C173: Passion Fruit | D173: 2
A174: 2022-11-25 | B174: IPLAY MAX | C174: Banana Ice | D174: -2
A175: 2022-11-25 | B175: IPLAY MAX | C175: Berry Watermelon | D175: 2
A176: 2022-11-25 | B176: IPLAY MAX | C176: Coconut | D176: -1
A177: 2022-11-25 | B177: IPLAY MAX | C177: Cool mint | D177: -1
A178: 2022-11-25 | B178: IPLAY MAX | C178: Energy ICE | D178: -2
A179: 2022-11-25 | B179: IPLAY MAX | C179: GrapeFruit berry | D179: -2
A180: 2022-11-25 | B180: IPLAY MAX | C180: Grapestraw | D180: 1
A181: 2022-11-25 | B181: IPLAY MAX | C181: Guava | D181: -10
A182: 2022-11-25 | B182: IPLAY MAX | C182: Sour Apple | D182: 9
A183: 2022-11-25 | B183: IPLAY MAX | C183: Peach Ice | D183: -2
A184: 2022-11-25 | B184: IPLAY MAX | C184: Grape Ice | D184: -1
A185: 2022-11-25 | B185: IPLAY MAX | C185: Sourraspberry | D185: -1
A186: 2023-02-28 | B186: IPLAY MAX | C186: Low Mint | D186: 4
A187: 2023-02-28 | B187: IPLAY MAX | C187: Banana Cherry DragonFruit | D187: 3
A188: 2023-02-28 | B188: IPLAY MAX | C188: Pineapple Orange Guava | D188: 5
A189: 2023-02-28 | B189: IPLAY MAX | C189: Kiwi Guava Passion Fruit | D189: 3
A190: 2023-02-28 | B190: IPLAY MAX | C190: Peach Ice | D190: 5
A191: 2023-02-28 | B191: IPLAY MAX | C191: Cool mint | D191: 5
A192: 2023-02-28 | B192: IPLAY MAX | C192: Sourraspberry | D192: 4
A193: 2023-02-28 | B193: IPLAY MAX | C193: Bluerazz | D193: 4
A194: 2023-02-28 | B194: IPLAY MAX | C194: Strawberry Lychee | D194: 4
A195: 2023-02-28 | B195: IPLAY MAX | C195: Berry Watermelon | D195: 4
A196: 2023-02-28 | B196: IPLAY MAX | C196: Guava | D196: 4
A197: 2023-02-28 | B197: IPLAY MAX | C197: Blueberry Rainbow | D197: 3
A198: 2023-02-28 | B198: IPLAY MAX | C198: Pineapple Coconut | D198: 3
A199: 2023-02-28 | B199: IPLAY MAX | C199: Watermelon Banana | D199: 5
A200: 2023-02-28 | B200: IPLAY MAX | C200: Banana Ice | D200: 5
... 53 more rows

Sheet Ventas Mayoreo
A4: Fecha | B4: Vendedor | C4: Producto | D4: Sabor | E4: Cantidad | F4: Precio Mayoreo | G4: Precio de venta | H4: Ventas Totales | I4: Transferencia | J4: Efectivo
A5: 2022-04-24 | B5: Julio | C5: IPLAY MAX | D5: Strawberry Lychee | E5: 10 | F5: Precio 5 | G5: =_xlfn.IFNA(VLOOKUP(VentasMayoreo[[#This Row],[Precio Mayoreo]],PreciosMayoreo[],3,0),0) -> 170 | H5: =VentasMayoreo[[#This Row],[Cantidad]]*VentasMayoreo[[#This Row],[Precio de venta]] -> 1700 | I5: 1700
A6: 2022-04-24 | B6: Julio | C6: IPLAY MAX | D6: Grapestraw | E6: 10 | F6: Precio 5 | G6: =_xlfn.IFNA(VLOOKUP(VentasMayoreo[[#This Row],[Precio Mayoreo]],PreciosMayoreo[],3,0),0) -> 170 | H6: =VentasMayoreo[[#This Row],[Cantidad]]*VentasMayoreo[[#This Row],[Precio de venta]] -> 1700 | I6: 1700
A7: 2022-04-24 | B7: Julio | C7: IPLAY MAX | D7: Berry Watermelon | E7: 10 | F7: Precio 5 | G7: =_xlfn.IFNA(VLOOKUP(VentasMayoreo[[#This Row],[Precio Mayoreo]],PreciosMayoreo[],3,0),0) -> 170 | H7: =VentasMayoreo[[#This Row],[Cantidad]]*VentasMayoreo[[#This Row],[Precio de venta]] -> 1700 | I7: 1700
A8: 2022-04-24 | B8: Julio | C8: IPLAY MAX | D8: Bluerazz | E8: 10 | F8: Precio 5 | G8: =_xlfn.IFNA(VLOOKUP(VentasMayoreo[[#This Row],[Precio Mayoreo]],PreciosMayoreo[],3,0),0) -> 170 | H8: =VentasMayoreo[[#This Row],[Cantidad]]*VentasMayoreo[[#This Row],[Precio de venta]] -> 1700 | I8: 1700
A9: 2022-04-24 | B9: Julio | C9: IPLAY MAX | D9: GrapeFruit berry | E9: 10 | F9: Precio 5 | G9: =_xlfn.IFNA(VLOOKUP(VentasMayoreo[[#This Row],[Precio Mayoreo]],PreciosMayoreo[],3,0),0) -> 170 | H9: =VentasMayoreo[[#This Row],[Cantidad]]*VentasMayoreo[[#This Row],[Precio de venta]] -> 1700 | I9: 1700
A10: 2022-05-06 | B10: Julio | C10: IPLAY MAX | D10: Berry Watermelon | E10: 20 | F10: Precio 6 | G10: =_xlfn.IFNA(VLOOKUP(VentasMayoreo[[#This Row],[Precio Mayoreo]],PreciosMayoreo[],3,0),0) -> 150 | H10: =VentasMayoreo[[#This Row],[Cantidad]]*VentasMayoreo[[#This Row],[Precio de venta]] -> 3000 | J10: 3000
A11: 2022-05-06 | B11: Julio | C11: IPLAY MAX | D11: Bluerazz | E11: 20 | F11: Precio 6 | G11: =_xlfn.IFNA(VLOOKUP(VentasMayoreo[[#This Row],[Precio Mayoreo]],PreciosMayoreo[],3,0),0) -> 150 | H11: =VentasMayoreo[[#This Row],[Cantidad]]*VentasMayoreo[[#This Row],[Precio de venta]] -> 3000 | J11: 3000
A12: 2022-05-06 | B12: Julio | C12: IPLAY MAX | D12: Grapestraw | E12: 20 | F12: Precio 6 | G12: =_xlfn.IFNA(VLOOKUP(VentasMayoreo[[#This Row],[Precio Mayoreo]],PreciosMayoreo[],3,0),0) -> 150 | H12: =VentasMayoreo[[#This Row],[Cantidad]]*VentasMayoreo[[#This Row],[Precio de venta]] -> 3000 | J12: 3000
A13: 2022-05-06 | B13: Julio | C13: IPLAY MAX | D13: GrapeFruit berry | E13: 20 | F13: Precio 6 | G13: =_xlfn.IFNA(VLOOKUP(VentasMayoreo[[#This Row],[Precio Mayoreo]],PreciosMayoreo[],3,0),0) -> 150 | H13: =VentasMayoreo[[#This Row],[Cantidad]]*VentasMayoreo[[#This Row],[Precio de venta]] -> 3000 | J13: 3000
A14: 2022-05-06 | B14: Julio | C14: IPLAY MAX | D14: Strawberry Lychee | E14: 20 | F14: Precio 6 | G14: =_xlfn.IFNA(VLOOKUP(VentasMayoreo[[#This Row],[Precio Mayoreo]],PreciosMayoreo[],3,0),0) -> 150 | H14: =VentasMayoreo[[#This Row],[Cantidad]]*VentasMayoreo[[#This Row],[Precio de venta]] -> 3000 | J14: 3000
A15: 2022-05-30 | B15: Hugo | C15: IPLAY MAX | D15: Berry Watermelon | E15: 20 | F15: Homero | G15: =_xlfn.IFNA(VLOOKUP(VentasMayoreo[[#This Row],[Precio Mayoreo]],PreciosMayoreo[],3,0),0) -> 150 | H15: =VentasMayoreo[[#This Row],[Cantidad]]*VentasMayoreo[[#This Row],[Precio de venta]] -> 3000 | I15: 3000
A16: 2022-05-30 | B16: Hugo | C16: IPLAY MAX | D16: Strawberry Lychee | E16: 20 | F16: Homero | G16: =_xlfn.IFNA(VLOOKUP(VentasMayoreo[[#This Row],[Precio Mayoreo]],PreciosMayoreo[],3,0),0) -> 150 | H16: =VentasMayoreo[[#This Row],[Cantidad]]*VentasMayoreo[[#This Row],[Precio de venta]] -> 3000 | I16: 3000
A17: 2022-05-30 | B17: Hugo | C17: IPLAY MAX | D17: Bluerazz | E17: 20 | F17: Homero | G17: =_xlfn.IFNA(VLOOKUP(VentasMayoreo[[#This Row],[Precio Mayoreo]],PreciosMayoreo[],3,0),0) -> 150 | H17: =VentasMayoreo[[#This Row],[Cantidad]]*VentasMayoreo[[#This Row],[Precio de venta]] -> 3000 | I17: 3000
A18: 2022-05-30 | B18: Hugo | C18: IPLAY MAX | D18: GrapeFruit berry | E18: 20 | F18: Homero | G18: =_xlfn.IFNA(VLOOKUP(VentasMayoreo[[#This Row],[Precio Mayoreo]],PreciosMayoreo[],3,0),0) -> 150 | H18: =VentasMayoreo[[#This Row],[Cantidad]]*VentasMayoreo[[#This Row],[Precio de venta]] -> 3000 | I18: 3000
A19: 2022-05-30 | B19: Hugo | C19: IPLAY MAX | D19: Grapestraw | E19: 20 | F19: Homero | G19: =_xlfn.IFNA(VLOOKUP(VentasMayoreo[[#This Row],[Precio Mayoreo]],PreciosMayoreo[],3,0),0) -> 150 | H19: =VentasMayoreo[[#This Row],[Cantidad]]*VentasMayoreo[[#This Row],[Precio de venta]] -> 3000 | I19: 3000
A20: 2022-05-30 | B20: Julio | C20: IPLAY MAX | D20: Bluerazz | E20: 12 | F20: Gael Mztln | G20: =_xlfn.IFNA(VLOOKUP(VentasMayoreo[[#This Row],[Precio Mayoreo]],PreciosMayoreo[],3,0),0) -> 145 | H20: =VentasMayoreo[[#This Row],[Cantidad]]*VentasMayoreo[[#This Row],[Precio de venta]] -> 1740 | I20: 1740
A21: 2022-05-30 | B21: Julio | C21: IPLAY MAX | D21: Guava | E21: 8 | F21: Gael Mztln | G21: =_xlfn.IFNA(VLOOKUP(VentasMayoreo[[#This Row],[Precio Mayoreo]],PreciosMayoreo[],3,0),0) -> 145 | H21: =VentasMayoreo[[#This Row],[Cantidad]]*VentasMayoreo[[#This Row],[Precio de venta]] -> 1160 | I21: 1160
A22: 2022-05-30 | B22: Julio | C22: IPLAY MAX | D22: Grapestraw | E22: 14 | F22: Gael Mztln | G22: =_xlfn.IFNA(VLOOKUP(VentasMayoreo[[#This Row],[Precio Mayoreo]],PreciosMayoreo[],3,0),0) -> 145 | H22: =VentasMayoreo[[#This Row],[Cantidad]]*VentasMayoreo[[#This Row],[Precio de venta]] -> 2030 | I22: 2030
A23: 2022-05-30 | B23: Julio | C23: IPLAY MAX | D23: Cool mint | E23: 18 | F23: Gael Mztln | G23: =_xlfn.IFNA(VLOOKUP(VentasMayoreo[[#This Row],[Precio Mayoreo]],PreciosMayoreo[],3,0),0) -> 145 | H23: =VentasMayoreo[[#This Row],[Cantidad]]*VentasMayoreo[[#This Row],[Precio de venta]] -> 2610 | I23: 2610
A24: 2022-05-30 | B24: Julio | C24: IPLAY MAX | D24: Berry Watermelon | E24: 12 | F24: Gael Mztln | G24: =_xlfn.IFNA(VLOOKUP(VentasMayoreo[[#This Row],[Precio Mayoreo]],PreciosMayoreo[],3,0),0) -> 145 | H24: =VentasMayoreo[[#This Row],[Cantidad]]*VentasMayoreo[[#This Row],[Precio de venta]] -> 1740 | I24: 1740
A25: 2022-06-03 | B25: Hugo | C25: IPLAY MAX | D25: Peach Ice | E25: 27 | F25: MK express | G25: =_xlfn.IFNA(VLOOKUP(VentasMayoreo[[#This Row],[Precio Mayoreo]],PreciosMayoreo[],3,0),0) -> 130 | H25: =VentasMayoreo[[#This Row],[Cantidad]]*VentasMayoreo[[#This Row],[Precio de venta]] -> 3510 | J25: 3510
A26: 2022-06-03 | B26: Hugo | C26: IPLAY MAX | D26: Berry Watermelon | E26: 40 | F26: MK express | G26: =_xlfn.IFNA(VLOOKUP(VentasMayoreo[[#This Row],[Precio Mayoreo]],PreciosMayoreo[],3,0),0) -> 130 | H26: =VentasMayoreo[[#This Row],[Cantidad]]*VentasMayoreo[[#This Row],[Precio de venta]] -> 5200 | J26: 5200
A27: 2022-06-03 | B27: Hugo | C27: IPLAY MAX | D27: Cool mint | E27: 37 | F27: MK express | G27: =_xlfn.IFNA(VLOOKUP(VentasMayoreo[[#This Row],[Precio Mayoreo]],PreciosMayoreo[],3,0),0) -> 130 | H27: =VentasMayoreo[[#This Row],[Cantidad]]*VentasMayoreo[[#This Row],[Precio de venta]] -> 4810 | J27: 4810
A28: 2022-06-03 | B28: Hugo | C28: IPLAY MAX | D28: Strawberry Lychee | E28: 31 | F28: MK express | G28: =_xlfn.IFNA(VLOOKUP(VentasMayoreo[[#This Row],[Precio Mayoreo]],PreciosMayoreo[],3,0),0) -> 130 | H28: =VentasMayoreo[[#This Row],[Cantidad]]*VentasMayoreo[[#This Row],[Precio de venta]] -> 4030 | J28: 4030
A29: 2022-06-03 | B29: Hugo | C29: IPLAY MAX | D29: Grapestraw | E29: 22 | F29: MK express | G29: =_xlfn.IFNA(VLOOKUP(VentasMayoreo[[#This Row],[Precio Mayoreo]],PreciosMayoreo[],3,0),0) -> 130 | H29: =VentasMayoreo[[#This Row],[Cantidad]]*VentasMayoreo[[#This Row],[Precio de venta]] -> 2860 | J29: 2860
A30: 2022-06-03 | B30: Hugo | C30: IPLAY MAX | D30: Guava | E30: 20 | F30: MK express | G30: =_xlfn.IFNA(VLOOKUP(VentasMayoreo[[#This Row],[Precio Mayoreo]],PreciosMayoreo[],3,0),0) -> 130 | H30: =VentasMayoreo[[#This Row],[Cantidad]]*VentasMayoreo[[#This Row],[Precio de venta]] -> 2600 | J30: 2600
A31: 2022-06-03 | B31: Hugo | C31: IPLAY MAX | D31: GrapeFruit berry | E31: 30 | F31: MK express | G31: =_xlfn.IFNA(VLOOKUP(VentasMayoreo[[#This Row],[Precio Mayoreo]],PreciosMayoreo[],3,0),0) -> 130 | H31: =VentasMayoreo[[#This Row],[Cantidad]]*VentasMayoreo[[#This Row],[Precio de venta]] -> 3900 | J31: 3900
A32: 2022-06-03 | B32: Hugo | C32: IPLAY MAX | D32: Bluerazz | E32: 30 | F32: MK express | G32: =_xlfn.IFNA(VLOOKUP(VentasMayoreo[[#This Row],[Precio Mayoreo]],PreciosMayoreo[],3,0),0) -> 130 | H32: =VentasMayoreo[[#This Row],[Cantidad]]*VentasMayoreo[[#This Row],[Precio de venta]] -> 3900 | J32: 3900
A33: 2022-06-03 | B33: Hugo | C33: IPLAY MAX | D33: Cool mint | E33: 3 | F33: MK express | G33: =_xlfn.IFNA(VLOOKUP(VentasMayoreo[[#This Row],[Precio Mayoreo]],PreciosMayoreo[],3,0),0) -> 130 | H33: =VentasMayoreo[[#This Row],[Cantidad]]*VentasMayoreo[[#This Row],[Precio de venta]] -> 390 | J33: 390
A34: 2022-09-11 | B34: Hugo | C34: IPLAY MAX | D34: Banana Ice | E34: 1 | F34: Hugo Precio | G34: =_xlfn.IFNA(VLOOKUP(VentasMayoreo[[#This Row],[Precio Mayoreo]],PreciosMayoreo[],3,0),0) -> 167 | H34: =VentasMayoreo[[#This Row],[Cantidad]]*VentasMayoreo[[#This Row],[Precio de venta]] -> 167 | I34: 167
A35: 2022-09-11 | B35: Hugo | C35: IPLAY MAX | D35: Coconut | E35: 1 | F35: Hugo Precio | G35: =_xlfn.IFNA(VLOOKUP(VentasMayoreo[[#This Row],[Precio Mayoreo]],PreciosMayoreo[],3,0),0) -> 167 | H35: =VentasMayoreo[[#This Row],[Cantidad]]*VentasMayoreo[[#This Row],[Precio de venta]] -> 167 | I35: 167
A36: 2022-09-11 | B36: Hugo | C36: IPLAY MAX | D36: Bluerazz | E36: 1 | F36: Hugo Precio | G36: =_xlfn.IFNA(VLOOKUP(VentasMayoreo[[#This Row],[Precio Mayoreo]],PreciosMayoreo[],3,0),0) -> 167 | H36: =VentasMayoreo[[#This Row],[Cantidad]]*VentasMayoreo[[#This Row],[Precio de venta]] -> 167 | I36: 167
A37: 2022-10-05 | B37: Hugo | C37: IPLAY MAX | D37: Berry Watermelon | E37: 1 | F37: Precio proveedor | G37: =_xlfn.IFNA(VLOOKUP(VentasMayoreo[[#This Row],[Precio Mayoreo]],PreciosMayoreo[],3,0),0) -> 130 | H37: =VentasMayoreo[[#This Row],[Cantidad]]*VentasMayoreo[[#This Row],[Precio de venta]] -> 130 | I37: 130
H38: =SUM(VentasMayoreo[Ventas Totales]) -> 79611 | I38: =SUBTOTAL(109,VentasMayoreo[Transferencia]) -> 33411 | J38: =SUBTOTAL(109,VentasMayoreo[Efectivo]) -> 46200

Sheet Ventas Menudeo
A1: Tipo | B1: Precio de venta
A2: IPLAY BOX | B2: 260
A3: IPLAY CUBE | B3: 190 | C3: 190
A4: IPLAY MAX | B4: 270 | C4: 250
A5: ELF BAR | B5: 275 | C5: 275
A6: Fecha | B6: Vendedor | C6: Producto | D6: Sabor | E6: Cantidad | F6: Promoción | G6: Persona recomendo | H6: Descuento | I6: Precio de Venta | J6: Venta Total | K6: Transferencia | L6: Efectivo
A7: 2022-04-24 | B7: Julio | C7: IPLAY CUBE | D7: Energy ICE | E7: 12 | H7: =_xlfn.IFNA(VLOOKUP(VentasMenudeo[[#This Row],[Promoción]],PromocionesMenudeo[[Promocion]:[Descuento]],2,0),0) -> 0 | I7: =_xlfn.IFNA(VLOOKUP(VentasMenudeo[[#This Row],[Producto]],$A$2:$B$5,2,FALSE),0) -> 190 | J7: =_xlfn.IFNA(_xlfn.IFS(VentasMenudeo[[#This Row],[Producto]]=$A$2,VentasMenudeo[[#This Row],[Precio de Venta]]*VentasMenudeo[[#This Row],[Cantidad]]-VentasMenudeo[[#This Row],[Descuento]],VentasMenudeo[[#This Row],[Producto]]=$A$3,VentasMenudeo[[#This Row],[Precio de Venta]]*VentasMenudeo[[#This Row],[Cantidad]]-VentasMenudeo[[#This Row],[Descuento]],VentasMenudeo[[#This Row],[Producto]]=$A$4,VentasMenudeo[[#This Row],[Precio de Venta]]*VentasMenudeo[[#This Row],[Cantidad]]-VentasMenudeo[[#This Row],[Descuento]],VentasMenudeo[[#This Row],[Producto]]=$A$5,VentasMenudeo[[#This Row],[Precio de Venta]]*VentasMenudeo[[#This Row],[Cantidad]]-VentasMenudeo[[#This Row],[Descuento]]),0) -> 2280 | K7: 2280
A8: 2022-04-24 | B8: Julio | C8: IPLAY CUBE | D8: Mango ICE | E8: 9 | F8: 3er Vape | H8: =_xlfn.IFNA(VLOOKUP(VentasMenudeo[[#This Row],[Promoción]],PromocionesMenudeo[[Promocion]:[Descuento]],2,0),0) -> 0 | I8: =_xlfn.IFNA(VLOOKUP(VentasMenudeo[[#This Row],[Producto]],$A$2:$B$5,2,FALSE),0) -> 190 | J8: =_xlfn.IFNA(_xlfn.IFS(VentasMenudeo[[#This Row],[Producto]]=$A$2,VentasMenudeo[[#This Row],[Precio de Venta]]*VentasMenudeo[[#This Row],[Cantidad]]-VentasMenudeo[[#This Row],[Descuento]],VentasMenudeo[[#This Row],[Producto]]=$A$3,VentasMenudeo[[#This Row],[Precio de Venta]]*VentasMenudeo[[#This Row],[Cantidad]]-VentasMenudeo[[#This Row],[Descuento]],VentasMenudeo[[#This Row],[Producto]]=$A$4,VentasMenudeo[[#This Row],[Precio de Venta]]*VentasMenudeo[[#This Row],[Cantidad]]-VentasMenudeo[[#This Row],[Descuento]],VentasMenudeo[[#This Row],[Producto]]=$A$5,VentasMenudeo[[#This Row],[Precio de Venta]]*VentasMenudeo[[#This Row],[Cantidad]]-VentasMenudeo[[#This Row],[Descuento]]),0) -> 1710 | K8: 1685
A9: 2022-04-24 | B9: Julio | C9: IPLAY CUBE | D9: Cola ICE | E9: 9 | H9: =_xlfn.IFNA(VLOOKUP(VentasMenudeo[[#This Row],[Promoción]],PromocionesMenudeo[[Promocion]:[Descuento]],2,0),0) -> 0 | I9: =_xlfn.IFNA(VLOOKUP(VentasMenudeo[[#This Row],[Producto]],$A$2:$B$5,2,FALSE),0) -> 190 | J9: =_xlfn.IFNA(_xlfn.IFS(VentasMenudeo[[#This Row],[Producto]]=$A$2,VentasMenudeo[[#This Row],[Precio de Venta]]*VentasMenudeo[[#This Row],[Cantidad]]-VentasMenudeo[[#This Row],[Descuento]],VentasMenudeo[[#This Row],[Producto]]=$A$3,VentasMenudeo[[#This Row],[Precio de Venta]]*VentasMenudeo[[#This Row],[Cantidad]]-VentasMenudeo[[#This Row],[Descuento]],VentasMenudeo[[#This Row],[Producto]]=$A$4,VentasMenudeo[[#This Row],[Precio de Venta]]*VentasMenudeo[[#This Row],[Cantidad]]-VentasMenudeo[[#This Row],[Descuento]],VentasMenudeo[[#This Row],[Producto]]=$A$5,VentasMenudeo[[#This Row],[Precio de Venta]]*VentasMenudeo[[#This Row],[Cantidad]]-VentasMenudeo[[#This Row],[Descuento]]),0) -> 1710 | K9: 1710
A10: 2022-04-24 | B10: Julio | C10: IPLAY CUBE | D10: Grape soda | E10: 14 | H10: =_xlfn.IFNA(VLOOKUP(VentasMenudeo[[#This Row],[Promoción]],PromocionesMenudeo[[Promocion]:[Descuento]],2,0),0) -> 0 | I10: =_xlfn.IFNA(VLOOKUP(VentasMenudeo[[#This Row],[Producto]],$A$2:$B$5,2,FALSE),0) -> 190 | J10: =_xlfn.IFNA(_xlfn.IFS(VentasMenudeo[[#This Row],[Producto]]=$A$2,VentasMenudeo[[#This Row],[Precio de Venta]]*VentasMenudeo[[#This Row],[Cantidad]]-VentasMenudeo[[#This Row],[Descuento]],VentasMenudeo[[#This Row],[Producto]]=$A$3,VentasMenudeo[[#This Row],[Precio de Venta]]*VentasMenudeo[[#This Row],[Cantidad]]-VentasMenudeo[[#This Row],[Descuento]],VentasMenudeo[[#This Row],[Producto]]=$A$4,VentasMenudeo[[#This Row],[Precio de Venta]]*VentasMenudeo[[#This Row],[Cantidad]]-VentasMenudeo[[#This Row],[Descuento]],VentasMenudeo[[#This Row],[Producto]]=$A$5,VentasMenudeo[[#This Row],[Precio de Venta]]*VentasMenudeo[[#This Row],[Cantidad]]-VentasMenudeo[[#This Row],[Descuento]]),0) -> 2660 | K10: 2660
A11: 2022-04-24 | B11: Julio | C11: IPLAY CUBE | D11: Strawberry Lychee | E11: 9 | H11: =_xlfn.IFNA(VLOOKUP(VentasMenudeo[[#This Row],[Promoción]],PromocionesMenudeo[[Promocion]:[Descuento]],2,0),0) -> 0 | I11: =_xlfn.IFNA(VLOOKUP(VentasMenudeo[[#This Row],[Producto]],$A$2:$B$5,2,FALSE),0) -> 190 | J11: =_xlfn.IFNA(_xlfn.IFS(VentasMenudeo[[#This Row],[Producto]]=$A$2,VentasMenudeo[[#This Row],[Precio de Venta]]*VentasMenudeo[[#This Row],[Cantidad]]-VentasMenudeo[[#This Row],[Descuento]],VentasMenudeo[[#This Row],[Producto]]=$A$3,VentasMenudeo[[#This Row],[Precio de Venta]]*VentasMenudeo[[#This Row],[Cantidad]]-VentasMenudeo[[#This Row],[Descuento]],VentasMenudeo[[#This Row],[Producto]]=$A$4,VentasMenudeo[[#This Row],[Precio de Venta]]*VentasMenudeo[[#This Row],[Cantidad]]-VentasMenudeo[[#This Row],[Descuento]],VentasMenudeo[[#This Row],[Producto]]=$A$5,VentasMenudeo[[#This Row],[Precio de Venta]]*VentasMenudeo[[#This Row],[Cantidad]]-VentasMenudeo[[#This Row],[Descuento]]),0) -> 1710 | K11: 1710
A12: 2022-04-24 | B12: Julio | C12: IPLAY CUBE | D12: Lemonade | E12: 9 | H12: =_xlfn.IFNA(VLOOKUP(VentasMenudeo[[#This Row],[Promoción]],PromocionesMenudeo[[Promocion]:[Descuento]],2,0),0) -> 0 | I12: =_xlfn.IFNA(VLOOKUP(VentasMenudeo[[#This Row],[Producto]],$A$2:$B$5,2,FALSE),0) -> 190 | J12: =_xlfn.IFNA(_xlfn.IFS(VentasMenudeo[[#This Row],[Producto]]=$A$2,VentasMenudeo[[#This Row],[Precio de Venta]]*VentasMenudeo[[#This Row],[Cantidad]]-VentasMenudeo[[#This Row],[Descuento]],VentasMenudeo[[#This Row],[Producto]]=$A$3,VentasMenudeo[[#This Row],[Precio de Venta]]*VentasMenudeo[[#This Row],[Cantidad]]-VentasMenudeo[[#This Row],[Descuento]],VentasMenudeo[[#This Row],[Producto]]=$A$4,VentasMenudeo[[#This Row],[Precio de Venta]]*VentasMenudeo[[#This Row],[Cantidad]]-VentasMenudeo[[#This Row],[Descuento]],VentasMenudeo[[#This Row],[Producto]]=$A$5,VentasMenudeo[[#This Row],[Precio de Venta]]*VentasMenudeo[[#This Row],[Cantidad]]-VentasMenudeo[[#This Row],[Descuento]]),0) -> 1710 | K12: 1710
A13: 2022-04-24 | B13: Julio | C13: IPLAY CUBE | D13: Banana Ice | E13: 6 | F13: 3er Vape | H13: =_xlfn.IFNA(VLOOKUP(VentasMenudeo[[#This Row],[Promoción]],PromocionesMenudeo[[Promocion]:[Descuento]],2,0),0) -> 0 | I13: =_xlfn.IFNA(VLOOKUP(VentasMenudeo[[#This Row],[Producto]],$A$2:$B$5,2,FALSE),0) -> 190 | J13: =_xlfn.IFNA(_xlfn.IFS(VentasMenudeo[[#This Row],[Producto]]=$A$2,VentasMenudeo[[#This Row],[Precio de Venta]]*VentasMenudeo[[#This Row],[Cantidad]]-VentasMenudeo[[#This Row],[Descuento]],VentasMenudeo[[#This Row],[Producto]]=$A$3,VentasMenudeo[[#This Row],[Precio de Venta]]*VentasMenudeo[[#This Row],[Cantidad]]-VentasMenudeo[[#This Row],[Descuento]],VentasMenudeo[[#This Row],[Producto]]=$A$4,VentasMenudeo[[#This Row],[Precio de Venta]]*VentasMenudeo[[#This Row],[Cantidad]]-VentasMenudeo[[#This Row],[Descuento]],VentasMenudeo[[#This Row],[Producto]]=$A$5,VentasMenudeo[[#This Row],[Precio de Venta]]*VentasMenudeo[[#This Row],[Cantidad]]-VentasMenudeo[[#This Row],[Descuento]]),0) -> 1140 | K13: 1115
A14: 2022-04-24 | B14: Julio | C14: IPLAY CUBE | D14: Peach Candy | E14: 6 | F14: 3er Vape | H14: =_xlfn.IFNA(VLOOKUP(VentasMenudeo[[#This Row],[Promoción]],PromocionesMenudeo[[Promocion]:[Descuento]],2,0),0) -> 0 | I14: =_xlfn.IFNA(VLOOKUP(VentasMenudeo[[#This Row],[Producto]],$A$2:$B$5,2,FALSE),0) -> 190 | J14: =_xlfn.IFNA(_xlfn.IFS(VentasMenudeo[[#This Row],[Producto]]=$A$2,VentasMenudeo[[#This Row],[Precio de Venta]]*VentasMenudeo[[#This Row],[Cantidad]]-VentasMenudeo[[#This Row],[Descuento]],VentasMenudeo[[#This Row],[Producto]]=$A$3,VentasMenudeo[[#This Row],[Precio de Venta]]*VentasMenudeo[[#This Row],[Cantidad]]-VentasMenudeo[[#This Row],[Descuento]],VentasMenudeo[[#This Row],[Producto]]=$A$4,VentasMenudeo[[#This Row],[Precio de Venta]]*VentasMenudeo[[#This Row],[Cantidad]]-VentasMenudeo[[#This Row],[Descuento]],VentasMenudeo[[#This Row],[Producto]]=$A$5,VentasMenudeo[[#This Row],[Precio de Venta]]*VentasMenudeo[[#This Row],[Cantidad]]-VentasMenudeo[[#This Row],[Descuento]]),0) -> 1140 | K14: 1115
A15: 2022-04-24 | B15: Julio | C15: IPLAY CUBE | D15: Watermelon | E15: 1 | H15: =_xlfn.IFNA(VLOOKUP(VentasMenudeo[[#This Row],[Promoción]],PromocionesMenudeo[[Promocion]:[Descuento]],2,0),0) -> 0 | I15: =_xlfn.IFNA(VLOOKUP(VentasMenudeo[[#This Row],[Producto]],$A$2:$B$5,2,FALSE),0) -> 190 | J15: =_xlfn.IFNA(_xlfn.IFS(VentasMenudeo[[#This Row],[Producto]]=$A$2,VentasMenudeo[[#This Row],[Precio de Venta]]*VentasMenudeo[[#This Row],[Cantidad]]-VentasMenudeo[[#This Row],[Descuento]],VentasMenudeo[[#This Row],[Producto]]=$A$3,VentasMenudeo[[#This Row],[Precio de Venta]]*VentasMenudeo[[#This Row],[Cantidad]]-VentasMenudeo[[#This Row],[Descuento]],VentasMenudeo[[#This Row],[Producto]]=$A$4,VentasMenudeo[[#This Row],[Precio de Venta]]*VentasMenudeo[[#This Row],[Cantidad]]-VentasMenudeo[[#This Row],[Descuento]],VentasMenudeo[[#This Row],[Producto]]=$A$5,VentasMenudeo[[#This Row],[Precio de Venta]]*VentasMenudeo[[#This Row],[Cantidad]]-VentasMenudeo[[#This Row],[Descuento]]),0) -> 190 | K15: 190
A16: 2022-04-24 | B16: Julio | C16: IPLAY CUBE | D16: Double apple | E16: 8 | F16: 3er Vape | H16: =_xlfn.IFNA(VLOOKUP(VentasMenudeo[[#This Row],[Promoción]],PromocionesMenudeo[[Promocion]:[Descuento]],2,0),0) -> 0 | I16: =_xlfn.IFNA(VLOOKUP(VentasMenudeo[[#This Row],[Producto]],$A$2:$B$5,2,FALSE),0) -> 190 | J16: =_xlfn.IFNA(_xlfn.IFS(VentasMenudeo[[#This Row],[Producto]]=$A$2,VentasMenudeo[[#This Row],[Precio de Venta]]*VentasMenudeo[[#This Row],[Cantidad]]-VentasMenudeo[[#This Row],[Descuento]],VentasMenudeo[[#This Row],[Producto]]=$A$3,VentasMenudeo[[#This Row],[Precio de Venta]]*VentasMenudeo[[#This Row],[Cantidad]]-VentasMenudeo[[#This Row],[Descuento]],VentasMenudeo[[#This Row],[Producto]]=$A$4,VentasMenudeo[[#This Row],[Precio de Venta]]*VentasMenudeo[[#This Row],[Cantidad]]-VentasMenudeo[[#This Row],[Descuento]],VentasMenudeo[[#This Row],[Producto]]=$A$5,VentasMenudeo[[#This Row],[Precio de Venta]]*VentasMenudeo[[#This Row],[Cantidad]]-VentasMenudeo[[#This Row],[Descuento]]),0) -> 1520 | K16: 1495
A17: 2022-04-24 | B17: Julio | C17: IPLAY CUBE | D17: ICE Water | E17: 4 | H17: =_xlfn.IFNA(VLOOKUP(VentasMenudeo[[#This Row],[Promoción]],PromocionesMenudeo[[Promocion]:[Descuento]],2,0),0) -> 0 | I17: =_xlfn.IFNA(VLOOKUP(VentasMenudeo[[#This Row],[Producto]],$A$2:$B$5,2,FALSE),0) -> 190 | J17: =_xlfn.IFNA(_xlfn.IFS(VentasMenudeo[[#This Row],[Producto]]=$A$2,VentasMenudeo[[#This Row],[Precio de Venta]]*VentasMenudeo[[#This Row],[Cantidad]]-VentasMenudeo[[#This Row],[Descuento]],VentasMenudeo[[#This Row],[Producto]]=$A$3,VentasMenudeo[[#This Row],[Precio de Venta]]*VentasMenudeo[[#This Row],[Cantidad]]-VentasMenudeo[[#This Row],[Descuento]],VentasMenudeo[[#This Row],[Producto]]=$A$4,VentasMenudeo[[#This Row],[Precio de Venta]]*VentasMenudeo[[#This Row],[Cantidad]]-VentasMenudeo[[#This Row],[Descuento]],VentasMenudeo[[#This Row],[Producto]]=$A$5,VentasMenudeo[[#This Row],[Precio de Venta]]*VentasMenudeo[[#This Row],[Cantidad]]-VentasMenudeo[[#This Row],[Descuento]]),0) -> 760 | K17: 760
A18: 2022-04-24 | B18: Julio | C18: ELF BAR | D18: Banana Ice | E18: 2 | H18: =_xlfn.IFNA(VLOOKUP(VentasMenudeo[[#This Row],[Promoción]],PromocionesMenudeo[[Promocion]:[Descuento]],2,0),0) -> 0 | I18: =_xlfn.IFNA(VLOOKUP(VentasMenudeo[[#This Row],[Producto]],$A$2:$B$5,2,FALSE),0) -> 275 | J18: =_xlfn.IFNA(_xlfn.IFS(VentasMenudeo[[#This Row],[Producto]]=$A$2,VentasMenudeo[[#This Row],[Precio de Venta]]*VentasMenudeo[[#This Row],[Cantidad]]-VentasMenudeo[[#This Row],[Descuento]],VentasMenudeo[[#This Row],[Producto]]=$A$3,VentasMenudeo[[#This Row],[Precio de Venta]]*VentasMenudeo[[#This Row],[Cantidad]]-VentasMenudeo[[#This Row],[Descuento]],VentasMenudeo[[#This Row],[Producto]]=$A$4,VentasMenudeo[[#This Row],[Precio de Venta]]*VentasMenudeo[[#This Row],[Cantidad]]-VentasMenudeo[[#This Row],[Descuento]],VentasMenudeo[[#This Row],[Producto]]=$A$5,VentasMenudeo[[#This Row],[Precio de Venta]]*VentasMenudeo[[#This Row],[Cantidad]]-VentasMenudeo[[#This Row],[Descuento]]),0) -> 550 | K18: =VentasMenudeo[[#This Row],[Venta Total]] -> 550
A19: 2022-04-24 | B19: Hugo | C19: ELF BAR | D19: Mango ICE | E19: 2 | H19: =_xlfn.IFNA(VLOOKUP(VentasMenudeo[[#This Row],[Promoción]],PromocionesMenudeo[[Promocion]:[Descuento]],2,0),0) -> 0 | I19: =_xlfn.IFNA(VLOOKUP(VentasMenudeo[[#This Row],[Producto]],$A$2:$B$5,2,FALSE),0) -> 275 | J19: =_xlfn.IFNA(_xlfn.IFS(VentasMenudeo[[#This Row],[Producto]]=$A$2,VentasMenudeo[[#This Row],[Precio de Venta]]*VentasMenudeo[[#This Row],[Cantidad]]-VentasMenudeo[[#This Row],[Descuento]],VentasMenudeo[[#This Row],[Producto]]=$A$3,VentasMenudeo[[#This Row],[Precio de Venta]]*VentasMenudeo[[#This Row],[Cantidad]]-VentasMenudeo[[#This Row],[Descuento]],VentasMenudeo[[#This Row],[Producto]]=$A$4,VentasMenudeo[[#This Row],[Precio de Venta]]*VentasMenudeo[[#This Row],[Cantidad]]-VentasMenudeo[[#This Row],[Descuento]],VentasMenudeo[[#This Row],[Producto]]=$A$5,VentasMenudeo[[#This Row],[Precio de Venta]]*VentasMenudeo[[#This Row],[Cantidad]]-VentasMenudeo[[#This Row],[Descuento]]),0) -> 550 | K19: =VentasMenudeo[[#This Row],[Venta Total]] -> 550
A20: 2022-04-24 | B20: Julio | C20: ELF BAR | D20: Pineaple ICE | E20: 2 | H20: =_xlfn.IFNA(VLOOKUP(VentasMenudeo[[#This Row],[Promoción]],PromocionesMenudeo[[Promocion]:[Descuento]],2,0),0) -> 0 | I20: =_xlfn.IFNA(VLOOKUP(VentasMenudeo[[#This Row],[Producto]],$A$2:$B$5,2,FALSE),0) -> 275 | J20: =_xlfn.IFNA(_xlfn.IFS(VentasMenudeo[[#This Row],[Producto]]=$A$2,VentasMenudeo[[#This Row],[Precio de Venta]]*VentasMenudeo[[#This Row],[Cantidad]]-VentasMenudeo[[#This Row],[Descuento]],VentasMenudeo[[#This Row],[Producto]]=$A$3,VentasMenudeo[[#This Row],[Precio de Venta]]*VentasMenudeo[[#This Row],[Cantidad]]-VentasMenudeo[[#This Row],[Descuento]],VentasMenudeo[[#This Row],[Producto]]=$A$4,VentasMenudeo[[#This Row],[Precio de Venta]]*VentasMenudeo[[#This Row],[Cantidad]]-VentasMenudeo[[#This Row],[Descuento]],VentasMenudeo[[#This Row],[Producto]]=$A$5,VentasMenudeo[[#This Row],[Precio de Venta]]*VentasMenudeo[[#This Row],[Cantidad]]-VentasMenudeo[[#This Row],[Descuento]]),0) -> 550 | K20: =VentasMenudeo[[#This Row],[Venta Total]] -> 550
A21: 2022-04-24 | B21: Julio | C21: IPLAY MAX | D21: Strawberry Lychee | E21: 19 | F21: $20 Descuento | H21: =_xlfn.IFNA(VLOOKUP(VentasMenudeo[[#This Row],[Promoción]],PromocionesMenudeo[[Promocion]:[Descuento]],2,0),0) -> 20 | I21: =_xlfn.IFNA(VLOOKUP(VentasMenudeo[[#This Row],[Producto]],$A$2:$B$5,2,FALSE),0) -> 270 | J21: =_xlfn.IFNA(_xlfn.IFS(VentasMenudeo[[#This Row],[Producto]]=$A$2,VentasMenudeo[[#This Row],[Precio de Venta]]*VentasMenudeo[[#This Row],[Cantidad]]-VentasMenudeo[[#This Row],[Descuento]],VentasMenudeo[[#This Row],[Producto]]=$A$3,VentasMenudeo[[#This Row],[Precio de Venta]]*VentasMenudeo[[#This Row],[Cantidad]]-VentasMenudeo[[#This Row],[Descuento]],VentasMenudeo[[#This Row],[Producto]]=$A$4,VentasMenudeo[[#This Row],[Precio de Venta]]*VentasMenudeo[[#This Row],[Cantidad]]-VentasMenudeo[[#This Row],[Descuento]],VentasMenudeo[[#This Row],[Producto]]=$A$5,VentasMenudeo[[#This Row],[Precio de Venta]]*VentasMenudeo[[#This Row],[Cantidad]]-VentasMenudeo[[#This Row],[Descuento]]),0) -> 5110 | K21: 5110
A22: 2022-04-24 | B22: Julio | C22: IPLAY MAX | D22: Grapestraw | E22: 21 | F22: $20 Descuento | H22: =_xlfn.IFNA(VLOOKUP(VentasMenudeo[[#This Row],[Promoción]],PromocionesMenudeo[[Promocion]:[Descuento]],2,0),0) -> 20 | I22: =_xlfn.IFNA(VLOOKUP(VentasMenudeo[[#This Row],[Producto]],$A$2:$B$5,2,FALSE),0) -> 270 | J22: =_xlfn.IFNA(_xlfn.IFS(VentasMenudeo[[#This Row],[Producto]]=$A$2,VentasMenudeo[[#This Row],[Precio de Venta]]*VentasMenudeo[[#This Row],[Cantidad]]-VentasMenudeo[[#This Row],[Descuento]],VentasMenudeo[[#This Row],[Producto]]=$A$3,VentasMenudeo[[#This Row],[Precio de Venta]]*VentasMenudeo[[#This Row],[Cantidad]]-VentasMenudeo[[#This Row],[Descuento]],VentasMenudeo[[#This Row],[Producto]]=$A$4,VentasMenudeo[[#This Row],[Precio de Venta]]*VentasMenudeo[[#This Row],[Cantidad]]-VentasMenudeo[[#This Row],[Descuento]],VentasMenudeo[[#This Row],[Producto]]=$A$5,VentasMenudeo[[#This Row],[Precio de Venta]]*VentasMenudeo[[#This Row],[Cantidad]]-VentasMenudeo[[#This Row],[Descuento]]),0) -> 5650 | K22: 5650
A23: 2022-04-24 | B23: Julio | C23: IPLAY MAX | D23: Berry Watermelon | E23: 25 | H23: =_xlfn.IFNA(VLOOKUP(VentasMenudeo[[#This Row],[Promoción]],PromocionesMenudeo[[Promocion]:[Descuento]],2,0),0) -> 0 | I23: =_xlfn.IFNA(VLOOKUP(VentasMenudeo[[#This Row],[Producto]],$A$2:$B$5,2,FALSE),0) -> 270 | J23: =_xlfn.IFNA(_xlfn.IFS(VentasMenudeo[[#This Row],[Producto]]=$A$2,VentasMenudeo[[#This Row],[Precio de Venta]]*VentasMenudeo[[#This Row],[Cantidad]]-VentasMenudeo[[#This Row],[Descuento]],VentasMenudeo[[#This Row],[Producto]]=$A$3,VentasMenudeo[[#This Row],[Precio de Venta]]*VentasMenudeo[[#This Row],[Cantidad]]-VentasMenudeo[[#This Row],[Descuento]],VentasMenudeo[[#This Row],[Producto]]=$A$4,VentasMenudeo[[#This Row],[Precio de Venta]]*VentasMenudeo[[#This Row],[Cantidad]]-VentasMenudeo[[#This Row],[Descuento]],VentasMenudeo[[#This Row],[Producto]]=$A$5,VentasMenudeo[[#This Row],[Precio de Venta]]*VentasMenudeo[[#This Row],[Cantidad]]-VentasMenudeo[[#This Row],[Descuento]]),0) -> 6750 | K23: 6750
A24: 2022-04-24 | B24: Julio | C24: IPLAY MAX | D24: Guava | E24: 19 | F24: $20 Descuento | H24: =_xlfn.IFNA(VLOOKUP(VentasMenudeo[[#This Row],[Promoción]],PromocionesMenudeo[[Promocion]:[Descuento]],2,0),0) -> 20 | I24: =_xlfn.IFNA(VLOOKUP(VentasMenudeo[[#This Row],[Producto]],$A$2:$B$5,2,FALSE),0) -> 270 | J24: =_xlfn.IFNA(_xlfn.IFS(VentasMenudeo[[#This Row],[Producto]]=$A$2,VentasMenudeo[[#This Row],[Precio de Venta]]*VentasMenudeo[[#This Row],[Cantidad]]-VentasMenudeo[[#This Row],[Descuento]],VentasMenudeo[[#This Row],[Producto]]=$A$3,VentasMenudeo[[#This Row],[Precio de Venta]]*VentasMenudeo[[#This Row],[Cantidad]]-VentasMenudeo[[#This Row],[Descuento]],VentasMenudeo[[#This Row],[Producto]]=$A$4,VentasMenudeo[[#This Row],[Precio de Venta]]*VentasMenudeo[[#This Row],[Cantidad]]-VentasMenudeo[[#This Row],[Descuento]],VentasMenudeo[[#This Row],[Producto]]=$A$5,VentasMenudeo[[#This Row],[Precio de Venta]]*VentasMenudeo[[#This Row],[Cantidad]]-VentasMenudeo[[#This Row],[Descuento]]),0) -> 5110 | K24: 5110
A25: 2022-04-24 | B25: Julio | C25: IPLAY MAX | D25: Cool mint | E25: 22 | F25: $20 Descuento | H25: =_xlfn.IFNA(VLOOKUP(VentasMenudeo[[#This Row],[Promoción]],PromocionesMenudeo[[Promocion]:[Descuento]],2,0),0) -> 20 | I25: =_xlfn.IFNA(VLOOKUP(VentasMenudeo[[#This Row],[Producto]],$A$2:$B$5,2,FALSE),0) -> 270 | J25: =_xlfn.IFNA(_xlfn.IFS(VentasMenudeo[[#This Row],[Producto]]=$A$2,VentasMenudeo[[#This Row],[Precio de Venta]]*VentasMenudeo[[#This Row],[Cantidad]]-VentasMenudeo[[#This Row],[Descuento]],VentasMenudeo[[#This Row],[Producto]]=$A$3,VentasMenudeo[[#This Row],[Precio de Venta]]*VentasMenudeo[[#This Row],[Cantidad]]-VentasMenudeo[[#This Row],[Descuento]],VentasMenudeo[[#This Row],[Producto]]=$A$4,VentasMenudeo[[#This Row],[Precio de Venta]]*VentasMenudeo[[#This Row],[Cantidad]]-VentasMenudeo[[#This Row],[Descuento]],VentasMenudeo[[#This Row],[Producto]]=$A$5,VentasMenudeo[[#This Row],[Precio de Venta]]*VentasMenudeo[[#This Row],[Cantidad]]-VentasMenudeo[[#This Row],[Descuento]]),0) -> 5920 | K25: 5920
A26: 2022-04-24 | B26: Julio | C26: IPLAY MAX | D26: Bluerazz | E26: 12 | F26: $20 Descuento | H26: =_xlfn.IFNA(VLOOKUP(VentasMenudeo[[#This Row],[Promoción]],PromocionesMenudeo[[Promocion]:[Descuento]],2,0),0) -> 20 | I26: =_xlfn.IFNA(VLOOKUP(VentasMenudeo[[#This Row],[Producto]],$A$2:$B$5,2,FALSE),0) -> 270 | J26: =_xlfn.IFNA(_xlfn.IFS(VentasMenudeo[[#This Row],[Producto]]=$A$2,VentasMenudeo[[#This Row],[Precio de Venta]]*VentasMenudeo[[#This Row],[Cantidad]]-VentasMenudeo[[#This Row],[Descuento]],VentasMenudeo[[#This Row],[Producto]]=$A$3,VentasMenudeo[[#This Row],[Precio de Venta]]*VentasMenudeo[[#This Row],[Cantidad]]-VentasMenudeo[[#This Row],[Descuento]],VentasMenudeo[[#This Row],[Producto]]=$A$4,VentasMenudeo[[#This Row],[Precio de Venta]]*VentasMenudeo[[#This Row],[Cantidad]]-VentasMenudeo[[#This Row],[Descuento]],VentasMenudeo[[#This Row],[Producto]]=$A$5,VentasMenudeo[[#This Row],[Precio de Venta]]*VentasMenudeo[[#This Row],[Cantidad]]-VentasMenudeo[[#This Row],[Descuento]]),0) -> 3220 | K26: 3220
A27: 2022-04-24 | B27: Julio | C27: IPLAY MAX | D27: Bluerazz | E27: 12 | F27: $20 Descuento | H27: =_xlfn.IFNA(VLOOKUP(VentasMenudeo[[#This Row],[Promoción]],PromocionesMenudeo[[Promocion]:[Descuento]],2,0),0) -> 20 | I27: =_xlfn.IFNA(VLOOKUP(VentasMenudeo[[#This Row],[Producto]],$A$2:$B$5,2,FALSE),0) -> 270 | J27: =_xlfn.IFNA(_xlfn.IFS(VentasMenudeo[[#This Row],[Producto]]=$A$2,VentasMenudeo[[#This Row],[Precio de Venta]]*VentasMenudeo[[#This Row],[Cantidad]]-VentasMenudeo[[#This Row],[Descuento]],VentasMenudeo[[#This Row],[Producto]]=$A$3,VentasMenudeo[[#This Row],[Precio de Venta]]*VentasMenudeo[[#This Row],[Cantidad]]-VentasMenudeo[[#This Row],[Descuento]],VentasMenudeo[[#This Row],[Producto]]=$A$4,VentasMenudeo[[#This Row],[Precio de Venta]]*VentasMenudeo[[#This Row],[Cantidad]]-VentasMenudeo[[#This Row],[Descuento]],VentasMenudeo[[#This Row],[Producto]]=$A$5,VentasMenudeo[[#This Row],[Precio de Venta]]*VentasMenudeo[[#This Row],[Cantidad]]-VentasMenudeo[[#This Row],[Descuento]]),0) -> 3220 | K27: 3220
A28: 2022-04-24 | B28: Julio | C28: IPLAY MAX | D28: Sour Apple | E28: 12 | H28: =_xlfn.IFNA(VLOOKUP(VentasMenudeo[[#This Row],[Promoción]],PromocionesMenudeo[[Promocion]:[Descuento]],2,0),0) -> 0 | I28: =_xlfn.IFNA(VLOOKUP(VentasMenudeo[[#This Row],[Producto]],$A$2:$B$5,2,FALSE),0) -> 270 | J28: =_xlfn.IFNA(_xlfn.IFS(VentasMenudeo[[#This Row],[Producto]]=$A$2,VentasMenudeo[[#This Row],[Precio de Venta]]*VentasMenudeo[[#This Row],[Cantidad]]-VentasMenudeo[[#This Row],[Descuento]],VentasMenudeo[[#This Row],[Producto]]=$A$3,VentasMenudeo[[#This Row],[Precio de Venta]]*VentasMenudeo[[#This Row],[Cantidad]]-VentasMenudeo[[#This Row],[Descuento]],VentasMenudeo[[#This Row],[Producto]]=$A$4,VentasMenudeo[[#This Row],[Precio de Venta]]*VentasMenudeo[[#This Row],[Cantidad]]-VentasMenudeo[[#This Row],[Descuento]],VentasMenudeo[[#This Row],[Producto]]=$A$5,VentasMenudeo[[#This Row],[Precio de Venta]]*VentasMenudeo[[#This Row],[Cantidad]]-VentasMenudeo[[#This Row],[Descuento]]),0) -> 3240 | K28: 3240
A29: 2022-04-24 | B29: Julio | C29: IPLAY MAX | D29: Energy ICE | E29: 7 | F29: $20 Descuento | H29: =_xlfn.IFNA(VLOOKUP(VentasMenudeo[[#This Row],[Promoción]],PromocionesMenudeo[[Promocion]:[Descuento]],2,0),0) -> 20 | I29: =_xlfn.IFNA(VLOOKUP(VentasMenudeo[[#This Row],[Producto]],$A$2:$B$5,2,FALSE),0) -> 270 | J29: =_xlfn.IFNA(_xlfn.IFS(VentasMenudeo[[#This Row],[Producto]]=$A$2,VentasMenudeo[[#This Row],[Precio de Venta]]*VentasMenudeo[[#This Row],[Cantidad]]-VentasMenudeo[[#This Row],[Descuento]],VentasMenudeo[[#This Row],[Producto]]=$A$3,VentasMenudeo[[#This Row],[Precio de Venta]]*VentasMenudeo[[#This Row],[Cantidad]]-VentasMenudeo[[#This Row],[Descuento]],VentasMenudeo[[#This Row],[Producto]]=$A$4,VentasMenudeo[[#This Row],[Precio de Venta]]*VentasMenudeo[[#This Row],[Cantidad]]-VentasMenudeo[[#This Row],[Descuento]],VentasMenudeo[[#This Row],[Producto]]=$A$5,VentasMenudeo[[#This Row],[Precio de Venta]]*VentasMenudeo[[#This Row],[Cantidad]]-VentasMenudeo[[#This Row],[Descuento]]),0) -> 1870 | K29: 1870
A30: 2022-04-24 | B30: Julio | C30: IPLAY MAX | D30: Energy ICE | E30: 7 | F30: $20 Descuento | H30: =_xlfn.IFNA(VLOOKUP(VentasMenudeo[[#This Row],[Promoción]],PromocionesMenudeo[[Promocion]:[Descuento]],2,0),0) -> 20 | I30: =_xlfn.IFNA(VLOOKUP(VentasMenudeo[[#This Row],[Producto]],$A$2:$B$5,2,FALSE),0) -> 270 | J30: =_xlfn.IFNA(_xlfn.IFS(VentasMenudeo[[#This Row],[Producto]]=$A$2,VentasMenudeo[[#This Row],[Precio de Venta]]*VentasMenudeo[[#This Row],[Cantidad]]-VentasMenudeo[[#This Row],[Descuento]],VentasMenudeo[[#This Row],[Producto]]=$A$3,VentasMenudeo[[#This Row],[Precio de Venta]]*VentasMenudeo[[#This Row],[Cantidad]]-VentasMenudeo[[#This Row],[Descuento]],VentasMenudeo[[#This Row],[Producto]]=$A$4,VentasMenudeo[[#This Row],[Precio de Venta]]*VentasMenudeo[[#This Row],[Cantidad]]-VentasMenudeo[[#This Row],[Descuento]],VentasMenudeo[[#This Row],[Producto]]=$A$5,VentasMenudeo[[#This Row],[Precio de Venta]]*VentasMenudeo[[#This Row],[Cantidad]]-VentasMenudeo[[#This Row],[Descuento]]),0) -> 1870 | K30: 1870
A31: 2022-04-24 | B31: Julio | C31: IPLAY MAX | D31: GrapeFruit berry | E31: 18 | H31: =_xlfn.IFNA(VLOOKUP(VentasMenudeo[[#This Row],[Promoción]],PromocionesMenudeo[[Promocion]:[Descuento]],2,0),0) -> 0 | I31: =_xlfn.IFNA(VLOOKUP(VentasMenudeo[[#This Row],[Producto]],$A$2:$B$5,2,FALSE),0) -> 270 | J31: =_xlfn.IFNA(_xlfn.IFS(VentasMenudeo[[#This Row],[Producto]]=$A$2,VentasMenudeo[[#This Row],[Precio de Venta]]*VentasMenudeo[[#This Row],[Cantidad]]-VentasMenudeo[[#This Row],[Descuento]],VentasMenudeo[[#This Row],[Producto]]=$A$3,VentasMenudeo[[#This Row],[Precio de Venta]]*VentasMenudeo[[#This Row],[Cantidad]]-VentasMenudeo[[#This Row],[Descuento]],VentasMenudeo[[#This Row],[Producto]]=$A$4,VentasMenudeo[[#This Row],[Precio de Venta]]*VentasMenudeo[[#This Row],[Cantidad]]-VentasMenudeo[[#This Row],[Descuento]],VentasMenudeo[[#This Row],[Producto]]=$A$5,VentasMenudeo[[#This Row],[Precio de Venta]]*VentasMenudeo[[#This Row],[Cantidad]]-VentasMenudeo[[#This Row],[Descuento]]),0) -> 4860 | K31: 4860
A32: 2022-04-24 | B32: Julio | C32: IPLAY MAX | D32: Cocumber Lemonade | E32: 4 | F32: $20 Descuento | H32: =_xlfn.IFNA(VLOOKUP(VentasMenudeo[[#This Row],[Promoción]],PromocionesMenudeo[[Promocion]:[Descuento]],2,0),0) -> 20 | I32: =_xlfn.IFNA(VLOOKUP(VentasMenudeo[[#This Row],[Producto]],$A$2:$B$5,2,FALSE),0) -> 270 | J32: =_xlfn.IFNA(_xlfn.IFS(VentasMenudeo[[#This Row],[Producto]]=$A$2,VentasMenudeo[[#This Row],[Precio de Venta]]*VentasMenudeo[[#This Row],[Cantidad]]-VentasMenudeo[[#This Row],[Descuento]],VentasMenudeo[[#This Row],[Producto]]=$A$3,VentasMenudeo[[#This Row],[Precio de Venta]]*VentasMenudeo[[#This Row],[Cantidad]]-VentasMenudeo[[#This Row],[Descuento]],VentasMenudeo[[#This Row],[Producto]]=$A$4,VentasMenudeo[[#This Row],[Precio de Venta]]*VentasMenudeo[[#This Row],[Cantidad]]-VentasMenudeo[[#This Row],[Descuento]],VentasMenudeo[[#This Row],[Producto]]=$A$5,VentasMenudeo[[#This Row],[Precio de Venta]]*VentasMenudeo[[#This Row],[Cantidad]]-VentasMenudeo[[#This Row],[Descuento]]),0) -> 1060 | K32: 1060
A33: 2022-04-24 | B33: Julio | C33: IPLAY MAX | D33: Lush Ice | E33: 7 | F33: $20 Descuento | H33: =_xlfn.IFNA(VLOOKUP(VentasMenudeo[[#This Row],[Promoción]],PromocionesMenudeo[[Promocion]:[Descuento]],2,0),0) -> 20 | I33: =_xlfn.IFNA(VLOOKUP(VentasMenudeo[[#This Row],[Producto]],$A$2:$B$5,2,FALSE),0) -> 270 | J33: =_xlfn.IFNA(_xlfn.IFS(VentasMenudeo[[#This Row],[Producto]]=$A$2,VentasMenudeo[[#This Row],[Precio de Venta]]*VentasMenudeo[[#This Row],[Cantidad]]-VentasMenudeo[[#This Row],[Descuento]],VentasMenudeo[[#This Row],[Producto]]=$A$3,VentasMenudeo[[#This Row],[Precio de Venta]]*VentasMenudeo[[#This Row],[Cantidad]]-VentasMenudeo[[#This Row],[Descuento]],VentasMenudeo[[#This Row],[Producto]]=$A$4,VentasMenudeo[[#This Row],[Precio de Venta]]*VentasMenudeo[[#This Row],[Cantidad]]-VentasMenudeo[[#This Row],[Descuento]],VentasMenudeo[[#This Row],[Producto]]=$A$5,VentasMenudeo[[#This Row],[Precio de Venta]]*VentasMenudeo[[#This Row],[Cantidad]]-VentasMenudeo[[#This Row],[Descuento]]),0) -> 1870 | K33: 1870
A34: 2022-04-24 | B34: Julio | C34: IPLAY MAX | D34: Lemon cookies | E34: 1 | F34: $20 Descuento | H34: =_xlfn.IFNA(VLOOKUP(VentasMenudeo[[#This Row],[Promoción]],PromocionesMenudeo[[Promocion]:[Descuento]],2,0),0) -> 20 | I34: =_xlfn.IFNA(VLOOKUP(VentasMenudeo[[#This Row],[Producto]],$A$2:$B$5,2,FALSE),0) -> 270 | J34: =_xlfn.IFNA(_xlfn.IFS(VentasMenudeo[[#This Row],[Producto]]=$A$2,VentasMenudeo[[#This Row],[Precio de Venta]]*VentasMenudeo[[#This Row],[Cantidad]]-VentasMenudeo[[#This Row],[Descuento]],VentasMenudeo[[#This Row],[Producto]]=$A$3,VentasMenudeo[[#This Row],[Precio de Venta]]*VentasMenudeo[[#This Row],[Cantidad]]-VentasMenudeo[[#This Row],[Descuento]],VentasMenudeo[[#This Row],[Producto]]=$A$4,VentasMenudeo[[#This Row],[Precio de Venta]]*VentasMenudeo[[#This Row],[Cantidad]]-VentasMenudeo[[#This Row],[Descuento]],VentasMenudeo[[#This Row],[Producto]]=$A$5,VentasMenudeo[[#This Row],[Precio de Venta]]*VentasMenudeo[[#This Row],[Cantidad]]-VentasMenudeo[[#This Row],[Descuento]]),0) -> 250 | K34: =VentasMenudeo[[#This Row],[Venta Total]] -> 250
A35: 2022-04-24 | B35: Julio | C35: IPLAY MAX | D35: Coconut | E35: 17 | H35: =_xlfn.IFNA(VLOOKUP(VentasMenudeo[[#This Row],[Promoción]],PromocionesMenudeo[[Promocion]:[Descuento]],2,0),0) -> 0 | I35: =_xlfn.IFNA(VLOOKUP(VentasMenudeo[[#This Row],[Producto]],$A$2:$B$5,2,FALSE),0) -> 270 | J35: =_xlfn.IFNA(_xlfn.IFS(VentasMenudeo[[#This Row],[Producto]]=$A$2,VentasMenudeo[[#This Row],[Precio de Venta]]*VentasMenudeo[[#This Row],[Cantidad]]-VentasMenudeo[[#This Row],[Descuento]],VentasMenudeo[[#This Row],[Producto]]=$A$3,VentasMenudeo[[#This Row],[Precio de Venta]]*VentasMenudeo[[#This Row],[Cantidad]]-VentasMenudeo[[#This Row],[Descuento]],VentasMenudeo[[#This Row],[Producto]]=$A$4,VentasMenudeo[[#This Row],[Precio de Venta]]*VentasMenudeo[[#This Row],[Cantidad]]-VentasMenudeo[[#This Row],[Descuento]],VentasMenudeo[[#This Row],[Producto]]=$A$5,VentasMenudeo[[#This Row],[Precio de Venta]]*VentasMenudeo[[#This Row],[Cantidad]]-VentasMenudeo[[#This Row],[Descuento]]),0) -> 4590 | K35: 4590
A36: 2022-04-25 | B36: Hugo | C36: IPLAY MAX | D36: Strawberry Lychee | E36: 1 | H36: =_xlfn.IFNA(VLOOKUP(VentasMenudeo[[#This Row],[Promoción]],PromocionesMenudeo[[Promocion]:[Descuento]],2,0),0) -> 0 | I36: =_xlfn.IFNA(VLOOKUP(VentasMenudeo[[#This Row],[Producto]],$A$2:$B$5,2,FALSE),0) -> 270 | J36: =_xlfn.IFNA(_xlfn.IFS(VentasMenudeo[[#This Row],[Producto]]=$A$2,VentasMenudeo[[#This Row],[Precio de Venta]]*VentasMenudeo[[#This Row],[Cantidad]]-VentasMenudeo[[#This Row],[Descuento]],VentasMenudeo[[#This Row],[Producto]]=$A$3,VentasMenudeo[[#This Row],[Precio de Venta]]*VentasMenudeo[[#This Row],[Cantidad]]-VentasMenudeo[[#This Row],[Descuento]],VentasMenudeo[[#This Row],[Producto]]=$A$4,VentasMenudeo[[#This Row],[Precio de Venta]]*VentasMenudeo[[#This Row],[Cantidad]]-VentasMenudeo[[#This Row],[Descuento]],VentasMenudeo[[#This Row],[Producto]]=$A$5,VentasMenudeo[[#This Row],[Precio de Venta]]*VentasMenudeo[[#This Row],[Cantidad]]-VentasMenudeo[[#This Row],[Descuento]]),0) -> 270 | L36: 270
A37: 2022-04-25 | B37: Julio | C37: IPLAY MAX | D37: Sour Apple | E37: 1 | H37: 20 | I37: =_xlfn.IFNA(VLOOKUP(VentasMenudeo[[#This Row],[Producto]],$A$2:$B$5,2,FALSE),0) -> 270 | J37: =_xlfn.IFNA(_xlfn.IFS(VentasMenudeo[[#This Row],[Producto]]=$A$2,VentasMenudeo[[#This Row],[Precio de Venta]]*VentasMenudeo[[#This Row],[Cantidad]]-VentasMenudeo[[#This Row],[Descuento]],VentasMenudeo[[#This Row],[Producto]]=$A$3,VentasMenudeo[[#This Row],[Precio de Venta]]*VentasMenudeo[[#This Row],[Cantidad]]-VentasMenudeo[[#This Row],[Descuento]],VentasMenudeo[[#This Row],[Producto]]=$A$4,VentasMenudeo[[#This Row],[Precio de Venta]]*VentasMenudeo[[#This Row],[Cantidad]]-VentasMenudeo[[#This Row],[Descuento]],VentasMenudeo[[#This Row],[Producto]]=$A$5,VentasMenudeo[[#This Row],[Precio de Venta]]*VentasMenudeo[[#This Row],[Cantidad]]-VentasMenudeo[[#This Row],[Descuento]]),0) -> 250 | K37: 250
A38: 2022-04-26 | B38: Hugo | C38: IPLAY MAX | D38: Strawberry Lychee | E38: 1 | H38: 10 | I38: =_xlfn.IFNA(VLOOKUP(VentasMenudeo[[#This Row],[Producto]],$A$2:$B$5,2,FALSE),0) -> 270 | J38: =_xlfn.IFNA(_xlfn.IFS(VentasMenudeo[[#This Row],[Producto]]=$A$2,VentasMenudeo[[#This Row],[Precio de Venta]]*VentasMenudeo[[#This Row],[Cantidad]]-VentasMenudeo[[#This Row],[Descuento]],VentasMenudeo[[#This Row],[Producto]]=$A$3,VentasMenudeo[[#This Row],[Precio de Venta]]*VentasMenudeo[[#This Row],[Cantidad]]-VentasMenudeo[[#This Row],[Descuento]],VentasMenudeo[[#This Row],[Producto]]=$A$4,VentasMenudeo[[#This Row],[Precio de Venta]]*VentasMenudeo[[#This Row],[Cantidad]]-VentasMenudeo[[#This Row],[Descuento]],VentasMenudeo[[#This Row],[Producto]]=$A$5,VentasMenudeo[[#This Row],[Precio de Venta]]*VentasMenudeo[[#This Row],[Cantidad]]-VentasMenudeo[[#This Row],[Descuento]]),0) -> 260 | L38: 260
A39: 2022-04-26 | B39: Hugo | C39: IPLAY MAX | D39: Grapestraw | E39: 1 | H39: =_xlfn.IFNA(VLOOKUP(VentasMenudeo[[#This Row],[Promoción]],PromocionesMenudeo[[Promocion]:[Descuento]],2,0),0) -> 0 | I39: =_xlfn.IFNA(VLOOKUP(VentasMenudeo[[#This Row],[Producto]],$A$2:$B$5,2,FALSE),0) -> 270 | J39: =_xlfn.IFNA(_xlfn.IFS(VentasMenudeo[[#This Row],[Producto]]=$A$2,VentasMenudeo[[#This Row],[Precio de Venta]]*VentasMenudeo[[#This Row],[Cantidad]]-VentasMenudeo[[#This Row],[Descuento]],VentasMenudeo[[#This Row],[Producto]]=$A$3,VentasMenudeo[[#This Row],[Precio de Venta]]*VentasMenudeo[[#This Row],[Cantidad]]-VentasMenudeo[[#This Row],[Descuento]],VentasMenudeo[[#This Row],[Producto]]=$A$4,VentasMenudeo[[#This Row],[Precio de Venta]]*VentasMenudeo[[#This Row],[Cantidad]]-VentasMenudeo[[#This Row],[Descuento]],VentasMenudeo[[#This Row],[Producto]]=$A$5,VentasMenudeo[[#This Row],[Precio de Venta]]*VentasMenudeo[[#This Row],[Cantidad]]-VentasMenudeo[[#This Row],[Descuento]]),0) -> 270 | L39: 270
A40: 2022-04-26 | B40: Julio | C40: IPLAY MAX | D40: Grapestraw | E40: 1 | H40: =_xlfn.IFNA(VLOOKUP(VentasMenudeo[[#This Row],[Promoción]],PromocionesMenudeo[[Promocion]:[Descuento]],2,0),0) -> 0 | I40: =_xlfn.IFNA(VLOOKUP(VentasMenudeo[[#This Row],[Producto]],$A$2:$B$5,2,FALSE),0) -> 270 | J40: =_xlfn.IFNA(_xlfn.IFS(VentasMenudeo[[#This Row],[Producto]]=$A$2,VentasMenudeo[[#This Row],[Precio de Venta]]*VentasMenudeo[[#This Row],[Cantidad]]-VentasMenudeo[[#This Row],[Descuento]],VentasMenudeo[[#This Row],[Producto]]=$A$3,VentasMenudeo[[#This Row],[Precio de Venta]]*VentasMenudeo[[#This Row],[Cantidad]]-VentasMenudeo[[#This Row],[Descuento]],VentasMenudeo[[#This Row],[Producto]]=$A$4,VentasMenudeo[[#This Row],[Precio de Venta]]*VentasMenudeo[[#This Row],[Cantidad]]-VentasMenudeo[[#This Row],[Descuento]],VentasMenudeo[[#This Row],[Producto]]=$A$5,VentasMenudeo[[#This Row],[Precio de Venta]]*VentasMenudeo[[#This Row],[Cantidad]]-VentasMenudeo[[#This Row],[Descuento]]),0) -> 270 | K40: 270
A41: 2022-04-26 | B41: Julio | C41: IPLAY MAX | D41: Bluerazz | E41: 2 | H41: =_xlfn.IFNA(VLOOKUP(VentasMenudeo[[#This Row],[Promoción]],PromocionesMenudeo[[Promocion]:[Descuento]],2,0),0) -> 0 | I41: =_xlfn.IFNA(VLOOKUP(VentasMenudeo[[#This Row],[Producto]],$A$2:$B$5,2,FALSE),0) -> 270 | J41: =_xlfn.IFNA(_xlfn.IFS(VentasMenudeo[[#This Row],[Producto]]=$A$2,VentasMenudeo[[#This Row],[Precio de Venta]]*VentasMenudeo[[#This Row],[Cantidad]]-VentasMenudeo[[#This Row],[Descuento]],VentasMenudeo[[#This Row],[Producto]]=$A$3,VentasMenudeo[[#This Row],[Precio de Venta]]*VentasMenudeo[[#This Row],[Cantidad]]-VentasMenudeo[[#This Row],[Descuento]],VentasMenudeo[[#This Row],[Producto]]=$A$4,VentasMenudeo[[#This Row],[Precio de Venta]]*VentasMenudeo[[#This Row],[Cantidad]]-VentasMenudeo[[#This Row],[Descuento]],VentasMenudeo[[#This Row],[Producto]]=$A$5,VentasMenudeo[[#This Row],[Precio de Venta]]*VentasMenudeo[[#This Row],[Cantidad]]-VentasMenudeo[[#This Row],[Descuento]]),0) -> 540 | K41: 540
A42: 2022-04-26 | B42: Hugo | C42: IPLAY MAX | D42: Guava | E42: 1 | H42: =_xlfn.IFNA(VLOOKUP(VentasMenudeo[[#This Row],[Promoción]],PromocionesMenudeo[[Promocion]:[Descuento]],2,0),0) -> 0 | I42: =_xlfn.IFNA(VLOOKUP(VentasMenudeo[[#This Row],[Producto]],$A$2:$B$5,2,FALSE),0) -> 270 | J42: =_xlfn.IFNA(_xlfn.IFS(VentasMenudeo[[#This Row],[Producto]]=$A$2,VentasMenudeo[[#This Row],[Precio de Venta]]*VentasMenudeo[[#This Row],[Cantidad]]-VentasMenudeo[[#This Row],[Descuento]],VentasMenudeo[[#This Row],[Producto]]=$A$3,VentasMenudeo[[#This Row],[Precio de Venta]]*VentasMenudeo[[#This Row],[Cantidad]]-VentasMenudeo[[#This Row],[Descuento]],VentasMenudeo[[#This Row],[Producto]]=$A$4,VentasMenudeo[[#This Row],[Precio de Venta]]*VentasMenudeo[[#This Row],[Cantidad]]-VentasMenudeo[[#This Row],[Descuento]],VentasMenudeo[[#This Row],[Producto]]=$A$5,VentasMenudeo[[#This Row],[Precio de Venta]]*VentasMenudeo[[#This Row],[Cantidad]]-VentasMenudeo[[#This Row],[Descuento]]),0) -> 270 | L42: 270
A43: 2022-04-26 | B43: Hugo | C43: IPLAY MAX | D43: Coconut | E43: 1 | H43: =_xlfn.IFNA(VLOOKUP(VentasMenudeo[[#This Row],[Promoción]],PromocionesMenudeo[[Promocion]:[Descuento]],2,0),0) -> 0 | I43: =_xlfn.IFNA(VLOOKUP(VentasMenudeo[[#This Row],[Producto]],$A$2:$B$5,2,FALSE),0) -> 270 | J43: =_xlfn.IFNA(_xlfn.IFS(VentasMenudeo[[#This Row],[Producto]]=$A$2,VentasMenudeo[[#This Row],[Precio de Venta]]*VentasMenudeo[[#This Row],[Cantidad]]-VentasMenudeo[[#This Row],[Descuento]],VentasMenudeo[[#This Row],[Producto]]=$A$3,VentasMenudeo[[#This Row],[Precio de Venta]]*VentasMenudeo[[#This Row],[Cantidad]]-VentasMenudeo[[#This Row],[Descuento]],VentasMenudeo[[#This Row],[Producto]]=$A$4,VentasMenudeo[[#This Row],[Precio de Venta]]*VentasMenudeo[[#This Row],[Cantidad]]-VentasMenudeo[[#This Row],[Descuento]],VentasMenudeo[[#This Row],[Producto]]=$A$5,VentasMenudeo[[#This Row],[Precio de Venta]]*VentasMenudeo[[#This Row],[Cantidad]]-VentasMenudeo[[#This Row],[Descuento]]),0) -> 270 | L43: 270
A44: 2022-04-26 | B44: Julio | C44: IPLAY MAX | D44: Guava | E44: 1 | H44: =_xlfn.IFNA(VLOOKUP(VentasMenudeo[[#This Row],[Promoción]],PromocionesMenudeo[[Promocion]:[Descuento]],2,0),0) -> 0 | I44: =_xlfn.IFNA(VLOOKUP(VentasMenudeo[[#This Row],[Producto]],$A$2:$B$5,2,FALSE),0) -> 270 | J44: =_xlfn.IFNA(_xlfn.IFS(VentasMenudeo[[#This Row],[Producto]]=$A$2,VentasMenudeo[[#This Row],[Precio de Venta]]*VentasMenudeo[[#This Row],[Cantidad]]-VentasMenudeo[[#This Row],[Descuento]],VentasMenudeo[[#This Row],[Producto]]=$A$3,VentasMenudeo[[#This Row],[Precio de Venta]]*VentasMenudeo[[#This Row],[Cantidad]]-VentasMenudeo[[#This Row],[Descuento]],VentasMenudeo[[#This Row],[Producto]]=$A$4,VentasMenudeo[[#This Row],[Precio de Venta]]*VentasMenudeo[[#This Row],[Cantidad]]-VentasMenudeo[[#This Row],[Descuento]],VentasMenudeo[[#This Row],[Producto]]=$A$5,VentasMenudeo[[#This Row],[Precio de Venta]]*VentasMenudeo[[#This Row],[Cantidad]]-VentasMenudeo[[#This Row],[Descuento]]),0) -> 270 | K44: 270
A45: 2022-04-27 | B45: Hugo | C45: IPLAY MAX | D45: Bluerazz | E45: 1 | H45: =_xlfn.IFNA(VLOOKUP(VentasMenudeo[[#This Row],[Promoción]],PromocionesMenudeo[[Promocion]:[Descuento]],2,0),0) -> 0 | I45: =_xlfn.IFNA(VLOOKUP(VentasMenudeo[[#This Row],[Producto]],$A$2:$B$5,2,FALSE),0) -> 270 | J45: =_xlfn.IFNA(_xlfn.IFS(VentasMenudeo[[#This Row],[Producto]]=$A$2,VentasMenudeo[[#This Row],[Precio de Venta]]*VentasMenudeo[[#This Row],[Cantidad]]-VentasMenudeo[[#This Row],[Descuento]],VentasMenudeo[[#This Row],[Producto]]=$A$3,VentasMenudeo[[#This Row],[Precio de Venta]]*VentasMenudeo[[#This Row],[Cantidad]]-VentasMenudeo[[#This Row],[Descuento]],VentasMenudeo[[#This Row],[Producto]]=$A$4,VentasMenudeo[[#This Row],[Precio de Venta]]*VentasMenudeo[[#This Row],[Cantidad]]-VentasMenudeo[[#This Row],[Descuento]],VentasMenudeo[[#This Row],[Producto]]=$A$5,VentasMenudeo[[#This Row],[Precio de Venta]]*VentasMenudeo[[#This Row],[Cantidad]]-VentasMenudeo[[#This Row],[Descuento]]),0) -> 270 | K45: 270
A46: 2022-04-27 | B46: Hugo | C46: IPLAY MAX | D46: Cool mint | E46: 1 | H46: =_xlfn.IFNA(VLOOKUP(VentasMenudeo[[#This Row],[Promoción]],PromocionesMenudeo[[Promocion]:[Descuento]],2,0),0) -> 0 | I46: =_xlfn.IFNA(VLOOKUP(VentasMenudeo[[#This Row],[Producto]],$A$2:$B$5,2,FALSE),0) -> 270 | J46: =_xlfn.IFNA(_xlfn.IFS(VentasMenudeo[[#This Row],[Producto]]=$A$2,VentasMenudeo[[#This Row],[Precio de Venta]]*VentasMenudeo[[#This Row],[Cantidad]]-VentasMenudeo[[#This Row],[Descuento]],VentasMenudeo[[#This Row],[Producto]]=$A$3,VentasMenudeo[[#This Row],[Precio de Venta]]*VentasMenudeo[[#This Row],[Cantidad]]-VentasMenudeo[[#This Row],[Descuento]],VentasMenudeo[[#This Row],[Producto]]=$A$4,VentasMenudeo[[#This Row],[Precio de Venta]]*VentasMenudeo[[#This Row],[Cantidad]]-VentasMenudeo[[#This Row],[Descuento]],VentasMenudeo[[#This Row],[Producto]]=$A$5,VentasMenudeo[[#This Row],[Precio de Venta]]*VentasMenudeo[[#This Row],[Cantidad]]-VentasMenudeo[[#This Row],[Descuento]]),0) -> 270 | L46: 270
A47: 2022-04-27 | B47: Hugo | C47: IPLAY MAX | D47: Berry Watermelon | E47: 1 | H47: =_xlfn.IFNA(VLOOKUP(VentasMenudeo[[#This Row],[Promoción]],PromocionesMenudeo[[Promocion]:[Descuento]],2,0),0) -> 0 | I47: =_xlfn.IFNA(VLOOKUP(VentasMenudeo[[#This Row],[Producto]],$A$2:$B$5,2,FALSE),0) -> 270 | J47: =_xlfn.IFNA(_xlfn.IFS(VentasMenudeo[[#This Row],[Producto]]=$A$2,VentasMenudeo[[#This Row],[Precio de Venta]]*VentasMenudeo[[#This Row],[Cantidad]]-VentasMenudeo[[#This Row],[Descuento]],VentasMenudeo[[#This Row],[Producto]]=$A$3,VentasMenudeo[[#This Row],[Precio de Venta]]*VentasMenudeo[[#This Row],[Cantidad]]-VentasMenudeo[[#This Row],[Descuento]],VentasMenudeo[[#This Row],[Producto]]=$A$4,VentasMenudeo[[#This Row],[Precio de Venta]]*VentasMenudeo[[#This Row],[Cantidad]]-VentasMenudeo[[#This Row],[Descuento]],VentasMenudeo[[#This Row],[Producto]]=$A$5,VentasMenudeo[[#This Row],[Precio de Venta]]*VentasMenudeo[[#This Row],[Cantidad]]-VentasMenudeo[[#This Row],[Descuento]]),0) -> 270 | L47: 270
A48: 2022-04-27 | B48: Hugo | C48: IPLAY MAX | D48: Berry Watermelon | E48: 1 | H48: =_xlfn.IFNA(VLOOKUP(VentasMenudeo[[#This Row],[Promoción]],PromocionesMenudeo[[Promocion]:[Descuento]],2,0),0) -> 0 | I48: =_xlfn.IFNA(VLOOKUP(VentasMenudeo[[#This Row],[Producto]],$A$2:$B$5,2,FALSE),0) -> 270 | J48: =_xlfn.IFNA(_xlfn.IFS(VentasMenudeo[[#This Row],[Producto]]=$A$2,VentasMenudeo[[#This Row],[Precio de Venta]]*VentasMenudeo[[#This Row],[Cantidad]]-VentasMenudeo[[#This Row],[Descuento]],VentasMenudeo[[#This Row],[Producto]]=$A$3,VentasMenudeo[[#This Row],[Precio de Venta]]*VentasMenudeo[[#This Row],[Cantidad]]-VentasMenudeo[[#This Row],[Descuento]],VentasMenudeo[[#This Row],[Producto]]=$A$4,VentasMenudeo[[#This Row],[Precio de Venta]]*VentasMenudeo[[#This Row],[Cantidad]]-VentasMenudeo[[#This Row],[Descuento]],VentasMenudeo[[#This Row],[Producto]]=$A$5,VentasMenudeo[[#This Row],[Precio de Venta]]*VentasMenudeo[[#This Row],[Cantidad]]-VentasMenudeo[[#This Row],[Descuento]]),0) -> 270 | L48: 270
A49: 2022-04-27 | B49: Julio | C49: IPLAY MAX | D49: Cool mint | E49: 1 | F49: $20 Descuento | H49: =_xlfn.IFNA(VLOOKUP(VentasMenudeo[[#This Row],[Promoción]],PromocionesMenudeo[[Promocion]:[Descuento]],2,0),0) -> 20 | I49: =_xlfn.IFNA(VLOOKUP(VentasMenudeo[[#This Row],[Producto]],$A$2:$B$5,2,FALSE),0) -> 270 | J49: =_xlfn.IFNA(_xlfn.IFS(VentasMenudeo[[#This Row],[Producto]]=$A$2,VentasMenudeo[[#This Row],[Precio de Venta]]*VentasMenudeo[[#This Row],[Cantidad]]-VentasMenudeo[[#This Row],[Descuento]],VentasMenudeo[[#This Row],[Producto]]=$A$3,VentasMenudeo[[#This Row],[Precio de Venta]]*VentasMenudeo[[#This Row],[Cantidad]]-VentasMenudeo[[#This Row],[Descuento]],VentasMenudeo[[#This Row],[Producto]]=$A$4,VentasMenudeo[[#This Row],[Precio de Venta]]*VentasMenudeo[[#This Row],[Cantidad]]-VentasMenudeo[[#This Row],[Descuento]],VentasMenudeo[[#This Row],[Producto]]=$A$5,VentasMenudeo[[#This Row],[Precio de Venta]]*VentasMenudeo[[#This Row],[Cantidad]]-VentasMenudeo[[#This Row],[Descuento]]),0) -> 250 | K49: 250
A50: 2022-04-27 | B50: Hugo | C50: IPLAY MAX | D50: Energy ICE | E50: 1 | H50: =_xlfn.IFNA(VLOOKUP(VentasMenudeo[[#This Row],[Promoción]],PromocionesMenudeo[[Promocion]:[Descuento]],2,0),0) -> 0 | I50: =_xlfn.IFNA(VLOOKUP(VentasMenudeo[[#This Row],[Producto]],$A$2:$B$5,2,FALSE),0) -> 270 | J50: =_xlfn.IFNA(_xlfn.IFS(VentasMenudeo[[#This Row],[Producto]]=$A$2,VentasMenudeo[[#This Row],[Precio de Venta]]*VentasMenudeo[[#This Row],[Cantidad]]-VentasMenudeo[[#This Row],[Descuento]],VentasMenudeo[[#This Row],[Producto]]=$A$3,VentasMenudeo[[#This Row],[Precio de Venta]]*VentasMenudeo[[#This Row],[Cantidad]]-VentasMenudeo[[#This Row],[Descuento]],VentasMenudeo[[#This Row],[Producto]]=$A$4,VentasMenudeo[[#This Row],[Precio de Venta]]*VentasMenudeo[[#This Row],[Cantidad]]-VentasMenudeo[[#This Row],[Descuento]],VentasMenudeo[[#This Row],[Producto]]=$A$5,VentasMenudeo[[#This Row],[Precio de Venta]]*VentasMenudeo[[#This Row],[Cantidad]]-VentasMenudeo[[#This Row],[Descuento]]),0) -> 270 | K50: 270
A51: 2022-04-27 | B51: Hugo | C51: IPLAY MAX | D51: Energy ICE | E51: 1 | H51: =_xlfn.IFNA(VLOOKUP(VentasMenudeo[[#This Row],[Promoción]],PromocionesMenudeo[[Promocion]:[Descuento]],2,0),0) -> 0 | I51: =_xlfn.IFNA(VLOOKUP(VentasMenudeo[[#This Row],[Producto]],$A$2:$B$5,2,FALSE),0) -> 270 | J51: =_xlfn.IFNA(_xlfn.IFS(VentasMenudeo[[#This Row],[Producto]]=$A$2,VentasMenudeo[[#This Row],[Precio de Venta]]*VentasMenudeo[[#This Row],[Cantidad]]-VentasMenudeo[[#This Row],[Descuento]],VentasMenudeo[[#This Row],[Producto]]=$A$3,VentasMenudeo[[#This Row],[Precio de Venta]]*VentasMenudeo[[#This Row],[Cantidad]]-VentasMenudeo[[#This Row],[Descuento]],VentasMenudeo[[#This Row],[Producto]]=$A$4,VentasMenudeo[[#This Row],[Precio de Venta]]*VentasMenudeo[[#This Row],[Cantidad]]-VentasMenudeo[[#This Row],[Descuento]],VentasMenudeo[[#This Row],[Producto]]=$A$5,VentasMenudeo[[#This Row],[Precio de Venta]]*VentasMenudeo[[#This Row],[Cantidad]]-VentasMenudeo[[#This Row],[Descuento]]),0) -> 270 | L51: 270
A52: 2022-04-28 | B52: Julio | C52: IPLAY MAX | D52: Cocumber Lemonade | E52: 1 | F52: $20 Descuento | H52: =_xlfn.IFNA(VLOOKUP(VentasMenudeo[[#This Row],[Promoción]],PromocionesMenudeo[[Promocion]:[Descuento]],2,0),0) -> 20 | I52: =_xlfn.IFNA(VLOOKUP(VentasMenudeo[[#This Row],[Producto]],$A$2:$B$5,2,FALSE),0) -> 270 | J52: =_xlfn.IFNA(_xlfn.IFS(VentasMenudeo[[#This Row],[Producto]]=$A$2,VentasMenudeo[[#This Row],[Precio de Venta]]*VentasMenudeo[[#This Row],[Cantidad]]-VentasMenudeo[[#This Row],[Descuento]],VentasMenudeo[[#This Row],[Producto]]=$A$3,VentasMenudeo[[#This Row],[Precio de Venta]]*VentasMenudeo[[#This Row],[Cantidad]]-VentasMenudeo[[#This Row],[Descuento]],VentasMenudeo[[#This Row],[Producto]]=$A$4,VentasMenudeo[[#This Row],[Precio de Venta]]*VentasMenudeo[[#This Row],[Cantidad]]-VentasMenudeo[[#This Row],[Descuento]],VentasMenudeo[[#This Row],[Producto]]=$A$5,VentasMenudeo[[#This Row],[Precio de Venta]]*VentasMenudeo[[#This Row],[Cantidad]]-VentasMenudeo[[#This Row],[Descuento]]),0) -> 250 | L52: 250
A53: 2022-04-28 | B53: Julio | C53: IPLAY MAX | D53: Coconut | E53: 1 | F53: $20 Descuento | H53: =_xlfn.IFNA(VLOOKUP(VentasMenudeo[[#This Row],[Promoción]],PromocionesMenudeo[[Promocion]:[Descuento]],2,0),0) -> 20 | I53: =_xlfn.IFNA(VLOOKUP(VentasMenudeo[[#This Row],[Producto]],$A$2:$B$5,2,FALSE),0) -> 270 | J53: =_xlfn.IFNA(_xlfn.IFS(VentasMenudeo[[#This Row],[Producto]]=$A$2,VentasMenudeo[[#This Row],[Precio de Venta]]*VentasMenudeo[[#This Row],[Cantidad]]-VentasMenudeo[[#This Row],[Descuento]],VentasMenudeo[[#This Row],[Producto]]=$A$3,VentasMenudeo[[#This Row],[Precio de Venta]]*VentasMenudeo[[#This Row],[Cantidad]]-VentasMenudeo[[#This Row],[Descuento]],VentasMenudeo[[#This Row],[Producto]]=$A$4,VentasMenudeo[[#This Row],[Precio de Venta]]*VentasMenudeo[[#This Row],[Cantidad]]-VentasMenudeo[[#This Row],[Descuento]],VentasMenudeo[[#This Row],[Producto]]=$A$5,VentasMenudeo[[#This Row],[Precio de Venta]]*VentasMenudeo[[#This Row],[Cantidad]]-VentasMenudeo[[#This Row],[Descuento]]),0) -> 250 | K53: 250
A54: 2022-04-28 | B54: Julio | C54: IPLAY MAX | D54: Strawberry Lychee | E54: 1 | F54: $20 Descuento | H54: =_xlfn.IFNA(VLOOKUP(VentasMenudeo[[#This Row],[Promoción]],PromocionesMenudeo[[Promocion]:[Descuento]],2,0),0) -> 20 | I54: =_xlfn.IFNA(VLOOKUP(VentasMenudeo[[#This Row],[Producto]],$A$2:$B$5,2,FALSE),0) -> 270 | J54: =_xlfn.IFNA(_xlfn.IFS(VentasMenudeo[[#This Row],[Producto]]=$A$2,VentasMenudeo[[#This Row],[Precio de Venta]]*VentasMenudeo[[#This Row],[Cantidad]]-VentasMenudeo[[#This Row],[Descuento]],VentasMenudeo[[#This Row],[Producto]]=$A$3,VentasMenudeo[[#This Row],[Precio de Venta]]*VentasMenudeo[[#This Row],[Cantidad]]-VentasMenudeo[[#This Row],[Descuento]],VentasMenudeo[[#This Row],[Producto]]=$A$4,VentasMenudeo[[#This Row],[Precio de Venta]]*VentasMenudeo[[#This Row],[Cantidad]]-VentasMenudeo[[#This Row],[Descuento]],VentasMenudeo[[#This Row],[Producto]]=$A$5,VentasMenudeo[[#This Row],[Precio de Venta]]*VentasMenudeo[[#This Row],[Cantidad]]-VentasMenudeo[[#This Row],[Descuento]]),0) -> 250 | L54: 250
A55: 2022-04-28 | B55: Hugo | C55: IPLAY MAX | D55: GrapeFruit berry | E55: 1 | F55: $20 Descuento | H55: =_xlfn.IFNA(VLOOKUP(VentasMenudeo[[#This Row],[Promoción]],PromocionesMenudeo[[Promocion]:[Descuento]],2,0),0) -> 20 | I55: =_xlfn.IFNA(VLOOKUP(VentasMenudeo[[#This Row],[Producto]],$A$2:$B$5,2,FALSE),0) -> 270 | J55: =_xlfn.IFNA(_xlfn.IFS(VentasMenudeo[[#This Row],[Producto]]=$A$2,VentasMenudeo[[#This Row],[Precio de Venta]]*VentasMenudeo[[#This Row],[Cantidad]]-VentasMenudeo[[#This Row],[Descuento]],VentasMenudeo[[#This Row],[Producto]]=$A$3,VentasMenudeo[[#This Row],[Precio de Venta]]*VentasMenudeo[[#This Row],[Cantidad]]-VentasMenudeo[[#This Row],[Descuento]],VentasMenudeo[[#This Row],[Producto]]=$A$4,VentasMenudeo[[#This Row],[Precio de Venta]]*VentasMenudeo[[#This Row],[Cantidad]]-VentasMenudeo[[#This Row],[Descuento]],VentasMenudeo[[#This Row],[Producto]]=$A$5,VentasMenudeo[[#This Row],[Precio de Venta]]*VentasMenudeo[[#This Row],[Cantidad]]-VentasMenudeo[[#This Row],[Descuento]]),0) -> 250 | K55: 250
A56: 2022-04-28 | B56: Hugo | C56: IPLAY MAX | D56: Grapestraw | E56: 1 | F56: $20 Descuento | H56: =_xlfn.IFNA(VLOOKUP(VentasMenudeo[[#This Row],[Promoción]],PromocionesMenudeo[[Promocion]:[Descuento]],2,0),0) -> 20 | I56: =_xlfn.IFNA(VLOOKUP(VentasMenudeo[[#This Row],[Producto]],$A$2:$B$5,2,FALSE),0) -> 270 | J56: =_xlfn.IFNA(_xlfn.IFS(VentasMenudeo[[#This Row],[Producto]]=$A$2,VentasMenudeo[[#This Row],[Precio de Venta]]*VentasMenudeo[[#This Row],[Cantidad]]-VentasMenudeo[[#This Row],[Descuento]],VentasMenudeo[[#This Row],[Producto]]=$A$3,VentasMenudeo[[#This Row],[Precio de Venta]]*VentasMenudeo[[#This Row],[Cantidad]]-VentasMenudeo[[#This Row],[Descuento]],VentasMenudeo[[#This Row],[Producto]]=$A$4,VentasMenudeo[[#This Row],[Precio de Venta]]*VentasMenudeo[[#This Row],[Cantidad]]-VentasMenudeo[[#This Row],[Descuento]],VentasMenudeo[[#This Row],[Producto]]=$A$5,VentasMenudeo[[#This Row],[Precio de Venta]]*VentasMenudeo[[#This Row],[Cantidad]]-VentasMenudeo[[#This Row],[Descuento]]),0) -> 250 | K56: 250
A57: 2022-04-28 | B57: Julio | C57: IPLAY MAX | D57: Grapestraw | E57: 1 | F57: $20 Descuento | H57: =_xlfn.IFNA(VLOOKUP(VentasMenudeo[[#This Row],[Promoción]],PromocionesMenudeo[[Promocion]:[Descuento]],2,0),0) -> 20 | I57: =_xlfn.IFNA(VLOOKUP(VentasMenudeo[[#This Row],[Producto]],$A$2:$B$5,2,FALSE),0) -> 270 | J57: =_xlfn.IFNA(_xlfn.IFS(VentasMenudeo[[#This Row],[Producto]]=$A$2,VentasMenudeo[[#This Row],[Precio de Venta]]*VentasMenudeo[[#This Row],[Cantidad]]-VentasMenudeo[[#This Row],[Descuento]],VentasMenudeo[[#This Row],[Producto]]=$A$3,VentasMenudeo[[#This Row],[Precio de Venta]]*VentasMenudeo[[#This Row],[Cantidad]]-VentasMenudeo[[#This Row],[Descuento]],VentasMenudeo[[#This Row],[Producto]]=$A$4,VentasMenudeo[[#This Row],[Precio de Venta]]*VentasMenudeo[[#This Row],[Cantidad]]-VentasMenudeo[[#This Row],[Descuento]],VentasMenudeo[[#This Row],[Producto]]=$A$5,VentasMenudeo[[#This Row],[Precio de Venta]]*VentasMenudeo[[#This Row],[Cantidad]]-VentasMenudeo[[#This Row],[Descuento]]),0) -> 250 | K57: 250
A58: 2022-04-28 | B58: Hugo | C58: IPLAY MAX | D58: Bluerazz | E58: 1 | F58: $20 Descuento | H58: =_xlfn.IFNA(VLOOKUP(VentasMenudeo[[#This Row],[Promoción]],PromocionesMenudeo[[Promocion]:[Descuento]],2,0),0) -> 20 | I58: =_xlfn.IFNA(VLOOKUP(VentasMenudeo[[#This Row],[Producto]],$A$2:$B$5,2,FALSE),0) -> 270 | J58: =_xlfn.IFNA(_xlfn.IFS(VentasMenudeo[[#This Row],[Producto]]=$A$2,VentasMenudeo[[#This Row],[Precio de Venta]]*VentasMenudeo[[#This Row],[Cantidad]]-VentasMenudeo[[#This Row],[Descuento]],VentasMenudeo[[#This Row],[Producto]]=$A$3,VentasMenudeo[[#This Row],[Precio de Venta]]*VentasMenudeo[[#This Row],[Cantidad]]-VentasMenudeo[[#This Row],[Descuento]],VentasMenudeo[[#This Row],[Producto]]=$A$4,VentasMenudeo[[#This Row],[Precio de Venta]]*VentasMenudeo[[#This Row],[Cantidad]]-VentasMenudeo[[#This Row],[Descuento]],VentasMenudeo[[#This Row],[Producto]]=$A$5,VentasMenudeo[[#This Row],[Precio de Venta]]*VentasMenudeo[[#This Row],[Cantidad]]-VentasMenudeo[[#This Row],[Descuento]]),0) -> 250 | L58: 250
A59: 2022-04-28 | B59: Julio | C59: IPLAY MAX | D59: Strawberry Lychee | E59: 1 | F59: $20 Descuento | H59: =_xlfn.IFNA(VLOOKUP(VentasMenudeo[[#This Row],[Promoción]],PromocionesMenudeo[[Promocion]:[Descuento]],2,0),0) -> 20 | I59: =_xlfn.IFNA(VLOOKUP(VentasMenudeo[[#This Row],[Producto]],$A$2:$B$5,2,FALSE),0) -> 270 | J59: =_xlfn.IFNA(_xlfn.IFS(VentasMenudeo[[#This Row],[Producto]]=$A$2,VentasMenudeo[[#This Row],[Precio de Venta]]*VentasMenudeo[[#This Row],[Cantidad]]-VentasMenudeo[[#This Row],[Descuento]],VentasMenudeo[[#This Row],[Producto]]=$A$3,VentasMenudeo[[#This Row],[Precio de Venta]]*VentasMenudeo[[#This Row],[Cantidad]]-VentasMenudeo[[#This Row],[Descuento]],VentasMenudeo[[#This Row],[Producto]]=$A$4,VentasMenudeo[[#This Row],[Precio de Venta]]*VentasMenudeo[[#This Row],[Cantidad]]-VentasMenudeo[[#This Row],[Descuento]],VentasMenudeo[[#This Row],[Producto]]=$A$5,VentasMenudeo[[#This Row],[Precio de Venta]]*VentasMenudeo[[#This Row],[Cantidad]]-VentasMenudeo[[#This Row],[Descuento]]),0) -> 250 | L59: 250
A60: 2022-04-28 | B60: Julio | C60: IPLAY MAX | D60: Lemon cookies | E60: 1 | F60: $20 Descuento | H60: =_xlfn.IFNA(VLOOKUP(VentasMenudeo[[#This Row],[Promoción]],PromocionesMenudeo[[Promocion]:[Descuento]],2,0),0) -> 20 | I60: =_xlfn.IFNA(VLOOKUP(VentasMenudeo[[#This Row],[Producto]],$A$2:$B$5,2,FALSE),0) -> 270 | J60: =_xlfn.IFNA(_xlfn.IFS(VentasMenudeo[[#This Row],[Producto]]=$A$2,VentasMenudeo[[#This Row],[Precio de Venta]]*VentasMenudeo[[#This Row],[Cantidad]]-VentasMenudeo[[#This Row],[Descuento]],VentasMenudeo[[#This Row],[Producto]]=$A$3,VentasMenudeo[[#This Row],[Precio de Venta]]*VentasMenudeo[[#This Row],[Cantidad]]-VentasMenudeo[[#This Row],[Descuento]],VentasMenudeo[[#This Row],[Producto]]=$A$4,VentasMenudeo[[#This Row],[Precio de Venta]]*VentasMenudeo[[#This Row],[Cantidad]]-VentasMenudeo[[#This Row],[Descuento]],VentasMenudeo[[#This Row],[Producto]]=$A$5,VentasMenudeo[[#This Row],[Precio de Venta]]*VentasMenudeo[[#This Row],[Cantidad]]-VentasMenudeo[[#This Row],[Descuento]]),0) -> 250 | L60: 250
A61: 2022-04-28 | B61: Julio | C61: IPLAY MAX | D61: Cool mint | E61: 1 | F61: $20 Descuento | H61: =_xlfn.IFNA(VLOOKUP(VentasMenudeo[[#This Row],[Promoción]],PromocionesMenudeo[[Promocion]:[Descuento]],2,0),0) -> 20 | I61: =_xlfn.IFNA(VLOOKUP(VentasMenudeo[[#This Row],[Producto]],$A$2:$B$5,2,FALSE),0) -> 270 | J61: =_xlfn.IFNA(_xlfn.IFS(VentasMenudeo[[#This Row],[Producto]]=$A$2,VentasMenudeo[[#This Row],[Precio de Venta]]*VentasMenudeo[[#This Row],[Cantidad]]-VentasMenudeo[[#This Row],[Descuento]],VentasMenudeo[[#This Row],[Producto]]=$A$3,VentasMenudeo[[#This Row],[Precio de Venta]]*VentasMenudeo[[#This Row],[Cantidad]]-VentasMenudeo[[#This Row],[Descuento]],VentasMenudeo[[#This Row],[Producto]]=$A$4,VentasMenudeo[[#This Row],[Precio de Venta]]*VentasMenudeo[[#This Row],[Cantidad]]-VentasMenudeo[[#This Row],[Descuento]],VentasMenudeo[[#This Row],[Producto]]=$A$5,VentasMenudeo[[#This Row],[Precio de Venta]]*VentasMenudeo[[#This Row],[Cantidad]]-VentasMenudeo[[#This Row],[Descuento]]),0) -> 250 | K61: 250
A62: 2022-04-28 | B62: Julio | C62: IPLAY MAX | D62: Cocumber Lemonade | E62: 1 | F62: $20 Descuento | H62: =_xlfn.IFNA(VLOOKUP(VentasMenudeo[[#This Row],[Promoción]],PromocionesMenudeo[[Promocion]:[Descuento]],2,0),0) -> 20 | I62: =_xlfn.IFNA(VLOOKUP(VentasMenudeo[[#This Row],[Producto]],$A$2:$B$5,2,FALSE),0) -> 270 | J62: =_xlfn.IFNA(_xlfn.IFS(VentasMenudeo[[#This Row],[Producto]]=$A$2,VentasMenudeo[[#This Row],[Precio de Venta]]*VentasMenudeo[[#This Row],[Cantidad]]-VentasMenudeo[[#This Row],[Descuento]],VentasMenudeo[[#This Row],[Producto]]=$A$3,VentasMenudeo[[#This Row],[Precio de Venta]]*VentasMenudeo[[#This Row],[Cantidad]]-VentasMenudeo[[#This Row],[Descuento]],VentasMenudeo[[#This Row],[Producto]]=$A$4,VentasMenudeo[[#This Row],[Precio de Venta]]*VentasMenudeo[[#This Row],[Cantidad]]-VentasMenudeo[[#This Row],[Descuento]],VentasMenudeo[[#This Row],[Producto]]=$A$5,VentasMenudeo[[#This Row],[Precio de Venta]]*VentasMenudeo[[#This Row],[Cantidad]]-VentasMenudeo[[#This Row],[Descuento]]),0) -> 250 | L62: 250
A63: 2022-04-28 | B63: Julio | C63: IPLAY MAX | D63: Coconut | E63: 1 | F63: $20 Descuento | H63: 30 | I63: =_xlfn.IFNA(VLOOKUP(VentasMenudeo[[#This Row],[Producto]],$A$2:$B$5,2,FALSE),0) -> 270 | J63: =_xlfn.IFNA(_xlfn.IFS(VentasMenudeo[[#This Row],[Producto]]=$A$2,VentasMenudeo[[#This Row],[Precio de Venta]]*VentasMenudeo[[#This Row],[Cantidad]]-VentasMenudeo[[#This Row],[Descuento]],VentasMenudeo[[#This Row],[Producto]]=$A$3,VentasMenudeo[[#This Row],[Precio de Venta]]*VentasMenudeo[[#This Row],[Cantidad]]-VentasMenudeo[[#This Row],[Descuento]],VentasMenudeo[[#This Row],[Producto]]=$A$4,VentasMenudeo[[#This Row],[Precio de Venta]]*VentasMenudeo[[#This Row],[Cantidad]]-VentasMenudeo[[#This Row],[Descuento]],VentasMenudeo[[#This Row],[Producto]]=$A$5,VentasMenudeo[[#This Row],[Precio de Venta]]*VentasMenudeo[[#This Row],[Cantidad]]-VentasMenudeo[[#This Row],[Descuento]]),0) -> 240 | K63: 240
A64: 2022-04-28 | B64: Julio | C64: IPLAY MAX | D64: Bluerazz | E64: 1 | F64: $20 Descuento | H64: =_xlfn.IFNA(VLOOKUP(VentasMenudeo[[#This Row],[Promoción]],PromocionesMenudeo[[Promocion]:[Descuento]],2,0),0) -> 20 | I64: =_xlfn.IFNA(VLOOKUP(VentasMenudeo[[#This Row],[Producto]],$A$2:$B$5,2,FALSE),0) -> 270 | J64: =_xlfn.IFNA(_xlfn.IFS(VentasMenudeo[[#This Row],[Producto]]=$A$2,VentasMenudeo[[#This Row],[Precio de Venta]]*VentasMenudeo[[#This Row],[Cantidad]]-VentasMenudeo[[#This Row],[Descuento]],VentasMenudeo[[#This Row],[Producto]]=$A$3,VentasMenudeo[[#This Row],[Precio de Venta]]*VentasMenudeo[[#This Row],[Cantidad]]-VentasMenudeo[[#This Row],[Descuento]],VentasMenudeo[[#This Row],[Producto]]=$A$4,VentasMenudeo[[#This Row],[Precio de Venta]]*VentasMenudeo[[#This Row],[Cantidad]]-VentasMenudeo[[#This Row],[Descuento]],VentasMenudeo[[#This Row],[Producto]]=$A$5,VentasMenudeo[[#This Row],[Precio de Venta]]*VentasMenudeo[[#This Row],[Cantidad]]-VentasMenudeo[[#This Row],[Descuento]]),0) -> 250 | K64: 250
A65: 2022-04-28 | B65: Julio | C65: IPLAY MAX | D65: Coconut | E65: 1 | F65: $20 Descuento | H65: =_xlfn.IFNA(VLOOKUP(VentasMenudeo[[#This Row],[Promoción]],PromocionesMenudeo[[Promocion]:[Descuento]],2,0),0) -> 20 | I65: =_xlfn.IFNA(VLOOKUP(VentasMenudeo[[#This Row],[Producto]],$A$2:$B$5,2,FALSE),0) -> 270 | J65: =_xlfn.IFNA(_xlfn.IFS(VentasMenudeo[[#This Row],[Producto]]=$A$2,VentasMenudeo[[#This Row],[Precio de Venta]]*VentasMenudeo[[#This Row],[Cantidad]]-VentasMenudeo[[#This Row],[Descuento]],VentasMenudeo[[#This Row],[Producto]]=$A$3,VentasMenudeo[[#This Row],[Precio de Venta]]*VentasMenudeo[[#This Row],[Cantidad]]-VentasMenudeo[[#This Row],[Descuento]],VentasMenudeo[[#This Row],[Producto]]=$A$4,VentasMenudeo[[#This Row],[Precio de Venta]]*VentasMenudeo[[#This Row],[Cantidad]]-VentasMenudeo[[#This Row],[Descuento]],VentasMenudeo[[#This Row],[Producto]]=$A$5,VentasMenudeo[[#This Row],[Precio de Venta]]*VentasMenudeo[[#This Row],[Cantidad]]-VentasMenudeo[[#This Row],[Descuento]]),0) -> 250 | K65: 250
A66: 2022-04-29 | B66: Julio | C66: IPLAY MAX | D66: Strawberry Lychee | E66: 1 | F66: $20 Descuento | H66: =_xlfn.IFNA(VLOOKUP(VentasMenudeo[[#This Row],[Promoción]],PromocionesMenudeo[[Promocion]:[Descuento]],2,0),0) -> 20 | I66: =_xlfn.IFNA(VLOOKUP(VentasMenudeo[[#This Row],[Producto]],$A$2:$B$5,2,FALSE),0) -> 270 | J66: =_xlfn.IFNA(_xlfn.IFS(VentasMenudeo[[#This Row],[Producto]]=$A$2,VentasMenudeo[[#This Row],[Precio de Venta]]*VentasMenudeo[[#This Row],[Cantidad]]-VentasMenudeo[[#This Row],[Descuento]],VentasMenudeo[[#This Row],[Producto]]=$A$3,VentasMenudeo[[#This Row],[Precio de Venta]]*VentasMenudeo[[#This Row],[Cantidad]]-VentasMenudeo[[#This Row],[Descuento]],VentasMenudeo[[#This Row],[Producto]]=$A$4,VentasMenudeo[[#This Row],[Precio de Venta]]*VentasMenudeo[[#This Row],[Cantidad]]-VentasMenudeo[[#This Row],[Descuento]],VentasMenudeo[[#This Row],[Producto]]=$A$5,VentasMenudeo[[#This Row],[Precio de Venta]]*VentasMenudeo[[#This Row],[Cantidad]]-VentasMenudeo[[#This Row],[Descuento]]),0) -> 250 | K66: 250
A67: 2022-04-29 | B67: Julio | C67: IPLAY MAX | D67: Cool mint | E67: 1 | F67: $20 Descuento | H67: =_xlfn.IFNA(VLOOKUP(VentasMenudeo[[#This Row],[Promoción]],PromocionesMenudeo[[Promocion]:[Descuento]],2,0),0) -> 20 | I67: =_xlfn.IFNA(VLOOKUP(VentasMenudeo[[#This Row],[Producto]],$A$2:$B$5,2,FALSE),0) -> 270 | J67: =_xlfn.IFNA(_xlfn.IFS(VentasMenudeo[[#This Row],[Producto]]=$A$2,VentasMenudeo[[#This Row],[Precio de Venta]]*VentasMenudeo[[#This Row],[Cantidad]]-VentasMenudeo[[#This Row],[Descuento]],VentasMenudeo[[#This Row],[Producto]]=$A$3,VentasMenudeo[[#This Row],[Precio de Venta]]*VentasMenudeo[[#This Row],[Cantidad]]-VentasMenudeo[[#This Row],[Descuento]],VentasMenudeo[[#This Row],[Producto]]=$A$4,VentasMenudeo[[#This Row],[Precio de Venta]]*VentasMenudeo[[#This Row],[Cantidad]]-VentasMenudeo[[#This Row],[Descuento]],VentasMenudeo[[#This Row],[Producto]]=$A$5,VentasMenudeo[[#This Row],[Precio de Venta]]*VentasMenudeo[[#This Row],[Cantidad]]-VentasMenudeo[[#This Row],[Descuento]]),0) -> 250 | K67: 250
A68: 2022-04-29 | B68: Julio | C68: IPLAY MAX | D68: Bluerazz | E68: 1 | F68: $20 Descuento | H68: =_xlfn.IFNA(VLOOKUP(VentasMenudeo[[#This Row],[Promoción]],PromocionesMenudeo[[Promocion]:[Descuento]],2,0),0) -> 20 | I68: =_xlfn.IFNA(VLOOKUP(VentasMenudeo[[#This Row],[Producto]],$A$2:$B$5,2,FALSE),0) -> 270 | J68: =_xlfn.IFNA(_xlfn.IFS(VentasMenudeo[[#This Row],[Producto]]=$A$2,VentasMenudeo[[#This Row],[Precio de Venta]]*VentasMenudeo[[#This Row],[Cantidad]]-VentasMenudeo[[#This Row],[Descuento]],VentasMenudeo[[#This Row],[Producto]]=$A$3,VentasMenudeo[[#This Row],[Precio de Venta]]*VentasMenudeo[[#This Row],[Cantidad]]-VentasMenudeo[[#This Row],[Descuento]],VentasMenudeo[[#This Row],[Producto]]=$A$4,VentasMenudeo[[#This Row],[Precio de Venta]]*VentasMenudeo[[#This Row],[Cantidad]]-VentasMenudeo[[#This Row],[Descuento]],VentasMenudeo[[#This Row],[Producto]]=$A$5,VentasMenudeo[[#This Row],[Precio de Venta]]*VentasMenudeo[[#This Row],[Cantidad]]-VentasMenudeo[[#This Row],[Descuento]]),0) -> 250 | K68: 250
A69: 2022-04-29 | B69: Julio | C69: IPLAY MAX | D69: Sour Apple | E69: 1 | F69: $20 Descuento | H69: =_xlfn.IFNA(VLOOKUP(VentasMenudeo[[#This Row],[Promoción]],PromocionesMenudeo[[Promocion]:[Descuento]],2,0),0) -> 20 | I69: =_xlfn.IFNA(VLOOKUP(VentasMenudeo[[#This Row],[Producto]],$A$2:$B$5,2,FALSE),0) -> 270 | J69: =_xlfn.IFNA(_xlfn.IFS(VentasMenudeo[[#This Row],[Producto]]=$A$2,VentasMenudeo[[#This Row],[Precio de Venta]]*VentasMenudeo[[#This Row],[Cantidad]]-VentasMenudeo[[#This Row],[Descuento]],VentasMenudeo[[#This Row],[Producto]]=$A$3,VentasMenudeo[[#This Row],[Precio de Venta]]*VentasMenudeo[[#This Row],[Cantidad]]-VentasMenudeo[[#This Row],[Descuento]],VentasMenudeo[[#This Row],[Producto]]=$A$4,VentasMenudeo[[#This Row],[Precio de Venta]]*VentasMenudeo[[#This Row],[Cantidad]]-VentasMenudeo[[#This Row],[Descuento]],VentasMenudeo[[#This Row],[Producto]]=$A$5,VentasMenudeo[[#This Row],[Precio de Venta]]*VentasMenudeo[[#This Row],[Cantidad]]-VentasMenudeo[[#This Row],[Descuento]]),0) -> 250 | L69: 250
A70: 2022-04-29 | B70: Julio | C70: IPLAY MAX | D70: Bluerazz | E70: 1 | F70: $20 Descuento | H70: =_xlfn.IFNA(VLOOKUP(VentasMenudeo[[#This Row],[Promoción]],PromocionesMenudeo[[Promocion]:[Descuento]],2,0),0) -> 20 | I70: =_xlfn.IFNA(VLOOKUP(VentasMenudeo[[#This Row],[Producto]],$A$2:$B$5,2,FALSE),0) -> 270 | J70: =_xlfn.IFNA(_xlfn.IFS(VentasMenudeo[[#This Row],[Producto]]=$A$2,VentasMenudeo[[#This Row],[Precio de Venta]]*VentasMenudeo[[#This Row],[Cantidad]]-VentasMenudeo[[#This Row],[Descuento]],VentasMenudeo[[#This Row],[Producto]]=$A$3,VentasMenudeo[[#This Row],[Precio de Venta]]*VentasMenudeo[[#This Row],[Cantidad]]-VentasMenudeo[[#This Row],[Descuento]],VentasMenudeo[[#This Row],[Producto]]=$A$4,VentasMenudeo[[#This Row],[Precio de Venta]]*VentasMenudeo[[#This Row],[Cantidad]]-VentasMenudeo[[#This Row],[Descuento]],VentasMenudeo[[#This Row],[Producto]]=$A$5,VentasMenudeo[[#This Row],[Precio de Venta]]*VentasMenudeo[[#This Row],[Cantidad]]-VentasMenudeo[[#This Row],[Descuento]]),0) -> 250 | L70: 250
A71: 2022-04-29 | B71: Julio | C71: IPLAY MAX | D71: Bluerazz | E71: 1 | F71: $20 Descuento | H71: =_xlfn.IFNA(VLOOKUP(VentasMenudeo[[#This Row],[Promoción]],PromocionesMenudeo[[Promocion]:[Descuento]],2,0),0) -> 20 | I71: =_xlfn.IFNA(VLOOKUP(VentasMenudeo[[#This Row],[Producto]],$A$2:$B$5,2,FALSE),0) -> 270 | J71: =_xlfn.IFNA(_xlfn.IFS(VentasMenudeo[[#This Row],[Producto]]=$A$2,VentasMenudeo[[#This Row],[Precio de Venta]]*VentasMenudeo[[#This Row],[Cantidad]]-VentasMenudeo[[#This Row],[Descuento]],VentasMenudeo[[#This Row],[Producto]]=$A$3,VentasMenudeo[[#This Row],[Precio de Venta]]*VentasMenudeo[[#This Row],[Cantidad]]-VentasMenudeo[[#This Row],[Descuento]],VentasMenudeo[[#This Row],[Producto]]=$A$4,VentasMenudeo[[#This Row],[Precio de Venta]]*VentasMenudeo[[#This Row],[Cantidad]]-VentasMenudeo[[#This Row],[Descuento]],VentasMenudeo[[#This Row],[Producto]]=$A$5,VentasMenudeo[[#This Row],[Precio de Venta]]*VentasMenudeo[[#This Row],[Cantidad]]-VentasMenudeo[[#This Row],[Descuento]]),0) -> 250 | L71: 250
A72: 2022-04-29 | B72: Julio | C72: IPLAY MAX | D72: Cool mint | E72: 1 | F72: $20 Descuento | H72: =_xlfn.IFNA(VLOOKUP(VentasMenudeo[[#This Row],[Promoción]],PromocionesMenudeo[[Promocion]:[Descuento]],2,0),0) -> 20 | I72: =_xlfn.IFNA(VLOOKUP(VentasMenudeo[[#This Row],[Producto]],$A$2:$B$5,2,FALSE),0) -> 270 | J72: =_xlfn.IFNA(_xlfn.IFS(VentasMenudeo[[#This Row],[Producto]]=$A$2,VentasMenudeo[[#This Row],[Precio de Venta]]*VentasMenudeo[[#This Row],[Cantidad]]-VentasMenudeo[[#This Row],[Descuento]],VentasMenudeo[[#This Row],[Producto]]=$A$3,VentasMenudeo[[#This Row],[Precio de Venta]]*VentasMenudeo[[#This Row],[Cantidad]]-VentasMenudeo[[#This Row],[Descuento]],VentasMenudeo[[#This Row],[Producto]]=$A$4,VentasMenudeo[[#This Row],[Precio de Venta]]*VentasMenudeo[[#This Row],[Cantidad]]-VentasMenudeo[[#This Row],[Descuento]],VentasMenudeo[[#This Row],[Producto]]=$A$5,VentasMenudeo[[#This Row],[Precio de Venta]]*VentasMenudeo[[#This Row],[Cantidad]]-VentasMenudeo[[#This Row],[Descuento]]),0) -> 250 | K72: 250
A73: 2022-04-29 | B73: Julio | C73: IPLAY MAX | D73: Guava | E73: 1 | F73: $20 Descuento | H73: =_xlfn.IFNA(VLOOKUP(VentasMenudeo[[#This Row],[Promoción]],PromocionesMenudeo[[Promocion]:[Descuento]],2,0),0) -> 20 | I73: =_xlfn.IFNA(VLOOKUP(VentasMenudeo[[#This Row],[Producto]],$A$2:$B$5,2,FALSE),0) -> 270 | J73: =_xlfn.IFNA(_xlfn.IFS(VentasMenudeo[[#This Row],[Producto]]=$A$2,VentasMenudeo[[#This Row],[Precio de Venta]]*VentasMenudeo[[#This Row],[Cantidad]]-VentasMenudeo[[#This Row],[Descuento]],VentasMenudeo[[#This Row],[Producto]]=$A$3,VentasMenudeo[[#This Row],[Precio de Venta]]*VentasMenudeo[[#This Row],[Cantidad]]-VentasMenudeo[[#This Row],[Descuento]],VentasMenudeo[[#This Row],[Producto]]=$A$4,VentasMenudeo[[#This Row],[Precio de Venta]]*VentasMenudeo[[#This Row],[Cantidad]]-VentasMenudeo[[#This Row],[Descuento]],VentasMenudeo[[#This Row],[Producto]]=$A$5,VentasMenudeo[[#This Row],[Precio de Venta]]*VentasMenudeo[[#This Row],[Cantidad]]-VentasMenudeo[[#This Row],[Descuento]]),0) -> 250 | L73: 250
A74: 2022-04-30 | B74: Hugo | C74: IPLAY MAX | D74: Coconut | E74: 1 | F74: $20 Descuento | H74: =_xlfn.IFNA(VLOOKUP(VentasMenudeo[[#This Row],[Promoción]],PromocionesMenudeo[[Promocion]:[Descuento]],2,0),0) -> 20 | I74: =_xlfn.IFNA(VLOOKUP(VentasMenudeo[[#This Row],[Producto]],$A$2:$B$5,2,FALSE),0) -> 270 | J74: =_xlfn.IFNA(_xlfn.IFS(VentasMenudeo[[#This Row],[Producto]]=$A$2,VentasMenudeo[[#This Row],[Precio de Venta]]*VentasMenudeo[[#This Row],[Cantidad]]-VentasMenudeo[[#This Row],[Descuento]],VentasMenudeo[[#This Row],[Producto]]=$A$3,VentasMenudeo[[#This Row],[Precio de Venta]]*VentasMenudeo[[#This Row],[Cantidad]]-VentasMenudeo[[#This Row],[Descuento]],VentasMenudeo[[#This Row],[Producto]]=$A$4,VentasMenudeo[[#This Row],[Precio de Venta]]*VentasMenudeo[[#This Row],[Cantidad]]-VentasMenudeo[[#This Row],[Descuento]],VentasMenudeo[[#This Row],[Producto]]=$A$5,VentasMenudeo[[#This Row],[Precio de Venta]]*VentasMenudeo[[#This Row],[Cantidad]]-VentasMenudeo[[#This Row],[Descuento]]),0) -> 250 | K74: 250
A75: 2022-04-30 | B75: Hugo | C75: IPLAY MAX | D75: Cool mint | E75: 1 | F75: $20 Descuento | H75: =_xlfn.IFNA(VLOOKUP(VentasMenudeo[[#This Row],[Promoción]],PromocionesMenudeo[[Promocion]:[Descuento]],2,0),0) -> 20 | I75: =_xlfn.IFNA(VLOOKUP(VentasMenudeo[[#This Row],[Producto]],$A$2:$B$5,2,FALSE),0) -> 270 | J75: =_xlfn.IFNA(_xlfn.IFS(VentasMenudeo[[#This Row],[Producto]]=$A$2,VentasMenudeo[[#This Row],[Precio de Venta]]*VentasMenudeo[[#This Row],[Cantidad]]-VentasMenudeo[[#This Row],[Descuento]],VentasMenudeo[[#This Row],[Producto]]=$A$3,VentasMenudeo[[#This Row],[Precio de Venta]]*VentasMenudeo[[#This Row],[Cantidad]]-VentasMenudeo[[#This Row],[Descuento]],VentasMenudeo[[#This Row],[Producto]]=$A$4,VentasMenudeo[[#This Row],[Precio de Venta]]*VentasMenudeo[[#This Row],[Cantidad]]-VentasMenudeo[[#This Row],[Descuento]],VentasMenudeo[[#This Row],[Producto]]=$A$5,VentasMenudeo[[#This Row],[Precio de Venta]]*VentasMenudeo[[#This Row],[Cantidad]]-VentasMenudeo[[#This Row],[Descuento]]),0) -> 250 | K75: 250
A76: 2022-04-30 | B76: Julio | C76: IPLAY MAX | D76: Guava | E76: 1 | F76: $20 Descuento | H76: =_xlfn.IFNA(VLOOKUP(VentasMenudeo[[#This Row],[Promoción]],PromocionesMenudeo[[Promocion]:[Descuento]],2,0),0) -> 20 | I76: =_xlfn.IFNA(VLOOKUP(VentasMenudeo[[#This Row],[Producto]],$A$2:$B$5,2,FALSE),0) -> 270 | J76: =_xlfn.IFNA(_xlfn.IFS(VentasMenudeo[[#This Row],[Producto]]=$A$2,VentasMenudeo[[#This Row],[Precio de Venta]]*VentasMenudeo[[#This Row],[Cantidad]]-VentasMenudeo[[#This Row],[Descuento]],VentasMenudeo[[#This Row],[Producto]]=$A$3,VentasMenudeo[[#This Row],[Precio de Venta]]*VentasMenudeo[[#This Row],[Cantidad]]-VentasMenudeo[[#This Row],[Descuento]],VentasMenudeo[[#This Row],[Producto]]=$A$4,VentasMenudeo[[#This Row],[Precio de Venta]]*VentasMenudeo[[#This Row],[Cantidad]]-VentasMenudeo[[#This Row],[Descuento]],VentasMenudeo[[#This Row],[Producto]]=$A$5,VentasMenudeo[[#This Row],[Precio de Venta]]*VentasMenudeo[[#This Row],[Cantidad]]-VentasMenudeo[[#This Row],[Descuento]]),0) -> 250 | K76: 250
A77: 2022-04-30 | B77: Julio | C77: IPLAY MAX | D77: Guava | E77: 1 | F77: $20 Descuento | H77: =_xlfn.IFNA(VLOOKUP(VentasMenudeo[[#This Row],[Promoción]],PromocionesMenudeo[[Promocion]:[Descuento]],2,0),0) -> 20 | I77: =_xlfn.IFNA(VLOOKUP(VentasMenudeo[[#This Row],[Producto]],$A$2:$B$5,2,FALSE),0) -> 270 | J77: =_xlfn.IFNA(_xlfn.IFS(VentasMenudeo[[#This Row],[Producto]]=$A$2,VentasMenudeo[[#This Row],[Precio de Venta]]*VentasMenudeo[[#This Row],[Cantidad]]-VentasMenudeo[[#This Row],[Descuento]],VentasMenudeo[[#This Row],[Producto]]=$A$3,VentasMenudeo[[#This Row],[Precio de Venta]]*VentasMenudeo[[#This Row],[Cantidad]]-VentasMenudeo[[#This Row],[Descuento]],VentasMenudeo[[#This Row],[Producto]]=$A$4,VentasMenudeo[[#This Row],[Precio de Venta]]*VentasMenudeo[[#This Row],[Cantidad]]-VentasMenudeo[[#This Row],[Descuento]],VentasMenudeo[[#This Row],[Producto]]=$A$5,VentasMenudeo[[#This Row],[Precio de Venta]]*VentasMenudeo[[#This Row],[Cantidad]]-VentasMenudeo[[#This Row],[Descuento]]),0) -> 250 | K77: 250
A78: 2022-04-30 | B78: Julio | C78: IPLAY MAX | D78: GrapeFruit berry | E78: 1 | F78: $20 Descuento | H78: =_xlfn.IFNA(VLOOKUP(VentasMenudeo[[#This Row],[Promoción]],PromocionesMenudeo[[Promocion]:[Descuento]],2,0),0) -> 20 | I78: =_xlfn.IFNA(VLOOKUP(VentasMenudeo[[#This Row],[Producto]],$A$2:$B$5,2,FALSE),0) -> 270 | J78: =_xlfn.IFNA(_xlfn.IFS(VentasMenudeo[[#This Row],[Producto]]=$A$2,VentasMenudeo[[#This Row],[Precio de Venta]]*VentasMenudeo[[#This Row],[Cantidad]]-VentasMenudeo[[#This Row],[Descuento]],VentasMenudeo[[#This Row],[Producto]]=$A$3,VentasMenudeo[[#This Row],[Precio de Venta]]*VentasMenudeo[[#This Row],[Cantidad]]-VentasMenudeo[[#This Row],[Descuento]],VentasMenudeo[[#This Row],[Producto]]=$A$4,VentasMenudeo[[#This Row],[Precio de Venta]]*VentasMenudeo[[#This Row],[Cantidad]]-VentasMenudeo[[#This Row],[Descuento]],VentasMenudeo[[#This Row],[Producto]]=$A$5,VentasMenudeo[[#This Row],[Precio de Venta]]*VentasMenudeo[[#This Row],[Cantidad]]-VentasMenudeo[[#This Row],[Descuento]]),0) -> 250 | L78: 250
A79: 2022-04-30 | B79: Julio | C79: IPLAY MAX | D79: Bluerazz | E79: 1 | F79: $20 Descuento | H79: =_xlfn.IFNA(VLOOKUP(VentasMenudeo[[#This Row],[Promoción]],PromocionesMenudeo[[Promocion]:[Descuento]],2,0),0) -> 20 | I79: =_xlfn.IFNA(VLOOKUP(VentasMenudeo[[#This Row],[Producto]],$A$2:$B$5,2,FALSE),0) -> 270 | J79: =_xlfn.IFNA(_xlfn.IFS(VentasMenudeo[[#This Row],[Producto]]=$A$2,VentasMenudeo[[#This Row],[Precio de Venta]]*VentasMenudeo[[#This Row],[Cantidad]]-VentasMenudeo[[#This Row],[Descuento]],VentasMenudeo[[#This Row],[Producto]]=$A$3,VentasMenudeo[[#This Row],[Precio de Venta]]*VentasMenudeo[[#This Row],[Cantidad]]-VentasMenudeo[[#This Row],[Descuento]],VentasMenudeo[[#This Row],[Producto]]=$A$4,VentasMenudeo[[#This Row],[Precio de Venta]]*VentasMenudeo[[#This Row],[Cantidad]]-VentasMenudeo[[#This Row],[Descuento]],VentasMenudeo[[#This Row],[Producto]]=$A$5,VentasMenudeo[[#This Row],[Precio de Venta]]*VentasMenudeo[[#This Row],[Cantidad]]-VentasMenudeo[[#This Row],[Descuento]]),0) -> 250 | L79: 250
A80: 2022-04-30 | B80: Hugo | C80: IPLAY MAX | D80: Berry Watermelon | E80: 1 | F80: $20 Descuento | H80: =_xlfn.IFNA(VLOOKUP(VentasMenudeo[[#This Row],[Promoción]],PromocionesMenudeo[[Promocion]:[Descuento]],2,0),0) -> 20 | I80: =_xlfn.IFNA(VLOOKUP(VentasMenudeo[[#This Row],[Producto]],$A$2:$B$5,2,FALSE),0) -> 270 | J80: =_xlfn.IFNA(_xlfn.IFS(VentasMenudeo[[#This Row],[Producto]]=$A$2,VentasMenudeo[[#This Row],[Precio de Venta]]*VentasMenudeo[[#This Row],[Cantidad]]-VentasMenudeo[[#This Row],[Descuento]],VentasMenudeo[[#This Row],[Producto]]=$A$3,VentasMenudeo[[#This Row],[Precio de Venta]]*VentasMenudeo[[#This Row],[Cantidad]]-VentasMenudeo[[#This Row],[Descuento]],VentasMenudeo[[#This Row],[Producto]]=$A$4,VentasMenudeo[[#This Row],[Precio de Venta]]*VentasMenudeo[[#This Row],[Cantidad]]-VentasMenudeo[[#This Row],[Descuento]],VentasMenudeo[[#This Row],[Producto]]=$A$5,VentasMenudeo[[#This Row],[Precio de Venta]]*VentasMenudeo[[#This Row],[Cantidad]]-VentasMenudeo[[#This Row],[Descuento]]),0) -> 250 | L80: 250
A81: 2022-04-30 | B81: Julio | C81: IPLAY MAX | D81: Bluerazz | E81: 1 | F81: $20 Descuento | H81: =_xlfn.IFNA(VLOOKUP(VentasMenudeo[[#This Row],[Promoción]],PromocionesMenudeo[[Promocion]:[Descuento]],2,0),0) -> 20 | I81: =_xlfn.IFNA(VLOOKUP(VentasMenudeo[[#This Row],[Producto]],$A$2:$B$5,2,FALSE),0) -> 270 | J81: =_xlfn.IFNA(_xlfn.IFS(VentasMenudeo[[#This Row],[Producto]]=$A$2,VentasMenudeo[[#This Row],[Precio de Venta]]*VentasMenudeo[[#This Row],[Cantidad]]-VentasMenudeo[[#This Row],[Descuento]],VentasMenudeo[[#This Row],[Producto]]=$A$3,VentasMenudeo[[#This Row],[Precio de Venta]]*VentasMenudeo[[#This Row],[Cantidad]]-VentasMenudeo[[#This Row],[Descuento]],VentasMenudeo[[#This Row],[Producto]]=$A$4,VentasMenudeo[[#This Row],[Precio de Venta]]*VentasMenudeo[[#This Row],[Cantidad]]-VentasMenudeo[[#This Row],[Descuento]],VentasMenudeo[[#This Row],[Producto]]=$A$5,VentasMenudeo[[#This Row],[Precio de Venta]]*VentasMenudeo[[#This Row],[Cantidad]]-VentasMenudeo[[#This Row],[Descuento]]),0) -> 250 | K81: 250
A82: 2022-05-01 | B82: Hugo | C82: IPLAY MAX | D82: Guava | E82: 1 | F82: $20 Descuento | H82: =_xlfn.IFNA(VLOOKUP(VentasMenudeo[[#This Row],[Promoción]],PromocionesMenudeo[[Promocion]:[Descuento]],2,0),0) -> 20 | I82: =_xlfn.IFNA(VLOOKUP(VentasMenudeo[[#This Row],[Producto]],$A$2:$B$5,2,FALSE),0) -> 270 | J82: =_xlfn.IFNA(_xlfn.IFS(VentasMenudeo[[#This Row],[Producto]]=$A$2,VentasMenudeo[[#This Row],[Precio de Venta]]*VentasMenudeo[[#This Row],[Cantidad]]-VentasMenudeo[[#This Row],[Descuento]],VentasMenudeo[[#This Row],[Producto]]=$A$3,VentasMenudeo[[#This Row],[Precio de Venta]]*VentasMenudeo[[#This Row],[Cantidad]]-VentasMenudeo[[#This Row],[Descuento]],VentasMenudeo[[#This Row],[Producto]]=$A$4,VentasMenudeo[[#This Row],[Precio de Venta]]*VentasMenudeo[[#This Row],[Cantidad]]-VentasMenudeo[[#This Row],[Descuento]],VentasMenudeo[[#This Row],[Producto]]=$A$5,VentasMenudeo[[#This Row],[Precio de Venta]]*VentasMenudeo[[#This Row],[Cantidad]]-VentasMenudeo[[#This Row],[Descuento]]),0) -> 250 | L82: 250
A83: 2022-05-01 | B83: Julio | C83: IPLAY MAX | D83: Grapestraw | E83: 1 | F83: $20 Descuento | H83: =_xlfn.IFNA(VLOOKUP(VentasMenudeo[[#This Row],[Promoción]],PromocionesMenudeo[[Promocion]:[Descuento]],2,0),0) -> 20 | I83: =_xlfn.IFNA(VLOOKUP(VentasMenudeo[[#This Row],[Producto]],$A$2:$B$5,2,FALSE),0) -> 270 | J83: =_xlfn.IFNA(_xlfn.IFS(VentasMenudeo[[#This Row],[Producto]]=$A$2,VentasMenudeo[[#This Row],[Precio de Venta]]*VentasMenudeo[[#This Row],[Cantidad]]-VentasMenudeo[[#This Row],[Descuento]],VentasMenudeo[[#This Row],[Producto]]=$A$3,VentasMenudeo[[#This Row],[Precio de Venta]]*VentasMenudeo[[#This Row],[Cantidad]]-VentasMenudeo[[#This Row],[Descuento]],VentasMenudeo[[#This Row],[Producto]]=$A$4,VentasMenudeo[[#This Row],[Precio de Venta]]*VentasMenudeo[[#This Row],[Cantidad]]-VentasMenudeo[[#This Row],[Descuento]],VentasMenudeo[[#This Row],[Producto]]=$A$5,VentasMenudeo[[#This Row],[Precio de Venta]]*VentasMenudeo[[#This Row],[Cantidad]]-VentasMenudeo[[#This Row],[Descuento]]),0) -> 250 | L83: 250
A84: 2022-05-01 | B84: Julio | C84: IPLAY MAX | D84: Energy ICE | E84: 1 | F84: $20 Descuento | H84: =_xlfn.IFNA(VLOOKUP(VentasMenudeo[[#This Row],[Promoción]],PromocionesMenudeo[[Promocion]:[Descuento]],2,0),0) -> 20 | I84: =_xlfn.IFNA(VLOOKUP(VentasMenudeo[[#This Row],[Producto]],$A$2:$B$5,2,FALSE),0) -> 270 | J84: =_xlfn.IFNA(_xlfn.IFS(VentasMenudeo[[#This Row],[Producto]]=$A$2,VentasMenudeo[[#This Row],[Precio de Venta]]*VentasMenudeo[[#This Row],[Cantidad]]-VentasMenudeo[[#This Row],[Descuento]],VentasMenudeo[[#This Row],[Producto]]=$A$3,VentasMenudeo[[#This Row],[Precio de Venta]]*VentasMenudeo[[#This Row],[Cantidad]]-VentasMenudeo[[#This Row],[Descuento]],VentasMenudeo[[#This Row],[Producto]]=$A$4,VentasMenudeo[[#This Row],[Precio de Venta]]*VentasMenudeo[[#This Row],[Cantidad]]-VentasMenudeo[[#This Row],[Descuento]],VentasMenudeo[[#This Row],[Producto]]=$A$5,VentasMenudeo[[#This Row],[Precio de Venta]]*VentasMenudeo[[#This Row],[Cantidad]]-VentasMenudeo[[#This Row],[Descuento]]),0) -> 250 | L84: 250
A85: 2022-05-02 | B85: Julio | C85: IPLAY MAX | D85: Cool mint | E85: 1 | F85: $20 Descuento | H85: =_xlfn.IFNA(VLOOKUP(VentasMenudeo[[#This Row],[Promoción]],PromocionesMenudeo[[Promocion]:[Descuento]],2,0),0) -> 20 | I85: =_xlfn.IFNA(VLOOKUP(VentasMenudeo[[#This Row],[Producto]],$A$2:$B$5,2,FALSE),0) -> 270 | J85: =_xlfn.IFNA(_xlfn.IFS(VentasMenudeo[[#This Row],[Producto]]=$A$2,VentasMenudeo[[#This Row],[Precio de Venta]]*VentasMenudeo[[#This Row],[Cantidad]]-VentasMenudeo[[#This Row],[Descuento]],VentasMenudeo[[#This Row],[Producto]]=$A$3,VentasMenudeo[[#This Row],[Precio de Venta]]*VentasMenudeo[[#This Row],[Cantidad]]-VentasMenudeo[[#This Row],[Descuento]],VentasMenudeo[[#This Row],[Producto]]=$A$4,VentasMenudeo[[#This Row],[Precio de Venta]]*VentasMenudeo[[#This Row],[Cantidad]]-VentasMenudeo[[#This Row],[Descuento]],VentasMenudeo[[#This Row],[Producto]]=$A$5,VentasMenudeo[[#This Row],[Precio de Venta]]*VentasMenudeo[[#This Row],[Cantidad]]-VentasMenudeo[[#This Row],[Descuento]]),0) -> 250 | L85: 250
A86: 2022-05-02 | B86: Julio | C86: IPLAY MAX | D86: Cool mint | E86: 1 | F86: $20 Descuento | H86: =_xlfn.IFNA(VLOOKUP(VentasMenudeo[[#This Row],[Promoción]],PromocionesMenudeo[[Promocion]:[Descuento]],2,0),0) -> 20 | I86: =_xlfn.IFNA(VLOOKUP(VentasMenudeo[[#This Row],[Producto]],$A$2:$B$5,2,FALSE),0) -> 270 | J86: =_xlfn.IFNA(_xlfn.IFS(VentasMenudeo[[#This Row],[Producto]]=$A$2,VentasMenudeo[[#This Row],[Precio de Venta]]*VentasMenudeo[[#This Row],[Cantidad]]-VentasMenudeo[[#This Row],[Descuento]],VentasMenudeo[[#This Row],[Producto]]=$A$3,VentasMenudeo[[#This Row],[Precio de Venta]]*VentasMenudeo[[#This Row],[Cantidad]]-VentasMenudeo[[#This Row],[Descuento]],VentasMenudeo[[#This Row],[Producto]]=$A$4,VentasMenudeo[[#This Row],[Precio de Venta]]*VentasMenudeo[[#This Row],[Cantidad]]-VentasMenudeo[[#This Row],[Descuento]],VentasMenudeo[[#This Row],[Producto]]=$A$5,VentasMenudeo[[#This Row],[Precio de Venta]]*VentasMenudeo[[#This Row],[Cantidad]]-VentasMenudeo[[#This Row],[Descuento]]),0) -> 250 | L86: 250
A87: 2022-05-02 | B87: Julio | C87: IPLAY MAX | D87: GrapeFruit berry | E87: 1 | F87: $20 Descuento | H87: =_xlfn.IFNA(VLOOKUP(VentasMenudeo[[#This Row],[Promoción]],PromocionesMenudeo[[Promocion]:[Descuento]],2,0),0) -> 20 | I87: =_xlfn.IFNA(VLOOKUP(VentasMenudeo[[#This Row],[Producto]],$A$2:$B$5,2,FALSE),0) -> 270 | J87: =_xlfn.IFNA(_xlfn.IFS(VentasMenudeo[[#This Row],[Producto]]=$A$2,VentasMenudeo[[#This Row],[Precio de Venta]]*VentasMenudeo[[#This Row],[Cantidad]]-VentasMenudeo[[#This Row],[Descuento]],VentasMenudeo[[#This Row],[Producto]]=$A$3,VentasMenudeo[[#This Row],[Precio de Venta]]*VentasMenudeo[[#This Row],[Cantidad]]-VentasMenudeo[[#This Row],[Descuento]],VentasMenudeo[[#This Row],[Producto]]=$A$4,VentasMenudeo[[#This Row],[Precio de Venta]]*VentasMenudeo[[#This Row],[Cantidad]]-VentasMenudeo[[#This Row],[Descuento]],VentasMenudeo[[#This Row],[Producto]]=$A$5,VentasMenudeo[[#This Row],[Precio de Venta]]*VentasMenudeo[[#This Row],[Cantidad]]-VentasMenudeo[[#This Row],[Descuento]]),0) -> 250 | L87: 250
A88: 2022-05-02 | B88: Julio | C88: IPLAY MAX | D88: Coconut | E88: 1 | F88: $20 Descuento | H88: =_xlfn.IFNA(VLOOKUP(VentasMenudeo[[#This Row],[Promoción]],PromocionesMenudeo[[Promocion]:[Descuento]],2,0),0) -> 20 | I88: =_xlfn.IFNA(VLOOKUP(VentasMenudeo[[#This Row],[Producto]],$A$2:$B$5,2,FALSE),0) -> 270 | J88: =_xlfn.IFNA(_xlfn.IFS(VentasMenudeo[[#This Row],[Producto]]=$A$2,VentasMenudeo[[#This Row],[Precio de Venta]]*VentasMenudeo[[#This Row],[Cantidad]]-VentasMenudeo[[#This Row],[Descuento]],VentasMenudeo[[#This Row],[Producto]]=$A$3,VentasMenudeo[[#This Row],[Precio de Venta]]*VentasMenudeo[[#This Row],[Cantidad]]-VentasMenudeo[[#This Row],[Descuento]],VentasMenudeo[[#This Row],[Producto]]=$A$4,VentasMenudeo[[#This Row],[Precio de Venta]]*VentasMenudeo[[#This Row],[Cantidad]]-VentasMenudeo[[#This Row],[Descuento]],VentasMenudeo[[#This Row],[Producto]]=$A$5,VentasMenudeo[[#This Row],[Precio de Venta]]*VentasMenudeo[[#This Row],[Cantidad]]-VentasMenudeo[[#This Row],[Descuento]]),0) -> 250 | K88: 250
A89: 2022-05-02 | B89: Julio | C89: IPLAY MAX | D89: Grapestraw | E89: 1 | F89: $20 Descuento | H89: =_xlfn.IFNA(VLOOKUP(VentasMenudeo[[#This Row],[Promoción]],PromocionesMenudeo[[Promocion]:[Descuento]],2,0),0) -> 20 | I89: =_xlfn.IFNA(VLOOKUP(VentasMenudeo[[#This Row],[Producto]],$A$2:$B$5,2,FALSE),0) -> 270 | J89: =_xlfn.IFNA(_xlfn.IFS(VentasMenudeo[[#This Row],[Producto]]=$A$2,VentasMenudeo[[#This Row],[Precio de Venta]]*VentasMenudeo[[#This Row],[Cantidad]]-VentasMenudeo[[#This Row],[Descuento]],VentasMenudeo[[#This Row],[Producto]]=$A$3,VentasMenudeo[[#This Row],[Precio de Venta]]*VentasMenudeo[[#This Row],[Cantidad]]-VentasMenudeo[[#This Row],[Descuento]],VentasMenudeo[[#This Row],[Producto]]=$A$4,VentasMenudeo[[#This Row],[Precio de Venta]]*VentasMenudeo[[#This Row],[Cantidad]]-VentasMenudeo[[#This Row],[Descuento]],VentasMenudeo[[#This Row],[Producto]]=$A$5,VentasMenudeo[[#This Row],[Precio de Venta]]*VentasMenudeo[[#This Row],[Cantidad]]-VentasMenudeo[[#This Row],[Descuento]]),0) -> 250 | L89: 250
A90: 2022-05-02 | B90: Julio | C90: IPLAY MAX | D90: Bluerazz | E90: 1 | F90: $20 Descuento | H90: =_xlfn.IFNA(VLOOKUP(VentasMenudeo[[#This Row],[Promoción]],PromocionesMenudeo[[Promocion]:[Descuento]],2,0),0) -> 20 | I90: =_xlfn.IFNA(VLOOKUP(VentasMenudeo[[#This Row],[Producto]],$A$2:$B$5,2,FALSE),0) -> 270 | J90: =_xlfn.IFNA(_xlfn.IFS(VentasMenudeo[[#This Row],[Producto]]=$A$2,VentasMenudeo[[#This Row],[Precio de Venta]]*VentasMenudeo[[#This Row],[Cantidad]]-VentasMenudeo[[#This Row],[Descuento]],VentasMenudeo[[#This Row],[Producto]]=$A$3,VentasMenudeo[[#This Row],[Precio de Venta]]*VentasMenudeo[[#This Row],[Cantidad]]-VentasMenudeo[[#This Row],[Descuento]],VentasMenudeo[[#This Row],[Producto]]=$A$4,VentasMenudeo[[#This Row],[Precio de Venta]]*VentasMenudeo[[#This Row],[Cantidad]]-VentasMenudeo[[#This Row],[Descuento]],VentasMenudeo[[#This Row],[Producto]]=$A$5,VentasMenudeo[[#This Row],[Precio de Venta]]*VentasMenudeo[[#This Row],[Cantidad]]-VentasMenudeo[[#This Row],[Descuento]]),0) -> 250 | K90: 250
A91: 2022-05-02 | B91: Hugo | C91: IPLAY MAX | D91: Cool mint | E91: 1 | F91: $20 Descuento | H91: =_xlfn.IFNA(VLOOKUP(VentasMenudeo[[#This Row],[Promoción]],PromocionesMenudeo[[Promocion]:[Descuento]],2,0),0) -> 20 | I91: =_xlfn.IFNA(VLOOKUP(VentasMenudeo[[#This Row],[Producto]],$A$2:$B$5,2,FALSE),0) -> 270 | J91: =_xlfn.IFNA(_xlfn.IFS(VentasMenudeo[[#This Row],[Producto]]=$A$2,VentasMenudeo[[#This Row],[Precio de Venta]]*VentasMenudeo[[#This Row],[Cantidad]]-VentasMenudeo[[#This Row],[Descuento]],VentasMenudeo[[#This Row],[Producto]]=$A$3,VentasMenudeo[[#This Row],[Precio de Venta]]*VentasMenudeo[[#This Row],[Cantidad]]-VentasMenudeo[[#This Row],[Descuento]],VentasMenudeo[[#This Row],[Producto]]=$A$4,VentasMenudeo[[#This Row],[Precio de Venta]]*VentasMenudeo[[#This Row],[Cantidad]]-VentasMenudeo[[#This Row],[Descuento]],VentasMenudeo[[#This Row],[Producto]]=$A$5,VentasMenudeo[[#This Row],[Precio de Venta]]*VentasMenudeo[[#This Row],[Cantidad]]-VentasMenudeo[[#This Row],[Descuento]]),0) -> 250 | L91: 250
A92: 2022-05-02 | B92: Julio | C92: IPLAY MAX | D92: Sour Apple | E92: 1 | F92: $20 Descuento | H92: =_xlfn.IFNA(VLOOKUP(VentasMenudeo[[#This Row],[Promoción]],PromocionesMenudeo[[Promocion]:[Descuento]],2,0),0) -> 20 | I92: =_xlfn.IFNA(VLOOKUP(VentasMenudeo[[#This Row],[Producto]],$A$2:$B$5,2,FALSE),0) -> 270 | J92: =_xlfn.IFNA(_xlfn.IFS(VentasMenudeo[[#This Row],[Producto]]=$A$2,VentasMenudeo[[#This Row],[Precio de Venta]]*VentasMenudeo[[#This Row],[Cantidad]]-VentasMenudeo[[#This Row],[Descuento]],VentasMenudeo[[#This Row],[Producto]]=$A$3,VentasMenudeo[[#This Row],[Precio de Venta]]*VentasMenudeo[[#This Row],[Cantidad]]-VentasMenudeo[[#This Row],[Descuento]],VentasMenudeo[[#This Row],[Producto]]=$A$4,VentasMenudeo[[#This Row],[Precio de Venta]]*VentasMenudeo[[#This Row],[Cantidad]]-VentasMenudeo[[#This Row],[Descuento]],VentasMenudeo[[#This Row],[Producto]]=$A$5,VentasMenudeo[[#This Row],[Precio de Venta]]*VentasMenudeo[[#This Row],[Cantidad]]-VentasMenudeo[[#This Row],[Descuento]]),0) -> 250 | K92: 250
A93: 2022-05-03 | B93: Julio | C93: IPLAY MAX | D93: Coconut | E93: 1 | F93: $20 Descuento | H93: =_xlfn.IFNA(VLOOKUP(VentasMenudeo[[#This Row],[Promoción]],PromocionesMenudeo[[Promocion]:[Descuento]],2,0),0) -> 20 | I93: =_xlfn.IFNA(VLOOKUP(VentasMenudeo[[#This Row],[Producto]],$A$2:$B$5,2,FALSE),0) -> 270 | J93: =_xlfn.IFNA(_xlfn.IFS(VentasMenudeo[[#This Row],[Producto]]=$A$2,VentasMenudeo[[#This Row],[Precio de Venta]]*VentasMenudeo[[#This Row],[Cantidad]]-VentasMenudeo[[#This Row],[Descuento]],VentasMenudeo[[#This Row],[Producto]]=$A$3,VentasMenudeo[[#This Row],[Precio de Venta]]*VentasMenudeo[[#This Row],[Cantidad]]-VentasMenudeo[[#This Row],[Descuento]],VentasMenudeo[[#This Row],[Producto]]=$A$4,VentasMenudeo[[#This Row],[Precio de Venta]]*VentasMenudeo[[#This Row],[Cantidad]]-VentasMenudeo[[#This Row],[Descuento]],VentasMenudeo[[#This Row],[Producto]]=$A$5,VentasMenudeo[[#This Row],[Precio de Venta]]*VentasMenudeo[[#This Row],[Cantidad]]-VentasMenudeo[[#This Row],[Descuento]]),0) -> 250 | K93: 250
A94: 2022-05-03 | B94: Julio | C94: IPLAY MAX | D94: Guava | E94: 1 | F94: $20 Descuento | H94: =_xlfn.IFNA(VLOOKUP(VentasMenudeo[[#This Row],[Promoción]],PromocionesMenudeo[[Promocion]:[Descuento]],2,0),0) -> 20 | I94: =_xlfn.IFNA(VLOOKUP(VentasMenudeo[[#This Row],[Producto]],$A$2:$B$5,2,FALSE),0) -> 270 | J94: =_xlfn.IFNA(_xlfn.IFS(VentasMenudeo[[#This Row],[Producto]]=$A$2,VentasMenudeo[[#This Row],[Precio de Venta]]*VentasMenudeo[[#This Row],[Cantidad]]-VentasMenudeo[[#This Row],[Descuento]],VentasMenudeo[[#This Row],[Producto]]=$A$3,VentasMenudeo[[#This Row],[Precio de Venta]]*VentasMenudeo[[#This Row],[Cantidad]]-VentasMenudeo[[#This Row],[Descuento]],VentasMenudeo[[#This Row],[Producto]]=$A$4,VentasMenudeo[[#This Row],[Precio de Venta]]*VentasMenudeo[[#This Row],[Cantidad]]-VentasMenudeo[[#This Row],[Descuento]],VentasMenudeo[[#This Row],[Producto]]=$A$5,VentasMenudeo[[#This Row],[Precio de Venta]]*VentasMenudeo[[#This Row],[Cantidad]]-VentasMenudeo[[#This Row],[Descuento]]),0) -> 250 | K94: 250
A95: 2022-05-03 | B95: Hugo | C95: IPLAY MAX | D95: Energy ICE | E95: 1 | F95: $20 Descuento | H95: =_xlfn.IFNA(VLOOKUP(VentasMenudeo[[#This Row],[Promoción]],PromocionesMenudeo[[Promocion]:[Descuento]],2,0),0) -> 20 | I95: =_xlfn.IFNA(VLOOKUP(VentasMenudeo[[#This Row],[Producto]],$A$2:$B$5,2,FALSE),0) -> 270 | J95: =_xlfn.IFNA(_xlfn.IFS(VentasMenudeo[[#This Row],[Producto]]=$A$2,VentasMenudeo[[#This Row],[Precio de Venta]]*VentasMenudeo[[#This Row],[Cantidad]]-VentasMenudeo[[#This Row],[Descuento]],VentasMenudeo[[#This Row],[Producto]]=$A$3,VentasMenudeo[[#This Row],[Precio de Venta]]*VentasMenudeo[[#This Row],[Cantidad]]-VentasMenudeo[[#This Row],[Descuento]],VentasMenudeo[[#This Row],[Producto]]=$A$4,VentasMenudeo[[#This Row],[Precio de Venta]]*VentasMenudeo[[#This Row],[Cantidad]]-VentasMenudeo[[#This Row],[Descuento]],VentasMenudeo[[#This Row],[Producto]]=$A$5,VentasMenudeo[[#This Row],[Precio de Venta]]*VentasMenudeo[[#This Row],[Cantidad]]-VentasMenudeo[[#This Row],[Descuento]]),0) -> 250 | L95: 250
A96: 2022-05-03 | B96: Julio | C96: IPLAY MAX | D96: Cool mint | E96: 1 | F96: $20 Descuento | H96: =_xlfn.IFNA(VLOOKUP(VentasMenudeo[[#This Row],[Promoción]],PromocionesMenudeo[[Promocion]:[Descuento]],2,0),0) -> 20 | I96: =_xlfn.IFNA(VLOOKUP(VentasMenudeo[[#This Row],[Producto]],$A$2:$B$5,2,FALSE),0) -> 270 | J96: =_xlfn.IFNA(_xlfn.IFS(VentasMenudeo[[#This Row],[Producto]]=$A$2,VentasMenudeo[[#This Row],[Precio de Venta]]*VentasMenudeo[[#This Row],[Cantidad]]-VentasMenudeo[[#This Row],[Descuento]],VentasMenudeo[[#This Row],[Producto]]=$A$3,VentasMenudeo[[#This Row],[Precio de Venta]]*VentasMenudeo[[#This Row],[Cantidad]]-VentasMenudeo[[#This Row],[Descuento]],VentasMenudeo[[#This Row],[Producto]]=$A$4,VentasMenudeo[[#This Row],[Precio de Venta]]*VentasMenudeo[[#This Row],[Cantidad]]-VentasMenudeo[[#This Row],[Descuento]],VentasMenudeo[[#This Row],[Producto]]=$A$5,VentasMenudeo[[#This Row],[Precio de Venta]]*VentasMenudeo[[#This Row],[Cantidad]]-VentasMenudeo[[#This Row],[Descuento]]),0) -> 250 | L96: 250
A97: 2022-05-03 | B97: Julio | C97: IPLAY MAX | D97: Berry Watermelon | E97: 1 | F97: $20 Descuento | H97: =_xlfn.IFNA(VLOOKUP(VentasMenudeo[[#This Row],[Promoción]],PromocionesMenudeo[[Promocion]:[Descuento]],2,0),0) -> 20 | I97: =_xlfn.IFNA(VLOOKUP(VentasMenudeo[[#This Row],[Producto]],$A$2:$B$5,2,FALSE),0) -> 270 | J97: =_xlfn.IFNA(_xlfn.IFS(VentasMenudeo[[#This Row],[Producto]]=$A$2,VentasMenudeo[[#This Row],[Precio de Venta]]*VentasMenudeo[[#This Row],[Cantidad]]-VentasMenudeo[[#This Row],[Descuento]],VentasMenudeo[[#This Row],[Producto]]=$A$3,VentasMenudeo[[#This Row],[Precio de Venta]]*VentasMenudeo[[#This Row],[Cantidad]]-VentasMenudeo[[#This Row],[Descuento]],VentasMenudeo[[#This Row],[Producto]]=$A$4,VentasMenudeo[[#This Row],[Precio de Venta]]*VentasMenudeo[[#This Row],[Cantidad]]-VentasMenudeo[[#This Row],[Descuento]],VentasMenudeo[[#This Row],[Producto]]=$A$5,VentasMenudeo[[#This Row],[Precio de Venta]]*VentasMenudeo[[#This Row],[Cantidad]]-VentasMenudeo[[#This Row],[Descuento]]),0) -> 250 | L97: 250
A98: 2022-05-03 | B98: Julio | C98: IPLAY MAX | D98: GrapeFruit berry | E98: 1 | F98: $20 Descuento | H98: =_xlfn.IFNA(VLOOKUP(VentasMenudeo[[#This Row],[Promoción]],PromocionesMenudeo[[Promocion]:[Descuento]],2,0),0) -> 20 | I98: =_xlfn.IFNA(VLOOKUP(VentasMenudeo[[#This Row],[Producto]],$A$2:$B$5,2,FALSE),0) -> 270 | J98: =_xlfn.IFNA(_xlfn.IFS(VentasMenudeo[[#This Row],[Producto]]=$A$2,VentasMenudeo[[#This Row],[Precio de Venta]]*VentasMenudeo[[#This Row],[Cantidad]]-VentasMenudeo[[#This Row],[Descuento]],VentasMenudeo[[#This Row],[Producto]]=$A$3,VentasMenudeo[[#This Row],[Precio de Venta]]*VentasMenudeo[[#This Row],[Cantidad]]-VentasMenudeo[[#This Row],[Descuento]],VentasMenudeo[[#This Row],[Producto]]=$A$4,VentasMenudeo[[#This Row],[Precio de Venta]]*VentasMenudeo[[#This Row],[Cantidad]]-VentasMenudeo[[#This Row],[Descuento]],VentasMenudeo[[#This Row],[Producto]]=$A$5,VentasMenudeo[[#This Row],[Precio de Venta]]*VentasMenudeo[[#This Row],[Cantidad]]-VentasMenudeo[[#This Row],[Descuento]]),0) -> 250 | L98: 250
A99: 2022-05-03 | B99: Julio | C99: IPLAY MAX | D99: Grapestraw | E99: 1 | F99: $20 Descuento | H99: 30 | I99: =_xlfn.IFNA(VLOOKUP(VentasMenudeo[[#This Row],[Producto]],$A$2:$B$5,2,FALSE),0) -> 270 | J99: =_xlfn.IFNA(_xlfn.IFS(VentasMenudeo[[#This Row],[Producto]]=$A$2,VentasMenudeo[[#This Row],[Precio de Venta]]*VentasMenudeo[[#This Row],[Cantidad]]-VentasMenudeo[[#This Row],[Descuento]],VentasMenudeo[[#This Row],[Producto]]=$A$3,VentasMenudeo[[#This Row],[Precio de Venta]]*VentasMenudeo[[#This Row],[Cantidad]]-VentasMenudeo[[#This Row],[Descuento]],VentasMenudeo[[#This Row],[Producto]]=$A$4,VentasMenudeo[[#This Row],[Precio de Venta]]*VentasMenudeo[[#This Row],[Cantidad]]-VentasMenudeo[[#This Row],[Descuento]],VentasMenudeo[[#This Row],[Producto]]=$A$5,VentasMenudeo[[#This Row],[Precio de Venta]]*VentasMenudeo[[#This Row],[Cantidad]]-VentasMenudeo[[#This Row],[Descuento]]),0) -> 240 | K99: 240
A100: 2022-05-03 | B100: Julio | C100: IPLAY MAX | D100: Grapestraw | E100: 1 | F100: $20 Descuento | H100: =_xlfn.IFNA(VLOOKUP(VentasMenudeo[[#This Row],[Promoción]],PromocionesMenudeo[[Promocion]:[Descuento]],2,0),0) -> 20 | I100: =_xlfn.IFNA(VLOOKUP(VentasMenudeo[[#This Row],[Producto]],$A$2:$B$5,2,FALSE),0) -> 270 | J100: =_xlfn.IFNA(_xlfn.IFS(VentasMenudeo[[#This Row],[Producto]]=$A$2,VentasMenudeo[[#This Row],[Precio de Venta]]*VentasMenudeo[[#This Row],[Cantidad]]-VentasMenudeo[[#This Row],[Descuento]],VentasMenudeo[[#This Row],[Producto]]=$A$3,VentasMenudeo[[#This Row],[Precio de Venta]]*VentasMenudeo[[#This Row],[Cantidad]]-VentasMenudeo[[#This Row],[Descuento]],VentasMenudeo[[#This Row],[Producto]]=$A$4,VentasMenudeo[[#This Row],[Precio de Venta]]*VentasMenudeo[[#This Row],[Cantidad]]-VentasMenudeo[[#This Row],[Descuento]],VentasMenudeo[[#This Row],[Producto]]=$A$5,VentasMenudeo[[#This Row],[Precio de Venta]]*VentasMenudeo[[#This Row],[Cantidad]]-VentasMenudeo[[#This Row],[Descuento]]),0) -> 250 | K100: 250
A101: 2022-05-04 | B101: Julio | C101: IPLAY MAX | D101: Guava | E101: 1 | F101: $20 Descuento | H101: =_xlfn.IFNA(VLOOKUP(VentasMenudeo[[#This Row],[Promoción]],PromocionesMenudeo[[Promocion]:[Descuento]],2,0),0) -> 20 | I101: =_xlfn.IFNA(VLOOKUP(VentasMenudeo[[#This Row],[Producto]],$A$2:$B$5,2,FALSE),0) -> 270 | J101: =_xlfn.IFNA(_xlfn.IFS(VentasMenudeo[[#This Row],[Producto]]=$A$2,VentasMenudeo[[#This Row],[Precio de Venta]]*VentasMenudeo[[#This Row],[Cantidad]]-VentasMenudeo[[#This Row],[Descuento]],VentasMenudeo[[#This Row],[Producto]]=$A$3,VentasMenudeo[[#This Row],[Precio de Venta]]*VentasMenudeo[[#This Row],[Cantidad]]-VentasMenudeo[[#This Row],[Descuento]],VentasMenudeo[[#This Row],[Producto]]=$A$4,VentasMenudeo[[#This Row],[Precio de Venta]]*VentasMenudeo[[#This Row],[Cantidad]]-VentasMenudeo[[#This Row],[Descuento]],VentasMenudeo[[#This Row],[Producto]]=$A$5,VentasMenudeo[[#This Row],[Precio de Venta]]*VentasMenudeo[[#This Row],[Cantidad]]-VentasMenudeo[[#This Row],[Descuento]]),0) -> 250 | L101: 250
A102: 2022-05-04 | B102: Julio | C102: IPLAY MAX | D102: Sour Apple | E102: 1 | F102: $20 Descuento | H102: =_xlfn.IFNA(VLOOKUP(VentasMenudeo[[#This Row],[Promoción]],PromocionesMenudeo[[Promocion]:[Descuento]],2,0),0) -> 20 | I102: =_xlfn.IFNA(VLOOKUP(VentasMenudeo[[#This Row],[Producto]],$A$2:$B$5,2,FALSE),0) -> 270 | J102: =_xlfn.IFNA(_xlfn.IFS(VentasMenudeo[[#This Row],[Producto]]=$A$2,VentasMenudeo[[#This Row],[Precio de Venta]]*VentasMenudeo[[#This Row],[Cantidad]]-VentasMenudeo[[#This Row],[Descuento]],VentasMenudeo[[#This Row],[Producto]]=$A$3,VentasMenudeo[[#This Row],[Precio de Venta]]*VentasMenudeo[[#This Row],[Cantidad]]-VentasMenudeo[[#This Row],[Descuento]],VentasMenudeo[[#This Row],[Producto]]=$A$4,VentasMenudeo[[#This Row],[Precio de Venta]]*VentasMenudeo[[#This Row],[Cantidad]]-VentasMenudeo[[#This Row],[Descuento]],VentasMenudeo[[#This Row],[Producto]]=$A$5,VentasMenudeo[[#This Row],[Precio de Venta]]*VentasMenudeo[[#This Row],[Cantidad]]-VentasMenudeo[[#This Row],[Descuento]]),0) -> 250 | L102: 250
A103: 2022-05-04 | B103: Hugo | C103: IPLAY MAX | D103: Sour Apple | E103: 1 | F103: $20 Descuento | H103: =_xlfn.IFNA(VLOOKUP(VentasMenudeo[[#This Row],[Promoción]],PromocionesMenudeo[[Promocion]:[Descuento]],2,0),0) -> 20 | I103: =_xlfn.IFNA(VLOOKUP(VentasMenudeo[[#This Row],[Producto]],$A$2:$B$5,2,FALSE),0) -> 270 | J103: =_xlfn.IFNA(_xlfn.IFS(VentasMenudeo[[#This Row],[Producto]]=$A$2,VentasMenudeo[[#This Row],[Precio de Venta]]*VentasMenudeo[[#This Row],[Cantidad]]-VentasMenudeo[[#This Row],[Descuento]],VentasMenudeo[[#This Row],[Producto]]=$A$3,VentasMenudeo[[#This Row],[Precio de Venta]]*VentasMenudeo[[#This Row],[Cantidad]]-VentasMenudeo[[#This Row],[Descuento]],VentasMenudeo[[#This Row],[Producto]]=$A$4,VentasMenudeo[[#This Row],[Precio de Venta]]*VentasMenudeo[[#This Row],[Cantidad]]-VentasMenudeo[[#This Row],[Descuento]],VentasMenudeo[[#This Row],[Producto]]=$A$5,VentasMenudeo[[#This Row],[Precio de Venta]]*VentasMenudeo[[#This Row],[Cantidad]]-VentasMenudeo[[#This Row],[Descuento]]),0) -> 250 | K103: 250
A104: 2022-05-04 | B104: Julio | C104: IPLAY MAX | D104: GrapeFruit berry | E104: 1 | F104: $20 Descuento | H104: =_xlfn.IFNA(VLOOKUP(VentasMenudeo[[#This Row],[Promoción]],PromocionesMenudeo[[Promocion]:[Descuento]],2,0),0) -> 20 | I104: =_xlfn.IFNA(VLOOKUP(VentasMenudeo[[#This Row],[Producto]],$A$2:$B$5,2,FALSE),0) -> 270 | J104: =_xlfn.IFNA(_xlfn.IFS(VentasMenudeo[[#This Row],[Producto]]=$A$2,VentasMenudeo[[#This Row],[Precio de Venta]]*VentasMenudeo[[#This Row],[Cantidad]]-VentasMenudeo[[#This Row],[Descuento]],VentasMenudeo[[#This Row],[Producto]]=$A$3,VentasMenudeo[[#This Row],[Precio de Venta]]*VentasMenudeo[[#This Row],[Cantidad]]-VentasMenudeo[[#This Row],[Descuento]],VentasMenudeo[[#This Row],[Producto]]=$A$4,VentasMenudeo[[#This Row],[Precio de Venta]]*VentasMenudeo[[#This Row],[Cantidad]]-VentasMenudeo[[#This Row],[Descuento]],VentasMenudeo[[#This Row],[Producto]]=$A$5,VentasMenudeo[[#This Row],[Precio de Venta]]*VentasMenudeo[[#This Row],[Cantidad]]-VentasMenudeo[[#This Row],[Descuento]]),0) -> 250 | K104: 250
A105: 2022-05-04 | B105: Julio | C105: IPLAY MAX | D105: GrapeFruit berry | E105: 1 | F105: $20 Descuento | H105: =_xlfn.IFNA(VLOOKUP(VentasMenudeo[[#This Row],[Promoción]],PromocionesMenudeo[[Promocion]:[Descuento]],2,0),0) -> 20 | I105: =_xlfn.IFNA(VLOOKUP(VentasMenudeo[[#This Row],[Producto]],$A$2:$B$5,2,FALSE),0) -> 270 | J105: =_xlfn.IFNA(_xlfn.IFS(VentasMenudeo[[#This Row],[Producto]]=$A$2,VentasMenudeo[[#This Row],[Precio de Venta]]*VentasMenudeo[[#This Row],[Cantidad]]-VentasMenudeo[[#This Row],[Descuento]],VentasMenudeo[[#This Row],[Producto]]=$A$3,VentasMenudeo[[#This Row],[Precio de Venta]]*VentasMenudeo[[#This Row],[Cantidad]]-VentasMenudeo[[#This Row],[Descuento]],VentasMenudeo[[#This Row],[Producto]]=$A$4,VentasMenudeo[[#This Row],[Precio de Venta]]*VentasMenudeo[[#This Row],[Cantidad]]-VentasMenudeo[[#This Row],[Descuento]],VentasMenudeo[[#This Row],[Producto]]=$A$5,VentasMenudeo[[#This Row],[Precio de Venta]]*VentasMenudeo[[#This Row],[Cantidad]]-VentasMenudeo[[#This Row],[Descuento]]),0) -> 250 | K105: 250
A106: 2022-05-04 | B106: Hugo | C106: IPLAY MAX | D106: Strawberry Lychee | E106: 1 | F106: $20 Descuento | H106: =_xlfn.IFNA(VLOOKUP(VentasMenudeo[[#This Row],[Promoción]],PromocionesMenudeo[[Promocion]:[Descuento]],2,0),0) -> 20 | I106: =_xlfn.IFNA(VLOOKUP(VentasMenudeo[[#This Row],[Producto]],$A$2:$B$5,2,FALSE),0) -> 270 | J106: =_xlfn.IFNA(_xlfn.IFS(VentasMenudeo[[#This Row],[Producto]]=$A$2,VentasMenudeo[[#This Row],[Precio de Venta]]*VentasMenudeo[[#This Row],[Cantidad]]-VentasMenudeo[[#This Row],[Descuento]],VentasMenudeo[[#This Row],[Producto]]=$A$3,VentasMenudeo[[#This Row],[Precio de Venta]]*VentasMenudeo[[#This Row],[Cantidad]]-VentasMenudeo[[#This Row],[Descuento]],VentasMenudeo[[#This Row],[Producto]]=$A$4,VentasMenudeo[[#This Row],[Precio de Venta]]*VentasMenudeo[[#This Row],[Cantidad]]-VentasMenudeo[[#This Row],[Descuento]],VentasMenudeo[[#This Row],[Producto]]=$A$5,VentasMenudeo[[#This Row],[Precio de Venta]]*VentasMenudeo[[#This Row],[Cantidad]]-VentasMenudeo[[#This Row],[Descuento]]),0) -> 250 | K106: 250
A107: 2022-05-05 | B107: Hugo | C107: IPLAY MAX | D107: GrapeFruit berry | E107: 1 | F107: $20 Descuento | H107: =_xlfn.IFNA(VLOOKUP(VentasMenudeo[[#This Row],[Promoción]],PromocionesMenudeo[[Promocion]:[Descuento]],2,0),0) -> 20 | I107: =_xlfn.IFNA(VLOOKUP(VentasMenudeo[[#This Row],[Producto]],$A$2:$B$5,2,FALSE),0) -> 270 | J107: =_xlfn.IFNA(_xlfn.IFS(VentasMenudeo[[#This Row],[Producto]]=$A$2,VentasMenudeo[[#This Row],[Precio de Venta]]*VentasMenudeo[[#This Row],[Cantidad]]-VentasMenudeo[[#This Row],[Descuento]],VentasMenudeo[[#This Row],[Producto]]=$A$3,VentasMenudeo[[#This Row],[Precio de Venta]]*VentasMenudeo[[#This Row],[Cantidad]]-VentasMenudeo[[#This Row],[Descuento]],VentasMenudeo[[#This Row],[Producto]]=$A$4,VentasMenudeo[[#This Row],[Precio de Venta]]*VentasMenudeo[[#This Row],[Cantidad]]-VentasMenudeo[[#This Row],[Descuento]],VentasMenudeo[[#This Row],[Producto]]=$A$5,VentasMenudeo[[#This Row],[Precio de Venta]]*VentasMenudeo[[#This Row],[Cantidad]]-VentasMenudeo[[#This Row],[Descuento]]),0) -> 250 | L107: 250
A108: 2022-05-06 | B108: Julio | C108: IPLAY MAX | D108: Cocumber Lemonade | E108: 1 | F108: $20 Descuento | H108: =_xlfn.IFNA(VLOOKUP(VentasMenudeo[[#This Row],[Promoción]],PromocionesMenudeo[[Promocion]:[Descuento]],2,0),0) -> 20 | I108: =_xlfn.IFNA(VLOOKUP(VentasMenudeo[[#This Row],[Producto]],$A$2:$B$5,2,FALSE),0) -> 270 | J108: =_xlfn.IFNA(_xlfn.IFS(VentasMenudeo[[#This Row],[Producto]]=$A$2,VentasMenudeo[[#This Row],[Precio de Venta]]*VentasMenudeo[[#This Row],[Cantidad]]-VentasMenudeo[[#This Row],[Descuento]],VentasMenudeo[[#This Row],[Producto]]=$A$3,VentasMenudeo[[#This Row],[Precio de Venta]]*VentasMenudeo[[#This Row],[Cantidad]]-VentasMenudeo[[#This Row],[Descuento]],VentasMenudeo[[#This Row],[Producto]]=$A$4,VentasMenudeo[[#This Row],[Precio de Venta]]*VentasMenudeo[[#This Row],[Cantidad]]-VentasMenudeo[[#This Row],[Descuento]],VentasMenudeo[[#This Row],[Producto]]=$A$5,VentasMenudeo[[#This Row],[Precio de Venta]]*VentasMenudeo[[#This Row],[Cantidad]]-VentasMenudeo[[#This Row],[Descuento]]),0) -> 250 | K108: 250
A109: 2022-05-06 | B109: Julio | C109: IPLAY MAX | D109: Grapestraw | E109: 1 | F109: $20 Descuento | H109: =_xlfn.IFNA(VLOOKUP(VentasMenudeo[[#This Row],[Promoción]],PromocionesMenudeo[[Promocion]:[Descuento]],2,0),0) -> 20 | I109: =_xlfn.IFNA(VLOOKUP(VentasMenudeo[[#This Row],[Producto]],$A$2:$B$5,2,FALSE),0) -> 270 | J109: =_xlfn.IFNA(_xlfn.IFS(VentasMenudeo[[#This Row],[Producto]]=$A$2,VentasMenudeo[[#This Row],[Precio de Venta]]*VentasMenudeo[[#This Row],[Cantidad]]-VentasMenudeo[[#This Row],[Descuento]],VentasMenudeo[[#This Row],[Producto]]=$A$3,VentasMenudeo[[#This Row],[Precio de Venta]]*VentasMenudeo[[#This Row],[Cantidad]]-VentasMenudeo[[#This Row],[Descuento]],VentasMenudeo[[#This Row],[Producto]]=$A$4,VentasMenudeo[[#This Row],[Precio de Venta]]*VentasMenudeo[[#This Row],[Cantidad]]-VentasMenudeo[[#This Row],[Descuento]],VentasMenudeo[[#This Row],[Producto]]=$A$5,VentasMenudeo[[#This Row],[Precio de Venta]]*VentasMenudeo[[#This Row],[Cantidad]]-VentasMenudeo[[#This Row],[Descuento]]),0) -> 250 | K109: 250
A110: 2022-05-06 | B110: Julio | C110: IPLAY MAX | D110: Strawberry Lychee | E110: 1 | F110: $20 Descuento | H110: =_xlfn.IFNA(VLOOKUP(VentasMenudeo[[#This Row],[Promoción]],PromocionesMenudeo[[Promocion]:[Descuento]],2,0),0) -> 20 | I110: =_xlfn.IFNA(VLOOKUP(VentasMenudeo[[#This Row],[Producto]],$A$2:$B$5,2,FALSE),0) -> 270 | J110: =_xlfn.IFNA(_xlfn.IFS(VentasMenudeo[[#This Row],[Producto]]=$A$2,VentasMenudeo[[#This Row],[Precio de Venta]]*VentasMenudeo[[#This Row],[Cantidad]]-VentasMenudeo[[#This Row],[Descuento]],VentasMenudeo[[#This Row],[Producto]]=$A$3,VentasMenudeo[[#This Row],[Precio de Venta]]*VentasMenudeo[[#This Row],[Cantidad]]-VentasMenudeo[[#This Row],[Descuento]],VentasMenudeo[[#This Row],[Producto]]=$A$4,VentasMenudeo[[#This Row],[Precio de Venta]]*VentasMenudeo[[#This Row],[Cantidad]]-VentasMenudeo[[#This Row],[Descuento]],VentasMenudeo[[#This Row],[Producto]]=$A$5,VentasMenudeo[[#This Row],[Precio de Venta]]*VentasMenudeo[[#This Row],[Cantidad]]-VentasMenudeo[[#This Row],[Descuento]]),0) -> 250 | L110: 250
A111: 2022-05-06 | B111: Hugo | C111: IPLAY MAX | D111: GrapeFruit berry | E111: 1 | F111: $20 Descuento | H111: =_xlfn.IFNA(VLOOKUP(VentasMenudeo[[#This Row],[Promoción]],PromocionesMenudeo[[Promocion]:[Descuento]],2,0),0) -> 20 | I111: =_xlfn.IFNA(VLOOKUP(VentasMenudeo[[#This Row],[Producto]],$A$2:$B$5,2,FALSE),0) -> 270 | J111: =_xlfn.IFNA(_xlfn.IFS(VentasMenudeo[[#This Row],[Producto]]=$A$2,VentasMenudeo[[#This Row],[Precio de Venta]]*VentasMenudeo[[#This Row],[Cantidad]]-VentasMenudeo[[#This Row],[Descuento]],VentasMenudeo[[#This Row],[Producto]]=$A$3,VentasMenudeo[[#This Row],[Precio de Venta]]*VentasMenudeo[[#This Row],[Cantidad]]-VentasMenudeo[[#This Row],[Descuento]],VentasMenudeo[[#This Row],[Producto]]=$A$4,VentasMenudeo[[#This Row],[Precio de Venta]]*VentasMenudeo[[#This Row],[Cantidad]]-VentasMenudeo[[#This Row],[Descuento]],VentasMenudeo[[#This Row],[Producto]]=$A$5,VentasMenudeo[[#This Row],[Precio de Venta]]*VentasMenudeo[[#This Row],[Cantidad]]-VentasMenudeo[[#This Row],[Descuento]]),0) -> 250 | K111: 250
A112: 2022-05-06 | B112: Julio | C112: IPLAY MAX | D112: Strawberry Lychee | E112: 1 | F112: $20 Descuento | H112: =_xlfn.IFNA(VLOOKUP(VentasMenudeo[[#This Row],[Promoción]],PromocionesMenudeo[[Promocion]:[Descuento]],2,0),0) -> 20 | I112: =_xlfn.IFNA(VLOOKUP(VentasMenudeo[[#This Row],[Producto]],$A$2:$B$5,2,FALSE),0) -> 270 | J112: =_xlfn.IFNA(_xlfn.IFS(VentasMenudeo[[#This Row],[Producto]]=$A$2,VentasMenudeo[[#This Row],[Precio de Venta]]*VentasMenudeo[[#This Row],[Cantidad]]-VentasMenudeo[[#This Row],[Descuento]],VentasMenudeo[[#This Row],[Producto]]=$A$3,VentasMenudeo[[#This Row],[Precio de Venta]]*VentasMenudeo[[#This Row],[Cantidad]]-VentasMenudeo[[#This Row],[Descuento]],VentasMenudeo[[#This Row],[Producto]]=$A$4,VentasMenudeo[[#This Row],[Precio de Venta]]*VentasMenudeo[[#This Row],[Cantidad]]-VentasMenudeo[[#This Row],[Descuento]],VentasMenudeo[[#This Row],[Producto]]=$A$5,VentasMenudeo[[#This Row],[Precio de Venta]]*VentasMenudeo[[#This Row],[Cantidad]]-VentasMenudeo[[#This Row],[Descuento]]),0) -> 250 | K112: 250
A113: 2022-05-06 | B113: Julio | C113: IPLAY MAX | D113: Berry Watermelon | E113: 1 | F113: $20 Descuento | H113: =_xlfn.IFNA(VLOOKUP(VentasMenudeo[[#This Row],[Promoción]],PromocionesMenudeo[[Promocion]:[Descuento]],2,0),0) -> 20 | I113: =_xlfn.IFNA(VLOOKUP(VentasMenudeo[[#This Row],[Producto]],$A$2:$B$5,2,FALSE),0) -> 270 | J113: =_xlfn.IFNA(_xlfn.IFS(VentasMenudeo[[#This Row],[Producto]]=$A$2,VentasMenudeo[[#This Row],[Precio de Venta]]*VentasMenudeo[[#This Row],[Cantidad]]-VentasMenudeo[[#This Row],[Descuento]],VentasMenudeo[[#This Row],[Producto]]=$A$3,VentasMenudeo[[#This Row],[Precio de Venta]]*VentasMenudeo[[#This Row],[Cantidad]]-VentasMenudeo[[#This Row],[Descuento]],VentasMenudeo[[#This Row],[Producto]]=$A$4,VentasMenudeo[[#This Row],[Precio de Venta]]*VentasMenudeo[[#This Row],[Cantidad]]-VentasMenudeo[[#This Row],[Descuento]],VentasMenudeo[[#This Row],[Producto]]=$A$5,VentasMenudeo[[#This Row],[Precio de Venta]]*VentasMenudeo[[#This Row],[Cantidad]]-VentasMenudeo[[#This Row],[Descuento]]),0) -> 250 | K113: 250
A114: 2022-05-06 | B114: Julio | C114: IPLAY MAX | D114: Energy ICE | E114: 1 | F114: $20 Descuento | H114: =_xlfn.IFNA(VLOOKUP(VentasMenudeo[[#This Row],[Promoción]],PromocionesMenudeo[[Promocion]:[Descuento]],2,0),0) -> 20 | I114: =_xlfn.IFNA(VLOOKUP(VentasMenudeo[[#This Row],[Producto]],$A$2:$B$5,2,FALSE),0) -> 270 | J114: =_xlfn.IFNA(_xlfn.IFS(VentasMenudeo[[#This Row],[Producto]]=$A$2,VentasMenudeo[[#This Row],[Precio de Venta]]*VentasMenudeo[[#This Row],[Cantidad]]-VentasMenudeo[[#This Row],[Descuento]],VentasMenudeo[[#This Row],[Producto]]=$A$3,VentasMenudeo[[#This Row],[Precio de Venta]]*VentasMenudeo[[#This Row],[Cantidad]]-VentasMenudeo[[#This Row],[Descuento]],VentasMenudeo[[#This Row],[Producto]]=$A$4,VentasMenudeo[[#This Row],[Precio de Venta]]*VentasMenudeo[[#This Row],[Cantidad]]-VentasMenudeo[[#This Row],[Descuento]],VentasMenudeo[[#This Row],[Producto]]=$A$5,VentasMenudeo[[#This Row],[Precio de Venta]]*VentasMenudeo[[#This Row],[Cantidad]]-VentasMenudeo[[#This Row],[Descuento]]),0) -> 250 | K114: 250
A115: 2022-05-06 | B115: Julio | C115: IPLAY MAX | D115: Lemon cookies | E115: 1 | F115: $20 Descuento | H115: =_xlfn.IFNA(VLOOKUP(VentasMenudeo[[#This Row],[Promoción]],PromocionesMenudeo[[Promocion]:[Descuento]],2,0),0) -> 20 | I115: =_xlfn.IFNA(VLOOKUP(VentasMenudeo[[#This Row],[Producto]],$A$2:$B$5,2,FALSE),0) -> 270 | J115: =_xlfn.IFNA(_xlfn.IFS(VentasMenudeo[[#This Row],[Producto]]=$A$2,VentasMenudeo[[#This Row],[Precio de Venta]]*VentasMenudeo[[#This Row],[Cantidad]]-VentasMenudeo[[#This Row],[Descuento]],VentasMenudeo[[#This Row],[Producto]]=$A$3,VentasMenudeo[[#This Row],[Precio de Venta]]*VentasMenudeo[[#This Row],[Cantidad]]-VentasMenudeo[[#This Row],[Descuento]],VentasMenudeo[[#This Row],[Producto]]=$A$4,VentasMenudeo[[#This Row],[Precio de Venta]]*VentasMenudeo[[#This Row],[Cantidad]]-VentasMenudeo[[#This Row],[Descuento]],VentasMenudeo[[#This Row],[Producto]]=$A$5,VentasMenudeo[[#This Row],[Precio de Venta]]*VentasMenudeo[[#This Row],[Cantidad]]-VentasMenudeo[[#This Row],[Descuento]]),0) -> 250 | K115: 250
A116: 2022-05-06 | B116: Hugo | C116: IPLAY MAX | D116: GrapeFruit berry | E116: 1 | F116: $20 Descuento | H116: =_xlfn.IFNA(VLOOKUP(VentasMenudeo[[#This Row],[Promoción]],PromocionesMenudeo[[Promocion]:[Descuento]],2,0),0) -> 20 | I116: =_xlfn.IFNA(VLOOKUP(VentasMenudeo[[#This Row],[Producto]],$A$2:$B$5,2,FALSE),0) -> 270 | J116: =_xlfn.IFNA(_xlfn.IFS(VentasMenudeo[[#This Row],[Producto]]=$A$2,VentasMenudeo[[#This Row],[Precio de Venta]]*VentasMenudeo[[#This Row],[Cantidad]]-VentasMenudeo[[#This Row],[Descuento]],VentasMenudeo[[#This Row],[Producto]]=$A$3,VentasMenudeo[[#This Row],[Precio de Venta]]*VentasMenudeo[[#This Row],[Cantidad]]-VentasMenudeo[[#This Row],[Descuento]],VentasMenudeo[[#This Row],[Producto]]=$A$4,VentasMenudeo[[#This Row],[Precio de Venta]]*VentasMenudeo[[#This Row],[Cantidad]]-VentasMenudeo[[#This Row],[Descuento]],VentasMenudeo[[#This Row],[Producto]]=$A$5,VentasMenudeo[[#This Row],[Precio de Venta]]*VentasMenudeo[[#This Row],[Cantidad]]-VentasMenudeo[[#This Row],[Descuento]]),0) -> 250 | L116: 250
A117: 2022-05-06 | B117: Julio | C117: IPLAY MAX | D117: Berry Watermelon | E117: 1 | F117: $20 Descuento | H117: 30 | I117: =_xlfn.IFNA(VLOOKUP(VentasMenudeo[[#This Row],[Producto]],$A$2:$B$5,2,FALSE),0) -> 270 | J117: =_xlfn.IFNA(_xlfn.IFS(VentasMenudeo[[#This Row],[Producto]]=$A$2,VentasMenudeo[[#This Row],[Precio de Venta]]*VentasMenudeo[[#This Row],[Cantidad]]-VentasMenudeo[[#This Row],[Descuento]],VentasMenudeo[[#This Row],[Producto]]=$A$3,VentasMenudeo[[#This Row],[Precio de Venta]]*VentasMenudeo[[#This Row],[Cantidad]]-VentasMenudeo[[#This Row],[Descuento]],VentasMenudeo[[#This Row],[Producto]]=$A$4,VentasMenudeo[[#This Row],[Precio de Venta]]*VentasMenudeo[[#This Row],[Cantidad]]-VentasMenudeo[[#This Row],[Descuento]],VentasMenudeo[[#This Row],[Producto]]=$A$5,VentasMenudeo[[#This Row],[Precio de Venta]]*VentasMenudeo[[#This Row],[Cantidad]]-VentasMenudeo[[#This Row],[Descuento]]),0) -> 240 | K117: 240
A118: 2022-05-07 | B118: Hugo | C118: IPLAY MAX | D118: Energy ICE | E118: 1 | F118: $20 Descuento | H118: =_xlfn.IFNA(VLOOKUP(VentasMenudeo[[#This Row],[Promoción]],PromocionesMenudeo[[Promocion]:[Descuento]],2,0),0) -> 20 | I118: =_xlfn.IFNA(VLOOKUP(VentasMenudeo[[#This Row],[Producto]],$A$2:$B$5,2,FALSE),0) -> 270 | J118: =_xlfn.IFNA(_xlfn.IFS(VentasMenudeo[[#This Row],[Producto]]=$A$2,VentasMenudeo[[#This Row],[Precio de Venta]]*VentasMenudeo[[#This Row],[Cantidad]]-VentasMenudeo[[#This Row],[Descuento]],VentasMenudeo[[#This Row],[Producto]]=$A$3,VentasMenudeo[[#This Row],[Precio de Venta]]*VentasMenudeo[[#This Row],[Cantidad]]-VentasMenudeo[[#This Row],[Descuento]],VentasMenudeo[[#This Row],[Producto]]=$A$4,VentasMenudeo[[#This Row],[Precio de Venta]]*VentasMenudeo[[#This Row],[Cantidad]]-VentasMenudeo[[#This Row],[Descuento]],VentasMenudeo[[#This Row],[Producto]]=$A$5,VentasMenudeo[[#This Row],[Precio de Venta]]*VentasMenudeo[[#This Row],[Cantidad]]-VentasMenudeo[[#This Row],[Descuento]]),0) -> 250 | K118: 250
A119: 2022-05-07 | B119: Julio | C119: IPLAY MAX | D119: Energy ICE | E119: 1 | F119: $20 Descuento | H119: =_xlfn.IFNA(VLOOKUP(VentasMenudeo[[#This Row],[Promoción]],PromocionesMenudeo[[Promocion]:[Descuento]],2,0),0) -> 20 | I119: =_xlfn.IFNA(VLOOKUP(VentasMenudeo[[#This Row],[Producto]],$A$2:$B$5,2,FALSE),0) -> 270 | J119: =_xlfn.IFNA(_xlfn.IFS(VentasMenudeo[[#This Row],[Producto]]=$A$2,VentasMenudeo[[#This Row],[Precio de Venta]]*VentasMenudeo[[#This Row],[Cantidad]]-VentasMenudeo[[#This Row],[Descuento]],VentasMenudeo[[#This Row],[Producto]]=$A$3,VentasMenudeo[[#This Row],[Precio de Venta]]*VentasMenudeo[[#This Row],[Cantidad]]-VentasMenudeo[[#This Row],[Descuento]],VentasMenudeo[[#This Row],[Producto]]=$A$4,VentasMenudeo[[#This Row],[Precio de Venta]]*VentasMenudeo[[#This Row],[Cantidad]]-VentasMenudeo[[#This Row],[Descuento]],VentasMenudeo[[#This Row],[Producto]]=$A$5,VentasMenudeo[[#This Row],[Precio de Venta]]*VentasMenudeo[[#This Row],[Cantidad]]-VentasMenudeo[[#This Row],[Descuento]]),0) -> 250 | K119: 250
A120: 2022-05-08 | B120: Julio | C120: IPLAY MAX | D120: Berry Watermelon | E120: 1 | F120: $20 Descuento | H120: =_xlfn.IFNA(VLOOKUP(VentasMenudeo[[#This Row],[Promoción]],PromocionesMenudeo[[Promocion]:[Descuento]],2,0),0) -> 20 | I120: =_xlfn.IFNA(VLOOKUP(VentasMenudeo[[#This Row],[Producto]],$A$2:$B$5,2,FALSE),0) -> 270 | J120: =_xlfn.IFNA(_xlfn.IFS(VentasMenudeo[[#This Row],[Producto]]=$A$2,VentasMenudeo[[#This Row],[Precio de Venta]]*VentasMenudeo[[#This Row],[Cantidad]]-VentasMenudeo[[#This Row],[Descuento]],VentasMenudeo[[#This Row],[Producto]]=$A$3,VentasMenudeo[[#This Row],[Precio de Venta]]*VentasMenudeo[[#This Row],[Cantidad]]-VentasMenudeo[[#This Row],[Descuento]],VentasMenudeo[[#This Row],[Producto]]=$A$4,VentasMenudeo[[#This Row],[Precio de Venta]]*VentasMenudeo[[#This Row],[Cantidad]]-VentasMenudeo[[#This Row],[Descuento]],VentasMenudeo[[#This Row],[Producto]]=$A$5,VentasMenudeo[[#This Row],[Precio de Venta]]*VentasMenudeo[[#This Row],[Cantidad]]-VentasMenudeo[[#This Row],[Descuento]]),0) -> 250 | K120: 250
A121: 2022-05-08 | B121: Julio | C121: IPLAY MAX | D121: Strawberry Lychee | E121: 1 | F121: $20 Descuento | H121: =_xlfn.IFNA(VLOOKUP(VentasMenudeo[[#This Row],[Promoción]],PromocionesMenudeo[[Promocion]:[Descuento]],2,0),0) -> 20 | I121: =_xlfn.IFNA(VLOOKUP(VentasMenudeo[[#This Row],[Producto]],$A$2:$B$5,2,FALSE),0) -> 270 | J121: =_xlfn.IFNA(_xlfn.IFS(VentasMenudeo[[#This Row],[Producto]]=$A$2,VentasMenudeo[[#This Row],[Precio de Venta]]*VentasMenudeo[[#This Row],[Cantidad]]-VentasMenudeo[[#This Row],[Descuento]],VentasMenudeo[[#This Row],[Producto]]=$A$3,VentasMenudeo[[#This Row],[Precio de Venta]]*VentasMenudeo[[#This Row],[Cantidad]]-VentasMenudeo[[#This Row],[Descuento]],VentasMenudeo[[#This Row],[Producto]]=$A$4,VentasMenudeo[[#This Row],[Precio de Venta]]*VentasMenudeo[[#This Row],[Cantidad]]-VentasMenudeo[[#This Row],[Descuento]],VentasMenudeo[[#This Row],[Producto]]=$A$5,VentasMenudeo[[#This Row],[Precio de Venta]]*VentasMenudeo[[#This Row],[Cantidad]]-VentasMenudeo[[#This Row],[Descuento]]),0) -> 250 | K121: 250
A122: 2022-05-08 | B122: Julio | C122: IPLAY MAX | D122: Sour Apple | E122: 1 | F122: $20 Descuento | H122: =_xlfn.IFNA(VLOOKUP(VentasMenudeo[[#This Row],[Promoción]],PromocionesMenudeo[[Promocion]:[Descuento]],2,0),0) -> 20 | I122: =_xlfn.IFNA(VLOOKUP(VentasMenudeo[[#This Row],[Producto]],$A$2:$B$5,2,FALSE),0) -> 270 | J122: =_xlfn.IFNA(_xlfn.IFS(VentasMenudeo[[#This Row],[Producto]]=$A$2,VentasMenudeo[[#This Row],[Precio de Venta]]*VentasMenudeo[[#This Row],[Cantidad]]-VentasMenudeo[[#This Row],[Descuento]],VentasMenudeo[[#This Row],[Producto]]=$A$3,VentasMenudeo[[#This Row],[Precio de Venta]]*VentasMenudeo[[#This Row],[Cantidad]]-VentasMenudeo[[#This Row],[Descuento]],VentasMenudeo[[#This Row],[Producto]]=$A$4,VentasMenudeo[[#This Row],[Precio de Venta]]*VentasMenudeo[[#This Row],[Cantidad]]-VentasMenudeo[[#This Row],[Descuento]],VentasMenudeo[[#This Row],[Producto]]=$A$5,VentasMenudeo[[#This Row],[Precio de Venta]]*VentasMenudeo[[#This Row],[Cantidad]]-VentasMenudeo[[#This Row],[Descuento]]),0) -> 250 | K122: 250
A123: 2022-05-08 | B123: Julio | C123: IPLAY MAX | D123: Berry Watermelon | E123: 1 | F123: $20 Descuento | H123: =_xlfn.IFNA(VLOOKUP(VentasMenudeo[[#This Row],[Promoción]],PromocionesMenudeo[[Promocion]:[Descuento]],2,0),0) -> 20 | I123: =_xlfn.IFNA(VLOOKUP(VentasMenudeo[[#This Row],[Producto]],$A$2:$B$5,2,FALSE),0) -> 270 | J123: =_xlfn.IFNA(_xlfn.IFS(VentasMenudeo[[#This Row],[Producto]]=$A$2,VentasMenudeo[[#This Row],[Precio de Venta]]*VentasMenudeo[[#This Row],[Cantidad]]-VentasMenudeo[[#This Row],[Descuento]],VentasMenudeo[[#This Row],[Producto]]=$A$3,VentasMenudeo[[#This Row],[Precio de Venta]]*VentasMenudeo[[#This Row],[Cantidad]]-VentasMenudeo[[#This Row],[Descuento]],VentasMenudeo[[#This Row],[Producto]]=$A$4,VentasMenudeo[[#This Row],[Precio de Venta]]*VentasMenudeo[[#This Row],[Cantidad]]-VentasMenudeo[[#This Row],[Descuento]],VentasMenudeo[[#This Row],[Producto]]=$A$5,VentasMenudeo[[#This Row],[Precio de Venta]]*VentasMenudeo[[#This Row],[Cantidad]]-VentasMenudeo[[#This Row],[Descuento]]),0) -> 250 | L123: 250
A124: 2022-05-09 | B124: Julio | C124: IPLAY MAX | D124: Grapestraw | E124: 1 | F124: $20 Descuento | H124: =_xlfn.IFNA(VLOOKUP(VentasMenudeo[[#This Row],[Promoción]],PromocionesMenudeo[[Promocion]:[Descuento]],2,0),0) -> 20 | I124: =_xlfn.IFNA(VLOOKUP(VentasMenudeo[[#This Row],[Producto]],$A$2:$B$5,2,FALSE),0) -> 270 | J124: =_xlfn.IFNA(_xlfn.IFS(VentasMenudeo[[#This Row],[Producto]]=$A$2,VentasMenudeo[[#This Row],[Precio de Venta]]*VentasMenudeo[[#This Row],[Cantidad]]-VentasMenudeo[[#This Row],[Descuento]],VentasMenudeo[[#This Row],[Producto]]=$A$3,VentasMenudeo[[#This Row],[Precio de Venta]]*VentasMenudeo[[#This Row],[Cantidad]]-VentasMenudeo[[#This Row],[Descuento]],VentasMenudeo[[#This Row],[Producto]]=$A$4,VentasMenudeo[[#This Row],[Precio de Venta]]*VentasMenudeo[[#This Row],[Cantidad]]-VentasMenudeo[[#This Row],[Descuento]],VentasMenudeo[[#This Row],[Producto]]=$A$5,VentasMenudeo[[#This Row],[Precio de Venta]]*VentasMenudeo[[#This Row],[Cantidad]]-VentasMenudeo[[#This Row],[Descuento]]),0) -> 250 | L124: 250
A125: 2022-05-09 | B125: Julio | C125: IPLAY MAX | D125: Cocumber Lemonade | E125: 1 | F125: $20 Descuento | H125: =_xlfn.IFNA(VLOOKUP(VentasMenudeo[[#This Row],[Promoción]],PromocionesMenudeo[[Promocion]:[Descuento]],2,0),0) -> 20 | I125: =_xlfn.IFNA(VLOOKUP(VentasMenudeo[[#This Row],[Producto]],$A$2:$B$5,2,FALSE),0) -> 270 | J125: =_xlfn.IFNA(_xlfn.IFS(VentasMenudeo[[#This Row],[Producto]]=$A$2,VentasMenudeo[[#This Row],[Precio de Venta]]*VentasMenudeo[[#This Row],[Cantidad]]-VentasMenudeo[[#This Row],[Descuento]],VentasMenudeo[[#This Row],[Producto]]=$A$3,VentasMenudeo[[#This Row],[Precio de Venta]]*VentasMenudeo[[#This Row],[Cantidad]]-VentasMenudeo[[#This Row],[Descuento]],VentasMenudeo[[#This Row],[Producto]]=$A$4,VentasMenudeo[[#This Row],[Precio de Venta]]*VentasMenudeo[[#This Row],[Cantidad]]-VentasMenudeo[[#This Row],[Descuento]],VentasMenudeo[[#This Row],[Producto]]=$A$5,VentasMenudeo[[#This Row],[Precio de Venta]]*VentasMenudeo[[#This Row],[Cantidad]]-VentasMenudeo[[#This Row],[Descuento]]),0) -> 250 | L125: 250
A126: 2022-05-09 | B126: Julio | C126: IPLAY MAX | D126: Grapestraw | E126: 1 | F126: $20 Descuento | H126: =_xlfn.IFNA(VLOOKUP(VentasMenudeo[[#This Row],[Promoción]],PromocionesMenudeo[[Promocion]:[Descuento]],2,0),0) -> 20 | I126: =_xlfn.IFNA(VLOOKUP(VentasMenudeo[[#This Row],[Producto]],$A$2:$B$5,2,FALSE),0) -> 270 | J126: =_xlfn.IFNA(_xlfn.IFS(VentasMenudeo[[#This Row],[Producto]]=$A$2,VentasMenudeo[[#This Row],[Precio de Venta]]*VentasMenudeo[[#This Row],[Cantidad]]-VentasMenudeo[[#This Row],[Descuento]],VentasMenudeo[[#This Row],[Producto]]=$A$3,VentasMenudeo[[#This Row],[Precio de Venta]]*VentasMenudeo[[#This Row],[Cantidad]]-VentasMenudeo[[#This Row],[Descuento]],VentasMenudeo[[#This Row],[Producto]]=$A$4,VentasMenudeo[[#This Row],[Precio de Venta]]*VentasMenudeo[[#This Row],[Cantidad]]-VentasMenudeo[[#This Row],[Descuento]],VentasMenudeo[[#This Row],[Producto]]=$A$5,VentasMenudeo[[#This Row],[Precio de Venta]]*VentasMenudeo[[#This Row],[Cantidad]]-VentasMenudeo[[#This Row],[Descuento]]),0) -> 250 | L126: 250
A127: 2022-05-09 | B127: Julio | C127: IPLAY MAX | D127: Cocumber Lemonade | E127: 1 | F127: $20 Descuento | H127: =_xlfn.IFNA(VLOOKUP(VentasMenudeo[[#This Row],[Promoción]],PromocionesMenudeo[[Promocion]:[Descuento]],2,0),0) -> 20 | I127: =_xlfn.IFNA(VLOOKUP(VentasMenudeo[[#This Row],[Producto]],$A$2:$B$5,2,FALSE),0) -> 270 | J127: =_xlfn.IFNA(_xlfn.IFS(VentasMenudeo[[#This Row],[Producto]]=$A$2,VentasMenudeo[[#This Row],[Precio de Venta]]*VentasMenudeo[[#This Row],[Cantidad]]-VentasMenudeo[[#This Row],[Descuento]],VentasMenudeo[[#This Row],[Producto]]=$A$3,VentasMenudeo[[#This Row],[Precio de Venta]]*VentasMenudeo[[#This Row],[Cantidad]]-VentasMenudeo[[#This Row],[Descuento]],VentasMenudeo[[#This Row],[Producto]]=$A$4,VentasMenudeo[[#This Row],[Precio de Venta]]*VentasMenudeo[[#This Row],[Cantidad]]-VentasMenudeo[[#This Row],[Descuento]],VentasMenudeo[[#This Row],[Producto]]=$A$5,VentasMenudeo[[#This Row],[Precio de Venta]]*VentasMenudeo[[#This Row],[Cantidad]]-VentasMenudeo[[#This Row],[Descuento]]),0) -> 250 | L127: 250
A128: 2022-05-09 | B128: Julio | C128: IPLAY MAX | D128: Cocumber Lemonade | E128: 1 | F128: $20 Descuento | H128: =_xlfn.IFNA(VLOOKUP(VentasMenudeo[[#This Row],[Promoción]],PromocionesMenudeo[[Promocion]:[Descuento]],2,0),0) -> 20 | I128: =_xlfn.IFNA(VLOOKUP(VentasMenudeo[[#This Row],[Producto]],$A$2:$B$5,2,FALSE),0) -> 270 | J128: =_xlfn.IFNA(_xlfn.IFS(VentasMenudeo[[#This Row],[Producto]]=$A$2,VentasMenudeo[[#This Row],[Precio de Venta]]*VentasMenudeo[[#This Row],[Cantidad]]-VentasMenudeo[[#This Row],[Descuento]],VentasMenudeo[[#This Row],[Producto]]=$A$3,VentasMenudeo[[#This Row],[Precio de Venta]]*VentasMenudeo[[#This Row],[Cantidad]]-VentasMenudeo[[#This Row],[Descuento]],VentasMenudeo[[#This Row],[Producto]]=$A$4,VentasMenudeo[[#This Row],[Precio de Venta]]*VentasMenudeo[[#This Row],[Cantidad]]-VentasMenudeo[[#This Row],[Descuento]],VentasMenudeo[[#This Row],[Producto]]=$A$5,VentasMenudeo[[#This Row],[Precio de Venta]]*VentasMenudeo[[#This Row],[Cantidad]]-VentasMenudeo[[#This Row],[Descuento]]),0) -> 250 | K128: 250
A129: 2022-05-09 | B129: Julio | C129: IPLAY MAX | D129: Strawberry Lychee | E129: 1 | F129: $20 Descuento | H129: =_xlfn.IFNA(VLOOKUP(VentasMenudeo[[#This Row],[Promoción]],PromocionesMenudeo[[Promocion]:[Descuento]],2,0),0) -> 20 | I129: =_xlfn.IFNA(VLOOKUP(VentasMenudeo[[#This Row],[Producto]],$A$2:$B$5,2,FALSE),0) -> 270 | J129: =_xlfn.IFNA(_xlfn.IFS(VentasMenudeo[[#This Row],[Producto]]=$A$2,VentasMenudeo[[#This Row],[Precio de Venta]]*VentasMenudeo[[#This Row],[Cantidad]]-VentasMenudeo[[#This Row],[Descuento]],VentasMenudeo[[#This Row],[Producto]]=$A$3,VentasMenudeo[[#This Row],[Precio de Venta]]*VentasMenudeo[[#This Row],[Cantidad]]-VentasMenudeo[[#This Row],[Descuento]],VentasMenudeo[[#This Row],[Producto]]=$A$4,VentasMenudeo[[#This Row],[Precio de Venta]]*VentasMenudeo[[#This Row],[Cantidad]]-VentasMenudeo[[#This Row],[Descuento]],VentasMenudeo[[#This Row],[Producto]]=$A$5,VentasMenudeo[[#This Row],[Precio de Venta]]*VentasMenudeo[[#This Row],[Cantidad]]-VentasMenudeo[[#This Row],[Descuento]]),0) -> 250 | K129: 250
A130: 2022-05-09 | B130: Julio | C130: IPLAY MAX | D130: Sour Apple | E130: 1 | F130: $20 Descuento | H130: =_xlfn.IFNA(VLOOKUP(VentasMenudeo[[#This Row],[Promoción]],PromocionesMenudeo[[Promocion]:[Descuento]],2,0),0) -> 20 | I130: =_xlfn.IFNA(VLOOKUP(VentasMenudeo[[#This Row],[Producto]],$A$2:$B$5,2,FALSE),0) -> 270 | J130: =_xlfn.IFNA(_xlfn.IFS(VentasMenudeo[[#This Row],[Producto]]=$A$2,VentasMenudeo[[#This Row],[Precio de Venta]]*VentasMenudeo[[#This Row],[Cantidad]]-VentasMenudeo[[#This Row],[Descuento]],VentasMenudeo[[#This Row],[Producto]]=$A$3,VentasMenudeo[[#This Row],[Precio de Venta]]*VentasMenudeo[[#This Row],[Cantidad]]-VentasMenudeo[[#This Row],[Descuento]],VentasMenudeo[[#This Row],[Producto]]=$A$4,VentasMenudeo[[#This Row],[Precio de Venta]]*VentasMenudeo[[#This Row],[Cantidad]]-VentasMenudeo[[#This Row],[Descuento]],VentasMenudeo[[#This Row],[Producto]]=$A$5,VentasMenudeo[[#This Row],[Precio de Venta]]*VentasMenudeo[[#This Row],[Cantidad]]-VentasMenudeo[[#This Row],[Descuento]]),0) -> 250 | L130: 250
A131: 2022-05-10 | B131: Julio | C131: IPLAY MAX | D131: Berry Watermelon | E131: 1 | F131: $20 Descuento | H131: =_xlfn.IFNA(VLOOKUP(VentasMenudeo[[#This Row],[Promoción]],PromocionesMenudeo[[Promocion]:[Descuento]],2,0),0) -> 20 | I131: =_xlfn.IFNA(VLOOKUP(VentasMenudeo[[#This Row],[Producto]],$A$2:$B$5,2,FALSE),0) -> 270 | J131: =_xlfn.IFNA(_xlfn.IFS(VentasMenudeo[[#This Row],[Producto]]=$A$2,VentasMenudeo[[#This Row],[Precio de Venta]]*VentasMenudeo[[#This Row],[Cantidad]]-VentasMenudeo[[#This Row],[Descuento]],VentasMenudeo[[#This Row],[Producto]]=$A$3,VentasMenudeo[[#This Row],[Precio de Venta]]*VentasMenudeo[[#This Row],[Cantidad]]-VentasMenudeo[[#This Row],[Descuento]],VentasMenudeo[[#This Row],[Producto]]=$A$4,VentasMenudeo[[#This Row],[Precio de Venta]]*VentasMenudeo[[#This Row],[Cantidad]]-VentasMenudeo[[#This Row],[Descuento]],VentasMenudeo[[#This Row],[Producto]]=$A$5,VentasMenudeo[[#This Row],[Precio de Venta]]*VentasMenudeo[[#This Row],[Cantidad]]-VentasMenudeo[[#This Row],[Descuento]]),0) -> 250 | L131: 250
A132: 2022-05-10 | B132: Julio | C132: IPLAY MAX | D132: Berry Watermelon | E132: 1 | F132: $20 Descuento | H132: =_xlfn.IFNA(VLOOKUP(VentasMenudeo[[#This Row],[Promoción]],PromocionesMenudeo[[Promocion]:[Descuento]],2,0),0) -> 20 | I132: =_xlfn.IFNA(VLOOKUP(VentasMenudeo[[#This Row],[Producto]],$A$2:$B$5,2,FALSE),0) -> 270 | J132: =_xlfn.IFNA(_xlfn.IFS(VentasMenudeo[[#This Row],[Producto]]=$A$2,VentasMenudeo[[#This Row],[Precio de Venta]]*VentasMenudeo[[#This Row],[Cantidad]]-VentasMenudeo[[#This Row],[Descuento]],VentasMenudeo[[#This Row],[Producto]]=$A$3,VentasMenudeo[[#This Row],[Precio de Venta]]*VentasMenudeo[[#This Row],[Cantidad]]-VentasMenudeo[[#This Row],[Descuento]],VentasMenudeo[[#This Row],[Producto]]=$A$4,VentasMenudeo[[#This Row],[Precio de Venta]]*VentasMenudeo[[#This Row],[Cantidad]]-VentasMenudeo[[#This Row],[Descuento]],VentasMenudeo[[#This Row],[Producto]]=$A$5,VentasMenudeo[[#This Row],[Precio de Venta]]*VentasMenudeo[[#This Row],[Cantidad]]-VentasMenudeo[[#This Row],[Descuento]]),0) -> 250 | K132: 250
A133: 2022-05-10 | B133: Julio | C133: IPLAY MAX | D133: Sour Apple | E133: 1 | F133: $20 Descuento | H133: 20 | I133: =_xlfn.IFNA(VLOOKUP(VentasMenudeo[[#This Row],[Producto]],$A$2:$B$5,2,FALSE),0) -> 270 | J133: =_xlfn.IFNA(_xlfn.IFS(VentasMenudeo[[#This Row],[Producto]]=$A$2,VentasMenudeo[[#This Row],[Precio de Venta]]*VentasMenudeo[[#This Row],[Cantidad]]-VentasMenudeo[[#This Row],[Descuento]],VentasMenudeo[[#This Row],[Producto]]=$A$3,VentasMenudeo[[#This Row],[Precio de Venta]]*VentasMenudeo[[#This Row],[Cantidad]]-VentasMenudeo[[#This Row],[Descuento]],VentasMenudeo[[#This Row],[Producto]]=$A$4,VentasMenudeo[[#This Row],[Precio de Venta]]*VentasMenudeo[[#This Row],[Cantidad]]-VentasMenudeo[[#This Row],[Descuento]],VentasMenudeo[[#This Row],[Producto]]=$A$5,VentasMenudeo[[#This Row],[Precio de Venta]]*VentasMenudeo[[#This Row],[Cantidad]]-VentasMenudeo[[#This Row],[Descuento]]),0) -> 250 | L133: 250
A134: 2022-05-10 | B134: Julio | C134: IPLAY MAX | D134: Cocumber Lemonade | E134: 1 | F134: $20 Descuento | H134: 30 | I134: =_xlfn.IFNA(VLOOKUP(VentasMenudeo[[#This Row],[Producto]],$A$2:$B$5,2,FALSE),0) -> 270 | J134: =_xlfn.IFNA(_xlfn.IFS(VentasMenudeo[[#This Row],[Producto]]=$A$2,VentasMenudeo[[#This Row],[Precio de Venta]]*VentasMenudeo[[#This Row],[Cantidad]]-VentasMenudeo[[#This Row],[Descuento]],VentasMenudeo[[#This Row],[Producto]]=$A$3,VentasMenudeo[[#This Row],[Precio de Venta]]*VentasMenudeo[[#This Row],[Cantidad]]-VentasMenudeo[[#This Row],[Descuento]],VentasMenudeo[[#This Row],[Producto]]=$A$4,VentasMenudeo[[#This Row],[Precio de Venta]]*VentasMenudeo[[#This Row],[Cantidad]]-VentasMenudeo[[#This Row],[Descuento]],VentasMenudeo[[#This Row],[Producto]]=$A$5,VentasMenudeo[[#This Row],[Precio de Venta]]*VentasMenudeo[[#This Row],[Cantidad]]-VentasMenudeo[[#This Row],[Descuento]]),0) -> 240 | K134: 250
A135: 2022-05-11 | B135: Julio | C135: IPLAY MAX | D135: Cocumber Lemonade | E135: 1 | F135: $20 Descuento | H135: 30 | I135: =_xlfn.IFNA(VLOOKUP(VentasMenudeo[[#This Row],[Producto]],$A$2:$B$5,2,FALSE),0) -> 270 | J135: =_xlfn.IFNA(_xlfn.IFS(VentasMenudeo[[#This Row],[Producto]]=$A$2,VentasMenudeo[[#This Row],[Precio de Venta]]*VentasMenudeo[[#This Row],[Cantidad]]-VentasMenudeo[[#This Row],[Descuento]],VentasMenudeo[[#This Row],[Producto]]=$A$3,VentasMenudeo[[#This Row],[Precio de Venta]]*VentasMenudeo[[#This Row],[Cantidad]]-VentasMenudeo[[#This Row],[Descuento]],VentasMenudeo[[#This Row],[Producto]]=$A$4,VentasMenudeo[[#This Row],[Precio de Venta]]*VentasMenudeo[[#This Row],[Cantidad]]-VentasMenudeo[[#This Row],[Descuento]],VentasMenudeo[[#This Row],[Producto]]=$A$5,VentasMenudeo[[#This Row],[Precio de Venta]]*VentasMenudeo[[#This Row],[Cantidad]]-VentasMenudeo[[#This Row],[Descuento]]),0) -> 240 | K135: 240
A136: 2022-05-18 | B136: Julio | C136: IPLAY MAX | D136: Lemon cookies | E136: 1 | F136: $20 Descuento | H136: =_xlfn.IFNA(VLOOKUP(VentasMenudeo[[#This Row],[Promoción]],PromocionesMenudeo[[Promocion]:[Descuento]],2,0),0) -> 20 | I136: =_xlfn.IFNA(VLOOKUP(VentasMenudeo[[#This Row],[Producto]],$A$2:$B$5,2,FALSE),0) -> 270 | J136: =_xlfn.IFNA(_xlfn.IFS(VentasMenudeo[[#This Row],[Producto]]=$A$2,VentasMenudeo[[#This Row],[Precio de Venta]]*VentasMenudeo[[#This Row],[Cantidad]]-VentasMenudeo[[#This Row],[Descuento]],VentasMenudeo[[#This Row],[Producto]]=$A$3,VentasMenudeo[[#This Row],[Precio de Venta]]*VentasMenudeo[[#This Row],[Cantidad]]-VentasMenudeo[[#This Row],[Descuento]],VentasMenudeo[[#This Row],[Producto]]=$A$4,VentasMenudeo[[#This Row],[Precio de Venta]]*VentasMenudeo[[#This Row],[Cantidad]]-VentasMenudeo[[#This Row],[Descuento]],VentasMenudeo[[#This Row],[Producto]]=$A$5,VentasMenudeo[[#This Row],[Precio de Venta]]*VentasMenudeo[[#This Row],[Cantidad]]-VentasMenudeo[[#This Row],[Descuento]]),0) -> 250 | K136: 250
A137: 2022-05-26 | B137: Julio | C137: IPLAY MAX | D137: Sour Apple | E137: 1 | F137: $20 Descuento | H137: =_xlfn.IFNA(VLOOKUP(VentasMenudeo[[#This Row],[Promoción]],PromocionesMenudeo[[Promocion]:[Descuento]],2,0),0) -> 20 | I137: =_xlfn.IFNA(VLOOKUP(VentasMenudeo[[#This Row],[Producto]],$A$2:$B$5,2,FALSE),0) -> 270 | J137: =_xlfn.IFNA(_xlfn.IFS(VentasMenudeo[[#This Row],[Producto]]=$A$2,VentasMenudeo[[#This Row],[Precio de Venta]]*VentasMenudeo[[#This Row],[Cantidad]]-VentasMenudeo[[#This Row],[Descuento]],VentasMenudeo[[#This Row],[Producto]]=$A$3,VentasMenudeo[[#This Row],[Precio de Venta]]*VentasMenudeo[[#This Row],[Cantidad]]-VentasMenudeo[[#This Row],[Descuento]],VentasMenudeo[[#This Row],[Producto]]=$A$4,VentasMenudeo[[#This Row],[Precio de Venta]]*VentasMenudeo[[#This Row],[Cantidad]]-VentasMenudeo[[#This Row],[Descuento]],VentasMenudeo[[#This Row],[Producto]]=$A$5,VentasMenudeo[[#This Row],[Precio de Venta]]*VentasMenudeo[[#This Row],[Cantidad]]-VentasMenudeo[[#This Row],[Descuento]]),0) -> 250 | K137: 250
A138: 2022-05-26 | B138: Hugo | C138: IPLAY MAX | D138: Berry Watermelon | E138: 1 | F138: $20 Descuento | H138: =_xlfn.IFNA(VLOOKUP(VentasMenudeo[[#This Row],[Promoción]],PromocionesMenudeo[[Promocion]:[Descuento]],2,0),0) -> 20 | I138: =_xlfn.IFNA(VLOOKUP(VentasMenudeo[[#This Row],[Producto]],$A$2:$B$5,2,FALSE),0) -> 270 | J138: =_xlfn.IFNA(_xlfn.IFS(VentasMenudeo[[#This Row],[Producto]]=$A$2,VentasMenudeo[[#This Row],[Precio de Venta]]*VentasMenudeo[[#This Row],[Cantidad]]-VentasMenudeo[[#This Row],[Descuento]],VentasMenudeo[[#This Row],[Producto]]=$A$3,VentasMenudeo[[#This Row],[Precio de Venta]]*VentasMenudeo[[#This Row],[Cantidad]]-VentasMenudeo[[#This Row],[Descuento]],VentasMenudeo[[#This Row],[Producto]]=$A$4,VentasMenudeo[[#This Row],[Precio de Venta]]*VentasMenudeo[[#This Row],[Cantidad]]-VentasMenudeo[[#This Row],[Descuento]],VentasMenudeo[[#This Row],[Producto]]=$A$5,VentasMenudeo[[#This Row],[Precio de Venta]]*VentasMenudeo[[#This Row],[Cantidad]]-VentasMenudeo[[#This Row],[Descuento]]),0) -> 250 | K138: 250
A139: 2022-05-30 | B139: Julio | C139: IPLAY MAX | D139: Cool mint | E139: 1 | F139: $20 Descuento | H139: =_xlfn.IFNA(VLOOKUP(VentasMenudeo[[#This Row],[Promoción]],PromocionesMenudeo[[Promocion]:[Descuento]],2,0),0) -> 20 | I139: =_xlfn.IFNA(VLOOKUP(VentasMenudeo[[#This Row],[Producto]],$A$2:$B$5,2,FALSE),0) -> 270 | J139: =_xlfn.IFNA(_xlfn.IFS(VentasMenudeo[[#This Row],[Producto]]=$A$2,VentasMenudeo[[#This Row],[Precio de Venta]]*VentasMenudeo[[#This Row],[Cantidad]]-VentasMenudeo[[#This Row],[Descuento]],VentasMenudeo[[#This Row],[Producto]]=$A$3,VentasMenudeo[[#This Row],[Precio de Venta]]*VentasMenudeo[[#This Row],[Cantidad]]-VentasMenudeo[[#This Row],[Descuento]],VentasMenudeo[[#This Row],[Producto]]=$A$4,VentasMenudeo[[#This Row],[Precio de Venta]]*VentasMenudeo[[#This Row],[Cantidad]]-VentasMenudeo[[#This Row],[Descuento]],VentasMenudeo[[#This Row],[Producto]]=$A$5,VentasMenudeo[[#This Row],[Precio de Venta]]*VentasMenudeo[[#This Row],[Cantidad]]-VentasMenudeo[[#This Row],[Descuento]]),0) -> 250 | K139: 250
A140: 2022-05-30 | B140: Hugo | C140: IPLAY MAX | D140: Bluerazz | E140: 1 | F140: $20 Descuento | H140: =_xlfn.IFNA(VLOOKUP(VentasMenudeo[[#This Row],[Promoción]],PromocionesMenudeo[[Promocion]:[Descuento]],2,0),0) -> 20 | I140: =_xlfn.IFNA(VLOOKUP(VentasMenudeo[[#This Row],[Producto]],$A$2:$B$5,2,FALSE),0) -> 270 | J140: =_xlfn.IFNA(_xlfn.IFS(VentasMenudeo[[#This Row],[Producto]]=$A$2,VentasMenudeo[[#This Row],[Precio de Venta]]*VentasMenudeo[[#This Row],[Cantidad]]-VentasMenudeo[[#This Row],[Descuento]],VentasMenudeo[[#This Row],[Producto]]=$A$3,VentasMenudeo[[#This Row],[Precio de Venta]]*VentasMenudeo[[#This Row],[Cantidad]]-VentasMenudeo[[#This Row],[Descuento]],VentasMenudeo[[#This Row],[Producto]]=$A$4,VentasMenudeo[[#This Row],[Precio de Venta]]*VentasMenudeo[[#This Row],[Cantidad]]-VentasMenudeo[[#This Row],[Descuento]],VentasMenudeo[[#This Row],[Producto]]=$A$5,VentasMenudeo[[#This Row],[Precio de Venta]]*VentasMenudeo[[#This Row],[Cantidad]]-VentasMenudeo[[#This Row],[Descuento]]),0) -> 250 | K140: 250
A141: 2022-05-30 | B141: Hugo | C141: IPLAY MAX | D141: Peach Ice | E141: 1 | F141: $20 Descuento | H141: =_xlfn.IFNA(VLOOKUP(VentasMenudeo[[#This Row],[Promoción]],PromocionesMenudeo[[Promocion]:[Descuento]],2,0),0) -> 20 | I141: =_xlfn.IFNA(VLOOKUP(VentasMenudeo[[#This Row],[Producto]],$A$2:$B$5,2,FALSE),0) -> 270 | J141: =_xlfn.IFNA(_xlfn.IFS(VentasMenudeo[[#This Row],[Producto]]=$A$2,VentasMenudeo[[#This Row],[Precio de Venta]]*VentasMenudeo[[#This Row],[Cantidad]]-VentasMenudeo[[#This Row],[Descuento]],VentasMenudeo[[#This Row],[Producto]]=$A$3,VentasMenudeo[[#This Row],[Precio de Venta]]*VentasMenudeo[[#This Row],[Cantidad]]-VentasMenudeo[[#This Row],[Descuento]],VentasMenudeo[[#This Row],[Producto]]=$A$4,VentasMenudeo[[#This Row],[Precio de Venta]]*VentasMenudeo[[#This Row],[Cantidad]]-VentasMenudeo[[#This Row],[Descuento]],VentasMenudeo[[#This Row],[Producto]]=$A$5,VentasMenudeo[[#This Row],[Precio de Venta]]*VentasMenudeo[[#This Row],[Cantidad]]-VentasMenudeo[[#This Row],[Descuento]]),0) -> 250 | K141: 250
A142: 2022-05-30 | B142: Hugo | C142: IPLAY MAX | D142: Peach Ice | E142: 1 | F142: $20 Descuento | H142: =_xlfn.IFNA(VLOOKUP(VentasMenudeo[[#This Row],[Promoción]],PromocionesMenudeo[[Promocion]:[Descuento]],2,0),0) -> 20 | I142: =_xlfn.IFNA(VLOOKUP(VentasMenudeo[[#This Row],[Producto]],$A$2:$B$5,2,FALSE),0) -> 270 | J142: =_xlfn.IFNA(_xlfn.IFS(VentasMenudeo[[#This Row],[Producto]]=$A$2,VentasMenudeo[[#This Row],[Precio de Venta]]*VentasMenudeo[[#This Row],[Cantidad]]-VentasMenudeo[[#This Row],[Descuento]],VentasMenudeo[[#This Row],[Producto]]=$A$3,VentasMenudeo[[#This Row],[Precio de Venta]]*VentasMenudeo[[#This Row],[Cantidad]]-VentasMenudeo[[#This Row],[Descuento]],VentasMenudeo[[#This Row],[Producto]]=$A$4,VentasMenudeo[[#This Row],[Precio de Venta]]*VentasMenudeo[[#This Row],[Cantidad]]-VentasMenudeo[[#This Row],[Descuento]],VentasMenudeo[[#This Row],[Producto]]=$A$5,VentasMenudeo[[#This Row],[Precio de Venta]]*VentasMenudeo[[#This Row],[Cantidad]]-VentasMenudeo[[#This Row],[Descuento]]),0) -> 250 | K142: 250
A143: 2022-05-30 | B143: Hugo | C143: IPLAY MAX | D143: Berry Watermelon | E143: 1 | F143: $20 Descuento | H143: =_xlfn.IFNA(VLOOKUP(VentasMenudeo[[#This Row],[Promoción]],PromocionesMenudeo[[Promocion]:[Descuento]],2,0),0) -> 20 | I143: =_xlfn.IFNA(VLOOKUP(VentasMenudeo[[#This Row],[Producto]],$A$2:$B$5,2,FALSE),0) -> 270 | J143: =_xlfn.IFNA(_xlfn.IFS(VentasMenudeo[[#This Row],[Producto]]=$A$2,VentasMenudeo[[#This Row],[Precio de Venta]]*VentasMenudeo[[#This Row],[Cantidad]]-VentasMenudeo[[#This Row],[Descuento]],VentasMenudeo[[#This Row],[Producto]]=$A$3,VentasMenudeo[[#This Row],[Precio de Venta]]*VentasMenudeo[[#This Row],[Cantidad]]-VentasMenudeo[[#This Row],[Descuento]],VentasMenudeo[[#This Row],[Producto]]=$A$4,VentasMenudeo[[#This Row],[Precio de Venta]]*VentasMenudeo[[#This Row],[Cantidad]]-VentasMenudeo[[#This Row],[Descuento]],VentasMenudeo[[#This Row],[Producto]]=$A$5,VentasMenudeo[[#This Row],[Precio de Venta]]*VentasMenudeo[[#This Row],[Cantidad]]-VentasMenudeo[[#This Row],[Descuento]]),0) -> 250 | K143: 250
A144: 2022-05-30 | B144: Hugo | C144: IPLAY MAX | D144: Grapestraw | E144: 1 | F144: $20 Descuento | H144: =_xlfn.IFNA(VLOOKUP(VentasMenudeo[[#This Row],[Promoción]],PromocionesMenudeo[[Promocion]:[Descuento]],2,0),0) -> 20 | I144: =_xlfn.IFNA(VLOOKUP(VentasMenudeo[[#This Row],[Producto]],$A$2:$B$5,2,FALSE),0) -> 270 | J144: =_xlfn.IFNA(_xlfn.IFS(VentasMenudeo[[#This Row],[Producto]]=$A$2,VentasMenudeo[[#This Row],[Precio de Venta]]*VentasMenudeo[[#This Row],[Cantidad]]-VentasMenudeo[[#This Row],[Descuento]],VentasMenudeo[[#This Row],[Producto]]=$A$3,VentasMenudeo[[#This Row],[Precio de Venta]]*VentasMenudeo[[#This Row],[Cantidad]]-VentasMenudeo[[#This Row],[Descuento]],VentasMenudeo[[#This Row],[Producto]]=$A$4,VentasMenudeo[[#This Row],[Precio de Venta]]*VentasMenudeo[[#This Row],[Cantidad]]-VentasMenudeo[[#This Row],[Descuento]],VentasMenudeo[[#This Row],[Producto]]=$A$5,VentasMenudeo[[#This Row],[Precio de Venta]]*VentasMenudeo[[#This Row],[Cantidad]]-VentasMenudeo[[#This Row],[Descuento]]),0) -> 250 | K144: 250
A145: 2022-05-30 | B145: Hugo | C145: IPLAY MAX | D145: Bluerazz | E145: 1 | F145: $20 Descuento | H145: =_xlfn.IFNA(VLOOKUP(VentasMenudeo[[#This Row],[Promoción]],PromocionesMenudeo[[Promocion]:[Descuento]],2,0),0) -> 20 | I145: =_xlfn.IFNA(VLOOKUP(VentasMenudeo[[#This Row],[Producto]],$A$2:$B$5,2,FALSE),0) -> 270 | J145: =_xlfn.IFNA(_xlfn.IFS(VentasMenudeo[[#This Row],[Producto]]=$A$2,VentasMenudeo[[#This Row],[Precio de Venta]]*VentasMenudeo[[#This Row],[Cantidad]]-VentasMenudeo[[#This Row],[Descuento]],VentasMenudeo[[#This Row],[Producto]]=$A$3,VentasMenudeo[[#This Row],[Precio de Venta]]*VentasMenudeo[[#This Row],[Cantidad]]-VentasMenudeo[[#This Row],[Descuento]],VentasMenudeo[[#This Row],[Producto]]=$A$4,VentasMenudeo[[#This Row],[Precio de Venta]]*VentasMenudeo[[#This Row],[Cantidad]]-VentasMenudeo[[#This Row],[Descuento]],VentasMenudeo[[#This Row],[Producto]]=$A$5,VentasMenudeo[[#This Row],[Precio de Venta]]*VentasMenudeo[[#This Row],[Cantidad]]-VentasMenudeo[[#This Row],[Descuento]]),0) -> 250 | K145: 250
A146: 2022-05-30 | B146: Julio | C146: IPLAY MAX | D146: Strawberry Lychee | E146: 1 | F146: $20 Descuento | H146: =_xlfn.IFNA(VLOOKUP(VentasMenudeo[[#This Row],[Promoción]],PromocionesMenudeo[[Promocion]:[Descuento]],2,0),0) -> 20 | I146: =_xlfn.IFNA(VLOOKUP(VentasMenudeo[[#This Row],[Producto]],$A$2:$B$5,2,FALSE),0) -> 270 | J146: =_xlfn.IFNA(_xlfn.IFS(VentasMenudeo[[#This Row],[Producto]]=$A$2,VentasMenudeo[[#This Row],[Precio de Venta]]*VentasMenudeo[[#This Row],[Cantidad]]-VentasMenudeo[[#This Row],[Descuento]],VentasMenudeo[[#This Row],[Producto]]=$A$3,VentasMenudeo[[#This Row],[Precio de Venta]]*VentasMenudeo[[#This Row],[Cantidad]]-VentasMenudeo[[#This Row],[Descuento]],VentasMenudeo[[#This Row],[Producto]]=$A$4,VentasMenudeo[[#This Row],[Precio de Venta]]*VentasMenudeo[[#This Row],[Cantidad]]-VentasMenudeo[[#This Row],[Descuento]],VentasMenudeo[[#This Row],[Producto]]=$A$5,VentasMenudeo[[#This Row],[Precio de Venta]]*VentasMenudeo[[#This Row],[Cantidad]]-VentasMenudeo[[#This Row],[Descuento]]),0) -> 250 | K146: 250
A147: 2022-05-30 | B147: Hugo | C147: IPLAY MAX | D147: Cool mint | E147: 1 | F147: $20 Descuento | H147: =_xlfn.IFNA(VLOOKUP(VentasMenudeo[[#This Row],[Promoción]],PromocionesMenudeo[[Promocion]:[Descuento]],2,0),0) -> 20 | I147: =_xlfn.IFNA(VLOOKUP(VentasMenudeo[[#This Row],[Producto]],$A$2:$B$5,2,FALSE),0) -> 270 | J147: =_xlfn.IFNA(_xlfn.IFS(VentasMenudeo[[#This Row],[Producto]]=$A$2,VentasMenudeo[[#This Row],[Precio de Venta]]*VentasMenudeo[[#This Row],[Cantidad]]-VentasMenudeo[[#This Row],[Descuento]],VentasMenudeo[[#This Row],[Producto]]=$A$3,VentasMenudeo[[#This Row],[Precio de Venta]]*VentasMenudeo[[#This Row],[Cantidad]]-VentasMenudeo[[#This Row],[Descuento]],VentasMenudeo[[#This Row],[Producto]]=$A$4,VentasMenudeo[[#This Row],[Precio de Venta]]*VentasMenudeo[[#This Row],[Cantidad]]-VentasMenudeo[[#This Row],[Descuento]],VentasMenudeo[[#This Row],[Producto]]=$A$5,VentasMenudeo[[#This Row],[Precio de Venta]]*VentasMenudeo[[#This Row],[Cantidad]]-VentasMenudeo[[#This Row],[Descuento]]),0) -> 250 | K147: 250
A148: 2022-05-30 | B148: Hugo | C148: IPLAY MAX | D148: Cool mint | E148: 1 | F148: $20 Descuento | H148: =_xlfn.IFNA(VLOOKUP(VentasMenudeo[[#This Row],[Promoción]],PromocionesMenudeo[[Promocion]:[Descuento]],2,0),0) -> 20 | I148: =_xlfn.IFNA(VLOOKUP(VentasMenudeo[[#This Row],[Producto]],$A$2:$B$5,2,FALSE),0) -> 270 | J148: =_xlfn.IFNA(_xlfn.IFS(VentasMenudeo[[#This Row],[Producto]]=$A$2,VentasMenudeo[[#This Row],[Precio de Venta]]*VentasMenudeo[[#This Row],[Cantidad]]-VentasMenudeo[[#This Row],[Descuento]],VentasMenudeo[[#This Row],[Producto]]=$A$3,VentasMenudeo[[#This Row],[Precio de Venta]]*VentasMenudeo[[#This Row],[Cantidad]]-VentasMenudeo[[#This Row],[Descuento]],VentasMenudeo[[#This Row],[Producto]]=$A$4,VentasMenudeo[[#This Row],[Precio de Venta]]*VentasMenudeo[[#This Row],[Cantidad]]-VentasMenudeo[[#This Row],[Descuento]],VentasMenudeo[[#This Row],[Producto]]=$A$5,VentasMenudeo[[#This Row],[Precio de Venta]]*VentasMenudeo[[#This Row],[Cantidad]]-VentasMenudeo[[#This Row],[Descuento]]),0) -> 250 | K148: 250
A149: 2022-05-30 | B149: Hugo | C149: IPLAY MAX | D149: GrapeFruit berry | E149: 1 | F149: $20 Descuento | H149: =_xlfn.IFNA(VLOOKUP(VentasMenudeo[[#This Row],[Promoción]],PromocionesMenudeo[[Promocion]:[Descuento]],2,0),0) -> 20 | I149: =_xlfn.IFNA(VLOOKUP(VentasMenudeo[[#This Row],[Producto]],$A$2:$B$5,2,FALSE),0) -> 270 | J149: =_xlfn.IFNA(_xlfn.IFS(VentasMenudeo[[#This Row],[Producto]]=$A$2,VentasMenudeo[[#This Row],[Precio de Venta]]*VentasMenudeo[[#This Row],[Cantidad]]-VentasMenudeo[[#This Row],[Descuento]],VentasMenudeo[[#This Row],[Producto]]=$A$3,VentasMenudeo[[#This Row],[Precio de Venta]]*VentasMenudeo[[#This Row],[Cantidad]]-VentasMenudeo[[#This Row],[Descuento]],VentasMenudeo[[#This Row],[Producto]]=$A$4,VentasMenudeo[[#This Row],[Precio de Venta]]*VentasMenudeo[[#This Row],[Cantidad]]-VentasMenudeo[[#This Row],[Descuento]],VentasMenudeo[[#This Row],[Producto]]=$A$5,VentasMenudeo[[#This Row],[Precio de Venta]]*VentasMenudeo[[#This Row],[Cantidad]]-VentasMenudeo[[#This Row],[Descuento]]),0) -> 250 | K149: 250
A150: 2022-05-30 | B150: Hugo | C150: IPLAY MAX | D150: Peach Ice | E150: 1 | F150: $20 Descuento | H150: =_xlfn.IFNA(VLOOKUP(VentasMenudeo[[#This Row],[Promoción]],PromocionesMenudeo[[Promocion]:[Descuento]],2,0),0) -> 20 | I150: =_xlfn.IFNA(VLOOKUP(VentasMenudeo[[#This Row],[Producto]],$A$2:$B$5,2,FALSE),0) -> 270 | J150: =_xlfn.IFNA(_xlfn.IFS(VentasMenudeo[[#This Row],[Producto]]=$A$2,VentasMenudeo[[#This Row],[Precio de Venta]]*VentasMenudeo[[#This Row],[Cantidad]]-VentasMenudeo[[#This Row],[Descuento]],VentasMenudeo[[#This Row],[Producto]]=$A$3,VentasMenudeo[[#This Row],[Precio de Venta]]*VentasMenudeo[[#This Row],[Cantidad]]-VentasMenudeo[[#This Row],[Descuento]],VentasMenudeo[[#This Row],[Producto]]=$A$4,VentasMenudeo[[#This Row],[Precio de Venta]]*VentasMenudeo[[#This Row],[Cantidad]]-VentasMenudeo[[#This Row],[Descuento]],VentasMenudeo[[#This Row],[Producto]]=$A$5,VentasMenudeo[[#This Row],[Precio de Venta]]*VentasMenudeo[[#This Row],[Cantidad]]-VentasMenudeo[[#This Row],[Descuento]]),0) -> 250 | K150: 250
A151: 2022-05-30 | B151: Hugo | C151: IPLAY MAX | D151: Cool mint | E151: 1 | F151: $20 Descuento | H151: =_xlfn.IFNA(VLOOKUP(VentasMenudeo[[#This Row],[Promoción]],PromocionesMenudeo[[Promocion]:[Descuento]],2,0),0) -> 20 | I151: =_xlfn.IFNA(VLOOKUP(VentasMenudeo[[#This Row],[Producto]],$A$2:$B$5,2,FALSE),0) -> 270 | J151: =_xlfn.IFNA(_xlfn.IFS(VentasMenudeo[[#This Row],[Producto]]=$A$2,VentasMenudeo[[#This Row],[Precio de Venta]]*VentasMenudeo[[#This Row],[Cantidad]]-VentasMenudeo[[#This Row],[Descuento]],VentasMenudeo[[#This Row],[Producto]]=$A$3,VentasMenudeo[[#This Row],[Precio de Venta]]*VentasMenudeo[[#This Row],[Cantidad]]-VentasMenudeo[[#This Row],[Descuento]],VentasMenudeo[[#This Row],[Producto]]=$A$4,VentasMenudeo[[#This Row],[Precio de Venta]]*VentasMenudeo[[#This Row],[Cantidad]]-VentasMenudeo[[#This Row],[Descuento]],VentasMenudeo[[#This Row],[Producto]]=$A$5,VentasMenudeo[[#This Row],[Precio de Venta]]*VentasMenudeo[[#This Row],[Cantidad]]-VentasMenudeo[[#This Row],[Descuento]]),0) -> 250 | K151: 250
A152: 2022-05-30 | B152: Hugo | C152: IPLAY MAX | D152: Peach Ice | E152: 1 | F152: $20 Descuento | H152: =_xlfn.IFNA(VLOOKUP(VentasMenudeo[[#This Row],[Promoción]],PromocionesMenudeo[[Promocion]:[Descuento]],2,0),0) -> 20 | I152: =_xlfn.IFNA(VLOOKUP(VentasMenudeo[[#This Row],[Producto]],$A$2:$B$5,2,FALSE),0) -> 270 | J152: =_xlfn.IFNA(_xlfn.IFS(VentasMenudeo[[#This Row],[Producto]]=$A$2,VentasMenudeo[[#This Row],[Precio de Venta]]*VentasMenudeo[[#This Row],[Cantidad]]-VentasMenudeo[[#This Row],[Descuento]],VentasMenudeo[[#This Row],[Producto]]=$A$3,VentasMenudeo[[#This Row],[Precio de Venta]]*VentasMenudeo[[#This Row],[Cantidad]]-VentasMenudeo[[#This Row],[Descuento]],VentasMenudeo[[#This Row],[Producto]]=$A$4,VentasMenudeo[[#This Row],[Precio de Venta]]*VentasMenudeo[[#This Row],[Cantidad]]-VentasMenudeo[[#This Row],[Descuento]],VentasMenudeo[[#This Row],[Producto]]=$A$5,VentasMenudeo[[#This Row],[Precio de Venta]]*VentasMenudeo[[#This Row],[Cantidad]]-VentasMenudeo[[#This Row],[Descuento]]),0) -> 250 | K152: 250
A153: 2022-05-30 | B153: Hugo | C153: IPLAY MAX | D153: GrapeFruit berry | E153: 1 | F153: $20 Descuento | H153: =_xlfn.IFNA(VLOOKUP(VentasMenudeo[[#This Row],[Promoción]],PromocionesMenudeo[[Promocion]:[Descuento]],2,0),0) -> 20 | I153: =_xlfn.IFNA(VLOOKUP(VentasMenudeo[[#This Row],[Producto]],$A$2:$B$5,2,FALSE),0) -> 270 | J153: =_xlfn.IFNA(_xlfn.IFS(VentasMenudeo[[#This Row],[Producto]]=$A$2,VentasMenudeo[[#This Row],[Precio de Venta]]*VentasMenudeo[[#This Row],[Cantidad]]-VentasMenudeo[[#This Row],[Descuento]],VentasMenudeo[[#This Row],[Producto]]=$A$3,VentasMenudeo[[#This Row],[Precio de Venta]]*VentasMenudeo[[#This Row],[Cantidad]]-VentasMenudeo[[#This Row],[Descuento]],VentasMenudeo[[#This Row],[Producto]]=$A$4,VentasMenudeo[[#This Row],[Precio de Venta]]*VentasMenudeo[[#This Row],[Cantidad]]-VentasMenudeo[[#This Row],[Descuento]],VentasMenudeo[[#This Row],[Producto]]=$A$5,VentasMenudeo[[#This Row],[Precio de Venta]]*VentasMenudeo[[#This Row],[Cantidad]]-VentasMenudeo[[#This Row],[Descuento]]),0) -> 250 | K153: 250
A154: 2022-05-30 | B154: Hugo | C154: IPLAY MAX | D154: Peach Ice | E154: 1 | F154: $20 Descuento | H154: =_xlfn.IFNA(VLOOKUP(VentasMenudeo[[#This Row],[Promoción]],PromocionesMenudeo[[Promocion]:[Descuento]],2,0),0) -> 20 | I154: =_xlfn.IFNA(VLOOKUP(VentasMenudeo[[#This Row],[Producto]],$A$2:$B$5,2,FALSE),0) -> 270 | J154: =_xlfn.IFNA(_xlfn.IFS(VentasMenudeo[[#This Row],[Producto]]=$A$2,VentasMenudeo[[#This Row],[Precio de Venta]]*VentasMenudeo[[#This Row],[Cantidad]]-VentasMenudeo[[#This Row],[Descuento]],VentasMenudeo[[#This Row],[Producto]]=$A$3,VentasMenudeo[[#This Row],[Precio de Venta]]*VentasMenudeo[[#This Row],[Cantidad]]-VentasMenudeo[[#This Row],[Descuento]],VentasMenudeo[[#This Row],[Producto]]=$A$4,VentasMenudeo[[#This Row],[Precio de Venta]]*VentasMenudeo[[#This Row],[Cantidad]]-VentasMenudeo[[#This Row],[Descuento]],VentasMenudeo[[#This Row],[Producto]]=$A$5,VentasMenudeo[[#This Row],[Precio de Venta]]*VentasMenudeo[[#This Row],[Cantidad]]-VentasMenudeo[[#This Row],[Descuento]]),0) -> 250 | K154: 250
A155: 2022-05-30 | B155: Hugo | C155: IPLAY MAX | D155: Bluerazz | E155: 1 | F155: $20 Descuento | H155: =_xlfn.IFNA(VLOOKUP(VentasMenudeo[[#This Row],[Promoción]],PromocionesMenudeo[[Promocion]:[Descuento]],2,0),0) -> 20 | I155: =_xlfn.IFNA(VLOOKUP(VentasMenudeo[[#This Row],[Producto]],$A$2:$B$5,2,FALSE),0) -> 270 | J155: =_xlfn.IFNA(_xlfn.IFS(VentasMenudeo[[#This Row],[Producto]]=$A$2,VentasMenudeo[[#This Row],[Precio de Venta]]*VentasMenudeo[[#This Row],[Cantidad]]-VentasMenudeo[[#This Row],[Descuento]],VentasMenudeo[[#This Row],[Producto]]=$A$3,VentasMenudeo[[#This Row],[Precio de Venta]]*VentasMenudeo[[#This Row],[Cantidad]]-VentasMenudeo[[#This Row],[Descuento]],VentasMenudeo[[#This Row],[Producto]]=$A$4,VentasMenudeo[[#This Row],[Precio de Venta]]*VentasMenudeo[[#This Row],[Cantidad]]-VentasMenudeo[[#This Row],[Descuento]],VentasMenudeo[[#This Row],[Producto]]=$A$5,VentasMenudeo[[#This Row],[Precio de Venta]]*VentasMenudeo[[#This Row],[Cantidad]]-VentasMenudeo[[#This Row],[Descuento]]),0) -> 250 | K155: 250
A156: 2022-05-30 | B156: Hugo | C156: IPLAY MAX | D156: Bluerazz | E156: 1 | F156: $20 Descuento | H156: =_xlfn.IFNA(VLOOKUP(VentasMenudeo[[#This Row],[Promoción]],PromocionesMenudeo[[Promocion]:[Descuento]],2,0),0) -> 20 | I156: =_xlfn.IFNA(VLOOKUP(VentasMenudeo[[#This Row],[Producto]],$A$2:$B$5,2,FALSE),0) -> 270 | J156: =_xlfn.IFNA(_xlfn.IFS(VentasMenudeo[[#This Row],[Producto]]=$A$2,VentasMenudeo[[#This Row],[Precio de Venta]]*VentasMenudeo[[#This Row],[Cantidad]]-VentasMenudeo[[#This Row],[Descuento]],VentasMenudeo[[#This Row],[Producto]]=$A$3,VentasMenudeo[[#This Row],[Precio de Venta]]*VentasMenudeo[[#This Row],[Cantidad]]-VentasMenudeo[[#This Row],[Descuento]],VentasMenudeo[[#This Row],[Producto]]=$A$4,VentasMenudeo[[#This Row],[Precio de Venta]]*VentasMenudeo[[#This Row],[Cantidad]]-VentasMenudeo[[#This Row],[Descuento]],VentasMenudeo[[#This Row],[Producto]]=$A$5,VentasMenudeo[[#This Row],[Precio de Venta]]*VentasMenudeo[[#This Row],[Cantidad]]-VentasMenudeo[[#This Row],[Descuento]]),0) -> 250 | K156: 250
A157: 2022-05-30 | B157: Hugo | C157: IPLAY MAX | D157: Guava | E157: 1 | F157: $20 Descuento | H157: =_xlfn.IFNA(VLOOKUP(VentasMenudeo[[#This Row],[Promoción]],PromocionesMenudeo[[Promocion]:[Descuento]],2,0),0) -> 20 | I157: =_xlfn.IFNA(VLOOKUP(VentasMenudeo[[#This Row],[Producto]],$A$2:$B$5,2,FALSE),0) -> 270 | J157: =_xlfn.IFNA(_xlfn.IFS(VentasMenudeo[[#This Row],[Producto]]=$A$2,VentasMenudeo[[#This Row],[Precio de Venta]]*VentasMenudeo[[#This Row],[Cantidad]]-VentasMenudeo[[#This Row],[Descuento]],VentasMenudeo[[#This Row],[Producto]]=$A$3,VentasMenudeo[[#This Row],[Precio de Venta]]*VentasMenudeo[[#This Row],[Cantidad]]-VentasMenudeo[[#This Row],[Descuento]],VentasMenudeo[[#This Row],[Producto]]=$A$4,VentasMenudeo[[#This Row],[Precio de Venta]]*VentasMenudeo[[#This Row],[Cantidad]]-VentasMenudeo[[#This Row],[Descuento]],VentasMenudeo[[#This Row],[Producto]]=$A$5,VentasMenudeo[[#This Row],[Precio de Venta]]*VentasMenudeo[[#This Row],[Cantidad]]-VentasMenudeo[[#This Row],[Descuento]]),0) -> 250 | K157: 250
A158: 2022-05-30 | B158: Hugo | C158: IPLAY MAX | D158: Guava | E158: 1 | F158: $20 Descuento | H158: =_xlfn.IFNA(VLOOKUP(VentasMenudeo[[#This Row],[Promoción]],PromocionesMenudeo[[Promocion]:[Descuento]],2,0),0) -> 20 | I158: =_xlfn.IFNA(VLOOKUP(VentasMenudeo[[#This Row],[Producto]],$A$2:$B$5,2,FALSE),0) -> 270 | J158: =_xlfn.IFNA(_xlfn.IFS(VentasMenudeo[[#This Row],[Producto]]=$A$2,VentasMenudeo[[#This Row],[Precio de Venta]]*VentasMenudeo[[#This Row],[Cantidad]]-VentasMenudeo[[#This Row],[Descuento]],VentasMenudeo[[#This Row],[Producto]]=$A$3,VentasMenudeo[[#This Row],[Precio de Venta]]*VentasMenudeo[[#This Row],[Cantidad]]-VentasMenudeo[[#This Row],[Descuento]],VentasMenudeo[[#This Row],[Producto]]=$A$4,VentasMenudeo[[#This Row],[Precio de Venta]]*VentasMenudeo[[#This Row],[Cantidad]]-VentasMenudeo[[#This Row],[Descuento]],VentasMenudeo[[#This Row],[Producto]]=$A$5,VentasMenudeo[[#This Row],[Precio de Venta]]*VentasMenudeo[[#This Row],[Cantidad]]-VentasMenudeo[[#This Row],[Descuento]]),0) -> 250 | K158: 250
A159: 2022-05-30 | B159: Hugo | C159: IPLAY MAX | D159: Guava | E159: 1 | F159: $20 Descuento | H159: =_xlfn.IFNA(VLOOKUP(VentasMenudeo[[#This Row],[Promoción]],PromocionesMenudeo[[Promocion]:[Descuento]],2,0),0) -> 20 | I159: =_xlfn.IFNA(VLOOKUP(VentasMenudeo[[#This Row],[Producto]],$A$2:$B$5,2,FALSE),0) -> 270 | J159: =_xlfn.IFNA(_xlfn.IFS(VentasMenudeo[[#This Row],[Producto]]=$A$2,VentasMenudeo[[#This Row],[Precio de Venta]]*VentasMenudeo[[#This Row],[Cantidad]]-VentasMenudeo[[#This Row],[Descuento]],VentasMenudeo[[#This Row],[Producto]]=$A$3,VentasMenudeo[[#This Row],[Precio de Venta]]*VentasMenudeo[[#This Row],[Cantidad]]-VentasMenudeo[[#This Row],[Descuento]],VentasMenudeo[[#This Row],[Producto]]=$A$4,VentasMenudeo[[#This Row],[Precio de Venta]]*VentasMenudeo[[#This Row],[Cantidad]]-VentasMenudeo[[#This Row],[Descuento]],VentasMenudeo[[#This Row],[Producto]]=$A$5,VentasMenudeo[[#This Row],[Precio de Venta]]*VentasMenudeo[[#This Row],[Cantidad]]-VentasMenudeo[[#This Row],[Descuento]]),0) -> 250 | K159: 250
A160: 2022-05-30 | B160: Hugo | C160: IPLAY MAX | D160: Peach Ice | E160: 1 | F160: $20 Descuento | H160: =_xlfn.IFNA(VLOOKUP(VentasMenudeo[[#This Row],[Promoción]],PromocionesMenudeo[[Promocion]:[Descuento]],2,0),0) -> 20 | I160: =_xlfn.IFNA(VLOOKUP(VentasMenudeo[[#This Row],[Producto]],$A$2:$B$5,2,FALSE),0) -> 270 | J160: =_xlfn.IFNA(_xlfn.IFS(VentasMenudeo[[#This Row],[Producto]]=$A$2,VentasMenudeo[[#This Row],[Precio de Venta]]*VentasMenudeo[[#This Row],[Cantidad]]-VentasMenudeo[[#This Row],[Descuento]],VentasMenudeo[[#This Row],[Producto]]=$A$3,VentasMenudeo[[#This Row],[Precio de Venta]]*VentasMenudeo[[#This Row],[Cantidad]]-VentasMenudeo[[#This Row],[Descuento]],VentasMenudeo[[#This Row],[Producto]]=$A$4,VentasMenudeo[[#This Row],[Precio de Venta]]*VentasMenudeo[[#This Row],[Cantidad]]-VentasMenudeo[[#This Row],[Descuento]],VentasMenudeo[[#This Row],[Producto]]=$A$5,VentasMenudeo[[#This Row],[Precio de Venta]]*VentasMenudeo[[#This Row],[Cantidad]]-VentasMenudeo[[#This Row],[Descuento]]),0) -> 250 | K160: 250
A161: 2022-05-30 | B161: Hugo | C161: IPLAY MAX | D161: Cool mint | E161: 1 | F161: $20 Descuento | H161: =_xlfn.IFNA(VLOOKUP(VentasMenudeo[[#This Row],[Promoción]],PromocionesMenudeo[[Promocion]:[Descuento]],2,0),0) -> 20 | I161: =_xlfn.IFNA(VLOOKUP(VentasMenudeo[[#This Row],[Producto]],$A$2:$B$5,2,FALSE),0) -> 270 | J161: =_xlfn.IFNA(_xlfn.IFS(VentasMenudeo[[#This Row],[Producto]]=$A$2,VentasMenudeo[[#This Row],[Precio de Venta]]*VentasMenudeo[[#This Row],[Cantidad]]-VentasMenudeo[[#This Row],[Descuento]],VentasMenudeo[[#This Row],[Producto]]=$A$3,VentasMenudeo[[#This Row],[Precio de Venta]]*VentasMenudeo[[#This Row],[Cantidad]]-VentasMenudeo[[#This Row],[Descuento]],VentasMenudeo[[#This Row],[Producto]]=$A$4,VentasMenudeo[[#This Row],[Precio de Venta]]*VentasMenudeo[[#This Row],[Cantidad]]-VentasMenudeo[[#This Row],[Descuento]],VentasMenudeo[[#This Row],[Producto]]=$A$5,VentasMenudeo[[#This Row],[Precio de Venta]]*VentasMenudeo[[#This Row],[Cantidad]]-VentasMenudeo[[#This Row],[Descuento]]),0) -> 250 | K161: 250
A162: 2022-05-30 | B162: Hugo | C162: IPLAY MAX | D162: Berry Watermelon | E162: 1 | F162: $20 Descuento | H162: =_xlfn.IFNA(VLOOKUP(VentasMenudeo[[#This Row],[Promoción]],PromocionesMenudeo[[Promocion]:[Descuento]],2,0),0) -> 20 | I162: =_xlfn.IFNA(VLOOKUP(VentasMenudeo[[#This Row],[Producto]],$A$2:$B$5,2,FALSE),0) -> 270 | J162: =_xlfn.IFNA(_xlfn.IFS(VentasMenudeo[[#This Row],[Producto]]=$A$2,VentasMenudeo[[#This Row],[Precio de Venta]]*VentasMenudeo[[#This Row],[Cantidad]]-VentasMenudeo[[#This Row],[Descuento]],VentasMenudeo[[#This Row],[Producto]]=$A$3,VentasMenudeo[[#This Row],[Precio de Venta]]*VentasMenudeo[[#This Row],[Cantidad]]-VentasMenudeo[[#This Row],[Descuento]],VentasMenudeo[[#This Row],[Producto]]=$A$4,VentasMenudeo[[#This Row],[Precio de Venta]]*VentasMenudeo[[#This Row],[Cantidad]]-VentasMenudeo[[#This Row],[Descuento]],VentasMenudeo[[#This Row],[Producto]]=$A$5,VentasMenudeo[[#This Row],[Precio de Venta]]*VentasMenudeo[[#This Row],[Cantidad]]-VentasMenudeo[[#This Row],[Descuento]]),0) -> 250 | K162: 250
A163: 2022-05-30 | B163: Hugo | C163: IPLAY MAX | D163: Cool mint | E163: 1 | F163: $20 Descuento | H163: =_xlfn.IFNA(VLOOKUP(VentasMenudeo[[#This Row],[Promoción]],PromocionesMenudeo[[Promocion]:[Descuento]],2,0),0) -> 20 | I163: =_xlfn.IFNA(VLOOKUP(VentasMenudeo[[#This Row],[Producto]],$A$2:$B$5,2,FALSE),0) -> 270 | J163: =_xlfn.IFNA(_xlfn.IFS(VentasMenudeo[[#This Row],[Producto]]=$A$2,VentasMenudeo[[#This Row],[Precio de Venta]]*VentasMenudeo[[#This Row],[Cantidad]]-VentasMenudeo[[#This Row],[Descuento]],VentasMenudeo[[#This Row],[Producto]]=$A$3,VentasMenudeo[[#This Row],[Precio de Venta]]*VentasMenudeo[[#This Row],[Cantidad]]-VentasMenudeo[[#This Row],[Descuento]],VentasMenudeo[[#This Row],[Producto]]=$A$4,VentasMenudeo[[#This Row],[Precio de Venta]]*VentasMenudeo[[#This Row],[Cantidad]]-VentasMenudeo[[#This Row],[Descuento]],VentasMenudeo[[#This Row],[Producto]]=$A$5,VentasMenudeo[[#This Row],[Precio de Venta]]*VentasMenudeo[[#This Row],[Cantidad]]-VentasMenudeo[[#This Row],[Descuento]]),0) -> 250 | K163: 250
A164: 2022-05-30 | B164: Hugo | C164: IPLAY MAX | D164: Coconut | E164: 1 | F164: $20 Descuento | H164: =_xlfn.IFNA(VLOOKUP(VentasMenudeo[[#This Row],[Promoción]],PromocionesMenudeo[[Promocion]:[Descuento]],2,0),0) -> 20 | I164: =_xlfn.IFNA(VLOOKUP(VentasMenudeo[[#This Row],[Producto]],$A$2:$B$5,2,FALSE),0) -> 270 | J164: =_xlfn.IFNA(_xlfn.IFS(VentasMenudeo[[#This Row],[Producto]]=$A$2,VentasMenudeo[[#This Row],[Precio de Venta]]*VentasMenudeo[[#This Row],[Cantidad]]-VentasMenudeo[[#This Row],[Descuento]],VentasMenudeo[[#This Row],[Producto]]=$A$3,VentasMenudeo[[#This Row],[Precio de Venta]]*VentasMenudeo[[#This Row],[Cantidad]]-VentasMenudeo[[#This Row],[Descuento]],VentasMenudeo[[#This Row],[Producto]]=$A$4,VentasMenudeo[[#This Row],[Precio de Venta]]*VentasMenudeo[[#This Row],[Cantidad]]-VentasMenudeo[[#This Row],[Descuento]],VentasMenudeo[[#This Row],[Producto]]=$A$5,VentasMenudeo[[#This Row],[Precio de Venta]]*VentasMenudeo[[#This Row],[Cantidad]]-VentasMenudeo[[#This Row],[Descuento]]),0) -> 250 | K164: 250
A165: 2022-05-30 | B165: Hugo | C165: IPLAY MAX | D165: Cool mint | E165: 1 | F165: $20 Descuento | H165: =_xlfn.IFNA(VLOOKUP(VentasMenudeo[[#This Row],[Promoción]],PromocionesMenudeo[[Promocion]:[Descuento]],2,0),0) -> 20 | I165: =_xlfn.IFNA(VLOOKUP(VentasMenudeo[[#This Row],[Producto]],$A$2:$B$5,2,FALSE),0) -> 270 | J165: =_xlfn.IFNA(_xlfn.IFS(VentasMenudeo[[#This Row],[Producto]]=$A$2,VentasMenudeo[[#This Row],[Precio de Venta]]*VentasMenudeo[[#This Row],[Cantidad]]-VentasMenudeo[[#This Row],[Descuento]],VentasMenudeo[[#This Row],[Producto]]=$A$3,VentasMenudeo[[#This Row],[Precio de Venta]]*VentasMenudeo[[#This Row],[Cantidad]]-VentasMenudeo[[#This Row],[Descuento]],VentasMenudeo[[#This Row],[Producto]]=$A$4,VentasMenudeo[[#This Row],[Precio de Venta]]*VentasMenudeo[[#This Row],[Cantidad]]-VentasMenudeo[[#This Row],[Descuento]],VentasMenudeo[[#This Row],[Producto]]=$A$5,VentasMenudeo[[#This Row],[Precio de Venta]]*VentasMenudeo[[#This Row],[Cantidad]]-VentasMenudeo[[#This Row],[Descuento]]),0) -> 250 | K165: 250
A166: 2022-05-30 | B166: Hugo | C166: IPLAY MAX | D166: Grapestraw | E166: 1 | F166: $20 Descuento | H166: =_xlfn.IFNA(VLOOKUP(VentasMenudeo[[#This Row],[Promoción]],PromocionesMenudeo[[Promocion]:[Descuento]],2,0),0) -> 20 | I166: =_xlfn.IFNA(VLOOKUP(VentasMenudeo[[#This Row],[Producto]],$A$2:$B$5,2,FALSE),0) -> 270 | J166: =_xlfn.IFNA(_xlfn.IFS(VentasMenudeo[[#This Row],[Producto]]=$A$2,VentasMenudeo[[#This Row],[Precio de Venta]]*VentasMenudeo[[#This Row],[Cantidad]]-VentasMenudeo[[#This Row],[Descuento]],VentasMenudeo[[#This Row],[Producto]]=$A$3,VentasMenudeo[[#This Row],[Precio de Venta]]*VentasMenudeo[[#This Row],[Cantidad]]-VentasMenudeo[[#This Row],[Descuento]],VentasMenudeo[[#This Row],[Producto]]=$A$4,VentasMenudeo[[#This Row],[Precio de Venta]]*VentasMenudeo[[#This Row],[Cantidad]]-VentasMenudeo[[#This Row],[Descuento]],VentasMenudeo[[#This Row],[Producto]]=$A$5,VentasMenudeo[[#This Row],[Precio de Venta]]*VentasMenudeo[[#This Row],[Cantidad]]-VentasMenudeo[[#This Row],[Descuento]]),0) -> 250 | K166: 250
A167: 2022-06-02 | B167: Hugo | C167: IPLAY MAX | D167: Cool mint | E167: 1 | F167: $20 Descuento | H167: =_xlfn.IFNA(VLOOKUP(VentasMenudeo[[#This Row],[Promoción]],PromocionesMenudeo[[Promocion]:[Descuento]],2,0),0) -> 20 | I167: =_xlfn.IFNA(VLOOKUP(VentasMenudeo[[#This Row],[Producto]],$A$2:$B$5,2,FALSE),0) -> 270 | J167: =_xlfn.IFNA(_xlfn.IFS(VentasMenudeo[[#This Row],[Producto]]=$A$2,VentasMenudeo[[#This Row],[Precio de Venta]]*VentasMenudeo[[#This Row],[Cantidad]]-VentasMenudeo[[#This Row],[Descuento]],VentasMenudeo[[#This Row],[Producto]]=$A$3,VentasMenudeo[[#This Row],[Precio de Venta]]*VentasMenudeo[[#This Row],[Cantidad]]-VentasMenudeo[[#This Row],[Descuento]],VentasMenudeo[[#This Row],[Producto]]=$A$4,VentasMenudeo[[#This Row],[Precio de Venta]]*VentasMenudeo[[#This Row],[Cantidad]]-VentasMenudeo[[#This Row],[Descuento]],VentasMenudeo[[#This Row],[Producto]]=$A$5,VentasMenudeo[[#This Row],[Precio de Venta]]*VentasMenudeo[[#This Row],[Cantidad]]-VentasMenudeo[[#This Row],[Descuento]]),0) -> 250 | K167: 250
A168: 2022-06-02 | B168: Hugo | C168: IPLAY MAX | D168: Cool mint | E168: 1 | F168: $20 Descuento | H168: =_xlfn.IFNA(VLOOKUP(VentasMenudeo[[#This Row],[Promoción]],PromocionesMenudeo[[Promocion]:[Descuento]],2,0),0) -> 20 | I168: =_xlfn.IFNA(VLOOKUP(VentasMenudeo[[#This Row],[Producto]],$A$2:$B$5,2,FALSE),0) -> 270 | J168: =_xlfn.IFNA(_xlfn.IFS(VentasMenudeo[[#This Row],[Producto]]=$A$2,VentasMenudeo[[#This Row],[Precio de Venta]]*VentasMenudeo[[#This Row],[Cantidad]]-VentasMenudeo[[#This Row],[Descuento]],VentasMenudeo[[#This Row],[Producto]]=$A$3,VentasMenudeo[[#This Row],[Precio de Venta]]*VentasMenudeo[[#This Row],[Cantidad]]-VentasMenudeo[[#This Row],[Descuento]],VentasMenudeo[[#This Row],[Producto]]=$A$4,VentasMenudeo[[#This Row],[Precio de Venta]]*VentasMenudeo[[#This Row],[Cantidad]]-VentasMenudeo[[#This Row],[Descuento]],VentasMenudeo[[#This Row],[Producto]]=$A$5,VentasMenudeo[[#This Row],[Precio de Venta]]*VentasMenudeo[[#This Row],[Cantidad]]-VentasMenudeo[[#This Row],[Descuento]]),0) -> 250 | K168: 250
A169: 2022-06-02 | B169: Hugo | C169: IPLAY MAX | D169: Peach Ice | E169: 1 | F169: $20 Descuento | H169: =_xlfn.IFNA(VLOOKUP(VentasMenudeo[[#This Row],[Promoción]],PromocionesMenudeo[[Promocion]:[Descuento]],2,0),0) -> 20 | I169: =_xlfn.IFNA(VLOOKUP(VentasMenudeo[[#This Row],[Producto]],$A$2:$B$5,2,FALSE),0) -> 270 | J169: =_xlfn.IFNA(_xlfn.IFS(VentasMenudeo[[#This Row],[Producto]]=$A$2,VentasMenudeo[[#This Row],[Precio de Venta]]*VentasMenudeo[[#This Row],[Cantidad]]-VentasMenudeo[[#This Row],[Descuento]],VentasMenudeo[[#This Row],[Producto]]=$A$3,VentasMenudeo[[#This Row],[Precio de Venta]]*VentasMenudeo[[#This Row],[Cantidad]]-VentasMenudeo[[#This Row],[Descuento]],VentasMenudeo[[#This Row],[Producto]]=$A$4,VentasMenudeo[[#This Row],[Precio de Venta]]*VentasMenudeo[[#This Row],[Cantidad]]-VentasMenudeo[[#This Row],[Descuento]],VentasMenudeo[[#This Row],[Producto]]=$A$5,VentasMenudeo[[#This Row],[Precio de Venta]]*VentasMenudeo[[#This Row],[Cantidad]]-VentasMenudeo[[#This Row],[Descuento]]),0) -> 250 | K169: 250
A170: 2022-06-02 | B170: Hugo | C170: IPLAY MAX | D170: Peach Ice | E170: 1 | F170: $20 Descuento | H170: =_xlfn.IFNA(VLOOKUP(VentasMenudeo[[#This Row],[Promoción]],PromocionesMenudeo[[Promocion]:[Descuento]],2,0),0) -> 20 | I170: =_xlfn.IFNA(VLOOKUP(VentasMenudeo[[#This Row],[Producto]],$A$2:$B$5,2,FALSE),0) -> 270 | J170: =_xlfn.IFNA(_xlfn.IFS(VentasMenudeo[[#This Row],[Producto]]=$A$2,VentasMenudeo[[#This Row],[Precio de Venta]]*VentasMenudeo[[#This Row],[Cantidad]]-VentasMenudeo[[#This Row],[Descuento]],VentasMenudeo[[#This Row],[Producto]]=$A$3,VentasMenudeo[[#This Row],[Precio de Venta]]*VentasMenudeo[[#This Row],[Cantidad]]-VentasMenudeo[[#This Row],[Descuento]],VentasMenudeo[[#This Row],[Producto]]=$A$4,VentasMenudeo[[#This Row],[Precio de Venta]]*VentasMenudeo[[#This Row],[Cantidad]]-VentasMenudeo[[#This Row],[Descuento]],VentasMenudeo[[#This Row],[Producto]]=$A$5,VentasMenudeo[[#This Row],[Precio de Venta]]*VentasMenudeo[[#This Row],[Cantidad]]-VentasMenudeo[[#This Row],[Descuento]]),0) -> 250 | K170: 250
A171: 2022-06-02 | B171: Hugo | C171: IPLAY MAX | D171: GrapeFruit berry | E171: 1 | F171: $20 Descuento | H171: =_xlfn.IFNA(VLOOKUP(VentasMenudeo[[#This Row],[Promoción]],PromocionesMenudeo[[Promocion]:[Descuento]],2,0),0) -> 20 | I171: =_xlfn.IFNA(VLOOKUP(VentasMenudeo[[#This Row],[Producto]],$A$2:$B$5,2,FALSE),0) -> 270 | J171: =_xlfn.IFNA(_xlfn.IFS(VentasMenudeo[[#This Row],[Producto]]=$A$2,VentasMenudeo[[#This Row],[Precio de Venta]]*VentasMenudeo[[#This Row],[Cantidad]]-VentasMenudeo[[#This Row],[Descuento]],VentasMenudeo[[#This Row],[Producto]]=$A$3,VentasMenudeo[[#This Row],[Precio de Venta]]*VentasMenudeo[[#This Row],[Cantidad]]-VentasMenudeo[[#This Row],[Descuento]],VentasMenudeo[[#This Row],[Producto]]=$A$4,VentasMenudeo[[#This Row],[Precio de Venta]]*VentasMenudeo[[#This Row],[Cantidad]]-VentasMenudeo[[#This Row],[Descuento]],VentasMenudeo[[#This Row],[Producto]]=$A$5,VentasMenudeo[[#This Row],[Precio de Venta]]*VentasMenudeo[[#This Row],[Cantidad]]-VentasMenudeo[[#This Row],[Descuento]]),0) -> 250 | K171: 250
A172: 2022-06-02 | B172: Hugo | C172: IPLAY MAX | D172: Coconut | E172: 1 | F172: $20 Descuento | H172: =_xlfn.IFNA(VLOOKUP(VentasMenudeo[[#This Row],[Promoción]],PromocionesMenudeo[[Promocion]:[Descuento]],2,0),0) -> 20 | I172: =_xlfn.IFNA(VLOOKUP(VentasMenudeo[[#This Row],[Producto]],$A$2:$B$5,2,FALSE),0) -> 270 | J172: =_xlfn.IFNA(_xlfn.IFS(VentasMenudeo[[#This Row],[Producto]]=$A$2,VentasMenudeo[[#This Row],[Precio de Venta]]*VentasMenudeo[[#This Row],[Cantidad]]-VentasMenudeo[[#This Row],[Descuento]],VentasMenudeo[[#This Row],[Producto]]=$A$3,VentasMenudeo[[#This Row],[Precio de Venta]]*VentasMenudeo[[#This Row],[Cantidad]]-VentasMenudeo[[#This Row],[Descuento]],VentasMenudeo[[#This Row],[Producto]]=$A$4,VentasMenudeo[[#This Row],[Precio de Venta]]*VentasMenudeo[[#This Row],[Cantidad]]-VentasMenudeo[[#This Row],[Descuento]],VentasMenudeo[[#This Row],[Producto]]=$A$5,VentasMenudeo[[#This Row],[Precio de Venta]]*VentasMenudeo[[#This Row],[Cantidad]]-VentasMenudeo[[#This Row],[Descuento]]),0) -> 250 | K172: 250
A173: 2022-06-02 | B173: Hugo | C173: IPLAY MAX | D173: Peach Ice | E173: 1 | F173: $20 Descuento | H173: =_xlfn.IFNA(VLOOKUP(VentasMenudeo[[#This Row],[Promoción]],PromocionesMenudeo[[Promocion]:[Descuento]],2,0),0) -> 20 | I173: =_xlfn.IFNA(VLOOKUP(VentasMenudeo[[#This Row],[Producto]],$A$2:$B$5,2,FALSE),0) -> 270 | J173: =_xlfn.IFNA(_xlfn.IFS(VentasMenudeo[[#This Row],[Producto]]=$A$2,VentasMenudeo[[#This Row],[Precio de Venta]]*VentasMenudeo[[#This Row],[Cantidad]]-VentasMenudeo[[#This Row],[Descuento]],VentasMenudeo[[#This Row],[Producto]]=$A$3,VentasMenudeo[[#This Row],[Precio de Venta]]*VentasMenudeo[[#This Row],[Cantidad]]-VentasMenudeo[[#This Row],[Descuento]],VentasMenudeo[[#This Row],[Producto]]=$A$4,VentasMenudeo[[#This Row],[Precio de Venta]]*VentasMenudeo[[#This Row],[Cantidad]]-VentasMenudeo[[#This Row],[Descuento]],VentasMenudeo[[#This Row],[Producto]]=$A$5,VentasMenudeo[[#This Row],[Precio de Venta]]*VentasMenudeo[[#This Row],[Cantidad]]-VentasMenudeo[[#This Row],[Descuento]]),0) -> 250 | K173: 250
A174: 2022-06-02 | B174: Hugo | C174: IPLAY MAX | D174: Strawberry Lychee | E174: 1 | F174: $20 Descuento | H174: =_xlfn.IFNA(VLOOKUP(VentasMenudeo[[#This Row],[Promoción]],PromocionesMenudeo[[Promocion]:[Descuento]],2,0),0) -> 20 | I174: =_xlfn.IFNA(VLOOKUP(VentasMenudeo[[#This Row],[Producto]],$A$2:$B$5,2,FALSE),0) -> 270 | J174: =_xlfn.IFNA(_xlfn.IFS(VentasMenudeo[[#This Row],[Producto]]=$A$2,VentasMenudeo[[#This Row],[Precio de Venta]]*VentasMenudeo[[#This Row],[Cantidad]]-VentasMenudeo[[#This Row],[Descuento]],VentasMenudeo[[#This Row],[Producto]]=$A$3,VentasMenudeo[[#This Row],[Precio de Venta]]*VentasMenudeo[[#This Row],[Cantidad]]-VentasMenudeo[[#This Row],[Descuento]],VentasMenudeo[[#This Row],[Producto]]=$A$4,VentasMenudeo[[#This Row],[Precio de Venta]]*VentasMenudeo[[#This Row],[Cantidad]]-VentasMenudeo[[#This Row],[Descuento]],VentasMenudeo[[#This Row],[Producto]]=$A$5,VentasMenudeo[[#This Row],[Precio de Venta]]*VentasMenudeo[[#This Row],[Cantidad]]-VentasMenudeo[[#This Row],[Descuento]]),0) -> 250 | K174: 250
A175: 2022-06-02 | B175: Hugo | C175: IPLAY MAX | D175: Cool mint | E175: 1 | F175: $20 Descuento | H175: =_xlfn.IFNA(VLOOKUP(VentasMenudeo[[#This Row],[Promoción]],PromocionesMenudeo[[Promocion]:[Descuento]],2,0),0) -> 20 | I175: =_xlfn.IFNA(VLOOKUP(VentasMenudeo[[#This Row],[Producto]],$A$2:$B$5,2,FALSE),0) -> 270 | J175: =_xlfn.IFNA(_xlfn.IFS(VentasMenudeo[[#This Row],[Producto]]=$A$2,VentasMenudeo[[#This Row],[Precio de Venta]]*VentasMenudeo[[#This Row],[Cantidad]]-VentasMenudeo[[#This Row],[Descuento]],VentasMenudeo[[#This Row],[Producto]]=$A$3,VentasMenudeo[[#This Row],[Precio de Venta]]*VentasMenudeo[[#This Row],[Cantidad]]-VentasMenudeo[[#This Row],[Descuento]],VentasMenudeo[[#This Row],[Producto]]=$A$4,VentasMenudeo[[#This Row],[Precio de Venta]]*VentasMenudeo[[#This Row],[Cantidad]]-VentasMenudeo[[#This Row],[Descuento]],VentasMenudeo[[#This Row],[Producto]]=$A$5,VentasMenudeo[[#This Row],[Precio de Venta]]*VentasMenudeo[[#This Row],[Cantidad]]-VentasMenudeo[[#This Row],[Descuento]]),0) -> 250 | K175: 250
A176: 2022-06-02 | B176: Hugo | C176: IPLAY MAX | D176: Cool mint | E176: 1 | F176: $20 Descuento | H176: =_xlfn.IFNA(VLOOKUP(VentasMenudeo[[#This Row],[Promoción]],PromocionesMenudeo[[Promocion]:[Descuento]],2,0),0) -> 20 | I176: =_xlfn.IFNA(VLOOKUP(VentasMenudeo[[#This Row],[Producto]],$A$2:$B$5,2,FALSE),0) -> 270 | J176: =_xlfn.IFNA(_xlfn.IFS(VentasMenudeo[[#This Row],[Producto]]=$A$2,VentasMenudeo[[#This Row],[Precio de Venta]]*VentasMenudeo[[#This Row],[Cantidad]]-VentasMenudeo[[#This Row],[Descuento]],VentasMenudeo[[#This Row],[Producto]]=$A$3,VentasMenudeo[[#This Row],[Precio de Venta]]*VentasMenudeo[[#This Row],[Cantidad]]-VentasMenudeo[[#This Row],[Descuento]],VentasMenudeo[[#This Row],[Producto]]=$A$4,VentasMenudeo[[#This Row],[Precio de Venta]]*VentasMenudeo[[#This Row],[Cantidad]]-VentasMenudeo[[#This Row],[Descuento]],VentasMenudeo[[#This Row],[Producto]]=$A$5,VentasMenudeo[[#This Row],[Precio de Venta]]*VentasMenudeo[[#This Row],[Cantidad]]-VentasMenudeo[[#This Row],[Descuento]]),0) -> 250 | K176: 250
A177: 2022-06-02 | B177: Hugo | C177: IPLAY MAX | D177: Coconut | E177: 1 | F177: $20 Descuento | H177: =_xlfn.IFNA(VLOOKUP(VentasMenudeo[[#This Row],[Promoción]],PromocionesMenudeo[[Promocion]:[Descuento]],2,0),0) -> 20 | I177: =_xlfn.IFNA(VLOOKUP(VentasMenudeo[[#This Row],[Producto]],$A$2:$B$5,2,FALSE),0) -> 270 | J177: =_xlfn.IFNA(_xlfn.IFS(VentasMenudeo[[#This Row],[Producto]]=$A$2,VentasMenudeo[[#This Row],[Precio de Venta]]*VentasMenudeo[[#This Row],[Cantidad]]-VentasMenudeo[[#This Row],[Descuento]],VentasMenudeo[[#This Row],[Producto]]=$A$3,VentasMenudeo[[#This Row],[Precio de Venta]]*VentasMenudeo[[#This Row],[Cantidad]]-VentasMenudeo[[#This Row],[Descuento]],VentasMenudeo[[#This Row],[Producto]]=$A$4,VentasMenudeo[[#This Row],[Precio de Venta]]*VentasMenudeo[[#This Row],[Cantidad]]-VentasMenudeo[[#This Row],[Descuento]],VentasMenudeo[[#This Row],[Producto]]=$A$5,VentasMenudeo[[#This Row],[Precio de Venta]]*VentasMenudeo[[#This Row],[Cantidad]]-VentasMenudeo[[#This Row],[Descuento]]),0) -> 250 | K177: 250
A178: 2022-06-02 | B178: Hugo | C178: IPLAY MAX | D178: Berry Watermelon | E178: 1 | F178: $20 Descuento | H178: =_xlfn.IFNA(VLOOKUP(VentasMenudeo[[#This Row],[Promoción]],PromocionesMenudeo[[Promocion]:[Descuento]],2,0),0) -> 20 | I178: =_xlfn.IFNA(VLOOKUP(VentasMenudeo[[#This Row],[Producto]],$A$2:$B$5,2,FALSE),0) -> 270 | J178: =_xlfn.IFNA(_xlfn.IFS(VentasMenudeo[[#This Row],[Producto]]=$A$2,VentasMenudeo[[#This Row],[Precio de Venta]]*VentasMenudeo[[#This Row],[Cantidad]]-VentasMenudeo[[#This Row],[Descuento]],VentasMenudeo[[#This Row],[Producto]]=$A$3,VentasMenudeo[[#This Row],[Precio de Venta]]*VentasMenudeo[[#This Row],[Cantidad]]-VentasMenudeo[[#This Row],[Descuento]],VentasMenudeo[[#This Row],[Producto]]=$A$4,VentasMenudeo[[#This Row],[Precio de Venta]]*VentasMenudeo[[#This Row],[Cantidad]]-VentasMenudeo[[#This Row],[Descuento]],VentasMenudeo[[#This Row],[Producto]]=$A$5,VentasMenudeo[[#This Row],[Precio de Venta]]*VentasMenudeo[[#This Row],[Cantidad]]-VentasMenudeo[[#This Row],[Descuento]]),0) -> 250 | K178: 250
A179: 2022-06-02 | B179: Hugo | C179: IPLAY MAX | D179: Cool mint | E179: 1 | F179: $20 Descuento | H179: =_xlfn.IFNA(VLOOKUP(VentasMenudeo[[#This Row],[Promoción]],PromocionesMenudeo[[Promocion]:[Descuento]],2,0),0) -> 20 | I179: =_xlfn.IFNA(VLOOKUP(VentasMenudeo[[#This Row],[Producto]],$A$2:$B$5,2,FALSE),0) -> 270 | J179: =_xlfn.IFNA(_xlfn.IFS(VentasMenudeo[[#This Row],[Producto]]=$A$2,VentasMenudeo[[#This Row],[Precio de Venta]]*VentasMenudeo[[#This Row],[Cantidad]]-VentasMenudeo[[#This Row],[Descuento]],VentasMenudeo[[#This Row],[Producto]]=$A$3,VentasMenudeo[[#This Row],[Precio de Venta]]*VentasMenudeo[[#This Row],[Cantidad]]-VentasMenudeo[[#This Row],[Descuento]],VentasMenudeo[[#This Row],[Producto]]=$A$4,VentasMenudeo[[#This Row],[Precio de Venta]]*VentasMenudeo[[#This Row],[Cantidad]]-VentasMenudeo[[#This Row],[Descuento]],VentasMenudeo[[#This Row],[Producto]]=$A$5,VentasMenudeo[[#This Row],[Precio de Venta]]*VentasMenudeo[[#This Row],[Cantidad]]-VentasMenudeo[[#This Row],[Descuento]]),0) -> 250 | K179: 250
A180: 2022-06-02 | B180: Hugo | C180: IPLAY MAX | D180: Peach Ice | E180: 1 | F180: $20 Descuento | H180: =_xlfn.IFNA(VLOOKUP(VentasMenudeo[[#This Row],[Promoción]],PromocionesMenudeo[[Promocion]:[Descuento]],2,0),0) -> 20 | I180: =_xlfn.IFNA(VLOOKUP(VentasMenudeo[[#This Row],[Producto]],$A$2:$B$5,2,FALSE),0) -> 270 | J180: =_xlfn.IFNA(_xlfn.IFS(VentasMenudeo[[#This Row],[Producto]]=$A$2,VentasMenudeo[[#This Row],[Precio de Venta]]*VentasMenudeo[[#This Row],[Cantidad]]-VentasMenudeo[[#This Row],[Descuento]],VentasMenudeo[[#This Row],[Producto]]=$A$3,VentasMenudeo[[#This Row],[Precio de Venta]]*VentasMenudeo[[#This Row],[Cantidad]]-VentasMenudeo[[#This Row],[Descuento]],VentasMenudeo[[#This Row],[Producto]]=$A$4,VentasMenudeo[[#This Row],[Precio de Venta]]*VentasMenudeo[[#This Row],[Cantidad]]-VentasMenudeo[[#This Row],[Descuento]],VentasMenudeo[[#This Row],[Producto]]=$A$5,VentasMenudeo[[#This Row],[Precio de Venta]]*VentasMenudeo[[#This Row],[Cantidad]]-VentasMenudeo[[#This Row],[Descuento]]),0) -> 250 | K180: 250
A181: 2022-06-02 | B181: Hugo | C181: IPLAY MAX | D181: Bluerazz | E181: 1 | F181: $20 Descuento | H181: =_xlfn.IFNA(VLOOKUP(VentasMenudeo[[#This Row],[Promoción]],PromocionesMenudeo[[Promocion]:[Descuento]],2,0),0) -> 20 | I181: =_xlfn.IFNA(VLOOKUP(VentasMenudeo[[#This Row],[Producto]],$A$2:$B$5,2,FALSE),0) -> 270 | J181: =_xlfn.IFNA(_xlfn.IFS(VentasMenudeo[[#This Row],[Producto]]=$A$2,VentasMenudeo[[#This Row],[Precio de Venta]]*VentasMenudeo[[#This Row],[Cantidad]]-VentasMenudeo[[#This Row],[Descuento]],VentasMenudeo[[#This Row],[Producto]]=$A$3,VentasMenudeo[[#This Row],[Precio de Venta]]*VentasMenudeo[[#This Row],[Cantidad]]-VentasMenudeo[[#This Row],[Descuento]],VentasMenudeo[[#This Row],[Producto]]=$A$4,VentasMenudeo[[#This Row],[Precio de Venta]]*VentasMenudeo[[#This Row],[Cantidad]]-VentasMenudeo[[#This Row],[Descuento]],VentasMenudeo[[#This Row],[Producto]]=$A$5,VentasMenudeo[[#This Row],[Precio de Venta]]*VentasMenudeo[[#This Row],[Cantidad]]-VentasMenudeo[[#This Row],[Descuento]]),0) -> 250 | K181: 250
A182: 2022-06-02 | B182: Hugo | C182: IPLAY MAX | D182: Coconut | E182: 1 | F182: $20 Descuento | H182: =_xlfn.IFNA(VLOOKUP(VentasMenudeo[[#This Row],[Promoción]],PromocionesMenudeo[[Promocion]:[Descuento]],2,0),0) -> 20 | I182: =_xlfn.IFNA(VLOOKUP(VentasMenudeo[[#This Row],[Producto]],$A$2:$B$5,2,FALSE),0) -> 270 | J182: =_xlfn.IFNA(_xlfn.IFS(VentasMenudeo[[#This Row],[Producto]]=$A$2,VentasMenudeo[[#This Row],[Precio de Venta]]*VentasMenudeo[[#This Row],[Cantidad]]-VentasMenudeo[[#This Row],[Descuento]],VentasMenudeo[[#This Row],[Producto]]=$A$3,VentasMenudeo[[#This Row],[Precio de Venta]]*VentasMenudeo[[#This Row],[Cantidad]]-VentasMenudeo[[#This Row],[Descuento]],VentasMenudeo[[#This Row],[Producto]]=$A$4,VentasMenudeo[[#This Row],[Precio de Venta]]*VentasMenudeo[[#This Row],[Cantidad]]-VentasMenudeo[[#This Row],[Descuento]],VentasMenudeo[[#This Row],[Producto]]=$A$5,VentasMenudeo[[#This Row],[Precio de Venta]]*VentasMenudeo[[#This Row],[Cantidad]]-VentasMenudeo[[#This Row],[Descuento]]),0) -> 250 | K182: 250
A183: 2022-06-02 | B183: Hugo | C183: IPLAY MAX | D183: Coconut | E183: 1 | F183: $20 Descuento | H183: =_xlfn.IFNA(VLOOKUP(VentasMenudeo[[#This Row],[Promoción]],PromocionesMenudeo[[Promocion]:[Descuento]],2,0),0) -> 20 | I183: =_xlfn.IFNA(VLOOKUP(VentasMenudeo[[#This Row],[Producto]],$A$2:$B$5,2,FALSE),0) -> 270 | J183: =_xlfn.IFNA(_xlfn.IFS(VentasMenudeo[[#This Row],[Producto]]=$A$2,VentasMenudeo[[#This Row],[Precio de Venta]]*VentasMenudeo[[#This Row],[Cantidad]]-VentasMenudeo[[#This Row],[Descuento]],VentasMenudeo[[#This Row],[Producto]]=$A$3,VentasMenudeo[[#This Row],[Precio de Venta]]*VentasMenudeo[[#This Row],[Cantidad]]-VentasMenudeo[[#This Row],[Descuento]],VentasMenudeo[[#This Row],[Producto]]=$A$4,VentasMenudeo[[#This Row],[Precio de Venta]]*VentasMenudeo[[#This Row],[Cantidad]]-VentasMenudeo[[#This Row],[Descuento]],VentasMenudeo[[#This Row],[Producto]]=$A$5,VentasMenudeo[[#This Row],[Precio de Venta]]*VentasMenudeo[[#This Row],[Cantidad]]-VentasMenudeo[[#This Row],[Descuento]]),0) -> 250 | K183: 250
A184: 2022-06-02 | B184: Hugo | C184: IPLAY MAX | D184: Bluerazz | E184: 1 | F184: $20 Descuento | H184: =_xlfn.IFNA(VLOOKUP(VentasMenudeo[[#This Row],[Promoción]],PromocionesMenudeo[[Promocion]:[Descuento]],2,0),0) -> 20 | I184: =_xlfn.IFNA(VLOOKUP(VentasMenudeo[[#This Row],[Producto]],$A$2:$B$5,2,FALSE),0) -> 270 | J184: =_xlfn.IFNA(_xlfn.IFS(VentasMenudeo[[#This Row],[Producto]]=$A$2,VentasMenudeo[[#This Row],[Precio de Venta]]*VentasMenudeo[[#This Row],[Cantidad]]-VentasMenudeo[[#This Row],[Descuento]],VentasMenudeo[[#This Row],[Producto]]=$A$3,VentasMenudeo[[#This Row],[Precio de Venta]]*VentasMenudeo[[#This Row],[Cantidad]]-VentasMenudeo[[#This Row],[Descuento]],VentasMenudeo[[#This Row],[Producto]]=$A$4,VentasMenudeo[[#This Row],[Precio de Venta]]*VentasMenudeo[[#This Row],[Cantidad]]-VentasMenudeo[[#This Row],[Descuento]],VentasMenudeo[[#This Row],[Producto]]=$A$5,VentasMenudeo[[#This Row],[Precio de Venta]]*VentasMenudeo[[#This Row],[Cantidad]]-VentasMenudeo[[#This Row],[Descuento]]),0) -> 250 | K184: 250
A185: 2022-06-02 | B185: Hugo | C185: IPLAY MAX | D185: Bluerazz | E185: 1 | F185: $20 Descuento | H185: =_xlfn.IFNA(VLOOKUP(VentasMenudeo[[#This Row],[Promoción]],PromocionesMenudeo[[Promocion]:[Descuento]],2,0),0) -> 20 | I185: =_xlfn.IFNA(VLOOKUP(VentasMenudeo[[#This Row],[Producto]],$A$2:$B$5,2,FALSE),0) -> 270 | J185: =_xlfn.IFNA(_xlfn.IFS(VentasMenudeo[[#This Row],[Producto]]=$A$2,VentasMenudeo[[#This Row],[Precio de Venta]]*VentasMenudeo[[#This Row],[Cantidad]]-VentasMenudeo[[#This Row],[Descuento]],VentasMenudeo[[#This Row],[Producto]]=$A$3,VentasMenudeo[[#This Row],[Precio de Venta]]*VentasMenudeo[[#This Row],[Cantidad]]-VentasMenudeo[[#This Row],[Descuento]],VentasMenudeo[[#This Row],[Producto]]=$A$4,VentasMenudeo[[#This Row],[Precio de Venta]]*VentasMenudeo[[#This Row],[Cantidad]]-VentasMenudeo[[#This Row],[Descuento]],VentasMenudeo[[#This Row],[Producto]]=$A$5,VentasMenudeo[[#This Row],[Precio de Venta]]*VentasMenudeo[[#This Row],[Cantidad]]-VentasMenudeo[[#This Row],[Descuento]]),0) -> 250 | K185: 250
A186: 2022-06-02 | B186: Hugo | C186: IPLAY MAX | D186: Bluerazz | E186: 1 | F186: $20 Descuento | H186: =_xlfn.IFNA(VLOOKUP(VentasMenudeo[[#This Row],[Promoción]],PromocionesMenudeo[[Promocion]:[Descuento]],2,0),0) -> 20 | I186: =_xlfn.IFNA(VLOOKUP(VentasMenudeo[[#This Row],[Producto]],$A$2:$B$5,2,FALSE),0) -> 270 | J186: =_xlfn.IFNA(_xlfn.IFS(VentasMenudeo[[#This Row],[Producto]]=$A$2,VentasMenudeo[[#This Row],[Precio de Venta]]*VentasMenudeo[[#This Row],[Cantidad]]-VentasMenudeo[[#This Row],[Descuento]],VentasMenudeo[[#This Row],[Producto]]=$A$3,VentasMenudeo[[#This Row],[Precio de Venta]]*VentasMenudeo[[#This Row],[Cantidad]]-VentasMenudeo[[#This Row],[Descuento]],VentasMenudeo[[#This Row],[Producto]]=$A$4,VentasMenudeo[[#This Row],[Precio de Venta]]*VentasMenudeo[[#This Row],[Cantidad]]-VentasMenudeo[[#This Row],[Descuento]],VentasMenudeo[[#This Row],[Producto]]=$A$5,VentasMenudeo[[#This Row],[Precio de Venta]]*VentasMenudeo[[#This Row],[Cantidad]]-VentasMenudeo[[#This Row],[Descuento]]),0) -> 250 | K186: 250
A187: 2022-06-02 | B187: Hugo | C187: IPLAY MAX | D187: Grapestraw | E187: 1 | F187: $20 Descuento | H187: =_xlfn.IFNA(VLOOKUP(VentasMenudeo[[#This Row],[Promoción]],PromocionesMenudeo[[Promocion]:[Descuento]],2,0),0) -> 20 | I187: =_xlfn.IFNA(VLOOKUP(VentasMenudeo[[#This Row],[Producto]],$A$2:$B$5,2,FALSE),0) -> 270 | J187: =_xlfn.IFNA(_xlfn.IFS(VentasMenudeo[[#This Row],[Producto]]=$A$2,VentasMenudeo[[#This Row],[Precio de Venta]]*VentasMenudeo[[#This Row],[Cantidad]]-VentasMenudeo[[#This Row],[Descuento]],VentasMenudeo[[#This Row],[Producto]]=$A$3,VentasMenudeo[[#This Row],[Precio de Venta]]*VentasMenudeo[[#This Row],[Cantidad]]-VentasMenudeo[[#This Row],[Descuento]],VentasMenudeo[[#This Row],[Producto]]=$A$4,VentasMenudeo[[#This Row],[Precio de Venta]]*VentasMenudeo[[#This Row],[Cantidad]]-VentasMenudeo[[#This Row],[Descuento]],VentasMenudeo[[#This Row],[Producto]]=$A$5,VentasMenudeo[[#This Row],[Precio de Venta]]*VentasMenudeo[[#This Row],[Cantidad]]-VentasMenudeo[[#This Row],[Descuento]]),0) -> 250 | K187: 250
A188: 2022-06-02 | B188: Hugo | C188: IPLAY MAX | D188: Grapestraw | E188: 1 | F188: $20 Descuento | H188: =_xlfn.IFNA(VLOOKUP(VentasMenudeo[[#This Row],[Promoción]],PromocionesMenudeo[[Promocion]:[Descuento]],2,0),0) -> 20 | I188: =_xlfn.IFNA(VLOOKUP(VentasMenudeo[[#This Row],[Producto]],$A$2:$B$5,2,FALSE),0) -> 270 | J188: =_xlfn.IFNA(_xlfn.IFS(VentasMenudeo[[#This Row],[Producto]]=$A$2,VentasMenudeo[[#This Row],[Precio de Venta]]*VentasMenudeo[[#This Row],[Cantidad]]-VentasMenudeo[[#This Row],[Descuento]],VentasMenudeo[[#This Row],[Producto]]=$A$3,VentasMenudeo[[#This Row],[Precio de Venta]]*VentasMenudeo[[#This Row],[Cantidad]]-VentasMenudeo[[#This Row],[Descuento]],VentasMenudeo[[#This Row],[Producto]]=$A$4,VentasMenudeo[[#This Row],[Precio de Venta]]*VentasMenudeo[[#This Row],[Cantidad]]-VentasMenudeo[[#This Row],[Descuento]],VentasMenudeo[[#This Row],[Producto]]=$A$5,VentasMenudeo[[#This Row],[Precio de Venta]]*VentasMenudeo[[#This Row],[Cantidad]]-VentasMenudeo[[#This Row],[Descuento]]),0) -> 250 | K188: 250
A189: 2022-06-02 | B189: Hugo | C189: IPLAY MAX | D189: Guava | E189: 1 | F189: $20 Descuento | H189: =_xlfn.IFNA(VLOOKUP(VentasMenudeo[[#This Row],[Promoción]],PromocionesMenudeo[[Promocion]:[Descuento]],2,0),0) -> 20 | I189: =_xlfn.IFNA(VLOOKUP(VentasMenudeo[[#This Row],[Producto]],$A$2:$B$5,2,FALSE),0) -> 270 | J189: =_xlfn.IFNA(_xlfn.IFS(VentasMenudeo[[#This Row],[Producto]]=$A$2,VentasMenudeo[[#This Row],[Precio de Venta]]*VentasMenudeo[[#This Row],[Cantidad]]-VentasMenudeo[[#This Row],[Descuento]],VentasMenudeo[[#This Row],[Producto]]=$A$3,VentasMenudeo[[#This Row],[Precio de Venta]]*VentasMenudeo[[#This Row],[Cantidad]]-VentasMenudeo[[#This Row],[Descuento]],VentasMenudeo[[#This Row],[Producto]]=$A$4,VentasMenudeo[[#This Row],[Precio de Venta]]*VentasMenudeo[[#This Row],[Cantidad]]-VentasMenudeo[[#This Row],[Descuento]],VentasMenudeo[[#This Row],[Producto]]=$A$5,VentasMenudeo[[#This Row],[Precio de Venta]]*VentasMenudeo[[#This Row],[Cantidad]]-VentasMenudeo[[#This Row],[Descuento]]),0) -> 250 | K189: 250
A190: 2022-06-03 | B190: Hugo | C190: IPLAY MAX | D190: Berry Watermelon | E190: 1 | F190: $20 Descuento | H190: =_xlfn.IFNA(VLOOKUP(VentasMenudeo[[#This Row],[Promoción]],PromocionesMenudeo[[Promocion]:[Descuento]],2,0),0) -> 20 | I190: =_xlfn.IFNA(VLOOKUP(VentasMenudeo[[#This Row],[Producto]],$A$2:$B$5,2,FALSE),0) -> 270 | J190: =_xlfn.IFNA(_xlfn.IFS(VentasMenudeo[[#This Row],[Producto]]=$A$2,VentasMenudeo[[#This Row],[Precio de Venta]]*VentasMenudeo[[#This Row],[Cantidad]]-VentasMenudeo[[#This Row],[Descuento]],VentasMenudeo[[#This Row],[Producto]]=$A$3,VentasMenudeo[[#This Row],[Precio de Venta]]*VentasMenudeo[[#This Row],[Cantidad]]-VentasMenudeo[[#This Row],[Descuento]],VentasMenudeo[[#This Row],[Producto]]=$A$4,VentasMenudeo[[#This Row],[Precio de Venta]]*VentasMenudeo[[#This Row],[Cantidad]]-VentasMenudeo[[#This Row],[Descuento]],VentasMenudeo[[#This Row],[Producto]]=$A$5,VentasMenudeo[[#This Row],[Precio de Venta]]*VentasMenudeo[[#This Row],[Cantidad]]-VentasMenudeo[[#This Row],[Descuento]]),0) -> 250 | K190: 250
A191: 2022-06-03 | B191: Hugo | C191: IPLAY MAX | D191: Coconut | E191: 1 | F191: $20 Descuento | H191: =_xlfn.IFNA(VLOOKUP(VentasMenudeo[[#This Row],[Promoción]],PromocionesMenudeo[[Promocion]:[Descuento]],2,0),0) -> 20 | I191: =_xlfn.IFNA(VLOOKUP(VentasMenudeo[[#This Row],[Producto]],$A$2:$B$5,2,FALSE),0) -> 270 | J191: =_xlfn.IFNA(_xlfn.IFS(VentasMenudeo[[#This Row],[Producto]]=$A$2,VentasMenudeo[[#This Row],[Precio de Venta]]*VentasMenudeo[[#This Row],[Cantidad]]-VentasMenudeo[[#This Row],[Descuento]],VentasMenudeo[[#This Row],[Producto]]=$A$3,VentasMenudeo[[#This Row],[Precio de Venta]]*VentasMenudeo[[#This Row],[Cantidad]]-VentasMenudeo[[#This Row],[Descuento]],VentasMenudeo[[#This Row],[Producto]]=$A$4,VentasMenudeo[[#This Row],[Precio de Venta]]*VentasMenudeo[[#This Row],[Cantidad]]-VentasMenudeo[[#This Row],[Descuento]],VentasMenudeo[[#This Row],[Producto]]=$A$5,VentasMenudeo[[#This Row],[Precio de Venta]]*VentasMenudeo[[#This Row],[Cantidad]]-VentasMenudeo[[#This Row],[Descuento]]),0) -> 250 | K191: 250
A192: 2022-06-06 | B192: Hugo | C192: IPLAY MAX | D192: Sour Apple | E192: 1 | F192: $20 Descuento | H192: =_xlfn.IFNA(VLOOKUP(VentasMenudeo[[#This Row],[Promoción]],PromocionesMenudeo[[Promocion]:[Descuento]],2,0),0) -> 20 | I192: =_xlfn.IFNA(VLOOKUP(VentasMenudeo[[#This Row],[Producto]],$A$2:$B$5,2,FALSE),0) -> 270 | J192: =_xlfn.IFNA(_xlfn.IFS(VentasMenudeo[[#This Row],[Producto]]=$A$2,VentasMenudeo[[#This Row],[Precio de Venta]]*VentasMenudeo[[#This Row],[Cantidad]]-VentasMenudeo[[#This Row],[Descuento]],VentasMenudeo[[#This Row],[Producto]]=$A$3,VentasMenudeo[[#This Row],[Precio de Venta]]*VentasMenudeo[[#This Row],[Cantidad]]-VentasMenudeo[[#This Row],[Descuento]],VentasMenudeo[[#This Row],[Producto]]=$A$4,VentasMenudeo[[#This Row],[Precio de Venta]]*VentasMenudeo[[#This Row],[Cantidad]]-VentasMenudeo[[#This Row],[Descuento]],VentasMenudeo[[#This Row],[Producto]]=$A$5,VentasMenudeo[[#This Row],[Precio de Venta]]*VentasMenudeo[[#This Row],[Cantidad]]-VentasMenudeo[[#This Row],[Descuento]]),0) -> 250 | K192: 250
A193: 2022-06-06 | B193: Hugo | C193: IPLAY MAX | D193: Berry Watermelon | E193: 1 | F193: $20 Descuento | H193: =_xlfn.IFNA(VLOOKUP(VentasMenudeo[[#This Row],[Promoción]],PromocionesMenudeo[[Promocion]:[Descuento]],2,0),0) -> 20 | I193: =_xlfn.IFNA(VLOOKUP(VentasMenudeo[[#This Row],[Producto]],$A$2:$B$5,2,FALSE),0) -> 270 | J193: =_xlfn.IFNA(_xlfn.IFS(VentasMenudeo[[#This Row],[Producto]]=$A$2,VentasMenudeo[[#This Row],[Precio de Venta]]*VentasMenudeo[[#This Row],[Cantidad]]-VentasMenudeo[[#This Row],[Descuento]],VentasMenudeo[[#This Row],[Producto]]=$A$3,VentasMenudeo[[#This Row],[Precio de Venta]]*VentasMenudeo[[#This Row],[Cantidad]]-VentasMenudeo[[#This Row],[Descuento]],VentasMenudeo[[#This Row],[Producto]]=$A$4,VentasMenudeo[[#This Row],[Precio de Venta]]*VentasMenudeo[[#This Row],[Cantidad]]-VentasMenudeo[[#This Row],[Descuento]],VentasMenudeo[[#This Row],[Producto]]=$A$5,VentasMenudeo[[#This Row],[Precio de Venta]]*VentasMenudeo[[#This Row],[Cantidad]]-VentasMenudeo[[#This Row],[Descuento]]),0) -> 250 | K193: 250
A194: 2022-06-06 | B194: Hugo | C194: IPLAY MAX | D194: Coconut | E194: 1 | F194: $20 Descuento | H194: =_xlfn.IFNA(VLOOKUP(VentasMenudeo[[#This Row],[Promoción]],PromocionesMenudeo[[Promocion]:[Descuento]],2,0),0) -> 20 | I194: =_xlfn.IFNA(VLOOKUP(VentasMenudeo[[#This Row],[Producto]],$A$2:$B$5,2,FALSE),0) -> 270 | J194: =_xlfn.IFNA(_xlfn.IFS(VentasMenudeo[[#This Row],[Producto]]=$A$2,VentasMenudeo[[#This Row],[Precio de Venta]]*VentasMenudeo[[#This Row],[Cantidad]]-VentasMenudeo[[#This Row],[Descuento]],VentasMenudeo[[#This Row],[Producto]]=$A$3,VentasMenudeo[[#This Row],[Precio de Venta]]*VentasMenudeo[[#This Row],[Cantidad]]-VentasMenudeo[[#This Row],[Descuento]],VentasMenudeo[[#This Row],[Producto]]=$A$4,VentasMenudeo[[#This Row],[Precio de Venta]]*VentasMenudeo[[#This Row],[Cantidad]]-VentasMenudeo[[#This Row],[Descuento]],VentasMenudeo[[#This Row],[Producto]]=$A$5,VentasMenudeo[[#This Row],[Precio de Venta]]*VentasMenudeo[[#This Row],[Cantidad]]-VentasMenudeo[[#This Row],[Descuento]]),0) -> 250 | K194: 250
A195: 2022-06-06 | B195: Hugo | C195: IPLAY MAX | D195: Coconut | E195: 1 | F195: $20 Descuento | H195: =_xlfn.IFNA(VLOOKUP(VentasMenudeo[[#This Row],[Promoción]],PromocionesMenudeo[[Promocion]:[Descuento]],2,0),0) -> 20 | I195: =_xlfn.IFNA(VLOOKUP(VentasMenudeo[[#This Row],[Producto]],$A$2:$B$5,2,FALSE),0) -> 270 | J195: =_xlfn.IFNA(_xlfn.IFS(VentasMenudeo[[#This Row],[Producto]]=$A$2,VentasMenudeo[[#This Row],[Precio de Venta]]*VentasMenudeo[[#This Row],[Cantidad]]-VentasMenudeo[[#This Row],[Descuento]],VentasMenudeo[[#This Row],[Producto]]=$A$3,VentasMenudeo[[#This Row],[Precio de Venta]]*VentasMenudeo[[#This Row],[Cantidad]]-VentasMenudeo[[#This Row],[Descuento]],VentasMenudeo[[#This Row],[Producto]]=$A$4,VentasMenudeo[[#This Row],[Precio de Venta]]*VentasMenudeo[[#This Row],[Cantidad]]-VentasMenudeo[[#This Row],[Descuento]],VentasMenudeo[[#This Row],[Producto]]=$A$5,VentasMenudeo[[#This Row],[Precio de Venta]]*VentasMenudeo[[#This Row],[Cantidad]]-VentasMenudeo[[#This Row],[Descuento]]),0) -> 250 | K195: 250
A196: 2022-06-06 | B196: Hugo | C196: IPLAY MAX | D196: Bluerazz | E196: 1 | F196: $20 Descuento | H196: =_xlfn.IFNA(VLOOKUP(VentasMenudeo[[#This Row],[Promoción]],PromocionesMenudeo[[Promocion]:[Descuento]],2,0),0) -> 20 | I196: =_xlfn.IFNA(VLOOKUP(VentasMenudeo[[#This Row],[Producto]],$A$2:$B$5,2,FALSE),0) -> 270 | J196: =_xlfn.IFNA(_xlfn.IFS(VentasMenudeo[[#This Row],[Producto]]=$A$2,VentasMenudeo[[#This Row],[Precio de Venta]]*VentasMenudeo[[#This Row],[Cantidad]]-VentasMenudeo[[#This Row],[Descuento]],VentasMenudeo[[#This Row],[Producto]]=$A$3,VentasMenudeo[[#This Row],[Precio de Venta]]*VentasMenudeo[[#This Row],[Cantidad]]-VentasMenudeo[[#This Row],[Descuento]],VentasMenudeo[[#This Row],[Producto]]=$A$4,VentasMenudeo[[#This Row],[Precio de Venta]]*VentasMenudeo[[#This Row],[Cantidad]]-VentasMenudeo[[#This Row],[Descuento]],VentasMenudeo[[#This Row],[Producto]]=$A$5,VentasMenudeo[[#This Row],[Precio de Venta]]*VentasMenudeo[[#This Row],[Cantidad]]-VentasMenudeo[[#This Row],[Descuento]]),0) -> 250 | K196: 250
A197: 2022-06-06 | B197: Hugo | C197: IPLAY MAX | D197: Lemon cookies | E197: 1 | F197: $20 Descuento | H197: =_xlfn.IFNA(VLOOKUP(VentasMenudeo[[#This Row],[Promoción]],PromocionesMenudeo[[Promocion]:[Descuento]],2,0),0) -> 20 | I197: =_xlfn.IFNA(VLOOKUP(VentasMenudeo[[#This Row],[Producto]],$A$2:$B$5,2,FALSE),0) -> 270 | J197: =_xlfn.IFNA(_xlfn.IFS(VentasMenudeo[[#This Row],[Producto]]=$A$2,VentasMenudeo[[#This Row],[Precio de Venta]]*VentasMenudeo[[#This Row],[Cantidad]]-VentasMenudeo[[#This Row],[Descuento]],VentasMenudeo[[#This Row],[Producto]]=$A$3,VentasMenudeo[[#This Row],[Precio de Venta]]*VentasMenudeo[[#This Row],[Cantidad]]-VentasMenudeo[[#This Row],[Descuento]],VentasMenudeo[[#This Row],[Producto]]=$A$4,VentasMenudeo[[#This Row],[Precio de Venta]]*VentasMenudeo[[#This Row],[Cantidad]]-VentasMenudeo[[#This Row],[Descuento]],VentasMenudeo[[#This Row],[Producto]]=$A$5,VentasMenudeo[[#This Row],[Precio de Venta]]*VentasMenudeo[[#This Row],[Cantidad]]-VentasMenudeo[[#This Row],[Descuento]]),0) -> 250 | K197: 250
A198: 2022-06-06 | B198: Hugo | C198: IPLAY MAX | D198: Bluerazz | E198: 1 | F198: $20 Descuento | H198: =_xlfn.IFNA(VLOOKUP(VentasMenudeo[[#This Row],[Promoción]],PromocionesMenudeo[[Promocion]:[Descuento]],2,0),0) -> 20 | I198: =_xlfn.IFNA(VLOOKUP(VentasMenudeo[[#This Row],[Producto]],$A$2:$B$5,2,FALSE),0) -> 270 | J198: =_xlfn.IFNA(_xlfn.IFS(VentasMenudeo[[#This Row],[Producto]]=$A$2,VentasMenudeo[[#This Row],[Precio de Venta]]*VentasMenudeo[[#This Row],[Cantidad]]-VentasMenudeo[[#This Row],[Descuento]],VentasMenudeo[[#This Row],[Producto]]=$A$3,VentasMenudeo[[#This Row],[Precio de Venta]]*VentasMenudeo[[#This Row],[Cantidad]]-VentasMenudeo[[#This Row],[Descuento]],VentasMenudeo[[#This Row],[Producto]]=$A$4,VentasMenudeo[[#This Row],[Precio de Venta]]*VentasMenudeo[[#This Row],[Cantidad]]-VentasMenudeo[[#This Row],[Descuento]],VentasMenudeo[[#This Row],[Producto]]=$A$5,VentasMenudeo[[#This Row],[Precio de Venta]]*VentasMenudeo[[#This Row],[Cantidad]]-VentasMenudeo[[#This Row],[Descuento]]),0) -> 250 | K198: 250
A199: 2022-06-06 | B199: Hugo | C199: IPLAY MAX | D199: Berry Watermelon | E199: 1 | F199: $20 Descuento | H199: =_xlfn.IFNA(VLOOKUP(VentasMenudeo[[#This Row],[Promoción]],PromocionesMenudeo[[Promocion]:[Descuento]],2,0),0) -> 20 | I199: =_xlfn.IFNA(VLOOKUP(VentasMenudeo[[#This Row],[Producto]],$A$2:$B$5,2,FALSE),0) -> 270 | J199: =_xlfn.IFNA(_xlfn.IFS(VentasMenudeo[[#This Row],[Producto]]=$A$2,VentasMenudeo[[#This Row],[Precio de Venta]]*VentasMenudeo[[#This Row],[Cantidad]]-VentasMenudeo[[#This Row],[Descuento]],VentasMenudeo[[#This Row],[Producto]]=$A$3,VentasMenudeo[[#This Row],[Precio de Venta]]*VentasMenudeo[[#This Row],[Cantidad]]-VentasMenudeo[[#This Row],[Descuento]],VentasMenudeo[[#This Row],[Producto]]=$A$4,VentasMenudeo[[#This Row],[Precio de Venta]]*VentasMenudeo[[#This Row],[Cantidad]]-VentasMenudeo[[#This Row],[Descuento]],VentasMenudeo[[#This Row],[Producto]]=$A$5,VentasMenudeo[[#This Row],[Precio de Venta]]*VentasMenudeo[[#This Row],[Cantidad]]-VentasMenudeo[[#This Row],[Descuento]]),0) -> 250 | K199: 250
A200: 2022-06-16 | B200: Hugo | C200: IPLAY MAX | D200: Berry Watermelon | E200: 1 | F200: $20 Descuento | H200: =_xlfn.IFNA(VLOOKUP(VentasMenudeo[[#This Row],[Promoción]],PromocionesMenudeo[[Promocion]:[Descuento]],2,0),0) -> 20 | I200: =_xlfn.IFNA(VLOOKUP(VentasMenudeo[[#This Row],[Producto]],$A$2:$B$5,2,FALSE),0) -> 270 | J200: =_xlfn.IFNA(_xlfn.IFS(VentasMenudeo[[#This Row],[Producto]]=$A$2,VentasMenudeo[[#This Row],[Precio de Venta]]*VentasMenudeo[[#This Row],[Cantidad]]-VentasMenudeo[[#This Row],[Descuento]],VentasMenudeo[[#This Row],[Producto]]=$A$3,VentasMenudeo[[#This Row],[Precio de Venta]]*VentasMenudeo[[#This Row],[Cantidad]]-VentasMenudeo[[#This Row],[Descuento]],VentasMenudeo[[#This Row],[Producto]]=$A$4,VentasMenudeo[[#This Row],[Precio de Venta]]*VentasMenudeo[[#This Row],[Cantidad]]-VentasMenudeo[[#This Row],[Descuento]],VentasMenudeo[[#This Row],[Producto]]=$A$5,VentasMenudeo[[#This Row],[Precio de Venta]]*VentasMenudeo[[#This Row],[Cantidad]]-VentasMenudeo[[#This Row],[Descuento]]),0) -> 250 | K200: 250
... 700 more rows

Sheet Inventario
E1: Producto | F1: IPLAY MAX
A2: Producto | B2: Sabor | C2: Cantidad
A3: =Pedidos!B2 -> IPLAY CUBE | B3: =Pedidos!C2 -> Energy ICE | C3: =Pedidos!D2 -> 1 | E3: Etiquetas de fila | F3: Suma de Cantidad | H3: Pedido para gdl
A4: =Pedidos!B3 -> IPLAY CUBE | B4: =Pedidos!C3 -> Mango ICE | C4: =Pedidos!D3 -> 2 | E4: Banana Ice | F4: 0 | I4: Stock | J4: Pedido
A5: =Pedidos!B4 -> IPLAY CUBE | B5: =Pedidos!C4 -> Cola ICE | C5: =Pedidos!D4 -> 2 | E5: Berry Watermelon | F5: 0 | H5: Cool Mint | I5: =_xlfn.IFNA(VLOOKUP(H5,E4:F17,2,0),0) -> 0 | J5: 30
A6: =Pedidos!B5 -> IPLAY CUBE | B6: =Pedidos!C5 -> Grape soda | C6: =Pedidos!D5 -> 2 | E6: Bluerazz | F6: 0 | H6: Energy Ice | I6: 0 | J6: 15
A7: =Pedidos!B6 -> IPLAY CUBE | B7: =Pedidos!C6 -> Strawberry Lychee | C7: =Pedidos!D6 -> 2 | E7: Coconut | F7: 2 | H7: Lush Ice | I7: 0
A8: =Pedidos!B7 -> IPLAY CUBE | B8: =Pedidos!C7 -> Lemonade | C8: =Pedidos!D7 -> 2 | E8: Cocumber Lemonade | F8: 0 | H8: StrawBerry Lychee | I8: 0
A9: =Pedidos!B8 -> IPLAY CUBE | B9: =Pedidos!C8 -> Energy ICE | C9: =Pedidos!D8 -> 5 | E9: Cool mint | F9: 0 | H9: Sour Apple Melon | I9: 0 | J9: 5
A10: =Pedidos!B9 -> IPLAY CUBE | B10: =Pedidos!C9 -> Mango ICE | C10: =Pedidos!D9 -> 3 | E10: Energy ICE | F10: 0 | H10: GrapeFruit Berry | I10: 0
A11: =Pedidos!B10 -> IPLAY CUBE | B11: =Pedidos!C10 -> Cola ICE | C11: =Pedidos!D10 -> 3 | E11: GrapeFruit berry | F11: 0 | H11: Guava | I11: 0
A12: =Pedidos!B11 -> IPLAY CUBE | B12: =Pedidos!C11 -> Grape soda | C12: =Pedidos!D11 -> 3 | E12: Grapestraw | F12: 0 | H12: Bluerazz | I12: 0 | J12: 15
A13: =Pedidos!B12 -> IPLAY CUBE | B13: =Pedidos!C12 -> Strawberry Lychee | C13: =Pedidos!D12 -> 3 | E13: Guava | F13: 0 | H13: Grapestraw | I13: 0 | J13: 15
A14: =Pedidos!B13 -> IPLAY CUBE | B14: =Pedidos!C13 -> Banana Ice | C14: =Pedidos!D13 -> 2 | E14: Lemon cookies | F14: 0 | H14: Peach Ice | I14: 0 | J14: 10
A15: =Pedidos!B14 -> IPLAY CUBE | B15: =Pedidos!C14 -> Peach Candy | C15: =Pedidos!D14 -> 2 | E15: Lush Ice | F15: 0 | H15: Berry Watermelon | I15: 0 | J15: 20
A16: =Pedidos!B15 -> IPLAY CUBE | B16: =Pedidos!C15 -> Watermelon | C16: =Pedidos!D15 -> 1 | E16: Mango ICE | F16: 0 | H16: Coconut | I16: 0 | J16: 15
A17: =Pedidos!B16 -> IPLAY CUBE | B17: =Pedidos!C16 -> Double apple | C17: =Pedidos!D16 -> 1 | E17: Sour Apple | F17: 37 | H17: Lemon Cucumber | I17: 0 | J17: 10
A18: =Pedidos!B17 -> IPLAY CUBE | B18: =Pedidos!C17 -> Lemonade | C18: =Pedidos!D17 -> 2 | E18: Strawberry Lychee | F18: 0 | H18: Grape Ice | I18: 0 | J18: 15
A19: =Pedidos!B18 -> IPLAY CUBE | B19: =Pedidos!C18 -> Energy ICE | C19: =Pedidos!D18 -> 3 | E19: Peach Ice | F19: 0 | H19: Orange Ice | I19: 0
A20: =Pedidos!B19 -> IPLAY CUBE | B20: =Pedidos!C19 -> Mango ICE | C20: =Pedidos!D19 -> 2 | E20: Grape Ice | F20: 0 | H20: Mango Ice | I20: 0
A21: =Pedidos!B20 -> IPLAY CUBE | B21: =Pedidos!C20 -> Cola ICE | C21: =Pedidos!D20 -> 2 | E21: Sourraspberry | F21: 0 | H21: Banana Ice | I21: 0 | J21: 5
A22: =Pedidos!B21 -> IPLAY CUBE | B22: =Pedidos!C21 -> Grape soda | C22: =Pedidos!D21 -> 5 | E22: Passion Fruit | F22: 0 | H22: Passion Fruit | I22: 0
A23: =Pedidos!B22 -> IPLAY CUBE | B23: =Pedidos!C22 -> Strawberry Lychee | C23: =Pedidos!D22 -> 2 | E23: Low Mint | F23: 0
A24: =Pedidos!B23 -> IPLAY CUBE | B24: =Pedidos!C23 -> Banana Ice | C24: =Pedidos!D23 -> 2 | E24: Banana Cherry DragonFruit | F24: 0 | J24: =SUM(J5:J22) -> 155 | K24: =J24*135 -> 20925
A25: =Pedidos!B24 -> IPLAY CUBE | B25: =Pedidos!C24 -> Peach Candy | C25: =Pedidos!D24 -> 2 | E25: Pineapple Orange Guava | F25: 0
A26: =Pedidos!B25 -> IPLAY CUBE | B26: =Pedidos!C25 -> ICE Water | C26: =Pedidos!D25 -> 1 | E26: Kiwi Guava Passion Fruit | F26: 0
A27: =Pedidos!B26 -> IPLAY CUBE | B27: =Pedidos!C26 -> Double apple | C27: =Pedidos!D26 -> 4 | E27: Blueberry Rainbow | F27: 0
A28: =Pedidos!B27 -> IPLAY CUBE | B28: =Pedidos!C27 -> Lemonade | C28: =Pedidos!D27 -> 2 | E28: Pineapple Coconut | F28: 0
A29: =Pedidos!B28 -> ELF BAR | B29: =Pedidos!C28 -> Banana ICE | C29: =Pedidos!D28 -> 2 | E29: Watermelon Banana | F29: 0
A30: =Pedidos!B29 -> ELF BAR | B30: =Pedidos!C29 -> Pineaple ICE | C30: =Pedidos!D29 -> 2 | E30: Double mint | F30: 0
A31: =Pedidos!B30 -> ELF BAR | B31: =Pedidos!C30 -> Mango ICE | C31: =Pedidos!D30 -> 2 | E31: Black Mint | F31: 0
A32: =Pedidos!B31 -> IPLAY MAX | B32: =Pedidos!C31 -> Strawberry Lychee | C32: =Pedidos!D31 -> 2 | E32: Peach Berries Ice | F32: 0
A33: =Pedidos!B32 -> IPLAY MAX | B33: =Pedidos!C32 -> Grapestraw | C33: =Pedidos!D32 -> 2 | E33: Mango Strawberry | F33: 0
A34: =Pedidos!B33 -> IPLAY MAX | B34: =Pedidos!C33 -> Berry Watermelon | C34: =Pedidos!D33 -> 2 | E34: Cranberry Grape | F34: 1
A35: =Pedidos!B34 -> IPLAY MAX | B35: =Pedidos!C34 -> Guava | C35: =Pedidos!D34 -> 2 | E35: Coconut ice | F35: 0
A36: =Pedidos!B35 -> IPLAY MAX | B36: =Pedidos!C35 -> Cool mint | C36: =Pedidos!D35 -> 2 | E36: Mixed Berries Lemon | F36: 0
A37: =Pedidos!B36 -> IPLAY MAX | B37: =Pedidos!C36 -> Bluerazz | C37: =Pedidos!D36 -> 2 | E37: 1 | F37: -1
A38: =Pedidos!B37 -> IPLAY MAX | B38: =Pedidos!C37 -> Sour Apple | C38: =Pedidos!D37 -> 2 | E38: Total general | F38: 39
A39: =Pedidos!B38 -> IPLAY MAX | B39: =Pedidos!C38 -> Coconut | C39: =Pedidos!D38 -> 2
A40: =Pedidos!B39 -> IPLAY MAX | B40: =Pedidos!C39 -> Grapestraw | C40: =Pedidos!D39 -> 4
A41: =Pedidos!B40 -> IPLAY MAX | B41: =Pedidos!C40 -> Guava | C41: =Pedidos!D40 -> 4
A42: =Pedidos!B41 -> IPLAY MAX | B42: =Pedidos!C41 -> Sour Apple | C42: =Pedidos!D41 -> 1
A43: =Pedidos!B42 -> IPLAY MAX | B43: =Pedidos!C42 -> Coconut | C43: =Pedidos!D42 -> 4
A44: =Pedidos!B43 -> IPLAY MAX | B44: =Pedidos!C43 -> Cool mint | C44: =Pedidos!D43 -> 2
A45: =Pedidos!B44 -> IPLAY MAX | B45: =Pedidos!C44 -> Berry Watermelon | C45: =Pedidos!D44 -> 2
A46: =Pedidos!B45 -> IPLAY MAX | B46: =Pedidos!C45 -> Bluerazz | C46: =Pedidos!D45 -> 3
A47: =Pedidos!B46 -> IPLAY MAX | B47: =Pedidos!C46 -> Energy ICE | C47: =Pedidos!D46 -> 1
A48: =Pedidos!B47 -> IPLAY MAX | B48: =Pedidos!C47 -> Strawberry Lychee | C48: =Pedidos!D47 -> 3
A49: =Pedidos!B48 -> IPLAY MAX | B49: =Pedidos!C48 -> GrapeFruit berry | C49: =Pedidos!D48 -> 1
A50: =Pedidos!B49 -> IPLAY CUBE | B50: =Pedidos!C49 -> Mango ICE | C50: =Pedidos!D49 -> 2
A51: =Pedidos!B50 -> IPLAY CUBE | B51: =Pedidos!C50 -> Lemonade | C51: =Pedidos!D50 -> 3
A52: =Pedidos!B51 -> IPLAY CUBE | B52: =Pedidos!C51 -> Banana Ice | C52: =Pedidos!D51 -> 2
A53: =Pedidos!B52 -> IPLAY CUBE | B53: =Pedidos!C52 -> Double apple | C53: =Pedidos!D52 -> 3
A54: =Pedidos!B53 -> IPLAY CUBE | B54: =Pedidos!C53 -> Energy ICE | C54: =Pedidos!D53 -> 3
A55: =Pedidos!B54 -> IPLAY CUBE | B55: =Pedidos!C54 -> ICE Water | C55: =Pedidos!D54 -> 3
A56: =Pedidos!B55 -> IPLAY CUBE | B56: =Pedidos!C55 -> Grape soda | C56: =Pedidos!D55 -> 4
A57: =Pedidos!B56 -> IPLAY CUBE | B57: =Pedidos!C56 -> Peach Candy | C57: =Pedidos!D56 -> 2
A58: =Pedidos!B57 -> IPLAY CUBE | B58: =Pedidos!C57 -> Cola ICE | C58: =Pedidos!D57 -> 2
A59: =Pedidos!B58 -> IPLAY CUBE | B59: =Pedidos!C58 -> Strawberry Lychee | C59: =Pedidos!D58 -> 2
A60: =Pedidos!B59 -> IPLAY MAX | B60: =Pedidos!C59 -> Berry Watermelon | C60: =Pedidos!D59 -> 4
A61: =Pedidos!B60 -> IPLAY MAX | B61: =Pedidos!C60 -> Cool mint | C61: =Pedidos!D60 -> 2
A62: =Pedidos!B61 -> IPLAY MAX | B62: =Pedidos!C61 -> Guava | C62: =Pedidos!D61 -> 1
A63: =Pedidos!B62 -> IPLAY MAX | B63: =Pedidos!C62 -> Grapestraw | C63: =Pedidos!D62 -> 3
A64: =Pedidos!B63 -> IPLAY MAX | B64: =Pedidos!C63 -> Energy ICE | C64: =Pedidos!D63 -> 3
A65: =Pedidos!B64 -> IPLAY MAX | B65: =Pedidos!C64 -> Bluerazz | C65: =Pedidos!D64 -> 4
A66: =Pedidos!B65 -> IPLAY MAX | B66: =Pedidos!C65 -> GrapeFruit berry | C66: =Pedidos!D65 -> 3
A67: =Pedidos!B66 -> IPLAY MAX | B67: =Pedidos!C66 -> Strawberry Lychee | C67: =Pedidos!D66 -> 4
A68: =Pedidos!B67 -> IPLAY MAX | B68: =Pedidos!C67 -> Coconut | C68: =Pedidos!D67 -> 1
A69: =Pedidos!B68 -> IPLAY MAX | B69: =Pedidos!C68 -> Cool mint | C69: =Pedidos!D68 -> 4
A70: =Pedidos!B69 -> IPLAY MAX | B70: =Pedidos!C69 -> Berry Watermelon | C70: =Pedidos!D69 -> 4
A71: =Pedidos!B70 -> IPLAY MAX | B71: =Pedidos!C70 -> Grapestraw | C71: =Pedidos!D70 -> 5
A72: =Pedidos!B71 -> IPLAY MAX | B72: =Pedidos!C71 -> Bluerazz | C72: =Pedidos!D71 -> 4
A73: =Pedidos!B72 -> IPLAY MAX | B73: =Pedidos!C72 -> Coconut | C73: =Pedidos!D72 -> 5
A74: =Pedidos!B73 -> IPLAY MAX | B74: =Pedidos!C73 -> Guava | C74: =Pedidos!D73 -> 4
A75: =Pedidos!B74 -> IPLAY MAX | B75: =Pedidos!C74 -> Lush Ice | C75: =Pedidos!D74 -> 4
A76: =Pedidos!B75 -> IPLAY MAX | B76: =Pedidos!C75 -> Strawberry Lychee | C76: =Pedidos!D75 -> 4
A77: =Pedidos!B76 -> IPLAY MAX | B77: =Pedidos!C76 -> Energy ICE | C77: =Pedidos!D76 -> 4
A78: =Pedidos!B77 -> IPLAY MAX | B78: =Pedidos!C77 -> GrapeFruit berry | C78: =Pedidos!D77 -> 4
A79: =Pedidos!B78 -> IPLAY MAX | B79: =Pedidos!C78 -> Cocumber Lemonade | C79: =Pedidos!D78 -> 4
A80: =Pedidos!B79 -> IPLAY MAX | B80: =Pedidos!C79 -> Sour Apple | C80: =Pedidos!D79 -> 4
A81: =Pedidos!B80 -> IPLAY MAX | B81: =Pedidos!C80 -> Grapestraw | C81: =Pedidos!D80 -> 7
A82: =Pedidos!B81 -> IPLAY MAX | B82: =Pedidos!C81 -> Guava | C82: =Pedidos!D81 -> 4
A83: =Pedidos!B82 -> IPLAY MAX | B83: =Pedidos!C82 -> Cool mint | C83: =Pedidos!D82 -> 2
A84: =Pedidos!B83 -> IPLAY MAX | B84: =Pedidos!C83 -> Bluerazz | C84: =Pedidos!D83 -> 4
A85: =Pedidos!B84 -> IPLAY MAX | B85: =Pedidos!C84 -> Strawberry Lychee | C85: =Pedidos!D84 -> 2
A86: =Pedidos!B85 -> IPLAY MAX | B86: =Pedidos!C85 -> Coconut | C86: =Pedidos!D85 -> 1
A87: =Pedidos!B86 -> IPLAY MAX | B87: =Pedidos!C86 -> Lush Ice | C87: =Pedidos!D86 -> 1
A88: =Pedidos!B87 -> IPLAY MAX | B88: =Pedidos!C87 -> Berry Watermelon | C88: =Pedidos!D87 -> 2
A89: =Pedidos!B88 -> IPLAY MAX | B89: =Pedidos!C88 -> Energy ICE | C89: =Pedidos!D88 -> 8
A90: =Pedidos!B89 -> IPLAY MAX | B90: =Pedidos!C89 -> Sour Apple | C90: =Pedidos!D89 -> 7
A91: =Pedidos!B90 -> IPLAY MAX | B91: =Pedidos!C90 -> Berry Watermelon | C91: =Pedidos!D90 -> 9
A92: =Pedidos!B91 -> IPLAY MAX | B92: =Pedidos!C91 -> Cool mint | C92: =Pedidos!D91 -> 7
A93: =Pedidos!B92 -> IPLAY MAX | B93: =Pedidos!C92 -> GrapeFruit berry | C93: =Pedidos!D92 -> 9
A94: =Pedidos!B93 -> IPLAY MAX | B94: =Pedidos!C93 -> Strawberry Lychee | C94: =Pedidos!D93 -> 2
A95: =Pedidos!B94 -> IPLAY MAX | B95: =Pedidos!C94 -> Bluerazz | C95: =Pedidos!D94 -> 3
A96: =Pedidos!B95 -> IPLAY MAX | B96: =Pedidos!C95 -> Lush Ice | C96: =Pedidos!D95 -> 5
A97: =Pedidos!B96 -> IPLAY MAX | B97: =Pedidos!C96 -> Energy ICE | C97: =Pedidos!D96 -> 3
A98: =Pedidos!B97 -> IPLAY MAX | B98: =Pedidos!C97 -> Sour Apple | C98: =Pedidos!D97 -> 3
A99: =Pedidos!B98 -> IPLAY MAX | B99: =Pedidos!C98 -> Strawberry Lychee | C99: =Pedidos!D98 -> 15
A100: =Pedidos!B99 -> IPLAY MAX | B100: =Pedidos!C99 -> Berry Watermelon | C100: =Pedidos!D99 -> 15
A101: =Pedidos!B100 -> IPLAY MAX | B101: =Pedidos!C100 -> Guava | C101: =Pedidos!D100 -> 4
A102: =Pedidos!B101 -> IPLAY MAX | B102: =Pedidos!C101 -> Bluerazz | C102: =Pedidos!D101 -> 15
A103: =Pedidos!B102 -> IPLAY MAX | B103: =Pedidos!C102 -> GrapeFruit berry | C103: =Pedidos!D102 -> 15
A104: =Pedidos!B103 -> IPLAY MAX | B104: =Pedidos!C103 -> GrapeStraw | C104: =Pedidos!D103 -> 15
A105: =Pedidos!B104 -> IPLAY MAX | B105: =Pedidos!C104 -> Cool mint | C105: =Pedidos!D104 -> 5
A106: =Pedidos!B105 -> IPLAY MAX | B106: =Pedidos!C105 -> Coconut | C106: =Pedidos!D105 -> 5
A107: =Pedidos!B106 -> IPLAY MAX | B107: =Pedidos!C106 -> Lemon cookies | C107: =Pedidos!D106 -> 5
A108: =Pedidos!B107 -> IPLAY MAX | B108: =Pedidos!C107 -> Energy ICE | C108: =Pedidos!D107 -> 7
A109: =Pedidos!B108 -> IPLAY MAX | B109: =Pedidos!C108 -> Sour Apple | C109: =Pedidos!D108 -> 7
A110: =Pedidos!B109 -> IPLAY MAX | B110: =Pedidos!C109 -> Strawberry Lychee | C110: =Pedidos!D109 -> 10
A111: =Pedidos!B110 -> IPLAY MAX | B111: =Pedidos!C110 -> Berry Watermelon | C111: =Pedidos!D110 -> 10
A112: =Pedidos!B111 -> IPLAY MAX | B112: =Pedidos!C111 -> Bluerazz | C112: =Pedidos!D111 -> 10
A113: =Pedidos!B112 -> IPLAY MAX | B113: =Pedidos!C112 -> GrapeFruit berry | C113: =Pedidos!D112 -> 10
A114: =Pedidos!B113 -> IPLAY MAX | B114: =Pedidos!C113 -> Grapestraw | C114: =Pedidos!D113 -> 10
A115: =Pedidos!B114 -> IPLAY MAX | B115: =Pedidos!C114 -> Cool mint | C115: =Pedidos!D114 -> 10
A116: =Pedidos!B115 -> IPLAY MAX | B116: =Pedidos!C115 -> Coconut | C116: =Pedidos!D115 -> 7
A117: =Pedidos!B116 -> IPLAY MAX | B117: =Pedidos!C116 -> Lemon cookies | C117: =Pedidos!D116 -> 3
A118: =Pedidos!B117 -> IPLAY MAX | B118: =Pedidos!C117 -> Cocumber Lemonade | C118: =Pedidos!D117 -> 8
A119: =Pedidos!B118 -> IPLAY MAX | B119: =Pedidos!C118 -> Guava | C119: =Pedidos!D118 -> 8
A120: ='Ventas Menudeo'!C7 -> IPLAY CUBE | B120: ='Ventas Menudeo'!D7 -> Energy ICE | C120: =-'Ventas Menudeo'!E7 -> -12
A121: ='Ventas Menudeo'!C8 -> IPLAY CUBE | B121: ='Ventas Menudeo'!D8 -> Mango ICE | C121: =-'Ventas Menudeo'!E8 -> -9
A122: ='Ventas Menudeo'!C9 -> IPLAY CUBE | B122: ='Ventas Menudeo'!D9 -> Cola ICE | C122: =-'Ventas Menudeo'!E9 -> -9
A123: ='Ventas Menudeo'!C10 -> IPLAY CUBE | B123: ='Ventas Menudeo'!D10 -> Grape soda | C123: =-'Ventas Menudeo'!E10 -> -14
A124: ='Ventas Menudeo'!C11 -> IPLAY CUBE | B124: ='Ventas Menudeo'!D11 -> Strawberry Lychee | C124: =-'Ventas Menudeo'!E11 -> -9
A125: ='Ventas Menudeo'!C12 -> IPLAY CUBE | B125: ='Ventas Menudeo'!D12 -> Lemonade | C125: =-'Ventas Menudeo'!E12 -> -9
A126: ='Ventas Menudeo'!C13 -> IPLAY CUBE | B126: ='Ventas Menudeo'!D13 -> Banana Ice | C126: =-'Ventas Menudeo'!E13 -> -6
A127: ='Ventas Menudeo'!C14 -> IPLAY CUBE | B127: ='Ventas Menudeo'!D14 -> Peach Candy | C127: =-'Ventas Menudeo'!E14 -> -6
A128: ='Ventas Menudeo'!C15 -> IPLAY CUBE | B128: ='Ventas Menudeo'!D15 -> Watermelon | C128: =-'Ventas Menudeo'!E15 -> -1
A129: ='Ventas Menudeo'!C16 -> IPLAY CUBE | B129: ='Ventas Menudeo'!D16 -> Double apple | C129: =-'Ventas Menudeo'!E16 -> -8
A130: ='Ventas Menudeo'!C17 -> IPLAY CUBE | B130: ='Ventas Menudeo'!D17 -> ICE Water | C130: =-'Ventas Menudeo'!E17 -> -4
A131: ='Ventas Menudeo'!C18 -> ELF BAR | B131: ='Ventas Menudeo'!D18 -> Banana Ice | C131: =-'Ventas Menudeo'!E18 -> -2
A132: ='Ventas Menudeo'!C19 -> ELF BAR | B132: ='Ventas Menudeo'!D19 -> Mango ICE | C132: =-'Ventas Menudeo'!E19 -> -2
A133: ='Ventas Menudeo'!C20 -> ELF BAR | B133: ='Ventas Menudeo'!D20 -> Pineaple ICE | C133: =-'Ventas Menudeo'!E20 -> -2
A134: ='Ventas Menudeo'!C21 -> IPLAY MAX | B134: ='Ventas Menudeo'!D21 -> Strawberry Lychee | C134: =-'Ventas Menudeo'!E21 -> -19
A135: ='Ventas Menudeo'!C22 -> IPLAY MAX | B135: ='Ventas Menudeo'!D22 -> Grapestraw | C135: =-'Ventas Menudeo'!E22 -> -21
A136: ='Ventas Menudeo'!C23 -> IPLAY MAX | B136: ='Ventas Menudeo'!D23 -> Berry Watermelon | C136: =-'Ventas Menudeo'!E23 -> -25
A137: ='Ventas Menudeo'!C24 -> IPLAY MAX | B137: ='Ventas Menudeo'!D24 -> Guava | C137: =-'Ventas Menudeo'!E24 -> -19
A138: ='Ventas Menudeo'!C25 -> IPLAY MAX | B138: ='Ventas Menudeo'!D25 -> Cool mint | C138: =-'Ventas Menudeo'!E25 -> -22
A139: ='Ventas Menudeo'!C26 -> IPLAY MAX | B139: ='Ventas Menudeo'!D26 -> Bluerazz | C139: =-'Ventas Menudeo'!E26 -> -12
A140: ='Ventas Menudeo'!C27 -> IPLAY MAX | B140: ='Ventas Menudeo'!D27 -> Bluerazz | C140: =-'Ventas Menudeo'!E27 -> -12
A141: ='Ventas Menudeo'!C28 -> IPLAY MAX | B141: ='Ventas Menudeo'!D28 -> Sour Apple | C141: =-'Ventas Menudeo'!E28 -> -12
A142: ='Ventas Menudeo'!C29 -> IPLAY MAX | B142: ='Ventas Menudeo'!D29 -> Energy ICE | C142: =-'Ventas Menudeo'!E29 -> -7
A143: ='Ventas Menudeo'!C30 -> IPLAY MAX | B143: ='Ventas Menudeo'!D30 -> Energy ICE | C143: =-'Ventas Menudeo'!E30 -> -7
A144: ='Ventas Menudeo'!C31 -> IPLAY MAX | B144: ='Ventas Menudeo'!D31 -> GrapeFruit berry | C144: =-'Ventas Menudeo'!E31 -> -18
A145: ='Ventas Menudeo'!C32 -> IPLAY MAX | B145: ='Ventas Menudeo'!D32 -> Cocumber Lemonade | C145: =-'Ventas Menudeo'!E32 -> -4
A146: ='Ventas Menudeo'!C33 -> IPLAY MAX | B146: ='Ventas Menudeo'!D33 -> Lush Ice | C146: =-'Ventas Menudeo'!E33 -> -7
A147: ='Ventas Menudeo'!C34 -> IPLAY MAX | B147: ='Ventas Menudeo'!D34 -> Lemon cookies | C147: =-'Ventas Menudeo'!E34 -> -1
A148: ='Ventas Menudeo'!C35 -> IPLAY MAX | B148: ='Ventas Menudeo'!D35 -> Coconut | C148: =-'Ventas Menudeo'!E35 -> -17
A149: ='Ventas Menudeo'!C36 -> IPLAY MAX | B149: ='Ventas Menudeo'!D36 -> Strawberry Lychee | C149: =-'Ventas Menudeo'!E36 -> -1
A150: ='Ventas Menudeo'!C37 -> IPLAY MAX | B150: ='Ventas Menudeo'!D37 -> Sour Apple | C150: =-'Ventas Menudeo'!E37 -> -1
A151: ='Ventas Menudeo'!C38 -> IPLAY MAX | B151: ='Ventas Menudeo'!D38 -> Strawberry Lychee | C151: =-'Ventas Menudeo'!E38 -> -1
A152: ='Ventas Menudeo'!C39 -> IPLAY MAX | B152: ='Ventas Menudeo'!D39 -> Grapestraw | C152: =-'Ventas Menudeo'!E39 -> -1
A153: ='Ventas Menudeo'!C40 -> IPLAY MAX | B153: ='Ventas Menudeo'!D40 -> Grapestraw | C153: =-'Ventas Menudeo'!E40 -> -1
A154: ='Ventas Menudeo'!C41 -> IPLAY MAX | B154: ='Ventas Menudeo'!D41 -> Bluerazz | C154: =-'Ventas Menudeo'!E41 -> -2
A155: ='Ventas Menudeo'!C42 -> IPLAY MAX | B155: ='Ventas Menudeo'!D42 -> Guava | C155: =-'Ventas Menudeo'!E42 -> -1
A156: ='Ventas Menudeo'!C43 -> IPLAY MAX | B156: ='Ventas Menudeo'!D43 -> Coconut | C156: =-'Ventas Menudeo'!E43 -> -1
A157: ='Ventas Menudeo'!C44 -> IPLAY MAX | B157: ='Ventas Menudeo'!D44 -> Guava | C157: =-'Ventas Menudeo'!E44 -> -1
A158: ='Ventas Menudeo'!C45 -> IPLAY MAX | B158: ='Ventas Menudeo'!D45 -> Bluerazz | C158: =-'Ventas Menudeo'!E45 -> -1
A159: ='Ventas Menudeo'!C46 -> IPLAY MAX | B159: ='Ventas Menudeo'!D46 -> Cool mint | C159: =-'Ventas Menudeo'!E46 -> -1
A160: ='Ventas Menudeo'!C47 -> IPLAY MAX | B160: ='Ventas Menudeo'!D47 -> Berry Watermelon | C160: =-'Ventas Menudeo'!E47 -> -1
A161: ='Ventas Menudeo'!C48 -> IPLAY MAX | B161: ='Ventas Menudeo'!D48 -> Berry Watermelon | C161: =-'Ventas Menudeo'!E48 -> -1
A162: ='Ventas Menudeo'!C49 -> IPLAY MAX | B162: ='Ventas Menudeo'!D49 -> Cool mint | C162: =-'Ventas Menudeo'!E49 -> -1
A163: ='Ventas Menudeo'!C50 -> IPLAY MAX | B163: ='Ventas Menudeo'!D50 -> Energy ICE | C163: =-'Ventas Menudeo'!E50 -> -1
A164: ='Ventas Menudeo'!C51 -> IPLAY MAX | B164: ='Ventas Menudeo'!D51 -> Energy ICE | C164: =-'Ventas Menudeo'!E51 -> -1
A165: ='Ventas Mayoreo'!C5 -> IPLAY MAX | B165: ='Ventas Mayoreo'!D5 -> Strawberry Lychee | C165: =-'Ventas Mayoreo'!E5 -> -10
A166: ='Ventas Mayoreo'!C6 -> IPLAY MAX | B166: ='Ventas Mayoreo'!D6 -> Grapestraw | C166: =-'Ventas Mayoreo'!E6 -> -10
A167: ='Ventas Mayoreo'!C7 -> IPLAY MAX | B167: ='Ventas Mayoreo'!D7 -> Berry Watermelon | C167: =-'Ventas Mayoreo'!E7 -> -10
A168: ='Ventas Mayoreo'!C8 -> IPLAY MAX | B168: ='Ventas Mayoreo'!D8 -> Bluerazz | C168: =-'Ventas Mayoreo'!E8 -> -10
A169: ='Ventas Mayoreo'!C9 -> IPLAY MAX | B169: ='Ventas Mayoreo'!D9 -> GrapeFruit berry | C169: =-'Ventas Mayoreo'!E9 -> -10
A170: ='Traspaso Mazatlán'!B3 -> IPLAY MAX | B170: ='Traspaso Mazatlán'!C3 -> Energy ICE | C170: =-'Traspaso Mazatlán'!D3 -> -4
A171: ='Traspaso Mazatlán'!B4 -> IPLAY MAX | B171: ='Traspaso Mazatlán'!C4 -> Sour Apple | C171: =-'Traspaso Mazatlán'!D4 -> -3
A172: ='Traspaso Mazatlán'!B5 -> IPLAY MAX | B172: ='Traspaso Mazatlán'!C5 -> Cool mint | C172: =-'Traspaso Mazatlán'!D5 -> -2
A173: ='Traspaso Mazatlán'!B6 -> IPLAY MAX | B173: ='Traspaso Mazatlán'!C6 -> GrapeFruit berry | C173: =-'Traspaso Mazatlán'!D6 -> -4
A174: ='Traspaso Mazatlán'!B7 -> IPLAY MAX | B174: ='Traspaso Mazatlán'!C7 -> Lush Ice | C174: =-'Traspaso Mazatlán'!D7 -> -3
A175: ='Traspaso Mazatlán'!B8 -> IPLAY MAX | B175: ='Traspaso Mazatlán'!C8 -> Strawberry Lychee | C175: =-'Traspaso Mazatlán'!D8 -> -1
A176: IPLAY MAX | B176: Cocumber Lemonade | C176: -1
A177: IPLAY MAX | B177: Coconut | C177: -1
A178: IPLAY MAX | B178: Strawberry Lychee | C178: -1
A179: IPLAY MAX | B179: GrapeFruit berry | C179: -1
A180: IPLAY MAX | B180: Grapestraw | C180: -1
A181: IPLAY MAX | B181: Grapestraw | C181: -1
A182: IPLAY MAX | B182: Bluerazz | C182: -1
A183: IPLAY MAX | B183: Strawberry Lychee | C183: -1
A184: IPLAY MAX | B184: Lemon cookies | C184: -1
A185: IPLAY MAX | B185: Cool mint | C185: -1
A186: IPLAY MAX | B186: Cocumber Lemonade | C186: -1
A187: IPLAY MAX | B187: Coconut | C187: -1
A188: IPLAY MAX | B188: Bluerazz | C188: -1
A189: IPLAY MAX | B189: Coconut | C189: -1
A190: IPLAY MAX | B190: Strawberry Lychee | C190: -1
A191: IPLAY MAX | B191: Cool mint | C191: -1
A192: IPLAY MAX | B192: Bluerazz | C192: -1
A193: IPLAY MAX | B193: Sour Apple | C193: -1
A194: IPLAY MAX | B194: Bluerazz | C194: -1
A195: IPLAY MAX | B195: Bluerazz | C195: -1
A196: IPLAY MAX | B196: Cool mint | C196: -1
A197: IPLAY MAX | B197: Guava | C197: -1
A198: IPLAY MAX | B198: Coconut | C198: -1
A199: IPLAY MAX | B199: Cool mint | C199: -1
A200: IPLAY MAX | B200: Guava | C200: -1
... 989 more rows

Sheet Hoja3 (hidden)
A1: Fecha | B1: (Varios elementos) | E1: Fecha | F1: (Varios elementos) | I1: Fecha | J1: 2022-06-01
A2: Producto | B2: IPLAY MAX | E2: Producto | F2: (Todas) | I2: Producto | J2: (Todas)
A4: Sabor | B4: Suma de Cantidad | E4: Sabor | F4: Suma de Cantidad | I4: Sabor | J4: Suma de Cantidad
A5: Berry Watermelon | B5: 7 | E5: Berry Watermelon | F5: 72 | I5: Bluerazz | J5: 10
A6: Bluerazz | B6: 10 | E6: Bluerazz | F6: 62 | I6: Cool mint | J6: 10
A7: Coconut | B7: 8 | E7: Cool mint | F7: 58 | I7: GrapeFruit berry | J7: 10
A8: Cool mint | B8: 12 | E8: GrapeFruit berry | F8: 50 | I8: Grapestraw | J8: 10
A9: GrapeFruit berry | B9: 3 | E9: Grapestraw | F9: 56 | I9: Guava | J9: 10
A10: Grapestraw | B10: 4 | E10: Guava | F10: 28 | I10: Peach Ice | J10: 10
A11: Guava | B11: 4 | E11: Peach Ice | F11: 27 | I11: Sour Apple | J11: 10
A12: Lemon cookies | B12: 1 | E12: Strawberry Lychee | F12: 51 | I12: Strawberry Lychee | J12: 10
A13: Peach Ice | B13: 10 | E13: Total general | F13: 404 | I13: Total general | J13: 80
A14: Sour Apple | B14: 2
A15: Strawberry Lychee | B15: 2
A16: Total general | B16: 63
E19: 743 | F19: Berry Watermelon | G19: 100 | H19: =VLOOKUP(F19,$A$5:$B$14,2,0) -> 7 | I19: =VLOOKUP(F19,$E$5:$F$12,2,0) -> 72 | J19: =VLOOKUP(F19,$I$5:$J$12,2,0) ->  | L19: =G19-H19-I19 -> 21
A20: Berry Watermelon | B20: 21 | F20: Bluerazz | G20: 100 | H20: =VLOOKUP(F20,$A$5:$B$14,2,0) -> 10 | I20: =VLOOKUP(F20,$E$5:$F$12,2,0) -> 62 | J20: =VLOOKUP(F20,$I$5:$J$12,2,0) -> 10 | L20: =G20-H20-I20-J20 -> 18
A21: Bluerazz | B21: 18 | F21: Cool mint | G21: 80 | H21: 12 | I21: 58 | J21: 10 | L21: =G21-H21-I21-J21 -> 0
A22: Coconut | B22: 2 | F22: GrapeFruit berry | G22: 100 | H22: 3 | I22: 50 | J22: 10 | L22: =G22-H22-I22-J22 -> 37
A23: Cocumber Lemonade | B23: 0 | F23: Grapestraw | G23: 70 | H23: 4 | I23: 56 | J23: 10 | L23: =G23-H23-I23-J23 -> 0
A24: Cool mint | B24: 0 | F24: Guava | G24: 90 | H24: 4 | I24: 28 | J24: 10 | L24: =G24-H24-I24-J24 -> 48
A25: Energy ICE | B25: 0 | F25: Sour Apple | G25: 60 | H25: 2 | I25: =VLOOKUP(F25,$E$5:$F$12,2,0) ->  | J25: 10 | L25: =G25-H25-J25 -> 48
A26: GrapeFruit berry | B26: 37 | F26: Strawberry Lychee | G26: 80 | H26: =VLOOKUP(F26,$A$5:$B$15,2,0) -> 2 | I26: 51 | J26: 10 | L26: =G26-H26-I26-J26 -> 17
A27: Grapestraw | B27: 0 | F27: Peach Ice | G27: 50 | H27: 10 | I27: 27 | J27: 10 | L27: =G27-H27-I27-J27 -> 3
A28: Guava | B28: 48 | F28: Coconut | G28: 10 | H28: 8 | L28: =G28-H28 -> 2
A29: Lemon cookies | B29: 2 | G29: =SUM(G19:G28) -> 740
A30: Lush Ice | B30: 0
A31: Sour Apple | B31: 48
A32: Strawberry Lychee | B32: 17
A33: Peach Ice | B33: 3
A34: Total general | B34: 196

Sheet Hoja4 (hidden)
D1: Fecha | E1: (Varios elementos)
A3: Fecha | B3: (Varios elementos) | D3: Suma de Ventas Totales
D4: 70480 | F4: =130*G4 -> 59670 | G4: =404+55 -> 459
A5: Suma de Venta Total
A6: 13750 | F6: =A6+D4 -> 84230
F8: =F6-F4 -> 24560
A15: 3 | I15: =350*250 -> 87500 | J15: =350*130 -> 45500
J16: =I15-J15 -> 42000
H17: =194*250 -> 48500

Sheet Inventario2
C2: IPLAY MAX | E2: 2014-08-01 | H2: IPLAY BOX | J2: 2014-08-01 | M2: MASSKING ULTRA
C3: Etiquetas de fila | D3: Suma de Cantidad | F3: venta | H3: Etiquetas de fila | I3: Suma de Cantidad | J3: ventas | M3: Etiquetas de fila | N3: Suma de Cantidad | O3: ventas
C4: Banana Ice | D4: 0 | H4: Mint | I4: 4 | K4: tenia 3 mint y se vendieron, estos 4 son del pedido 14ago | M4: PEACH ICE | N4: 1
C5: Berry Watermelon | D5: 0 | E5: 3 | H5: Peach Mint | I5: 3 | M5: COCONUT | N5: 1
C6: Bluerazz | D6: 0 | E6: 5 | H6: Watermelon Ice | I6: 2 | J6: 1 | M6: GRAPE STRAWBERRY | N6: 1
C7: Coconut | D7: 2 | H7: Grape Pear | I7: 1 | M7: BERRY WATERMELON | N7: 2
C8: Cocumber Lemonade | D8: 0 | M8: TOBACCO | N8: 1
C9: Cool mint | D9: 0 | E9: 5 | M9: GUAVA RASPBERRY | N9: 2
C10: Energy ICE | D10: 0 | E10: 5 | M10: BLUE RAZZ LEMON | N10: 1 | O10: 1
C11: GrapeFruit berry | D11: 0 | M11: ENERGY WATER ICE | N11: 1
C12: Grapestraw | D12: 0
C13: Guava | D13: 0
C14: Lemon cookies | D14: 0
C15: Lush Ice | D15: 0
C16: Mango ICE | D16: 0
C17: Sour Apple | D17: 37
C18: Strawberry Lychee | D18: 0
C19: Peach Ice | D19: 0
C20: Grape Ice | D20: 0 | E20: 2 | F20: 1
C21: Sourraspberry | D21: 0
C22: Passion Fruit | D22: 0
C23: Low Mint | D23: 0
C24: Banana Cherry DragonFruit | D24: 0
C25: Pineapple Orange Guava | D25: 0 | E25: 3
C26: Kiwi Guava Passion Fruit | D26: 0
C27: Blueberry Rainbow | D27: 0
C28: Pineapple Coconut | D28: 0 | E28: 2 | F28: 1
C29: Watermelon Banana | D29: 0
C30: Double mint | D30: 0 | E30: 4
C31: Black Mint | D31: 0 | E31: 4
C32: Peach Berries Ice | D32: 0 | E32: 3
C33: Mango Strawberry | D33: 0
C34: Cranberry Grape | D34: 1
C35: Coconut ice | D35: 0
C36: Mixed Berries Lemon | D36: 0
C38: Total general | D38: =SUM(D4:D37) -> 40 | E38: =SUM(E4:E37) -> 36 | F38: =(SUM(F4:F37))*(230) -> 460 | H38: Total general | I38: =SUM(I4:I37) -> 10 | J38: =(SUM(J4:J37))*(280) -> 280 | M38: Total general | N38: =(SUM(N4:N37)) -> 10 | O38: =(SUM(O4:O37))*(320) -> 320

Sheet Sabores conteo pedido
C3: FORMATO IPLAY MAX FAVOR DE PONER EL ORDEN DE SABORES EN EL ORDEN DE LA LISTA BLUERRAZ LEMON STRAWBERRY LYCHEE BERRY WATERMELON GUAVA RASPBERRY COOL MINT COCONUT STRAWBERRY LEMON CUCUMBER LUSH ICE GRAPE ICE PEACH ICE MANGO ICE BANANA ICE SOUR RASPBERRY GRAPE SODA WATERMELON BANANA PEACH BERRIES ICE RAINBOW CANDY PINEAPPLE ORANGE GUAVA COCONUT ICE PINEAPPLE COCUNUT KIWI GUAVA PASSIONFRUIT LOW MINT BANANA CHERRY DRAGÓN FRUIT ROOT BEER BLUEBERRY RAINBOW CRANBERRY GRAPE TOTAL DE PIEZAS= | P3: FORMATO IPLAY MAX FAVOR DE PONER EL ORDEN DE SABORES EN EL ORDEN DE LA LISTA GUAVA RASPBERRY BLUERRAZ LEMON MANGO ICE COCONUT STRAWBERRY CUCUMBER LEMONADE MIXXED BERRIES PEACH BERRIES ICE PINNEAPLE ORANGE GUAVA COCO ICE PINNEAPLE COCO LOW MINT KIWI GUAVA BANANA CHERRY CRANBERRY GRAPEE BLUEBERRY RAINBOW TOTAL DE PIEZAS=
N19: 4
N20: 4
K21: 3
N23: 2
N25: 4
N27: 3
N28: 5
K36: =SUM(K9:K34) -> 3 | N36: =SUM(N7:N35) -> 22
P41: BOX Grape Pear Strawberry Lychee Watermelon Ice Aloe Grape Pineapple Sour Orange Rasp Mint Blueberry raspberry PEACH mint WATERMELON bubblegum
N48: 2
N50: 2
N54: 2
N56: 2
N60: =SUM(N48:N58) -> 8

Sheet Promociones
B1: Promoción Menudeo | G1: Tipo | H1: IPLAY MAX | J1: Precio Mayoreo | K1: Cantidad | L1: Precio Venta | N1: Cantidad | O1: Precio C/U
A2: Tipo | B2: Promocion | C2: Descuento | J2: Precio 1 | K2: 15-20 | L2: 195 | N2: 15-20 | O2: 185
A3: ELF BAR | B3: No aplica | C3: 0 | G3: Etiquetas de fila | J3: Precio 2 | K3: 21-30 | L3: 185 | N3: 21-30 | O3: 175
A4: IPLAY CUBE | B4: No aplica | C4: 0 | G4: $20 Descuento | J4: Precio 3 | K4: 31-40 | L4: 180 | N4: 31-40 | O4: 165
A5: IPLAY MAX | B5: No aplica | C5: 0 | G5: Descu x Recom | J5: Precio 4 | K5: 41-50 | L5: 175 | N5: 41-50 | O5: 155
A6: IPLAX MAX | G6: No aplica | J6: Precio 5 | K6: 50-70 | L6: 170 | N6: 51-100 | O6: 145
A7: IPLAY MAX | B7: $20 Descuento | C7: 20 | G7: Navidad | J7: Precio 6 | K7: 100 | L7: 150
A8: IPLAY MAX | B8: Descu x Recom | G8: Liquidacion de $165 | J8: Homero | L8: 150
A9: IPLAY MAX | B9: Liquidacion de $165 | C9: 105 | J9: Gael Mztln | L9: 145
A10: IPLAY MAX | B10: Navidad | C10: 80 | J10: MK express | K10: 240 | L10: 130
J11: Hugo Precio | K11: 1 | L11: 167
J12: Precio proveedor | K12: 1 | L12: 130

Sheet Gastos
A1: Fecha | B1: Concepto | C1: Monto | D1: Socio | E1: Transferencia | F1: Efectvivo | K1: Concepto
A2: 2022-04-24 | B2: Proveedor Torreon | C2: 14800 | D2: Julio | E2: 14800 | K2: Abono a capital prestamo
A3: 2022-04-24 | B3: Gastos Anteriores | C3: 23822 | D3: Julio | E3: 23822 | K3: Caja de coco
A4: 2022-04-24 | B4: Vape Shop | C4: 8300 | D4: Julio | E4: 8300 | K4: Cinta canela
A5: 2022-04-24 | B5: Vape Shop | C5: 4355 | D5: Julio | E5: 4355 | K5: Comision Prestamo
A6: 2022-04-24 | B6: Vape Defectuoso | C6: 270 | D6: Julio | E6: 270 | K6: Deposito
A7: 2022-04-24 | B7: Deposito | C7: 12 | D7: Julio | E7: 12 | K7: Descuento Gael
A8: 2022-04-24 | B8: Proveedor Maza | C8: 7900 | D8: Julio | E8: 7900 | K8: Gasolina
A9: 2022-04-25 | B9: Proveedor Torreon | C9: 14600 | D9: Julio | E9: 14600 | K9: Gastos Anteriores
A10: 2022-04-25 | B10: Perdida | C10: 500 | D10: Julio | E10: 500 | K10: Mensaulidad Prestamo
A11: 2022-05-05 | B11: Proveedor Torreon | C11: 14600 | D11: Julio | E11: 14600 | K11: Metro
A12: 2022-05-26 | B12: Comision Prestamo | C12: 4495 | D12: Hugo | E12: 4495 | K12: Pago al prestamo de Hugo
A13: 2022-05-26 | B13: Mensaulidad Prestamo | C13: 1223.64 | D13: Hugo | E13: 1223.64 | K13: Papel carbon
A14: 2022-05-26 | B14: Proveedor GDL | C14: 89790 | D14: Hugo | E14: 89790 | K14: Perdida
A15: 2022-05-26 | B15: Caja de coco | C15: 1500 | D15: Hugo | E15: 1500 | K15: Perdida de envio
A16: 2022-05-30 | B16: Descuento Gael | C16: 390 | D16: Julio | E16: 390 | K16: Prestamo a Hugo
A17: 2022-05-30 | B17: Perdida de envio | C17: 152 | D17: Hugo | E17: 152 | K17: Proveedor GDL
A18: 2022-05-30 | B18: Papel carbon | C18: 52 | D18: Hugo | E18: 52 | K18: Proveedor Maza
A19: 2022-05-30 | B19: Cinta canela | C19: 60 | D19: Hugo | E19: 60 | K19: Proveedor Torreon
A20: 2022-05-30 | B20: Metro | C20: 20 | D20: Hugo | E20: 20 | K20: Vape De cumpleaños
A21: 2022-05-30 | B21: Gasolina | C21: 150 | D21: Hugo | E21: 150 | K21: Vape Defectuoso
A22: 2022-05-30 | B22: Prestamo a Hugo | C22: 6494 | D22: Hugo | E22: 6494 | K22: Vape Shop
A23: 2022-06-02 | B23: Prestamo a Hugo | C23: 1500 | D23: Hugo | E23: 1500
A24: 2022-06-02 | B24: Mensaulidad Prestamo | C24: 3125 | D24: Hugo | E24: 3125
A25: 2022-06-02 | B25: Abono a capital prestamo | C25: 17047 | D25: Hugo | E25: 17047
A26: 2022-06-02 | B26: Gasolina | C26: 100 | D26: Hugo | E26: 100
A27: 2022-06-17 | B27: Mensaulidad Prestamo | C27: 2759 | D27: Hugo | E27: 2759
A28: 2022-06-17 | B28: Pago al prestamo de Hugo | C28: -7994 | D28: Hugo | E28: -7994
A29: 2022-06-26 | B29: Vape De cumpleaños | C29: 250 | D29: Hugo | E29: 250
A30: 2022-06-27 | B30: Proveedor Torreon | C30: 21175 | D30: Hugo | E30: 21175
A31: 2022-07-02 | B31: Mensaulidad Prestamo | C31: 2752 | D31: Hugo | E31: 2752
A32: 2022-07-20 | B32: Mensaulidad Prestamo | C32: 2689 | D32: Hugo | E32: 2689
A33: 2022-08-04 | B33: Mensaulidad Prestamo | C33: 2691 | D33: Hugo | E33: 2691
A34: 2022-08-18 | B34: Vape Defectuoso | C34: 250 | D34: Hugo | E34: 250
A35: 2022-08-18 | B35: Mensaulidad Prestamo | C35: 2676 | D35: Hugo | E35: 2676
A36: 2022-09-02 | B36: Proveedor Torreon | C36: 9970 | D36: Hugo | E36: 9970
A37: 2022-09-02 | B37: Mensaulidad Prestamo | C37: 2715 | D37: Hugo | E37: 2715
A38: 2022-09-14 | B38: Gasolina | C38: 100 | D38: Hugo | E38: 100
A39: 2022-09-18 | B39: Mensaulidad Prestamo | C39: 2696 | D39: Hugo | E39: 2696
A40: 2022-10-03 | B40: Mensaulidad Prestamo | C40: 2686 | D40: Hugo | E40: 2686
A41: 2022-10-05 | B41: Proveedor Torreon | C41: 7580 | D41: Hugo | E41: 7580
A42: 2022-10-05 | B42: Vape De cumpleaños | C42: 500 | D42: Hugo | E42: 500
A43: 2022-10-18 | B43: Mensaulidad Prestamo | C43: 2884 | D43: Hugo | F43: 2884
A44: 2022-11-01 | B44: Mensaulidad Prestamo | C44: 2722 | D44: Hugo | E44: 2722
A45: 2022-11-20 | B45: Mensaulidad Prestamo | C45: 2708 | D45: Hugo | E45: 2708
A46: 2022-12-03 | B46: Mensaulidad Prestamo | C46: 2695 | D46: Hugo | E46: 2695
A47: 2022-12-16 | B47: Mensaulidad Prestamo | C47: 2693 | D47: Hugo | E47: 2693
A48: 2023-01-24 | B48: Mensaulidad Prestamo | C48: 2736 | D48: Hugo | E48: 2736
A49: 2023-01-24 | B49: Mensaulidad Prestamo | C49: 2718 | D49: Hugo | E49: 2718
A50: 2023-02-17 | B50: Mensaulidad Prestamo | C50: 2723 | D50: Hugo | E50: 2723
A51: 2023-02-17 | B51: Mensaulidad Prestamo | C51: 2701 | D51: Hugo | E51: 2701
A52: 2023-03-01 | B52: Proveedor Torreon | C52: 9400 | D52: Hugo | E52: 9400
A53: 2023-03-05 | B53: Mensaulidad Prestamo | C53: 2631 | D53: Hugo | E53: 2631
A54: 2023-03-18 | B54: Mensaulidad Prestamo | C54: 2690 | D54: Hugo | E54: 2690
A55: 2023-03-18 | B55: Proveedor Torreon | C55: 12650 | D55: Hugo | E55: 12650
A56: 2023-04-10 | B56: Mensaulidad Prestamo | C56: 2714 | D56: Hugo | E56: 2714
A57: 2023-04-16 | B57: Proveedor Torreon | C57: 10540 | D57: Hugo | E57: 10540
A58: 2023-04-20 | B58: Mensaulidad Prestamo | C58: 2716 | D58: Hugo | E58: 2716
C59: =SUM(Gastos[Monto]) -> 336673.64 | E59: =SUBTOTAL(109,Gastos[Transferencia]) -> 333789.64 | F59: =SUBTOTAL(109,Gastos[[Efectvivo ]]) -> 2884

Sheet Deudores
A1: Fecha | B1: Pendientes de pago | C1: Concepto | D1: Cantidad | H1: Fecha | I1: Pendientes de pago | J1: Concepto | K1: Cantidad
A2: =TODAY() -> 2023-09-14 | B2: Natalia | C2: IPLAY MAX | D2: 250 | H2: 2022-06-16 | I2: Jorge | J2: IPLAY MAX | K2: 250
A3: =TODAY() -> 2023-09-14 | B3: Amaya | C3: IPLAY MAX | D3: 250
A4: =TODAY() -> 2023-09-14 | B4: Copetin | C4: IPLAX MAX | D4: 250 | H4: 2022-06-02 | I4: Emilio | J4: IPLAY MAX | K4: 250
D13: =SUM(Deudores[Cantidad]) -> 750 | K13: =SUM(DeudoresHugo[Cantidad]) -> 500

Sheet Caja&Banco
A1: Fecha | B1: Socio | C1: Concepto | D1: Tranferencia | E1: Efectivo | H1: IPLAY MAX | I1: Concepto
A2: =TODAY() -> 2023-09-14 | B2: Julio | C2: Deudores | D2: =-SUM(Deudores!D2:D12) -> -750 | I2: Abono a capital prestamo
A3: 2022-05-30 | B3: Hugo | C3: Deudores | D3: =-DeudoresHugo[[#Totals],[Cantidad]] -> -500 | I3: Caja de coco | L3: Etiquetas de fila | M3: Suma de Total
A4: 2022-04-25 | B4: Hugo | C4: IPLAY MAX | E4: 270 | I4: Capital Inicial (Julio Hugo) | L4: Capital Inicial (Julio Hugo) | M4: 3462
A5: 2022-04-25 | B5: Julio | C5: Ventas anteriores | D5: 72670 | I5: Cinta canela | L5: Deposito a banco | M5: 5400
A6: 2022-04-25 | B6: Julio | C6: Ventas mayoreo | D6: 8500 | I6: Comision Prestamo | L6: Deposito de Hugo | M6: 21863
A7: 2022-04-25 | B7: Julio | C7: Gastos Anteriores | D7: -74059 | I7: Deposito a banco | L7: Deudores | M7: -1250
A8: 2022-04-25 | B8: Julio | C8: Perdida | D8: -500 | I8: Deposito a Julio | L8: Gastos Anteriores | M8: -74059
A9: 2022-04-25 | B9: Julio | C9: Reparto de utilidades | D9: -8626 | I9: Deposito a Mazatlan | L9: IPLAY MAX | M9: 262281
A10: 2022-04-25 | B10: Julio | C10: Capital Inicial (Julio Hugo) | D10: 3462 | I10: Deposito de Hugo | L10: Perdida | M10: -5500
A11: 2022-04-25 | B11: Julio | C11: IPLAY MAX | D11: 250 | I11: Descuento Gael | L11: Proveedor Torreon | M11: -85915
A12: 2022-04-26 | B12: Hugo | C12: IPLAY MAX | E12: 260 | I12: Deudores | L12: Reparto de utilidades | M12: -8626
A13: 2022-04-26 | B13: Hugo | C13: IPLAY MAX | E13: 270 | I13: Gasolina | L13: Transferencia a banco | M13: -26260
A14: 2022-04-26 | B14: Julio | C14: IPLAY MAX | D14: 270 | I14: Gastos Anteriores | L14: Transferencia Julio | M14: -1503
A15: 2022-04-26 | B15: Julio | C15: IPLAY MAX | D15: 540 | I15: IPLAY MAX | L15: Ventas anteriores | M15: 72670
A16: 2022-04-26 | B16: Hugo | C16: IPLAY MAX | E16: 270 | I16: Mensaulidad Prestamo | L16: Ventas mayoreo | M16: 8500
A17: 2022-04-26 | B17: Hugo | C17: IPLAY MAX | E17: 270 | I17: Metro | L17: Ventas maza | M17: 40070
A18: 2022-04-26 | B18: Julio | C18: IPLAY MAX | D18: 270 | I18: Pago a hugo | L18: Pago a hugo | M18: 0
A19: 2022-04-27 | B19: Hugo | C19: IPLAY MAX | D19: 270 | I19: Pago al prestamo de Hugo | L19: Reparto de utilidad | M19: -102409
A20: 2022-04-27 | B20: Hugo | C20: IPLAY MAX | E20: 270 | I20: Papel carbon | L20: Prestamo | M20: 155000
A21: 2022-04-27 | B21: Hugo | C21: IPLAY MAX | E21: 270 | I21: Perdida | L21: Comision Prestamo | M21: -4495
A22: 2022-04-27 | B22: Hugo | C22: IPLAY MAX | E22: 270 | I22: Perdida de envio | L22: Mensaulidad Prestamo | M22: -61343.64
A23: 2022-04-27 | B23: Julio | C23: IPLAY MAX | D23: 250 | I23: Prestamo | L23: Proveedor GDL | M23: -89790
A24: 2022-04-27 | B24: Hugo | C24: IPLAY MAX | D24: 270 | I24: Prestamo a Hugo | L24: Caja de coco | M24: -1500
A25: 2022-04-27 | B25: Hugo | C25: IPLAY MAX | E25: 270 | I25: Proveedor GDL | L25: Descuento Gael | M25: -390
A26: 2022-04-28 | B26: Julio | C26: IPLAY MAX | E26: 250 | I26: Proveedor Torreon | L26: Perdida de envio | M26: -152
A27: 2022-04-28 | B27: Julio | C27: IPLAY MAX | D27: 250 | I27: Reparto de utilidad | L27: Papel carbon | M27: -52
A28: 2022-04-28 | B28: Julio | C28: IPLAY MAX | E28: 250 | I28: Reparto de utilidades | L28: Cinta canela | M28: -60
A29: 2022-04-28 | B29: Hugo | C29: IPLAY MAX | D29: 250 | I29: Transferencia a banco | L29: Metro | M29: -20
A30: 2022-04-28 | B30: Hugo | C30: IPLAY MAX | D30: 250 | I30: Transferencia Julio | L30: Gasolina | M30: -350
A31: 2022-04-28 | B31: Julio | C31: IPLAY MAX | D31: 250 | I31: Vape De cumpleaños | L31: Prestamo a Hugo | M31: -7994
A32: 2022-04-28 | B32: Hugo | C32: IPLAY MAX | E32: 250 | I32: Vape Defectuoso | L32: Abono a capital prestamo | M32: -17047
A33: 2022-04-28 | B33: Julio | C33: IPLAY MAX | E33: 250 | I33: Ventas anteriores | L33: Pago al prestamo de Hugo | M33: 7994
A34: 2022-04-28 | B34: Julio | C34: IPLAY MAX | E34: 250 | I34: Ventas mayoreo | L34: Deposito a Julio | M34: 500
A35: 2022-04-28 | B35: Julio | C35: IPLAY MAX | D35: 250 | I35: Ventas maza | L35: Deposito a Mazatlan | M35: -27250
A36: 2022-04-28 | B36: Julio | C36: IPLAY MAX | E36: 250 | L36: Vape De cumpleaños | M36: -500
A37: 2022-04-28 | B37: Julio | C37: IPLAY MAX | D37: 240 | L37: Vape Defectuoso | M37: 0
A38: 2022-04-28 | B38: Julio | C38: IPLAY MAX | D38: 250 | L38: Descuento Amaya | M38: -450
A39: 2022-04-28 | B39: Julio | C39: IPLAY MAX | D39: 250 | L39: IPLAY BOX | M39: 4940
A40: 2022-04-29 | B40: Julio | C40: IPLAY MAX | D40: 250 | L40: Total general | M40: 65764.36
A41: 2022-04-29 | B41: Julio | C41: IPLAY MAX | D41: 250
A42: 2022-04-29 | B42: Julio | C42: IPLAY MAX | D42: 250
A43: 2022-04-29 | B43: Julio | C43: IPLAY MAX | E43: 250
A44: 2022-04-29 | B44: Julio | C44: IPLAY MAX | E44: 250
A45: 2022-04-29 | B45: Julio | C45: IPLAY MAX | E45: 250
A46: 2022-04-29 | B46: Julio | C46: IPLAY MAX | D46: 250
A47: 2022-04-29 | B47: Julio | C47: IPLAY MAX | E47: 250
A48: 2022-04-30 | B48: Hugo | C48: IPLAY MAX | D48: 250
A49: 2022-04-30 | B49: Hugo | C49: IPLAY MAX | D49: 250
A50: 2022-04-30 | B50: Julio | C50: IPLAY MAX | D50: 250
A51: 2022-04-30 | B51: Julio | C51: Transferencia a banco | E51: -500
A52: 2022-04-30 | B52: Julio | C52: Deposito a banco | D52: 500
A53: 2022-04-30 | B53: Julio | C53: IPLAY MAX | D53: 250
A54: 2022-04-30 | B54: Julio | C54: IPLAY MAX | E54: 250
A55: 2022-04-30 | B55: Julio | C55: IPLAY MAX | E55: 250
A56: 2022-04-30 | B56: Hugo | C56: IPLAY MAX | E56: 250
A57: 2022-04-30 | B57: Julio | C57: IPLAY MAX | D57: 250
A58: 2022-05-01 | B58: Hugo | C58: IPLAY MAX | E58: 250
A59: 2022-05-01 | B59: Julio | C59: IPLAY MAX | E59: 250
A60: 2022-05-01 | B60: Julio | C60: IPLAY MAX | E60: 250
A61: 2022-05-02 | B61: Julio | C61: IPLAY MAX | E61: 250
A62: 2022-05-02 | B62: Julio | C62: Transferencia a banco | E62: -2200
A63: 2022-05-02 | B63: Julio | C63: Deposito a banco | D63: 2200
A64: 2022-05-02 | B64: Julio | C64: IPLAY MAX | E64: 250
A65: 2022-05-02 | B65: Julio | C65: IPLAY MAX | E65: 250
A66: 2022-05-02 | B66: Julio | C66: IPLAY MAX | D66: 250
A67: 2022-05-02 | B67: Julio | C67: IPLAY MAX | E67: 250
A68: 2022-05-02 | B68: Julio | C68: IPLAY MAX | D68: 250
A69: 2022-05-02 | B69: Hugo | C69: IPLAY MAX | E69: 250
A70: 2022-05-02 | B70: Julio | C70: IPLAY MAX | D70: 250
A71: 2022-05-03 | B71: Julio | C71: IPLAY MAX | D71: 250
A72: 2022-05-03 | B72: Julio | C72: IPLAY MAX | D72: 250
A73: 2022-05-03 | B73: Hugo | C73: IPLAY MAX | E73: 250
A74: 2022-05-03 | B74: Julio | C74: IPLAY MAX | E74: 250
A75: 2022-05-03 | B75: Julio | C75: IPLAY MAX | E75: 250
A76: 2022-05-03 | B76: Julio | C76: IPLAY MAX | E76: 250
A77: 2022-05-03 | B77: Julio | C77: IPLAY MAX | D77: 240
A78: 2022-05-03 | B78: Julio | C78: IPLAY MAX | D78: 250
A79: 2022-05-04 | B79: Julio | C79: IPLAY MAX | E79: 250
A80: 2022-05-04 | B80: Julio | C80: IPLAY MAX | E80: 250
A81: 2022-05-04 | B81: Hugo | C81: IPLAY MAX | D81: 250
A82: 2022-05-04 | B82: Julio | C82: IPLAY MAX | D82: 250
A83: 2022-05-04 | B83: Julio | C83: IPLAY MAX | D83: 250
A84: 2022-05-04 | B84: Hugo | C84: IPLAY MAX | D84: 250
A85: 2022-05-04 | B85: Julio | C85: Transferencia a banco | E85: -2646
A86: 2022-05-04 | B86: Julio | C86: Deposito a banco | D86: 2646
A87: 2022-05-05 | B87: Julio | C87: Ventas maza | D87: 1930
A88: 2022-05-05 | B88: Hugo | C88: Transferencia Julio | D88: -1003
A89: 2022-05-05 | B89: Julio | C89: Deposito de Hugo | D89: 1003
A90: 2022-05-05 | B90: Julio | C90: Proveedor Torreon | D90: -14600
A91: 2022-05-05 | B91: Hugo | C91: IPLAY MAX | E91: 250
A92: 2022-05-06 | B92: Julio | C92: IPLAY MAX | D92: 250
A93: 2022-05-06 | B93: Julio | C93: IPLAY MAX | E93: 250
A94: 2022-05-06 | B94: Julio | C94: IPLAY MAX | D94: 250
A95: 2022-05-06 | B95: Hugo | C95: IPLAY MAX | D95: 250
A96: 2022-05-06 | B96: Julio | C96: IPLAY MAX | D96: 250
A97: 2022-05-06 | B97: Julio | C97: IPLAY MAX | D97: 250
A98: 2022-05-06 | B98: Julio | C98: IPLAY MAX | E98: 3000
A99: 2022-05-06 | B99: Julio | C99: IPLAY MAX | E99: 3000
A100: 2022-05-06 | B100: Julio | C100: IPLAY MAX | E100: 3000
A101: 2022-05-06 | B101: Julio | C101: IPLAY MAX | E101: 3000
A102: 2022-05-06 | B102: Julio | C102: IPLAY MAX | E102: 3000
A103: 2022-05-06 | B103: Julio | C103: IPLAY MAX | D103: 250
A104: 2022-05-06 | B104: Julio | C104: IPLAY MAX | D104: 250
A105: 2022-05-06 | B105: Hugo | C105: IPLAY MAX | E105: 250
A106: 2022-05-06 | B106: Julio | C106: Transferencia a banco | E106: -54
A107: 2022-05-06 | B107: Julio | C107: Deposito a banco | D107: 54
A108: 2022-05-06 | B108: Julio | C108: IPLAY MAX | D108: 240
A109: 2022-05-07 | B109: Hugo | C109: IPLAY MAX | D109: 250
A110: 2022-05-07 | B110: Julio | C110: IPLAY MAX | D110: 250
A111: 2022-05-08 | B111: Julio | C111: IPLAY MAX | D111: 250
A112: 2022-05-08 | B112: Julio | C112: IPLAY MAX | D112: 250
A113: 2022-05-08 | B113: Julio | C113: IPLAY MAX | D113: 250
A114: 2022-05-08 | B114: Julio | C114: IPLAY MAX | E114: 250
A115: 2022-05-09 | B115: Julio | C115: IPLAY MAX | E115: 250
A116: 2022-05-09 | B116: Julio | C116: IPLAY MAX | E116: 250
A117: 2022-05-09 | B117: Julio | C117: IPLAY MAX | E117: 250
A118: 2022-05-09 | B118: Julio | C118: IPLAY MAX | E118: 250
A119: 2022-05-09 | B119: Julio | C119: IPLAY MAX | D119: 250
A120: 2022-05-09 | B120: Julio | C120: IPLAY MAX | D120: 250
A121: 2022-05-09 | B121: Julio | C121: IPLAY MAX | E121: 250
A122: 2022-05-09 | B122: Julio | C122: Ventas maza | D122: 1020
A123: 2022-05-10 | B123: Julio | C123: Perdida | E123: -5000
A124: 2022-05-10 | B124: Julio | C124: Pago a hugo | E124: -5951
A125: 2022-05-10 | B125: Hugo | C125: Pago a hugo | E125: 5951
A126: 2022-05-10 | B126: Hugo | C126: Reparto de utilidad | E126: -10121
A127: 2022-05-10 | B127: Hugo | C127: Reparto de utilidad | D127: -1537
A128: 2022-05-10 | B128: Julio | C128: Reparto de utilidad | E128: -5899
A129: 2022-05-10 | B129: Julio | C129: Reparto de utilidad | D129: -5760
A130: 2022-05-10 | B130: Julio | C130: IPLAY MAX | E130: 250
A131: 2022-05-10 | B131: Julio | C131: IPLAY MAX | D131: 250
A132: 2022-05-10 | B132: Julio | C132: IPLAY MAX | E132: 250
A133: 2022-05-10 | B133: Julio | C133: IPLAY MAX | D133: 240
A134: 2022-05-11 | B134: Julio | C134: IPLAY MAX | D134: 240
A135: 2022-05-18 | B135: Julio | C135: IPLAY MAX | D135: 250
A136: 2022-05-25 | B136: Hugo | C136: Prestamo | D136: 155000
A137: 2022-05-26 | B137: Hugo | C137: Comision Prestamo | D137: -4495
A138: 2022-05-26 | B138: Hugo | C138: Mensaulidad Prestamo | D138: -1223.64
A139: 2022-05-26 | B139: Hugo | C139: Proveedor GDL | D139: -89790
A140: 2022-05-26 | B140: Hugo | C140: Caja de coco | D140: -1500
A141: 2022-05-26 | B141: Julio | C141: IPLAY MAX | D141: 250
A142: 2022-05-26 | B142: Hugo | C142: IPLAY MAX | D142: 250
A143: 2022-05-30 | B143: Julio | C143: IPLAY MAX | D143: 250
A144: 2022-05-30 | B144: Hugo | C144: IPLAY MAX | D144: 250
A145: 2022-05-30 | B145: Hugo | C145: IPLAY MAX | D145: 250
A146: 2022-05-30 | B146: Hugo | C146: IPLAY MAX | D146: 250
A147: 2022-05-30 | B147: Hugo | C147: IPLAY MAX | D147: 250
A148: 2022-05-30 | B148: Hugo | C148: IPLAY MAX | D148: 250
A149: 2022-05-30 | B149: Hugo | C149: IPLAY MAX | D149: 250
A150: 2022-05-30 | B150: Julio | C150: IPLAY MAX | D150: 250
A151: 2022-05-30 | B151: Hugo | C151: IPLAY MAX | D151: 250
A152: 2022-05-30 | B152: Hugo | C152: IPLAY MAX | D152: 250
A153: 2022-05-30 | B153: Hugo | C153: IPLAY MAX | D153: 250
A154: 2022-05-30 | B154: Hugo | C154: IPLAY MAX | D154: 250
A155: 2022-05-30 | B155: Hugo | C155: IPLAY MAX | D155: 250
A156: 2022-05-30 | B156: Hugo | C156: IPLAY MAX | D156: 250
A157: 2022-05-30 | B157: Hugo | C157: IPLAY MAX | D157: 250
A158: 2022-05-30 | B158: Hugo | C158: IPLAY MAX | D158: 250
A159: 2022-05-30 | B159: Hugo | C159: IPLAY MAX | D159: 250
A160: 2022-05-30 | B160: Hugo | C160: IPLAY MAX | D160: 250
A161: 2022-05-30 | B161: Hugo | C161: IPLAY MAX | D161: 250
A162: 2022-05-30 | B162: Hugo | C162: IPLAY MAX | D162: 250
A163: 2022-05-30 | B163: Hugo | C163: IPLAY MAX | D163: 250
A164: 2022-05-30 | B164: Hugo | C164: IPLAY MAX | D164: 250
A165: 2022-05-30 | B165: Hugo | C165: IPLAY MAX | D165: 250
A166: 2022-05-30 | B166: Hugo | C166: IPLAY MAX | D166: 250
A167: 2022-05-30 | B167: Hugo | C167: IPLAY MAX | D167: 250
A168: 2022-05-30 | B168: Hugo | C168: IPLAY MAX | D168: 250
A169: 2022-05-30 | B169: Hugo | C169: IPLAY MAX | D169: 250
A170: 2022-05-30 | B170: Hugo | C170: IPLAY MAX | D170: 250
A171: 2022-05-30 | B171: Hugo | C171: IPLAY MAX | D171: 3000
A172: 2022-05-30 | B172: Hugo | C172: IPLAY MAX | D172: 3000
A173: 2022-05-30 | B173: Hugo | C173: IPLAY MAX | D173: 3000
A174: 2022-05-30 | B174: Hugo | C174: IPLAY MAX | D174: 3000
A175: 2022-05-30 | B175: Hugo | C175: IPLAY MAX | D175: 3000
A176: 2022-05-30 | B176: Julio | C176: IPLAY MAX | D176: 1740
A177: 2022-05-30 | B177: Julio | C177: IPLAY MAX | D177: 1160
A178: 2022-05-30 | B178: Julio | C178: IPLAY MAX | D178: 2030
A179: 2022-05-30 | B179: Julio | C179: IPLAY MAX | D179: 2610
A180: 2022-05-30 | B180: Julio | C180: IPLAY MAX | D180: 1740
A181: 2022-05-30 | B181: Julio | C181: Descuento Gael | D181: -390
A182: 2022-05-30 | B182: Hugo | C182: Perdida de envio | D182: -152
A183: 2022-05-30 | B183: Hugo | C183: Papel carbon | D183: -52
A184: 2022-05-30 | B184: Hugo | C184: Cinta canela | D184: -60
A185: 2022-05-30 | B185: Hugo | C185: Metro | D185: -20
A186: 2022-05-30 | B186: Hugo | C186: Gasolina | D186: -150
A187: 2022-05-30 | B187: Hugo | C187: Prestamo a Hugo | D187: -6494
A188: 2022-06-02 | B188: Hugo | C188: IPLAY MAX | D188: 250
A189: 2022-06-02 | B189: Hugo | C189: IPLAY MAX | D189: 250
A190: 2022-06-02 | B190: Hugo | C190: IPLAY MAX | D190: 250
A191: 2022-06-02 | B191: Hugo | C191: IPLAY MAX | D191: 250
A192: 2022-06-02 | B192: Hugo | C192: IPLAY MAX | D192: 250
A193: 2022-06-02 | B193: Hugo | C193: IPLAY MAX | D193: 250
A194: 2022-06-02 | B194: Hugo | C194: IPLAY MAX | D194: 250
A195: 2022-06-02 | B195: Hugo | C195: IPLAY MAX | D195: 250
A196: 2022-06-02 | B196: Hugo | C196: IPLAY MAX | D196: 250
A197: 2022-06-02 | B197: Hugo | C197: IPLAY MAX | D197: 250
A198: 2022-06-02 | B198: Hugo | C198: IPLAY MAX | D198: 250
A199: 2022-06-02 | B199: Hugo | C199: IPLAY MAX | D199: 250
A200: 2022-06-02 | B200: Hugo | C200: IPLAY MAX | D200: 250
... 793 more rows

Sheet Reporte
A2: Gastos | B2: =Gastos[[#Totals],[Monto]] -> 336673.64 | D2: Socios | E2: Inversion | G2: Fecha | H2: Socio | I2: Cantidad | J2: Transferencia | K2: Efectivo
A3: Ventas | B3: =VentasMenudeo[[#Totals],[Venta Total]]+VentasMayoreo[[#Totals],[Ventas Totales]] -> 348561 | D3: Julio | E3: 1731 | G3: 2022-04-24 | H3: Julio | I3: 2260 | J3: 2260
A4: Ventas maza | B4: =VLOOKUP(A4,'Caja&Banco'!L4:M17,2,0) -> 40070 | D4: Hugo | E4: 1731 | G4: 2022-04-24 | H4: Hugo | I4: 2260 | J4: 2260
A5: Utilidad | B5: =B3-B2 -> 11887.36 | E5: =SUM(E3:E4) -> 3462 | G5: 2022-04-24 | H5: Julio | I5: 2053 | J5: 2053
A6: Robo | B6: 5000 | G6: 2022-04-24 | H6: Hugo | I6: 2053 | J6: 2053
A7: Prestamo | B7: 155000 | G7: 2022-05-10 | H7: Hugo | I7: 10121 | K7: 10121
A8: Capital Total | B8: =B3+E5 -> 352023 | G8: 2022-05-10 | H8: Hugo | I8: 1537 | J8: 1537
A9: Reparto de Utilidades | B9: =RepartoUti[[#Totals],[Cantidad]] -> 111035 | G9: 2022-05-10 | H9: Julio | I9: 5899 | K9: 5899
A10: Deposito a Mazatlan | B10: =VLOOKUP(A10,'Caja&Banco'!L4:M36,2,0) -> -27250 | E10: =B8+B7+B4-B2-B6-B9 -> 94384.36 | G10: 2022-05-10 | H10: Julio | I10: 5760 | J10: 5760
A11: Dinero Total | B11: =B8+B7+B4-B2-B6-B9-Deudores[[#Totals],[Cantidad]]-DeudoresHugo[[#Totals],[Cantidad]]+B10 -> 65884.36 | C11: =D15 -> 65764.36 | G11: 2022-06-17 | H11: Julio | I11: 9919 | J11: 9919
A12: Etiquetas de fila | B12: Suma de Tranferencia | C12: Suma de Efectivo | G12: 2022-06-17 | H12: Hugo | I12: 9919 | J12: 9919
A13: Julio | B13: -9706 | C13: 0 | D13: =B13+C13 -> -9706 | G13: 2022-08-24 | H13: Julio | I13: 12000 | J13: 12000
A14: Hugo | B14: 78104.36 | C14: -2634 | D14: =B14+C14 -> 75470.36 | G14: 2022-08-24 | H14: Hugo | I14: 12000 | J14: 12000
A15: Total general | B15: 68398.36 | C15: -2634 | D15: =B15+C15 -> 65764.36 | F15: Julio pendientes de pago 40 Dany | G15: 2022-08-31 | H15: Julio | I15: 3000 | J15: 3000
G16: 2022-08-31 | H16: Hugo | I16: 3000 | J16: 3000
G17: 2022-11-25 | H17: Julio | I17: 10000 | J17: 10000 | L17: Ventas
A18: Julio | B18: 15804 | G18: 2022-11-25 | H18: Hugo | I18: 10000 | J18: 10000 | L18: =D15 -> 65764.36
G19: 2022-11-25 | H19: Julio | I19: 4627 | J19: 4627
G20: 2022-11-25 | H20: Hugo | I20: 4627 | J20: 4627 | L20: =SUM(L18:L19) -> 65764.36
I21: =SUM(RepartoUti[Cantidad]) -> 111035 | J21: =SUBTOTAL(109,RepartoUti[Transferencia]) -> 95015 | K21: =SUBTOTAL(109,RepartoUti[Efectivo]) -> 16020
B23: =C23 -> 65764.36 | C23: =D15 -> 65764.36 | D23: =E23-B23 -> -65764.36 | F23: =J29 -> 28430 | G23: …-190 por el registro de una venta como 1
B24: 31200 | F24: 5934
B25: =E22 -> 0 | E25: =D23+F25 -> -31400.36 | F25: =F23+F24 -> 34364 | I25: Masking ultra van 11 | L25: 4261.9
B26: =B24+B25 -> 31200 | I26: =320*11 -> 3520 | J26: =E25-I26 -> -34920.36
C27: =B23 -> 65764.36 | D27: Dinero total, con 8050 de mztln, reparto de utilidades del 25/11/22 y 31200
B28: =B23-B26 -> 34564.36
J29: =28430 -> 28430
M30: =16400+3950+4370 -> 24720
B31: 48394
B32: 1499 | D32: =H32-C27 -> -10370.36 | G32: =47394 -> 47394 | H32: =G32+8000 -> 55394
B33: =B31+B32 -> 49893
B34: =11*165 -> 1815
B35: =B33+B34 -> 51708
B36: =D15-B33 -> 15871.36 | C36: =D15-B35 -> 14056.36
B38: =B31+3886 -> 52280

Sheet Graficas

Sheet Hoja2
A1: Prestamo | B1: 155000
A2: Pago por apertura | B2: 5000
A3: Mensualidad | B3: 1200 | I3: Transpaso | J3: 55394
B4: =SUM(B1:B3) -> 161200 | I4: Tranferencia Hugo | J4: -7000
I5: Pedido | J5: -9400
I6: Pedido | J6: -12650
I7: Pedido | J7: -10540
J8: =SUM(J3:J7) -> 15804
F9: 100000 | G9: 24000
G10: 10000
D11: 9700 | F11: =F9-G9-G10 -> 66000
D12: 130
D13: =D11/D12 -> 74.61538462
D14: =74*250 -> 18500
D16: =D14+(170*250)+(170*175) -> 90750
D18: =D16+F11 -> 156750

Sheet Hoja1
I1: Copetin | L1: Torreon
A2: Antros | B2: 300 | E2: =B3*135 -> 40500 | H2: Berry Watermelon | I2: Berry Watermelon | J2: 80
A3: J&H | B3: 300 | E3: =B3*255 -> 76500 | F3: =E3-E2 -> 36000 | H3: Bluerazz | I3: Bluerazz | J3: 80 | L3: Energy | M3: 30
A4: Cliente 1 | B4: 120 | C4: Compa mau | H4: Coconut | I4: Cool mint | J4: 80 | L4: Coconut | M4: 40
A5: Cliente 2 | B5: 250 | C5: Iteso | H5: Cocumber Lemonade | L5: Cocumber Lemonade | M5: 30
A6: Cliente 3 | B6: 250 | C6: Veracruz | H6: Cool mint | I6: GrapeFruit berry | J6: 80 | L6: Lemon cookies | M6: 20
A7: Cliente 4 | B7: 250 | C7: Veracruz | H7: Energy ICE | I7: Grapestraw | J7: 70 | L7: Lush Ice | M7: 30
A8: Cliente 5 | B8: 200 | C8: Morra iteso | H8: GrapeFruit berry | I8: Guava | J8: 70 | L8: Grape Ice | M8: 30
H9: Grapestraw | I9: Sour Apple | J9: 50 | L9: Sour Rasberry | M9: 30
B10: =SUM(B2:B8) -> 1670 | H10: Guava | I10: Strawberry Lychee | J10: 70 | L10: Onrange Ice | M10: 30
H11: Lemon cookies | L11: Mango Ice | M11: 30
H12: Lush Ice | I12: Peach Ice | J12: 50 | L12: Banana Ice | M12: 30
H13: Sour Apple | L13: Passion Ice | M13: 30
H14: Strawberry Lychee | J14: =SUM(J2:J13) -> 630 | N14: =M15*140 -> 46200
M15: =SUM(M3:M13) -> 330
I17: =800*130 -> 104000
K18: =150000/255 -> 588.2352941
